Workbook

Sheet F_Inputs
C1: PR19PD011_IN
A2: Acronym | B2: Reference | C2: Item description | D2: Unit | E2: Model | F2: Price Review 2019
F4: PR19 Run 8: Final Determinations
F5: Latest
F6: 2011-12 | G6: 2012-13 | H6: 2013-14 | I6: 2014-15 | J6: 2015-16 | K6: 2016-17 | L6: 2017-18 | M6: 2018-19 | N6: 2019-20 | O6: 2020-21 | P6: 2015-20 | Q6: 2014-20 | R6: PR19 application
A7: SWT | B7: BB3905AL | C7: Consumer Price Index (with housing) for April | D7: nr | E7: Price Review 2019 | F7: 93.3 | G7: 95.9 | H7: 98 | I7: 99.6 | J7: 99.9 | K7: 100.6 | L7: 103.2 | M7: 105.5 | N7: 107.6 | O7: 109.8
A8: SWT | B8: BB3905MY | C8: Consumer Price Index (with housing) for May | D8: nr | E8: Price Review 2019 | F8: 93.5 | G8: 95.9 | H8: 98.2 | I8: 99.6 | J8: 100.1 | K8: 100.8 | L8: 103.5 | M8: 105.9 | N8: 108 | O8: 110.2
A9: SWT | B9: BB3905JN | C9: Consumer Price Index (with housing) for June | D9: nr | E9: Price Review 2019 | F9: 93.5 | G9: 95.6 | H9: 98 | I9: 99.8 | J9: 100.1 | K9: 101 | L9: 103.5 | M9: 105.9 | N9: 108 | O9: 110.2
A10: SWT | B10: BB3905JL | C10: Consumer Price Index (with housing) for July | D10: nr | E10: Price Review 2019 | F10: 93.5 | G10: 95.7 | H10: 98 | I10: 99.6 | J10: 100 | K10: 100.9 | L10: 103.5 | M10: 105.9 | N10: 108 | O10: 110.2
A11: SWT | B11: BB3905AT | C11: Consumer Price Index (with housing) for August | D11: nr | E11: Price Review 2019 | F11: 93.9 | G11: 96.1 | H11: 98.4 | I11: 99.9 | J11: 100.3 | K11: 101.2 | L11: 104 | M11: 106.5 | N11: 108.6 | O11: 110.8
A12: SWT | B12: BB3905SR | C12: Consumer Price Index (with housing) for September | D12: nr | E12: Price Review 2019 | F12: 94.5 | G12: 96.4 | H12: 98.7 | I12: 100 | J12: 100.2 | K12: 101.5 | L12: 104.3 | M12: 106.8 | N12: 108.9 | O12: 111.1
A13: SWT | B13: BB3905OR | C13: Consumer Price Index (with housing) for October | D13: nr | E13: Price Review 2019 | F13: 94.5 | G13: 96.8 | H13: 98.8 | I13: 100.1 | J13: 100.3 | K13: 101.6 | L13: 104.4 | M13: 106.9 | N13: 109 | O13: 111.2
A14: SWT | B14: BB3905NR | C14: Consumer Price Index (with housing) for November | D14: nr | E14: Price Review 2019 | F14: 94.7 | G14: 97 | H14: 98.8 | I14: 99.9 | J14: 100.3 | K14: 101.8 | L14: 104.7 | M14: 107.1 | N14: 109.2 | O14: 111.4
A15: SWT | B15: BB3905DR | C15: Consumer Price Index (with housing) for December | D15: nr | E15: Price Review 2019 | F15: 95 | G15: 97.3 | H15: 99.2 | I15: 99.9 | J15: 100.4 | K15: 102.2 | L15: 105 | M15: 107.5 | N15: 109.7 | O15: 111.9
A16: SWT | B16: BB3905JY | C16: Consumer Price Index (with housing) for January | D16: nr | E16: Price Review 2019 | F16: 94.7 | G16: 97 | H16: 98.7 | I16: 99.2 | J16: 99.9 | K16: 101.8 | L16: 104.5 | M16: 107 | N16: 109.1 | O16: 111.3
A17: SWT | B17: BB3905FY | C17: Consumer Price Index (with housing) for February | D17: nr | E17: Price Review 2019 | F17: 95.2 | G17: 97.5 | H17: 99.1 | I17: 99.5 | J17: 100.1 | K17: 102.4 | L17: 104.9 | M17: 107.3 | N17: 109.4 | O17: 111.6
A18: SWT | B18: BB3905MH | C18: Consumer Price Index (with housing) for March | D18: nr | E18: Price Review 2019 | F18: 95.4 | G18: 97.8 | H18: 99.3 | I18: 99.6 | J18: 100.4 | K18: 102.7 | L18: 105.1 | M18: 107.4 | N18: 109.5 | O18: 111.7
A19: SWT | B19: BB3805AL | C19: Retail Price Index for April | D19: nr | E19: Price Review 2019 | F19: 234.4 | G19: 242.5 | H19: 249.5 | I19: 255.7 | J19: 258 | K19: 261.4 | L19: 270.6 | M19: 279.7 | N19: 288.2 | O19: 297.4
A20: SWT | B20: BB3805MY | C20: Retail Price Index for May | D20: nr | E20: Price Review 2019 | F20: 235.2 | G20: 242.4 | H20: 250 | I20: 255.9 | J20: 258.5 | K20: 262.1 | L20: 271.7 | M20: 280.7 | N20: 289.2 | O20: 298.1
A21: SWT | B21: BB3805JN | C21: Retail Price Index for June | D21: nr | E21: Price Review 2019 | F21: 235.2 | G21: 241.8 | H21: 249.7 | I21: 256.3 | J21: 258.9 | K21: 263.1 | L21: 272.3 | M21: 281.5 | N21: 289.2 | O21: 298.9
A22: SWT | B22: BB3805JL | C22: Retail Price Index for July | D22: nr | E22: Price Review 2019 | F22: 234.7 | G22: 242.1 | H22: 249.7 | I22: 256 | J22: 258.6 | K22: 263.4 | L22: 272.9 | M22: 281.7 | N22: 288.8 | O22: 300.1
A23: SWT | B23: BB3805AT | C23: Retail Price Index for August | D23: nr | E23: Price Review 2019 | F23: 236.1 | G23: 243 | H23: 251 | I23: 257 | J23: 259.8 | K23: 264.4 | L23: 274.7 | M23: 284.2 | N23: 292 | O23: 301.8
A24: SWT | B24: BB3805SR | C24: Retail Price Index for September | D24: nr | E24: Price Review 2019 | F24: 237.9 | G24: 244.2 | H24: 251.9 | I24: 257.6 | J24: 259.6 | K24: 264.9 | L24: 275.1 | M24: 284.1 | N24: 291.9 | O24: 302.2
A25: SWT | B25: BB3805OR | C25: Retail Price Index for October | D25: nr | E25: Price Review 2019 | F25: 238 | G25: 245.6 | H25: 251.9 | I25: 257.7 | J25: 259.5 | K25: 264.8 | L25: 275.3 | M25: 284.5 | N25: 292.3 | O25: 302.2
A26: SWT | B26: BB3805NR | C26: Retail Price Index for November | D26: nr | E26: Price Review 2019 | F26: 238.5 | G26: 245.6 | H26: 252.1 | I26: 257.1 | J26: 259.8 | K26: 265.5 | L26: 275.8 | M26: 284.6 | N26: 292 | O26: 302.6
A27: SWT | B27: BB3805DR | C27: Retail Price Index for December | D27: nr | E27: Price Review 2019 | F27: 239.4 | G27: 246.8 | H27: 253.4 | I27: 257.5 | J27: 260.6 | K27: 267.1 | L27: 278.1 | M27: 285.6 | N27: 293.4 | O27: 305.1
A28: SWT | B28: BB3805JY | C28: Retail Price Index for January | D28: nr | E28: Price Review 2019 | F28: 238 | G28: 245.8 | H28: 252.6 | I28: 255.4 | J28: 258.8 | K28: 265.5 | L28: 276 | M28: 283 | N28: 290.7 | O28: 302.8
A29: SWT | B29: BB3805FY | C29: Retail Price Index for February | D29: nr | E29: Price Review 2019 | F29: 239.9 | G29: 247.6 | H29: 254.2 | I29: 256.7 | J29: 260 | K29: 268.4 | L29: 278.1 | M29: 285 | N29: 292.8 | O29: 305.1
A30: SWT | B30: BB3805MH | C30: Retail Price Index for March | D30: nr | E30: Price Review 2019 | F30: 240.8 | G30: 248.7 | H30: 254.8 | I30: 257.1 | J30: 261.1 | K30: 269.3 | L30: 278.3 | M30: 285.1 | N30: 292.8 | O30: 304.7
A31: SWT | B31: C_APP27015_PD002 | C31: Net performance payment / (penalty) applied to revenue for in-period ODI adjustments ~ Water resources | D31: £m | E31: Price Review 2019 | J31: 0 | K31: 0 | L31: 0 | M31: 0 | N31: 0 | R31: 0
A32: SWT | B32: C_APP27022_PD002 | C32: Net performance payment / (penalty) applied to revenue for end of period ODI adjustments ~ Water resources | D32: £m | E32: Price Review 2019 | J32: 0.162 | K32: 0.162 | L32: 0.162 | M32: 0.162 | N32: 0.162 | R32: 0.81
A33: SWT | B33: C_WS17013_PR19D007 | C33: Incentives to be paid at PR19 - Water resources control - Export incentives (2012-13 prices) | D33: £m | E33: Price Review 2019
A34: SWT | B34: C_WS17025_PR19D007 | C34: Incentives to be paid at PR19 - Water resources control - Import incentives (2012-13 prices) | D34: £m | E34: Price Review 2019
A35: SWT | B35: C00578_L021 | C35: Water - Total Adjustment Revenue carry forward to PR19 | D35: £m | E35: Price Review 2019 | P35: 0.7524882241
A36: SWT | B36: C_APP27016_PD002 | C36: Net performance payment / (penalty) applied to revenue for in-period ODI adjustments ~ Water network plus | D36: £m | E36: Price Review 2019 | J36: 0.141 | K36: 0.935 | L36: 0.514 | M36: 0.038 | N36: 0.245 | R36: 0.283
A37: SWT | B37: C_APP27023_PD002 | C37: Net performance payment / (penalty) applied to revenue for end of period ODI adjustments ~ Water network plus | D37: £m | E37: Price Review 2019 | J37: 1.462 | K37: 1.462 | L37: 1.462 | M37: 1.462 | N37: 1.462 | R37: 7.31
A38: SWT | B38: C_WS15024_PR19PD006 | C38: Water: revenue adjustment from totex menu model | D38: £m | E38: Price Review 2019 | R38: -2.950329808
A39: SWT | B39: C_WS17014_PR19D007 | C39: Incentives to be paid at PR19 - Network plus water control - Export incentives (2012-13 prices) | D39: £m | E39: Price Review 2019
A40: SWT | B40: C_WS17026_PR19D007 | C40: Incentives to be paid at PR19 - Network plus water control - Import incentives (2012-13 prices) | D40: £m | E40: Price Review 2019
A41: SWT | B41: C_WS13026_PR19PD005 | C41: Total reward / (penalty) at the end of AMP6 - water | D41: £m | E41: Price Review 2019 | N41: -20.25892556 | R41: -20.25892556
A42: SWT | B42: C_APP27018_PD002 | C42: Net performance payment / (penalty) applied to revenue for in-period ODI adjustments ~ Bioresources | D42: £m | E42: Price Review 2019 | J42: 0 | K42: 0 | L42: 0 | M42: 0 | N42: 0 | R42: 0
A43: SWT | B43: C_APP27025_PD002 | C43: Net performance payment / (penalty) applied to revenue for end of period ODI adjustments ~ Bioresources | D43: £m | E43: Price Review 2019 | J43: 0 | K43: 0 | L43: 0 | M43: 0 | N43: 0 | R43: 0
A44: SWT | B44: C00585_L021 | C44: Wastewater - Total Adjustment Revenue carry forward to PR19 | D44: £m | E44: Price Review 2019 | P44: 1.279001134
A45: SWT | B45: C_APP27017_PD002 | C45: Net performance payment / (penalty) applied to revenue for in-period ODI adjustments ~ Wastewater network plus | D45: £m | E45: Price Review 2019 | J45: -1.873 | K45: -1.226 | L45: -0.784 | M45: -0.889 | N45: 0 | R45: -0.889
A46: SWT | B46: C_APP27024_PD002 | C46: Net performance payment / (penalty) applied to revenue for end of period ODI adjustments ~ Wastewater network plus | D46: £m | E46: Price Review 2019 | J46: 0 | K46: 0 | L46: 0 | M46: 0 | N46: 0 | R46: 0
A47: SWT | B47: C_WWS15019_PR19PD006 | C47: Wastewater: revenue adjustment from totex menu model | D47: £m | E47: Price Review 2019 | R47: 1.600598103
A48: SWT | B48: C_WWS13026_PR19PD005 | C48: Total reward / (penalty) at the end of AMP6 - waste | D48: £m | E48: Price Review 2019 | N48: -21.16055439 | R48: -21.16055439
A49: SWT | B49: C_WWS15019_DMMY_PR19PD006 | C49: Wastewater: revenue adjustment from totex menu model (TTT) | D49: £m | E49: Price Review 2019
A50: SWT | B50: C_WWS13026_DMMY_PR19PD005 | C50: Total reward / (penalty) at the end of AMP6 - dmmy | D50: £m | E50: Price Review 2019 | N50: 0 | R50: 0
A51: SWT | B51: C_APP27019_PD002 | C51: Net performance payment / (penalty) applied to revenue for in-period ODI adjustments ~ Residential retail | D51: £m | E51: Price Review 2019 | J51: 0 | K51: 0 | L51: 0 | M51: 0 | N51: 0 | R51: 0
A52: SWT | B52: C_APP27026_PD002 | C52: Net performance payment / (penalty) applied to revenue for end of period ODI adjustments ~ Residential retail | D52: £m | E52: Price Review 2019 | J52: 0 | K52: 0 | L52: 0 | M52: 0 | N52: 0 | R52: 0
A53: SWT | B53: C_R9045_PR19PD008 | C53: Total reward / (penalty) at the end of AMP6 - Residential retail revenue adjustment at the end of AMP6 | D53: £m | E53: Price Review 2019 | N53: -4.761402737 | R53: -4.761402737
A54: SWT | B54: C_R10009_PR19PD009 | C54: SIM adjustment - Household retail £m | D54: £m | E54: Price Review 2019 | O54: -0.768018 | R54: -3.84009
A55: SWT | B55: C_APP27020_PD002 | C55: Net performance payment / (penalty) applied to revenue for in-period ODI adjustments ~ Business retail | D55: £m | E55: Price Review 2019 | J55: 0 | K55: 0 | L55: 0 | M55: 0 | N55: 0 | R55: 0
A56: SWT | B56: C_APP27027_PD002 | C56: Net performance payment / (penalty) applied to revenue for end of period ODI adjustments ~ Business retail | D56: £m | E56: Price Review 2019 | J56: 0 | K56: 0 | L56: 0 | M56: 0 | N56: 0 | R56: 0
A57: SWT | B57: C_004_PR19PD014 | C57: SIM adjustment - business retail £m | D57: £m | E57: Price Review 2019
A58: SWT | B58: C003_PR19PD015 | C58: Other revenue adjustment total - water network plus (2012-13 FYA prices) | D58: £m | E58: Price Review 2019
A59: SWT | B59: C006_PR19PD015 | C59: Other revenue adjustment total - wastewater network plus (2012-13 FYA prices) | D59: £m | E59: Price Review 2019

Sheet InpOverride
A2: Acronym | B2: Reference | C2: Item description | D2: Unit | E2: Model
F6: 2011-12 | G6: 2012-13 | H6: 2013-14 | I6: 2014-15 | J6: 2015-16 | K6: 2016-17 | L6: 2017-18 | M6: 2018-19 | N6: 2019-20 | O6: 2020-21 | P6: 2015-20 | Q6: 2014-20 | R6: PR19 application | S6: Action / Intervention reference
A7: =F_Inputs!A7 -> SWT | B7: BB3905AL | C7: Consumer Price Index (with housing) for April | D7: nr | E7: Price Review 2019
A8: =F_Inputs!A8 -> SWT | B8: BB3905MY | C8: Consumer Price Index (with housing) for May | D8: nr | E8: Price Review 2019
A9: =F_Inputs!A9 -> SWT | B9: BB3905JN | C9: Consumer Price Index (with housing) for June | D9: nr | E9: Price Review 2019
A10: =F_Inputs!A10 -> SWT | B10: BB3905JL | C10: Consumer Price Index (with housing) for July | D10: nr | E10: Price Review 2019
A11: =F_Inputs!A11 -> SWT | B11: BB3905AT | C11: Consumer Price Index (with housing) for August | D11: nr | E11: Price Review 2019
A12: =F_Inputs!A12 -> SWT | B12: BB3905SR | C12: Consumer Price Index (with housing) for September | D12: nr | E12: Price Review 2019
A13: =F_Inputs!A13 -> SWT | B13: BB3905OR | C13: Consumer Price Index (with housing) for October | D13: nr | E13: Price Review 2019
A14: =F_Inputs!A14 -> SWT | B14: BB3905NR | C14: Consumer Price Index (with housing) for November | D14: nr | E14: Price Review 2019
A15: =F_Inputs!A15 -> SWT | B15: BB3905DR | C15: Consumer Price Index (with housing) for December | D15: nr | E15: Price Review 2019
A16: =F_Inputs!A16 -> SWT | B16: BB3905JY | C16: Consumer Price Index (with housing) for January | D16: nr | E16: Price Review 2019
A17: =F_Inputs!A17 -> SWT | B17: BB3905FY | C17: Consumer Price Index (with housing) for February | D17: nr | E17: Price Review 2019
A18: =F_Inputs!A18 -> SWT | B18: BB3905MH | C18: Consumer Price Index (with housing) for March | D18: nr | E18: Price Review 2019
A19: =F_Inputs!A19 -> SWT | B19: BB3805AL | C19: Retail Price Index for April | D19: nr | E19: Price Review 2019
A20: =F_Inputs!A20 -> SWT | B20: BB3805MY | C20: Retail Price Index for May | D20: nr | E20: Price Review 2019
A21: =F_Inputs!A21 -> SWT | B21: BB3805JN | C21: Retail Price Index for June | D21: nr | E21: Price Review 2019
A22: =F_Inputs!A22 -> SWT | B22: BB3805JL | C22: Retail Price Index for July | D22: nr | E22: Price Review 2019
A23: =F_Inputs!A23 -> SWT | B23: BB3805AT | C23: Retail Price Index for August | D23: nr | E23: Price Review 2019
A24: =F_Inputs!A24 -> SWT | B24: BB3805SR | C24: Retail Price Index for September | D24: nr | E24: Price Review 2019
A25: =F_Inputs!A25 -> SWT | B25: BB3805OR | C25: Retail Price Index for October | D25: nr | E25: Price Review 2019
A26: =F_Inputs!A26 -> SWT | B26: BB3805NR | C26: Retail Price Index for November | D26: nr | E26: Price Review 2019
A27: =F_Inputs!A27 -> SWT | B27: BB3805DR | C27: Retail Price Index for December | D27: nr | E27: Price Review 2019
A28: =F_Inputs!A28 -> SWT | B28: BB3805JY | C28: Retail Price Index for January | D28: nr | E28: Price Review 2019
A29: =F_Inputs!A29 -> SWT | B29: BB3805FY | C29: Retail Price Index for February | D29: nr | E29: Price Review 2019
A30: =F_Inputs!A30 -> SWT | B30: BB3805MH | C30: Retail Price Index for March | D30: nr | E30: Price Review 2019
A31: =F_Inputs!A31 -> SWT | B31: C_APP27015_PD002 | C31: Net performance payment / (penalty) applied to revenue for in-period ODI adjustments ~ Water resources | D31: £m | E31: Price Review 2019
A32: =F_Inputs!A32 -> SWT | B32: C_APP27022_PD002 | C32: Net performance payment / (penalty) applied to revenue for end of period ODI adjustments ~ Water resources | D32: £m | E32: Price Review 2019
A33: =F_Inputs!A33 -> SWT | B33: C_WS17013_PR19D007 | C33: Incentives to be paid at PR19 - Water resources control - Export incentives (2012-13 prices) | D33: £m | E33: Price Review 2019
A34: =F_Inputs!A34 -> SWT | B34: C_WS17025_PR19D007 | C34: Incentives to be paid at PR19 - Water resources control - Import incentives (2012-13 prices) | D34: £m | E34: Price Review 2019
A35: =F_Inputs!A35 -> SWT | B35: C00578_L021 | C35: Water - Total Adjustment Revenue carry forward to PR19 | D35: £m | E35: Price Review 2019
A36: =F_Inputs!A36 -> SWT | B36: C_APP27016_PD002 | C36: Net performance payment / (penalty) applied to revenue for in-period ODI adjustments ~ Water network plus | D36: £m | E36: Price Review 2019
A37: =F_Inputs!A37 -> SWT | B37: C_APP27023_PD002 | C37: Net performance payment / (penalty) applied to revenue for end of period ODI adjustments ~ Water network plus | D37: £m | E37: Price Review 2019
A38: =F_Inputs!A38 -> SWT | B38: C_WS15024_PR19PD006 | C38: Water: revenue adjustment from totex menu model | D38: £m | E38: Price Review 2019
A39: =F_Inputs!A39 -> SWT | B39: C_WS17014_PR19D007 | C39: Incentives to be paid at PR19 - Network plus water control - Export incentives (2012-13 prices) | D39: £m | E39: Price Review 2019
A40: =F_Inputs!A40 -> SWT | B40: C_WS17026_PR19D007 | C40: Incentives to be paid at PR19 - Network plus water control - Import incentives (2012-13 prices) | D40: £m | E40: Price Review 2019
A41: =F_Inputs!A41 -> SWT | B41: C_WS13026_PR19PD005 | C41: Total reward / (penalty) at the end of AMP6 - water | D41: £m | E41: Price Review 2019
A42: =F_Inputs!A42 -> SWT | B42: C_APP27018_PD002 | C42: Net performance payment / (penalty) applied to revenue for in-period ODI adjustments ~ Bioresources | D42: £m | E42: Price Review 2019
A43: =F_Inputs!A43 -> SWT | B43: C_APP27025_PD002 | C43: Net performance payment / (penalty) applied to revenue for end of period ODI adjustments ~ Bioresources | D43: £m | E43: Price Review 2019
A44: =F_Inputs!A44 -> SWT | B44: C00585_L021 | C44: Wastewater - Total Adjustment Revenue carry forward to PR19 | D44: £m | E44: Price Review 2019
A45: =F_Inputs!A45 -> SWT | B45: C_APP27017_PD002 | C45: Net performance payment / (penalty) applied to revenue for in-period ODI adjustments ~ Wastewater network plus | D45: £m | E45: Price Review 2019
A46: =F_Inputs!A46 -> SWT | B46: C_APP27024_PD002 | C46: Net performance payment / (penalty) applied to revenue for end of period ODI adjustments ~ Wastewater network plus | D46: £m | E46: Price Review 2019
A47: =F_Inputs!A47 -> SWT | B47: C_WWS15019_PR19PD006 | C47: Wastewater: revenue adjustment from totex menu model | D47: £m | E47: Price Review 2019
A48: =F_Inputs!A48 -> SWT | B48: C_WWS13026_PR19PD005 | C48: Total reward / (penalty) at the end of AMP6 - waste | D48: £m | E48: Price Review 2019
A49: =F_Inputs!A49 -> SWT | B49: C_WWS15019_DMMY_PR19PD006 | C49: Wastewater: revenue adjustment from totex menu model (TTT) | D49: £m | E49: Price Review 2019
A50: =F_Inputs!A50 -> SWT | B50: C_WWS13026_DMMY_PR19PD005 | C50: Total reward / (penalty) at the end of AMP6 - dmmy | D50: £m | E50: Price Review 2019
A51: =F_Inputs!A51 -> SWT | B51: C_APP27019_PD002 | C51: Net performance payment / (penalty) applied to revenue for in-period ODI adjustments ~ Residential retail | D51: £m | E51: Price Review 2019
A52: =F_Inputs!A52 -> SWT | B52: C_APP27026_PD002 | C52: Net performance payment / (penalty) applied to revenue for end of period ODI adjustments ~ Residential retail | D52: £m | E52: Price Review 2019
A53: =F_Inputs!A53 -> SWT | B53: C_R9045_PR19PD008 | C53: Total reward / (penalty) at the end of AMP6 - Residential retail revenue adjustment at the end of AMP6 | D53: £m | E53: Price Review 2019
A54: =F_Inputs!A54 -> SWT | B54: C_R10009_PR19PD009 | C54: SIM adjustment - Household retail £m | D54: £m | E54: Price Review 2019
A55: =F_Inputs!A55 -> SWT | B55: C_APP27020_PD002 | C55: Net performance payment / (penalty) applied to revenue for in-period ODI adjustments ~ Business retail | D55: £m | E55: Price Review 2019
A56: =F_Inputs!A56 -> SWT | B56: C_APP27027_PD002 | C56: Net performance payment / (penalty) applied to revenue for end of period ODI adjustments ~ Business retail | D56: £m | E56: Price Review 2019
A57: =F_Inputs!A57 -> SWT | B57: C_004_PR19PD014 | C57: Non-household SIM adjustment - business retail | D57: £m | E57: Price Review 2019
A58: =F_Inputs!A58 -> SWT | B58: =F_Inputs!B58 -> C003_PR19PD015 | C58: Other revenue adjustment - water network plus | D58: £m | E58: Price Review 2019
A59: =F_Inputs!A59 -> SWT | B59: =F_Inputs!B59 -> C006_PR19PD015 | C59: Other revenue adjustment - wastewater network plus | D59: £m | E59: Price Review 2019

Sheet InpActive
A2: Acronym | B2: Reference | C2: Item description | D2: Unit | E2: Model
F6: 2011-12 | G6: 2012-13 | H6: 2013-14 | I6: 2014-15 | J6: 2015-16 | K6: 2016-17 | L6: 2017-18 | M6: 2018-19 | N6: 2019-20 | O6: 2020-21 | P6: 2015-20 | Q6: 2014-20 | R6: PR19 application
A7: =F_Inputs!A7 -> SWT | B7: BB3905AL | C7: Consumer Price Index (with housing) for April | D7: nr | E7: Price Review 2019 | F7: =IF(InpOverride!F7="",F_Inputs!F7,InpOverride!F7) -> 93.3 | G7: =IF(InpOverride!G7="",F_Inputs!G7,InpOverride!G7) -> 95.9 | H7: =IF(InpOverride!H7="",F_Inputs!H7,InpOverride!H7) -> 98 | I7: =IF(InpOverride!I7="",F_Inputs!I7,InpOverride!I7) -> 99.6 | J7: =IF(InpOverride!J7="",F_Inputs!J7,InpOverride!J7) -> 99.9 | K7: =IF(InpOverride!K7="",F_Inputs!K7,InpOverride!K7) -> 100.6 | L7: =IF(InpOverride!L7="",F_Inputs!L7,InpOverride!L7) -> 103.2 | M7: =IF(InpOverride!M7="",F_Inputs!M7,InpOverride!M7) -> 105.5 | N7: =IF(InpOverride!N7="",F_Inputs!N7,InpOverride!N7) -> 107.6 | O7: =IF(InpOverride!O7="",F_Inputs!O7,InpOverride!O7) -> 109.8
A8: =F_Inputs!A8 -> SWT | B8: BB3905MY | C8: Consumer Price Index (with housing) for May | D8: nr | E8: Price Review 2019 | F8: =IF(InpOverride!F8="",F_Inputs!F8,InpOverride!F8) -> 93.5 | G8: =IF(InpOverride!G8="",F_Inputs!G8,InpOverride!G8) -> 95.9 | H8: =IF(InpOverride!H8="",F_Inputs!H8,InpOverride!H8) -> 98.2 | I8: =IF(InpOverride!I8="",F_Inputs!I8,InpOverride!I8) -> 99.6 | J8: =IF(InpOverride!J8="",F_Inputs!J8,InpOverride!J8) -> 100.1 | K8: =IF(InpOverride!K8="",F_Inputs!K8,InpOverride!K8) -> 100.8 | L8: =IF(InpOverride!L8="",F_Inputs!L8,InpOverride!L8) -> 103.5 | M8: =IF(InpOverride!M8="",F_Inputs!M8,InpOverride!M8) -> 105.9 | N8: =IF(InpOverride!N8="",F_Inputs!N8,InpOverride!N8) -> 108 | O8: =IF(InpOverride!O8="",F_Inputs!O8,InpOverride!O8) -> 110.2
A9: =F_Inputs!A9 -> SWT | B9: BB3905JN | C9: Consumer Price Index (with housing) for June | D9: nr | E9: Price Review 2019 | F9: =IF(InpOverride!F9="",F_Inputs!F9,InpOverride!F9) -> 93.5 | G9: =IF(InpOverride!G9="",F_Inputs!G9,InpOverride!G9) -> 95.6 | H9: =IF(InpOverride!H9="",F_Inputs!H9,InpOverride!H9) -> 98 | I9: =IF(InpOverride!I9="",F_Inputs!I9,InpOverride!I9) -> 99.8 | J9: =IF(InpOverride!J9="",F_Inputs!J9,InpOverride!J9) -> 100.1 | K9: =IF(InpOverride!K9="",F_Inputs!K9,InpOverride!K9) -> 101 | L9: =IF(InpOverride!L9="",F_Inputs!L9,InpOverride!L9) -> 103.5 | M9: =IF(InpOverride!M9="",F_Inputs!M9,InpOverride!M9) -> 105.9 | N9: =IF(InpOverride!N9="",F_Inputs!N9,InpOverride!N9) -> 108 | O9: =IF(InpOverride!O9="",F_Inputs!O9,InpOverride!O9) -> 110.2
A10: =F_Inputs!A10 -> SWT | B10: BB3905JL | C10: Consumer Price Index (with housing) for July | D10: nr | E10: Price Review 2019 | F10: =IF(InpOverride!F10="",F_Inputs!F10,InpOverride!F10) -> 93.5 | G10: =IF(InpOverride!G10="",F_Inputs!G10,InpOverride!G10) -> 95.7 | H10: =IF(InpOverride!H10="",F_Inputs!H10,InpOverride!H10) -> 98 | I10: =IF(InpOverride!I10="",F_Inputs!I10,InpOverride!I10) -> 99.6 | J10: =IF(InpOverride!J10="",F_Inputs!J10,InpOverride!J10) -> 100 | K10: =IF(InpOverride!K10="",F_Inputs!K10,InpOverride!K10) -> 100.9 | L10: =IF(InpOverride!L10="",F_Inputs!L10,InpOverride!L10) -> 103.5 | M10: =IF(InpOverride!M10="",F_Inputs!M10,InpOverride!M10) -> 105.9 | N10: =IF(InpOverride!N10="",F_Inputs!N10,InpOverride!N10) -> 108 | O10: =IF(InpOverride!O10="",F_Inputs!O10,InpOverride!O10) -> 110.2
A11: =F_Inputs!A11 -> SWT | B11: BB3905AT | C11: Consumer Price Index (with housing) for August | D11: nr | E11: Price Review 2019 | F11: =IF(InpOverride!F11="",F_Inputs!F11,InpOverride!F11) -> 93.9 | G11: =IF(InpOverride!G11="",F_Inputs!G11,InpOverride!G11) -> 96.1 | H11: =IF(InpOverride!H11="",F_Inputs!H11,InpOverride!H11) -> 98.4 | I11: =IF(InpOverride!I11="",F_Inputs!I11,InpOverride!I11) -> 99.9 | J11: =IF(InpOverride!J11="",F_Inputs!J11,InpOverride!J11) -> 100.3 | K11: =IF(InpOverride!K11="",F_Inputs!K11,InpOverride!K11) -> 101.2 | L11: =IF(InpOverride!L11="",F_Inputs!L11,InpOverride!L11) -> 104 | M11: =IF(InpOverride!M11="",F_Inputs!M11,InpOverride!M11) -> 106.5 | N11: =IF(InpOverride!N11="",F_Inputs!N11,InpOverride!N11) -> 108.6 | O11: =IF(InpOverride!O11="",F_Inputs!O11,InpOverride!O11) -> 110.8
A12: =F_Inputs!A12 -> SWT | B12: BB3905SR | C12: Consumer Price Index (with housing) for September | D12: nr | E12: Price Review 2019 | F12: =IF(InpOverride!F12="",F_Inputs!F12,InpOverride!F12) -> 94.5 | G12: =IF(InpOverride!G12="",F_Inputs!G12,InpOverride!G12) -> 96.4 | H12: =IF(InpOverride!H12="",F_Inputs!H12,InpOverride!H12) -> 98.7 | I12: =IF(InpOverride!I12="",F_Inputs!I12,InpOverride!I12) -> 100 | J12: =IF(InpOverride!J12="",F_Inputs!J12,InpOverride!J12) -> 100.2 | K12: =IF(InpOverride!K12="",F_Inputs!K12,InpOverride!K12) -> 101.5 | L12: =IF(InpOverride!L12="",F_Inputs!L12,InpOverride!L12) -> 104.3 | M12: =IF(InpOverride!M12="",F_Inputs!M12,InpOverride!M12) -> 106.8 | N12: =IF(InpOverride!N12="",F_Inputs!N12,InpOverride!N12) -> 108.9 | O12: =IF(InpOverride!O12="",F_Inputs!O12,InpOverride!O12) -> 111.1
A13: =F_Inputs!A13 -> SWT | B13: BB3905OR | C13: Consumer Price Index (with housing) for October | D13: nr | E13: Price Review 2019 | F13: =IF(InpOverride!F13="",F_Inputs!F13,InpOverride!F13) -> 94.5 | G13: =IF(InpOverride!G13="",F_Inputs!G13,InpOverride!G13) -> 96.8 | H13: =IF(InpOverride!H13="",F_Inputs!H13,InpOverride!H13) -> 98.8 | I13: =IF(InpOverride!I13="",F_Inputs!I13,InpOverride!I13) -> 100.1 | J13: =IF(InpOverride!J13="",F_Inputs!J13,InpOverride!J13) -> 100.3 | K13: =IF(InpOverride!K13="",F_Inputs!K13,InpOverride!K13) -> 101.6 | L13: =IF(InpOverride!L13="",F_Inputs!L13,InpOverride!L13) -> 104.4 | M13: =IF(InpOverride!M13="",F_Inputs!M13,InpOverride!M13) -> 106.9 | N13: =IF(InpOverride!N13="",F_Inputs!N13,InpOverride!N13) -> 109 | O13: =IF(InpOverride!O13="",F_Inputs!O13,InpOverride!O13) -> 111.2
A14: =F_Inputs!A14 -> SWT | B14: BB3905NR | C14: Consumer Price Index (with housing) for November | D14: nr | E14: Price Review 2019 | F14: =IF(InpOverride!F14="",F_Inputs!F14,InpOverride!F14) -> 94.7 | G14: =IF(InpOverride!G14="",F_Inputs!G14,InpOverride!G14) -> 97 | H14: =IF(InpOverride!H14="",F_Inputs!H14,InpOverride!H14) -> 98.8 | I14: =IF(InpOverride!I14="",F_Inputs!I14,InpOverride!I14) -> 99.9 | J14: =IF(InpOverride!J14="",F_Inputs!J14,InpOverride!J14) -> 100.3 | K14: =IF(InpOverride!K14="",F_Inputs!K14,InpOverride!K14) -> 101.8 | L14: =IF(InpOverride!L14="",F_Inputs!L14,InpOverride!L14) -> 104.7 | M14: =IF(InpOverride!M14="",F_Inputs!M14,InpOverride!M14) -> 107.1 | N14: =IF(InpOverride!N14="",F_Inputs!N14,InpOverride!N14) -> 109.2 | O14: =IF(InpOverride!O14="",F_Inputs!O14,InpOverride!O14) -> 111.4
A15: =F_Inputs!A15 -> SWT | B15: BB3905DR | C15: Consumer Price Index (with housing) for December | D15: nr | E15: Price Review 2019 | F15: =IF(InpOverride!F15="",F_Inputs!F15,InpOverride!F15) -> 95 | G15: =IF(InpOverride!G15="",F_Inputs!G15,InpOverride!G15) -> 97.3 | H15: =IF(InpOverride!H15="",F_Inputs!H15,InpOverride!H15) -> 99.2 | I15: =IF(InpOverride!I15="",F_Inputs!I15,InpOverride!I15) -> 99.9 | J15: =IF(InpOverride!J15="",F_Inputs!J15,InpOverride!J15) -> 100.4 | K15: =IF(InpOverride!K15="",F_Inputs!K15,InpOverride!K15) -> 102.2 | L15: =IF(InpOverride!L15="",F_Inputs!L15,InpOverride!L15) -> 105 | M15: =IF(InpOverride!M15="",F_Inputs!M15,InpOverride!M15) -> 107.5 | N15: =IF(InpOverride!N15="",F_Inputs!N15,InpOverride!N15) -> 109.7 | O15: =IF(InpOverride!O15="",F_Inputs!O15,InpOverride!O15) -> 111.9
A16: =F_Inputs!A16 -> SWT | B16: BB3905JY | C16: Consumer Price Index (with housing) for January | D16: nr | E16: Price Review 2019 | F16: =IF(InpOverride!F16="",F_Inputs!F16,InpOverride!F16) -> 94.7 | G16: =IF(InpOverride!G16="",F_Inputs!G16,InpOverride!G16) -> 97 | H16: =IF(InpOverride!H16="",F_Inputs!H16,InpOverride!H16) -> 98.7 | I16: =IF(InpOverride!I16="",F_Inputs!I16,InpOverride!I16) -> 99.2 | J16: =IF(InpOverride!J16="",F_Inputs!J16,InpOverride!J16) -> 99.9 | K16: =IF(InpOverride!K16="",F_Inputs!K16,InpOverride!K16) -> 101.8 | L16: =IF(InpOverride!L16="",F_Inputs!L16,InpOverride!L16) -> 104.5 | M16: =IF(InpOverride!M16="",F_Inputs!M16,InpOverride!M16) -> 107 | N16: =IF(InpOverride!N16="",F_Inputs!N16,InpOverride!N16) -> 109.1 | O16: =IF(InpOverride!O16="",F_Inputs!O16,InpOverride!O16) -> 111.3
A17: =F_Inputs!A17 -> SWT | B17: BB3905FY | C17: Consumer Price Index (with housing) for February | D17: nr | E17: Price Review 2019 | F17: =IF(InpOverride!F17="",F_Inputs!F17,InpOverride!F17) -> 95.2 | G17: =IF(InpOverride!G17="",F_Inputs!G17,InpOverride!G17) -> 97.5 | H17: =IF(InpOverride!H17="",F_Inputs!H17,InpOverride!H17) -> 99.1 | I17: =IF(InpOverride!I17="",F_Inputs!I17,InpOverride!I17) -> 99.5 | J17: =IF(InpOverride!J17="",F_Inputs!J17,InpOverride!J17) -> 100.1 | K17: =IF(InpOverride!K17="",F_Inputs!K17,InpOverride!K17) -> 102.4 | L17: =IF(InpOverride!L17="",F_Inputs!L17,InpOverride!L17) -> 104.9 | M17: =IF(InpOverride!M17="",F_Inputs!M17,InpOverride!M17) -> 107.3 | N17: =IF(InpOverride!N17="",F_Inputs!N17,InpOverride!N17) -> 109.4 | O17: =IF(InpOverride!O17="",F_Inputs!O17,InpOverride!O17) -> 111.6
A18: =F_Inputs!A18 -> SWT | B18: BB3905MH | C18: Consumer Price Index (with housing) for March | D18: nr | E18: Price Review 2019 | F18: =IF(InpOverride!F18="",F_Inputs!F18,InpOverride!F18) -> 95.4 | G18: =IF(InpOverride!G18="",F_Inputs!G18,InpOverride!G18) -> 97.8 | H18: =IF(InpOverride!H18="",F_Inputs!H18,InpOverride!H18) -> 99.3 | I18: =IF(InpOverride!I18="",F_Inputs!I18,InpOverride!I18) -> 99.6 | J18: =IF(InpOverride!J18="",F_Inputs!J18,InpOverride!J18) -> 100.4 | K18: =IF(InpOverride!K18="",F_Inputs!K18,InpOverride!K18) -> 102.7 | L18: =IF(InpOverride!L18="",F_Inputs!L18,InpOverride!L18) -> 105.1 | M18: =IF(InpOverride!M18="",F_Inputs!M18,InpOverride!M18) -> 107.4 | N18: =IF(InpOverride!N18="",F_Inputs!N18,InpOverride!N18) -> 109.5 | O18: =IF(InpOverride!O18="",F_Inputs!O18,InpOverride!O18) -> 111.7
A19: =F_Inputs!A19 -> SWT | B19: BB3805AL | C19: Retail Price Index for April | D19: nr | E19: Price Review 2019 | F19: =IF(InpOverride!F19="",F_Inputs!F19,InpOverride!F19) -> 234.4 | G19: =IF(InpOverride!G19="",F_Inputs!G19,InpOverride!G19) -> 242.5 | H19: =IF(InpOverride!H19="",F_Inputs!H19,InpOverride!H19) -> 249.5 | I19: =IF(InpOverride!I19="",F_Inputs!I19,InpOverride!I19) -> 255.7 | J19: =IF(InpOverride!J19="",F_Inputs!J19,InpOverride!J19) -> 258 | K19: =IF(InpOverride!K19="",F_Inputs!K19,InpOverride!K19) -> 261.4 | L19: =IF(InpOverride!L19="",F_Inputs!L19,InpOverride!L19) -> 270.6 | M19: =IF(InpOverride!M19="",F_Inputs!M19,InpOverride!M19) -> 279.7 | N19: =IF(InpOverride!N19="",F_Inputs!N19,InpOverride!N19) -> 288.2 | O19: =IF(InpOverride!O19="",F_Inputs!O19,InpOverride!O19) -> 297.4
A20: =F_Inputs!A20 -> SWT | B20: BB3805MY | C20: Retail Price Index for May | D20: nr | E20: Price Review 2019 | F20: =IF(InpOverride!F20="",F_Inputs!F20,InpOverride!F20) -> 235.2 | G20: =IF(InpOverride!G20="",F_Inputs!G20,InpOverride!G20) -> 242.4 | H20: =IF(InpOverride!H20="",F_Inputs!H20,InpOverride!H20) -> 250 | I20: =IF(InpOverride!I20="",F_Inputs!I20,InpOverride!I20) -> 255.9 | J20: =IF(InpOverride!J20="",F_Inputs!J20,InpOverride!J20) -> 258.5 | K20: =IF(InpOverride!K20="",F_Inputs!K20,InpOverride!K20) -> 262.1 | L20: =IF(InpOverride!L20="",F_Inputs!L20,InpOverride!L20) -> 271.7 | M20: =IF(InpOverride!M20="",F_Inputs!M20,InpOverride!M20) -> 280.7 | N20: =IF(InpOverride!N20="",F_Inputs!N20,InpOverride!N20) -> 289.2 | O20: =IF(InpOverride!O20="",F_Inputs!O20,InpOverride!O20) -> 298.1
A21: =F_Inputs!A21 -> SWT | B21: BB3805JN | C21: Retail Price Index for June | D21: nr | E21: Price Review 2019 | F21: =IF(InpOverride!F21="",F_Inputs!F21,InpOverride!F21) -> 235.2 | G21: =IF(InpOverride!G21="",F_Inputs!G21,InpOverride!G21) -> 241.8 | H21: =IF(InpOverride!H21="",F_Inputs!H21,InpOverride!H21) -> 249.7 | I21: =IF(InpOverride!I21="",F_Inputs!I21,InpOverride!I21) -> 256.3 | J21: =IF(InpOverride!J21="",F_Inputs!J21,InpOverride!J21) -> 258.9 | K21: =IF(InpOverride!K21="",F_Inputs!K21,InpOverride!K21) -> 263.1 | L21: =IF(InpOverride!L21="",F_Inputs!L21,InpOverride!L21) -> 272.3 | M21: =IF(InpOverride!M21="",F_Inputs!M21,InpOverride!M21) -> 281.5 | N21: =IF(InpOverride!N21="",F_Inputs!N21,InpOverride!N21) -> 289.2 | O21: =IF(InpOverride!O21="",F_Inputs!O21,InpOverride!O21) -> 298.9
A22: =F_Inputs!A22 -> SWT | B22: BB3805JL | C22: Retail Price Index for July | D22: nr | E22: Price Review 2019 | F22: =IF(InpOverride!F22="",F_Inputs!F22,InpOverride!F22) -> 234.7 | G22: =IF(InpOverride!G22="",F_Inputs!G22,InpOverride!G22) -> 242.1 | H22: =IF(InpOverride!H22="",F_Inputs!H22,InpOverride!H22) -> 249.7 | I22: =IF(InpOverride!I22="",F_Inputs!I22,InpOverride!I22) -> 256 | J22: =IF(InpOverride!J22="",F_Inputs!J22,InpOverride!J22) -> 258.6 | K22: =IF(InpOverride!K22="",F_Inputs!K22,InpOverride!K22) -> 263.4 | L22: =IF(InpOverride!L22="",F_Inputs!L22,InpOverride!L22) -> 272.9 | M22: =IF(InpOverride!M22="",F_Inputs!M22,InpOverride!M22) -> 281.7 | N22: =IF(InpOverride!N22="",F_Inputs!N22,InpOverride!N22) -> 288.8 | O22: =IF(InpOverride!O22="",F_Inputs!O22,InpOverride!O22) -> 300.1
A23: =F_Inputs!A23 -> SWT | B23: BB3805AT | C23: Retail Price Index for August | D23: nr | E23: Price Review 2019 | F23: =IF(InpOverride!F23="",F_Inputs!F23,InpOverride!F23) -> 236.1 | G23: =IF(InpOverride!G23="",F_Inputs!G23,InpOverride!G23) -> 243 | H23: =IF(InpOverride!H23="",F_Inputs!H23,InpOverride!H23) -> 251 | I23: =IF(InpOverride!I23="",F_Inputs!I23,InpOverride!I23) -> 257 | J23: =IF(InpOverride!J23="",F_Inputs!J23,InpOverride!J23) -> 259.8 | K23: =IF(InpOverride!K23="",F_Inputs!K23,InpOverride!K23) -> 264.4 | L23: =IF(InpOverride!L23="",F_Inputs!L23,InpOverride!L23) -> 274.7 | M23: =IF(InpOverride!M23="",F_Inputs!M23,InpOverride!M23) -> 284.2 | N23: =IF(InpOverride!N23="",F_Inputs!N23,InpOverride!N23) -> 292 | O23: =IF(InpOverride!O23="",F_Inputs!O23,InpOverride!O23) -> 301.8
A24: =F_Inputs!A24 -> SWT | B24: BB3805SR | C24: Retail Price Index for September | D24: nr | E24: Price Review 2019 | F24: =IF(InpOverride!F24="",F_Inputs!F24,InpOverride!F24) -> 237.9 | G24: =IF(InpOverride!G24="",F_Inputs!G24,InpOverride!G24) -> 244.2 | H24: =IF(InpOverride!H24="",F_Inputs!H24,InpOverride!H24) -> 251.9 | I24: =IF(InpOverride!I24="",F_Inputs!I24,InpOverride!I24) -> 257.6 | J24: =IF(InpOverride!J24="",F_Inputs!J24,InpOverride!J24) -> 259.6 | K24: =IF(InpOverride!K24="",F_Inputs!K24,InpOverride!K24) -> 264.9 | L24: =IF(InpOverride!L24="",F_Inputs!L24,InpOverride!L24) -> 275.1 | M24: =IF(InpOverride!M24="",F_Inputs!M24,InpOverride!M24) -> 284.1 | N24: =IF(InpOverride!N24="",F_Inputs!N24,InpOverride!N24) -> 291.9 | O24: =IF(InpOverride!O24="",F_Inputs!O24,InpOverride!O24) -> 302.2
A25: =F_Inputs!A25 -> SWT | B25: BB3805OR | C25: Retail Price Index for October | D25: nr | E25: Price Review 2019 | F25: =IF(InpOverride!F25="",F_Inputs!F25,InpOverride!F25) -> 238 | G25: =IF(InpOverride!G25="",F_Inputs!G25,InpOverride!G25) -> 245.6 | H25: =IF(InpOverride!H25="",F_Inputs!H25,InpOverride!H25) -> 251.9 | I25: =IF(InpOverride!I25="",F_Inputs!I25,InpOverride!I25) -> 257.7 | J25: =IF(InpOverride!J25="",F_Inputs!J25,InpOverride!J25) -> 259.5 | K25: =IF(InpOverride!K25="",F_Inputs!K25,InpOverride!K25) -> 264.8 | L25: =IF(InpOverride!L25="",F_Inputs!L25,InpOverride!L25) -> 275.3 | M25: =IF(InpOverride!M25="",F_Inputs!M25,InpOverride!M25) -> 284.5 | N25: =IF(InpOverride!N25="",F_Inputs!N25,InpOverride!N25) -> 292.3 | O25: =IF(InpOverride!O25="",F_Inputs!O25,InpOverride!O25) -> 302.2
A26: =F_Inputs!A26 -> SWT | B26: BB3805NR | C26: Retail Price Index for November | D26: nr | E26: Price Review 2019 | F26: =IF(InpOverride!F26="",F_Inputs!F26,InpOverride!F26) -> 238.5 | G26: =IF(InpOverride!G26="",F_Inputs!G26,InpOverride!G26) -> 245.6 | H26: =IF(InpOverride!H26="",F_Inputs!H26,InpOverride!H26) -> 252.1 | I26: =IF(InpOverride!I26="",F_Inputs!I26,InpOverride!I26) -> 257.1 | J26: =IF(InpOverride!J26="",F_Inputs!J26,InpOverride!J26) -> 259.8 | K26: =IF(InpOverride!K26="",F_Inputs!K26,InpOverride!K26) -> 265.5 | L26: =IF(InpOverride!L26="",F_Inputs!L26,InpOverride!L26) -> 275.8 | M26: =IF(InpOverride!M26="",F_Inputs!M26,InpOverride!M26) -> 284.6 | N26: =IF(InpOverride!N26="",F_Inputs!N26,InpOverride!N26) -> 292 | O26: =IF(InpOverride!O26="",F_Inputs!O26,InpOverride!O26) -> 302.6
A27: =F_Inputs!A27 -> SWT | B27: BB3805DR | C27: Retail Price Index for December | D27: nr | E27: Price Review 2019 | F27: =IF(InpOverride!F27="",F_Inputs!F27,InpOverride!F27) -> 239.4 | G27: =IF(InpOverride!G27="",F_Inputs!G27,InpOverride!G27) -> 246.8 | H27: =IF(InpOverride!H27="",F_Inputs!H27,InpOverride!H27) -> 253.4 | I27: =IF(InpOverride!I27="",F_Inputs!I27,InpOverride!I27) -> 257.5 | J27: =IF(InpOverride!J27="",F_Inputs!J27,InpOverride!J27) -> 260.6 | K27: =IF(InpOverride!K27="",F_Inputs!K27,InpOverride!K27) -> 267.1 | L27: =IF(InpOverride!L27="",F_Inputs!L27,InpOverride!L27) -> 278.1 | M27: =IF(InpOverride!M27="",F_Inputs!M27,InpOverride!M27) -> 285.6 | N27: =IF(InpOverride!N27="",F_Inputs!N27,InpOverride!N27) -> 293.4 | O27: =IF(InpOverride!O27="",F_Inputs!O27,InpOverride!O27) -> 305.1
A28: =F_Inputs!A28 -> SWT | B28: BB3805JY | C28: Retail Price Index for January | D28: nr | E28: Price Review 2019 | F28: =IF(InpOverride!F28="",F_Inputs!F28,InpOverride!F28) -> 238 | G28: =IF(InpOverride!G28="",F_Inputs!G28,InpOverride!G28) -> 245.8 | H28: =IF(InpOverride!H28="",F_Inputs!H28,InpOverride!H28) -> 252.6 | I28: =IF(InpOverride!I28="",F_Inputs!I28,InpOverride!I28) -> 255.4 | J28: =IF(InpOverride!J28="",F_Inputs!J28,InpOverride!J28) -> 258.8 | K28: =IF(InpOverride!K28="",F_Inputs!K28,InpOverride!K28) -> 265.5 | L28: =IF(InpOverride!L28="",F_Inputs!L28,InpOverride!L28) -> 276 | M28: =IF(InpOverride!M28="",F_Inputs!M28,InpOverride!M28) -> 283 | N28: =IF(InpOverride!N28="",F_Inputs!N28,InpOverride!N28) -> 290.7 | O28: =IF(InpOverride!O28="",F_Inputs!O28,InpOverride!O28) -> 302.8
A29: =F_Inputs!A29 -> SWT | B29: BB3805FY | C29: Retail Price Index for February | D29: nr | E29: Price Review 2019 | F29: =IF(InpOverride!F29="",F_Inputs!F29,InpOverride!F29) -> 239.9 | G29: =IF(InpOverride!G29="",F_Inputs!G29,InpOverride!G29) -> 247.6 | H29: =IF(InpOverride!H29="",F_Inputs!H29,InpOverride!H29) -> 254.2 | I29: =IF(InpOverride!I29="",F_Inputs!I29,InpOverride!I29) -> 256.7 | J29: =IF(InpOverride!J29="",F_Inputs!J29,InpOverride!J29) -> 260 | K29: =IF(InpOverride!K29="",F_Inputs!K29,InpOverride!K29) -> 268.4 | L29: =IF(InpOverride!L29="",F_Inputs!L29,InpOverride!L29) -> 278.1 | M29: =IF(InpOverride!M29="",F_Inputs!M29,InpOverride!M29) -> 285 | N29: =IF(InpOverride!N29="",F_Inputs!N29,InpOverride!N29) -> 292.8 | O29: =IF(InpOverride!O29="",F_Inputs!O29,InpOverride!O29) -> 305.1
A30: =F_Inputs!A30 -> SWT | B30: BB3805MH | C30: Retail Price Index for March | D30: nr | E30: Price Review 2019 | F30: =IF(InpOverride!F30="",F_Inputs!F30,InpOverride!F30) -> 240.8 | G30: =IF(InpOverride!G30="",F_Inputs!G30,InpOverride!G30) -> 248.7 | H30: =IF(InpOverride!H30="",F_Inputs!H30,InpOverride!H30) -> 254.8 | I30: =IF(InpOverride!I30="",F_Inputs!I30,InpOverride!I30) -> 257.1 | J30: =IF(InpOverride!J30="",F_Inputs!J30,InpOverride!J30) -> 261.1 | K30: =IF(InpOverride!K30="",F_Inputs!K30,InpOverride!K30) -> 269.3 | L30: =IF(InpOverride!L30="",F_Inputs!L30,InpOverride!L30) -> 278.3 | M30: =IF(InpOverride!M30="",F_Inputs!M30,InpOverride!M30) -> 285.1 | N30: =IF(InpOverride!N30="",F_Inputs!N30,InpOverride!N30) -> 292.8 | O30: =IF(InpOverride!O30="",F_Inputs!O30,InpOverride!O30) -> 304.7
A31: =F_Inputs!A31 -> SWT | B31: C_APP27015_PD002 | C31: Net performance payment / (penalty) applied to revenue for in-period ODI adjustments ~ Water resources | D31: £m | E31: Price Review 2019 | J31: =IF(InpOverride!J31="",F_Inputs!J31,InpOverride!J31) -> 0 | K31: =IF(InpOverride!K31="",F_Inputs!K31,InpOverride!K31) -> 0 | L31: =IF(InpOverride!L31="",F_Inputs!L31,InpOverride!L31) -> 0 | M31: =IF(InpOverride!M31="",F_Inputs!M31,InpOverride!M31) -> 0 | N31: =IF(InpOverride!N31="",F_Inputs!N31,InpOverride!N31) -> 0 | R31: =IF(InpOverride!R31="",F_Inputs!R31,InpOverride!R31) -> 0
A32: =F_Inputs!A32 -> SWT | B32: C_APP27022_PD002 | C32: Net performance payment / (penalty) applied to revenue for end of period ODI adjustments ~ Water resources | D32: £m | E32: Price Review 2019 | J32: =IF(InpOverride!J32="",F_Inputs!J32,InpOverride!J32) -> 0.162 | K32: =IF(InpOverride!K32="",F_Inputs!K32,InpOverride!K32) -> 0.162 | L32: =IF(InpOverride!L32="",F_Inputs!L32,InpOverride!L32) -> 0.162 | M32: =IF(InpOverride!M32="",F_Inputs!M32,InpOverride!M32) -> 0.162 | N32: =IF(InpOverride!N32="",F_Inputs!N32,InpOverride!N32) -> 0.162 | R32: =IF(InpOverride!R32="",F_Inputs!R32,InpOverride!R32) -> 0.81
A33: =F_Inputs!A33 -> SWT | B33: C_WS17013_PR19D007 | C33: Incentives to be paid at PR19 - Water resources control - Export incentives (2012-13 prices) | D33: £m | E33: Price Review 2019 | R33: =IF(InpOverride!R33="",F_Inputs!R33,InpOverride!R33) -> 0
A34: =F_Inputs!A34 -> SWT | B34: C_WS17025_PR19D007 | C34: Incentives to be paid at PR19 - Water resources control - Import incentives (2012-13 prices) | D34: £m | E34: Price Review 2019 | R34: =IF(InpOverride!R34="",F_Inputs!R34,InpOverride!R34) -> 0
A35: =F_Inputs!A35 -> SWT | B35: C00578_L021 | C35: Water - Total Adjustment Revenue carry forward to PR19 | D35: £m | E35: Price Review 2019 | P35: =IF(InpOverride!P35="",F_Inputs!P35,InpOverride!P35) -> 0.7524882241
A36: =F_Inputs!A36 -> SWT | B36: C_APP27016_PD002 | C36: Net performance payment / (penalty) applied to revenue for in-period ODI adjustments ~ Water network plus | D36: £m | E36: Price Review 2019 | J36: =IF(InpOverride!J36="",F_Inputs!J36,InpOverride!J36) -> 0.141 | K36: =IF(InpOverride!K36="",F_Inputs!K36,InpOverride!K36) -> 0.935 | L36: =IF(InpOverride!L36="",F_Inputs!L36,InpOverride!L36) -> 0.514 | M36: =IF(InpOverride!M36="",F_Inputs!M36,InpOverride!M36) -> 0.038 | N36: =IF(InpOverride!N36="",F_Inputs!N36,InpOverride!N36) -> 0.245 | R36: =IF(InpOverride!R36="",F_Inputs!R36,InpOverride!R36) -> 0.283
A37: =F_Inputs!A37 -> SWT | B37: C_APP27023_PD002 | C37: Net performance payment / (penalty) applied to revenue for end of period ODI adjustments ~ Water network plus | D37: £m | E37: Price Review 2019 | J37: =IF(InpOverride!J37="",F_Inputs!J37,InpOverride!J37) -> 1.462 | K37: =IF(InpOverride!K37="",F_Inputs!K37,InpOverride!K37) -> 1.462 | L37: =IF(InpOverride!L37="",F_Inputs!L37,InpOverride!L37) -> 1.462 | M37: =IF(InpOverride!M37="",F_Inputs!M37,InpOverride!M37) -> 1.462 | N37: =IF(InpOverride!N37="",F_Inputs!N37,InpOverride!N37) -> 1.462 | R37: =IF(InpOverride!R37="",F_Inputs!R37,InpOverride!R37) -> 7.31
A38: =F_Inputs!A38 -> SWT | B38: C_WS15024_PR19PD006 | C38: Water: revenue adjustment from totex menu model | D38: £m | E38: Price Review 2019 | R38: =IF(InpOverride!R38="",F_Inputs!R38,InpOverride!R38) -> -2.950329808
A39: =F_Inputs!A39 -> SWT | B39: C_WS17014_PR19D007 | C39: Incentives to be paid at PR19 - Network plus water control - Export incentives (2012-13 prices) | D39: £m | E39: Price Review 2019 | R39: =IF(InpOverride!R39="",F_Inputs!R39,InpOverride!R39) -> 0
A40: =F_Inputs!A40 -> SWT | B40: C_WS17026_PR19D007 | C40: Incentives to be paid at PR19 - Network plus water control - Import incentives (2012-13 prices) | D40: £m | E40: Price Review 2019 | R40: =IF(InpOverride!R40="",F_Inputs!R40,InpOverride!R40) -> 0
A41: =F_Inputs!A41 -> SWT | B41: C_WS13026_PR19PD005 | C41: Total reward / (penalty) at the end of AMP6 - water | D41: £m | E41: Price Review 2019 | N41: =IF(InpOverride!N41="",F_Inputs!N41,InpOverride!N41) -> -20.25892556 | R41: =IF(InpOverride!R41="",F_Inputs!R41,InpOverride!R41) -> -20.25892556
A42: =F_Inputs!A42 -> SWT | B42: C_APP27018_PD002 | C42: Net performance payment / (penalty) applied to revenue for in-period ODI adjustments ~ Bioresources | D42: £m | E42: Price Review 2019 | J42: =IF(InpOverride!J42="",F_Inputs!J42,InpOverride!J42) -> 0 | K42: =IF(InpOverride!K42="",F_Inputs!K42,InpOverride!K42) -> 0 | L42: =IF(InpOverride!L42="",F_Inputs!L42,InpOverride!L42) -> 0 | M42: =IF(InpOverride!M42="",F_Inputs!M42,InpOverride!M42) -> 0 | N42: =IF(InpOverride!N42="",F_Inputs!N42,InpOverride!N42) -> 0 | R42: =IF(InpOverride!R42="",F_Inputs!R42,InpOverride!R42) -> 0
A43: =F_Inputs!A43 -> SWT | B43: C_APP27025_PD002 | C43: Net performance payment / (penalty) applied to revenue for end of period ODI adjustments ~ Bioresources | D43: £m | E43: Price Review 2019 | J43: =IF(InpOverride!J43="",F_Inputs!J43,InpOverride!J43) -> 0 | K43: =IF(InpOverride!K43="",F_Inputs!K43,InpOverride!K43) -> 0 | L43: =IF(InpOverride!L43="",F_Inputs!L43,InpOverride!L43) -> 0 | M43: =IF(InpOverride!M43="",F_Inputs!M43,InpOverride!M43) -> 0 | N43: =IF(InpOverride!N43="",F_Inputs!N43,InpOverride!N43) -> 0 | R43: =IF(InpOverride!R43="",F_Inputs!R43,InpOverride!R43) -> 0
A44: =F_Inputs!A44 -> SWT | B44: C00585_L021 | C44: Wastewater - Total Adjustment Revenue carry forward to PR19 | D44: £m | E44: Price Review 2019 | P44: =IF(InpOverride!P44="",F_Inputs!P44,InpOverride!P44) -> 1.279001134
A45: =F_Inputs!A45 -> SWT | B45: C_APP27017_PD002 | C45: Net performance payment / (penalty) applied to revenue for in-period ODI adjustments ~ Wastewater network plus | D45: £m | E45: Price Review 2019 | J45: =IF(InpOverride!J45="",F_Inputs!J45,InpOverride!J45) -> -1.873 | K45: =IF(InpOverride!K45="",F_Inputs!K45,InpOverride!K45) -> -1.226 | L45: =IF(InpOverride!L45="",F_Inputs!L45,InpOverride!L45) -> -0.784 | M45: =IF(InpOverride!M45="",F_Inputs!M45,InpOverride!M45) -> -0.889 | N45: =IF(InpOverride!N45="",F_Inputs!N45,InpOverride!N45) -> 0 | R45: =IF(InpOverride!R45="",F_Inputs!R45,InpOverride!R45) -> -0.889
A46: =F_Inputs!A46 -> SWT | B46: C_APP27024_PD002 | C46: Net performance payment / (penalty) applied to revenue for end of period ODI adjustments ~ Wastewater network plus | D46: £m | E46: Price Review 2019 | J46: =IF(InpOverride!J46="",F_Inputs!J46,InpOverride!J46) -> 0 | K46: =IF(InpOverride!K46="",F_Inputs!K46,InpOverride!K46) -> 0 | L46: =IF(InpOverride!L46="",F_Inputs!L46,InpOverride!L46) -> 0 | M46: =IF(InpOverride!M46="",F_Inputs!M46,InpOverride!M46) -> 0 | N46: =IF(InpOverride!N46="",F_Inputs!N46,InpOverride!N46) -> 0 | R46: =IF(InpOverride!R46="",F_Inputs!R46,InpOverride!R46) -> 0
A47: =F_Inputs!A47 -> SWT | B47: C_WWS15019_PR19PD006 | C47: Wastewater: revenue adjustment from totex menu model | D47: £m | E47: Price Review 2019 | R47: =IF(InpOverride!R47="",F_Inputs!R47,InpOverride!R47) -> 1.600598103
A48: =F_Inputs!A48 -> SWT | B48: C_WWS13026_PR19PD005 | C48: Total reward / (penalty) at the end of AMP6 - waste | D48: £m | E48: Price Review 2019 | N48: =IF(InpOverride!N48="",F_Inputs!N48,InpOverride!N48) -> -21.16055439 | R48: =IF(InpOverride!R48="",F_Inputs!R48,InpOverride!R48) -> -21.16055439
A49: =F_Inputs!A49 -> SWT | B49: C_WWS15019_DMMY_PR19PD006 | C49: Wastewater: revenue adjustment from totex menu model (TTT) | D49: £m | E49: Price Review 2019 | R49: =IF(InpOverride!R49="",F_Inputs!R49,InpOverride!R49) -> 0
A50: =F_Inputs!A50 -> SWT | B50: C_WWS13026_DMMY_PR19PD005 | C50: Total reward / (penalty) at the end of AMP6 - dmmy | D50: £m | E50: Price Review 2019 | N50: =IF(InpOverride!N50="",F_Inputs!N50,InpOverride!N50) -> 0 | R50: =IF(InpOverride!R50="",F_Inputs!R50,InpOverride!R50) -> 0
A51: =F_Inputs!A51 -> SWT | B51: C_APP27019_PD002 | C51: Net performance payment / (penalty) applied to revenue for in-period ODI adjustments ~ Residential retail | D51: £m | E51: Price Review 2019 | J51: =IF(InpOverride!J51="",F_Inputs!J51,InpOverride!J51) -> 0 | K51: =IF(InpOverride!K51="",F_Inputs!K51,InpOverride!K51) -> 0 | L51: =IF(InpOverride!L51="",F_Inputs!L51,InpOverride!L51) -> 0 | M51: =IF(InpOverride!M51="",F_Inputs!M51,InpOverride!M51) -> 0 | N51: =IF(InpOverride!N51="",F_Inputs!N51,InpOverride!N51) -> 0 | R51: =IF(InpOverride!R51="",F_Inputs!R51,InpOverride!R51) -> 0
A52: =F_Inputs!A52 -> SWT | B52: C_APP27026_PD002 | C52: Net performance payment / (penalty) applied to revenue for end of period ODI adjustments ~ Residential retail | D52: £m | E52: Price Review 2019 | J52: =IF(InpOverride!J52="",F_Inputs!J52,InpOverride!J52) -> 0 | K52: =IF(InpOverride!K52="",F_Inputs!K52,InpOverride!K52) -> 0 | L52: =IF(InpOverride!L52="",F_Inputs!L52,InpOverride!L52) -> 0 | M52: =IF(InpOverride!M52="",F_Inputs!M52,InpOverride!M52) -> 0 | N52: =IF(InpOverride!N52="",F_Inputs!N52,InpOverride!N52) -> 0 | R52: =IF(InpOverride!R52="",F_Inputs!R52,InpOverride!R52) -> 0
A53: =F_Inputs!A53 -> SWT | B53: C_R9045_PR19PD008 | C53: Total reward / (penalty) at the end of AMP6 - Residential retail revenue adjustment at the end of AMP6 | D53: £m | E53: Price Review 2019 | N53: =IF(InpOverride!N53="",F_Inputs!N53,InpOverride!N53) -> -4.761402737 | R53: =IF(InpOverride!R53="",F_Inputs!R53,InpOverride!R53) -> -4.761402737
A54: =F_Inputs!A54 -> SWT | B54: C_R10009_PR19PD009 | C54: SIM adjustment - Household retail £m | D54: £m | E54: Price Review 2019 | R54: =IF(InpOverride!R54="",F_Inputs!R54,InpOverride!R54) -> -3.84009
A55: =F_Inputs!A55 -> SWT | B55: C_APP27020_PD002 | C55: Net performance payment / (penalty) applied to revenue for in-period ODI adjustments ~ Business retail | D55: £m | E55: Price Review 2019 | J55: =IF(InpOverride!J55="",F_Inputs!J55,InpOverride!J55) -> 0 | K55: =IF(InpOverride!K55="",F_Inputs!K55,InpOverride!K55) -> 0 | L55: =IF(InpOverride!L55="",F_Inputs!L55,InpOverride!L55) -> 0 | M55: =IF(InpOverride!M55="",F_Inputs!M55,InpOverride!M55) -> 0 | N55: =IF(InpOverride!N55="",F_Inputs!N55,InpOverride!N55) -> 0 | R55: =IF(InpOverride!R55="",F_Inputs!R55,InpOverride!R55) -> 0
A56: =F_Inputs!A56 -> SWT | B56: C_APP27027_PD002 | C56: Net performance payment / (penalty) applied to revenue for end of period ODI adjustments ~ Business retail | D56: £m | E56: Price Review 2019 | J56: =IF(InpOverride!J56="",F_Inputs!J56,InpOverride!J56) -> 0 | K56: =IF(InpOverride!K56="",F_Inputs!K56,InpOverride!K56) -> 0 | L56: =IF(InpOverride!L56="",F_Inputs!L56,InpOverride!L56) -> 0 | M56: =IF(InpOverride!M56="",F_Inputs!M56,InpOverride!M56) -> 0 | N56: =IF(InpOverride!N56="",F_Inputs!N56,InpOverride!N56) -> 0 | R56: =IF(InpOverride!R56="",F_Inputs!R56,InpOverride!R56) -> 0
A57: =F_Inputs!A57 -> SWT | B57: C_004_PR19PD014 | C57: Non-household SIM adjustment - business retail £m | D57: £m | E57: Price Review 2019 | R57: =IF(InpOverride!R57="",F_Inputs!R57,InpOverride!R57) -> 0
A58: =F_Inputs!A58 -> SWT | B58: =F_Inputs!B58 -> C003_PR19PD015 | C58: Other revenue adjustment - water network plus | D58: £m | E58: Price Review 2019 | R58: =IF(InpOverride!R58="",F_Inputs!R58,InpOverride!R58) -> 0
A59: =F_Inputs!A59 -> SWT | B59: =F_Inputs!B59 -> C006_PR19PD015 | C59: Other revenue adjustment - wastewater network plus | D59: £m | E59: Price Review 2019 | R59: =IF(InpOverride!R59="",F_Inputs!R59,InpOverride!R59) -> 0

Sheet F_Outputs
C1: PR19PD011Run06outputs
A2: Acronym | B2: Reference | C2: Item description | D2: Unit | E2: Model | F2: PR19 application | G2: 2020-21 | H2: 2021-22 | I2: 2022-23 | J2: 2023-24 | K2: 2024-25
B4: C001_PR19PD011 | C4: 1st model column start date | D4: nr | E4: Price Review 2019 | F4: =Inputs!$F$13 -> 41000
B5: C002_PR19PD011 | C5: First modelling column financial year# | D5: nr | E5: Price Review 2019 | F5: =Inputs!$F$16 -> 2013
B6: C003_PR19PD011 | C6: Financial year end month number | D6: nr | E6: Price Review 2019 | F6: =Inputs!$F$17 -> 3
B7: C004_PR19PD011 | C7: Pre - forecast period | D7: Text | E7: Price Review 2019 | F7: =Inputs!$F$20 -> Pre-Fcst
B8: C005_PR19PD011 | C8: Forecast period | D8: Text | E8: Price Review 2019 | F8: =Inputs!$F$21 -> Forecast
B9: C006_PR19PD011 | C9: Post - forecast period | D9: Text | E9: Price Review 2019 | F9: =Inputs!$F$22 -> Post-Fcst
B10: C007_PR19PD011 | C10: Forecast start date | D10: nr | E10: Price Review 2019 | F10: =Inputs!$F$26 -> 43922
B11: C008_PR19PD011 | C11: Forecast duration | D11: nr | E11: Price Review 2019 | F11: =Inputs!$F$27 -> 5
B12: C009_PR19PD011 | C12: Forecast duration (text) | D12: Text | E12: Price Review 2019 | F12: =Inputs!$F$28 -> 2020-25
B13: C010_PR19PD011 | C13: Inflation: Year reference for FYA base price 1 | D13: nr | E13: Price Review 2019 | F13: =Inputs!F69 -> 2013
B14: C011_PR19PD011 | C14: Inflation: Year reference for FYA base price 2 | D14: nr | E14: Price Review 2019 | F14: =Inputs!F70 -> 2018
B15: C012_PR19PD011 | C15: Inflation: Year reference for FYE base price 1 | D15: nr | E15: Price Review 2019 | F15: =Inputs!F71 -> 2020
B16: C013_PR19PD011 | C16: Inflation: Year reference for FYE base price 2 | D16: nr | E16: Price Review 2019 | F16: =Inputs!F72 -> 2019
B17: C014_PR19PD011 | C17: Inflation: Year reference for FYE end price | D17: nr | E17: Price Review 2019 | F17: =Inputs!F73 -> 2020
B18: C015_PR19PD011 | C18: Deflation: Year reference for FYE base price | D18: nr | E18: Price Review 2019 | F18: =Inputs!F77 -> 2020
B19: C016_PR19PD011 | C19: Deflation: Year reference for FYA end price | D19: nr | E19: Price Review 2019 | F19: =Inputs!F78 -> 2018
B20: C017_PR19PD011 | C20: Months per model period | D20: nr | E20: Price Review 2019 | F20: =Inputs!F162 -> 12
B21: C018_PR19PD011 | C21: Months in a year | D21: nr | E21: Price Review 2019 | F21: =Inputs!F164 -> 12
B22: C019_PR19PD011 | C22: Days in a year | D22: nr | E22: Price Review 2019 | F22: =Inputs!F166 -> 365
B23: C020_PR19PD011 | C23: PV base date | D23: Text | E23: Price Review 2019 | F23: =Inputs!F137 -> 44286
B24: C040_PR19PD011 | C24: Discount rate - Water resources | D24: % | E24: Price Review 2019 | F24: =Inputs!F139 -> 0.0292
B25: C050_PR19PD011 | C25: Discount rate - Water network plus | D25: % | E25: Price Review 2019 | F25: =Inputs!F140 -> 0.0292
B26: C060_PR19PD011 | C26: Discount rate - Bioresources | D26: % | E26: Price Review 2019 | F26: =Inputs!F141 -> 0.0292
B27: C070_PR19PD011 | C27: Discount rate - Wastewater network plus | D27: % | E27: Price Review 2019 | F27: =Inputs!F142 -> 0.0292
B28: C080_PR19PD011 | C28: Discount rate - Dummy control | D28: % | E28: Price Review 2019 | F28: =Inputs!F143 -> 0.0292
B29: C090_PR19PD011 | C29: Discount rate - Residential retail | D29: % | E29: Price Review 2019 | F29: =Inputs!F144 -> 0.0292
B30: C100_PR19PD011 | C30: Discount rate - Business retail | D30: % | E30: Price Review 2019 | F30: =Inputs!F145 -> 0.0292
B31: C030_PR19PD011 | C31: Number of years to profile over | D31: nr | E31: Price Review 2019 | F31: =Inputs!F147 -> 5
B32: C041_PR19PD011 | C32: Water resources revenue adjustment selector | D32: nr | E32: Price Review 2019 | F32: =Inputs!F151 -> 2
B33: C051_PR19PD011 | C33: Water network plus revenue adjustment selector | D33: nr | E33: Price Review 2019 | F33: =Inputs!F152 -> 2
B34: C061_PR19PD011 | C34: Bioesources revenue adjustment selector | D34: nr | E34: Price Review 2019 | F34: =Inputs!F153 -> 2
B35: C071_PR19PD011 | C35: Wastewater network plus revenue adjustment selector | D35: nr | E35: Price Review 2019 | F35: =Inputs!F154 -> 2
B36: C081_PR19PD011 | C36: Dummy control revenue adjustment selector | D36: nr | E36: Price Review 2019 | F36: =Inputs!F155 -> 0
B37: C091_PR19PD011 | C37: Residential retail revenue adjustment selector | D37: nr | E37: Price Review 2019 | F37: =Inputs!F156 -> 2
B38: C101_PR19PD011 | C38: Business retail revenue adjustment selector | D38: nr | E38: Price Review 2019 | F38: =Inputs!F157 -> 0
B39: C_APP25004_PR19PD011 | C39: Further 2010-15 reconciliation total adjustment revenue carry forward to PR19 ~ Water network plus at 2017-18 FYA CPIH deflated price base | D39: £m | E39: Price Review 2019 | F39: =Summary_Output!$F10 -> 0.8570462173
B40: C_APP25006_PR19PD011 | C40: Further 2010-15 reconciliation total adjustment revenue carry forward to PR19 ~ Wastewater network plus at 2017-18 FYA CPIH deflated price base | D40: £m | E40: Price Review 2019 | F40: =Summary_Output!$F11 -> 1.456717924
B41: C_APP27034_PR19PD011 | C41: ODI in-period revenue adjustment ~ Water resources at 2017-18 FYA CPIH deflated price base | D41: £m | E41: Price Review 2019 | F41: =Summary_Output!$F14 -> 0
B42: C_APP27035_PR19PD011 | C42: ODI in-period revenue adjustment ~ Water network plus at 2017-18 FYA CPIH deflated price base | D42: £m | E42: Price Review 2019 | F42: =Summary_Output!$F15 -> 0.3223227577
B43: C_APP27037_PR19PD011 | C43: ODI in-period revenue adjustment ~ Bioresources at 2017-18 FYA CPIH deflated price base | D43: £m | E43: Price Review 2019 | F43: =Summary_Output!$F16 -> 0
B44: C_APP27036_PR19PD011 | C44: ODI in-period revenue adjustment ~ Wastewater network plus at 2017-18 FYA CPIH deflated price base | D44: £m | E44: Price Review 2019 | F44: =Summary_Output!$F17 -> -1.01252626
B45: C_APP27038_PR19PD011 | C45: ODI in-period revenue adjustment ~ Residential retail at 2017-18 FYA CPIH deflated price base | D45: £m | E45: Price Review 2019 | F45: =Summary_Output!$F18 -> 0
B46: C_APP27039_PR19PD011 | C46: ODI in-period revenue adjustment ~ Business retail at 2017-18 FYA CPIH deflated price base | D46: £m | E46: Price Review 2019 | F46: =Summary_Output!$F19 -> 0
B47: C_APP27041_PR19PD011 | C47: ODI end of period revenue adjustment ~ Water resources at 2017-18 FYA CPIH deflated price base | D47: £m | E47: Price Review 2019 | F47: =Summary_Output!$F21 -> 0.9225492357
B48: C_APP27042_PR19PD011 | C48: ODI end of period revenue adjustment ~ Water network plus at 2017-18 FYA CPIH deflated price base | D48: £m | E48: Price Review 2019 | F48: =Summary_Output!$F22 -> 8.325722115
B49: C_APP27044_PR19PD011 | C49: ODI end of period revenue adjustment ~ Bioresources at 2017-18 FYA CPIH deflated price base | D49: £m | E49: Price Review 2019 | F49: =Summary_Output!$F23 -> 0
B50: C_APP27043_PR19PD011 | C50: ODI end of period revenue adjustment ~ Wastewater network plus at 2017-18 FYA CPIH deflated price base | D50: £m | E50: Price Review 2019 | F50: =Summary_Output!$F24 -> 0
B51: C_APP27045_PR19PD011 | C51: ODI end of period revenue adjustment ~ Residential retail at 2017-18 FYA CPIH deflated price base | D51: £m | E51: Price Review 2019 | F51: =Summary_Output!$F25 -> 0
B52: C_APP27046_PR19PD011 | C52: ODI end of period revenue adjustment ~ Business retail at 2017-18 FYA CPIH deflated price base | D52: £m | E52: Price Review 2019 | F52: =Summary_Output!$F26 -> 0
B53: C_WS13027_PR19PD011 | C53: WRFIM total reward / (penalty) at the end of AMP6 ~ Water network plus at 2017-18 FYA CPIH deflated price base | D53: £m | E53: Price Review 2019 | F53: =Summary_Output!$F29 -> -19.83698406
B54: C_WS15026_PR19PD011 | C54: Water: Totex menu revenue adjustment at 2017-18 FYA CPIH deflated price base | D54: £m | E54: Price Review 2019 | F54: =Summary_Output!$F32 -> -3.360277172
B55: C_WS17027_PR19PD011 | C55: Water trading total value of export incentive ~ Water resources at 2017-18 FYA CPIH deflated price base | D55: £m | E55: Price Review 2019 | F55: =Summary_Output!$F35 -> 0
B56: C_WS17028_PR19PD011 | C56: Water trading total value of export incentive ~ Water network plus at 2017-18 FYA CPIH deflated price base | D56: £m | E56: Price Review 2019 | F56: =Summary_Output!$F36 -> 0
B57: C_WS17030_PR19PD011 | C57: Water trading total value of import incentive ~ Water resources at 2017-18 FYA CPIH deflated price base | D57: £m | E57: Price Review 2019 | F57: =Summary_Output!$F37 -> 0
B58: C_WS17031_PR19PD011 | C58: Water trading total value of import incentive ~ Water network plus at 2017-18 FYA CPIH deflated price base | D58: £m | E58: Price Review 2019 | F58: =Summary_Output!$F38 -> 0
B59: C_WWS13027_PR19PD011 | C59: WRFIM total reward / (penalty) at the end of AMP6 ~ Wastewater network plus at 2017-18 FYA CPIH deflated price base | D59: £m | E59: Price Review 2019 | F59: =Summary_Output!$F41 -> -20.71983428
B60: C_WWS15021_PR19PD011 | C60: Wastewater: Totex menu revenue adjustment at 2017-18 FYA CPIH deflated price base | D60: £m | E60: Price Review 2019 | F60: =Summary_Output!$F44 -> 1.823000687
B61: C_WWS15021_DMMY_PR19PD011 | C61: Dummy: revenue adjustment from totex menu model at 2017-18 FYA CPIH deflated price base | D61: £m | E61: Price Review 2019 | F61: =Summary_Output!$F47 -> 0
B62: C_WWS13027_DMMY_PR19PD011 | C62: WRFIM total reward / (penalty) at the end of AMP6 ~ Dummy at 2017-18 FYA CPIH deflated price base | D62: £m | E62: Price Review 2019 | F62: =Summary_Output!$F50 -> 0
B63: C_R9046_PR19PD011 | C63: Residential retail revenue adjustment at 2017-18 FYA CPIH deflated price base | D63: £m | E63: Price Review 2019 | F63: =Summary_Output!$F53 -> -4.531666866
B64: C_R10009_PR19PD011 | C64: SIM forecast revenue adjustment at 2017-18 FYA CPIH deflated price base | D64: £m | E64: Price Review 2019 | F64: =Summary_Output!$F56 -> -3.892670373
B65: C052_PR19PD011 | C65: Other revenue adjustment - water network plus at 2017-18 FYA CPIH deflated price base | D65: £m | E65: Price Review 2019 | F65: =Summary_Output!F$59 -> 0
B66: C072_PR19PD011 | C66: Other revenue adjustment - wastewater network plus at 2017-18 FYA CPIH deflated price base | D66: £m | E66: Price Review 2019 | F66: =Summary_Output!F$60 -> 0
B67: C102_PR19PD011 | C67: Non-household SIM adjustment - business retail at 2017-18 FYA CPIH deflated price base | D67: £m | E67: Price Review 2019 | F67: =Summary_Output!F$61 -> 0
B68: C048_PR19PD011 | C68: Water resources revenue adjustment | D68: £m | E68: Price Review 2019 | F68: =Summary_Output!$F66 -> 0.9225492357
B69: C058_PR19PD011 | C69: Water network plus revenue adjustment | D69: £m | E69: Price Review 2019 | F69: =Summary_Output!$F67 -> -13.69217015
B70: C068_PR19PD011 | C70: Bioresources revenue adjustment | D70: £m | E70: Price Review 2019 | F70: =Summary_Output!$F68 -> 0
B71: C078_PR19PD011 | C71: Wastewater network plus revenue adjustment | D71: £m | E71: Price Review 2019 | F71: =Summary_Output!$F69 -> -18.45264193
B72: C088_PR19PD011 | C72: Dummy control revenue adjustment | D72: £m | E72: Price Review 2019 | F72: =Summary_Output!$F70 -> 0
B73: C098_PR19PD011 | C73: Residential retail revenue adjustment | D73: £m | E73: Price Review 2019 | F73: =Summary_Output!$F71 -> -8.424337239
B74: C108_PR19PD011 | C74: Business retail revenue adjustment | D74: £m | E74: Price Review 2019 | F74: =Summary_Output!$F72 -> 0
B75: C049_PR19PD011 | C75: Water resources revenue adjustment active | D75: £m | E75: Price Review 2019 | G75: =Summary_Output!R77 -> 0.1845098471 | H75: =Summary_Output!S77 -> 0.1898975347 | I75: =Summary_Output!T77 -> 0.1954425427 | J75: =Summary_Output!U77 -> 0.2011653271 | K75: =Summary_Output!V77 -> 0.2070393546
B76: C059_PR19PD011 | C76: Water network revenue adjustment active | D76: £m | E76: Price Review 2019 | G76: =Summary_Output!R78 -> -2.738434029 | H76: =Summary_Output!S78 -> -2.818396303 | I76: =Summary_Output!T78 -> -2.900693475 | J76: =Summary_Output!U78 -> -2.985629145 | K76: =Summary_Output!V78 -> -3.072809516
B77: C069_PR19PD011 | C77: Bioresources revenue adjustment active | D77: £m | E77: Price Review 2019 | G77: =Summary_Output!R79 -> 0 | H77: =Summary_Output!S79 -> 0 | I77: =Summary_Output!T79 -> 0 | J77: =Summary_Output!U79 -> 0 | K77: =Summary_Output!V79 -> 0
B78: C079_PR19PD011 | C78: Wastewater network revenue adjustment active | D78: £m | E78: Price Review 2019 | G78: =Summary_Output!R80 -> -3.690528385 | H78: =Summary_Output!S80 -> -3.798291814 | I78: =Summary_Output!T80 -> -3.909201935 | J78: =Summary_Output!U80 -> -4.023667902 | K78: =Summary_Output!V80 -> -4.141159005
B79: C089_PR19PD011 | C79: Dummy control revenue adjustment active | D79: £m | E79: Price Review 2019 | G79: =Summary_Output!R81 -> 0 | H79: =Summary_Output!S81 -> 0 | I79: =Summary_Output!T81 -> 0 | J79: =Summary_Output!U81 -> 0 | K79: =Summary_Output!V81 -> 0
B80: C099_PR19PD011 | C80: Residential retail revenue adjustment active | D80: £m | E80: Price Review 2019 | G80: =Summary_Output!R82 -> -1.684867448 | H80: =Summary_Output!S82 -> -1.734065577 | I80: =Summary_Output!T82 -> -1.784700292 | J80: =Summary_Output!U82 -> -1.836958387 | K80: =Summary_Output!V82 -> -1.890597572
B81: C109_PR19PD011 | C81: Business retail revenue adjustment active | D81: £m | E81: Price Review 2019 | G81: =Summary_Output!R83 -> 0 | H81: =Summary_Output!S83 -> 0 | I81: =Summary_Output!T83 -> 0 | J81: =Summary_Output!U83 -> 0 | K81: =Summary_Output!V83 -> 0
B82: C201_PR19PD011 | C82: ODI in-period revenue adjustment ~ Water resources at 2017-18 FYA CPIH deflated price base | D82: £m | E82: Price Review 2019 | G82: =Summary_Output!R88 -> 0 | H82: =Summary_Output!S88 -> 0 | I82: =Summary_Output!T88 -> 0 | J82: =Summary_Output!U88 -> 0 | K82: =Summary_Output!V88 -> 0
B83: C202_PR19PD011 | C83: ODI end of period revenue adjustment ~ Water resources at 2017-18 FYA CPIH deflated price base | D83: £m | E83: Price Review 2019 | G83: =Summary_Output!R89 -> 0.1845098471 | H83: =Summary_Output!S89 -> 0.1898975347 | I83: =Summary_Output!T89 -> 0.1954425427 | J83: =Summary_Output!U89 -> 0.2011653271 | K83: =Summary_Output!V89 -> 0.2070393546
B84: C203_PR19PD011 | C84: Water trading total value of incentive ~ Water resources at 2017-18 FYA CPIH deflated price base | D84: £m | E84: Price Review 2019 | G84: =Summary_Output!R90 -> 0 | H84: =Summary_Output!S90 -> 0 | I84: =Summary_Output!T90 -> 0 | J84: =Summary_Output!U90 -> 0 | K84: =Summary_Output!V90 -> 0
B85: C211_PR19PD011 | C85: ODI in-period revenue adjustment ~ Water network plus at 2017-18 FYA CPIH deflated price base | D85: £m | E85: Price Review 2019 | G85: =Summary_Output!R91 -> 0.06446455153 | H85: =Summary_Output!S91 -> 0.06634691644 | I85: =Summary_Output!T91 -> 0.0682842464 | J85: =Summary_Output!U91 -> 0.07028368834 | K85: =Summary_Output!V91 -> 0.07233597204
B86: C212_PR19PD011 | C86: ODI end of period revenue adjustment ~ Water network plus at 2017-18 FYA CPIH deflated price base | D86: £m | E86: Price Review 2019 | G86: =Summary_Output!R92 -> 1.665144423 | H86: =Summary_Output!S92 -> 1.71376664 | I86: =Summary_Output!T92 -> 1.763808626 | J86: =Summary_Output!U92 -> 1.815454989 | K86: =Summary_Output!V92 -> 1.868466274
B87: C213_PR19PD011 | C87: WRFIM total reward / (penalty) at the end of AMP6 ~ Water network plus at 2017-18 FYA CPIH deflated price base | D87: £m | E87: Price Review 2019 | G87: =Summary_Output!R93 -> -3.967396813 | H87: =Summary_Output!S93 -> -4.0832448 | I87: =Summary_Output!T93 -> -4.202475548 | J87: =Summary_Output!U93 -> -4.325528907 | K87: =Summary_Output!V93 -> -4.451834351
B88: C214_PR19PD011 | C88: Water: Totex menu revenue adjustment at 2017-18 FYA CPIH deflated price base | D88: £m | E88: Price Review 2019 | G88: =Summary_Output!R94 -> -0.6720554344 | H88: =Summary_Output!S94 -> -0.6916794531 | I88: =Summary_Output!T94 -> -0.7118764931 | J88: =Summary_Output!U94 -> -0.7327210626 | K88: =Summary_Output!V94 -> -0.7541165176
B89: C215_PR19PD011 | C89: Further 2010-15 reconciliation total adjustment revenue carry forward to PR19 ~ Water network plus at 2017-18 FYA CPIH deflated price base | D89: £m | E89: Price Review 2019 | G89: =Summary_Output!R95 -> 0.1714092435 | H89: =Summary_Output!S95 -> 0.1764143934 | I89: =Summary_Output!T95 -> 0.1815656936 | J89: =Summary_Output!U95 -> 0.1868821478 | K89: =Summary_Output!V95 -> 0.1923391065
B90: C216_PR19PD011 | C90: Water trading total value of incentive ~ Water network plus at 2017-18 FYA CPIH deflated price base | D90: £m | E90: Price Review 2019 | G90: =Summary_Output!R96 -> 0 | H90: =Summary_Output!S96 -> 0 | I90: =Summary_Output!T96 -> 0 | J90: =Summary_Output!U96 -> 0 | K90: =Summary_Output!V96 -> 0
B91: =Summary_Output!A$97 -> C217_PR19PD011 | C91: =Summary_Output!E$97 -> Other revenue adjustment - water network plus at 2017-18 FYA CPIH deflated price base | D91: £m | E91: Price Review 2019 | G91: =Summary_Output!R$97 -> 0 | H91: =Summary_Output!S$97 -> 0 | I91: =Summary_Output!T$97 -> 0 | J91: =Summary_Output!U$97 -> 0 | K91: =Summary_Output!V$97 -> 0
B92: C221_PR19PD011 | C92: ODI in-period revenue adjustment ~ Wastewater network at 2017-18 FYA CPIH deflated price base | D92: £m | E92: Price Review 2019 | G92: =Summary_Output!R98 -> -0.202505252 | H92: =Summary_Output!S98 -> -0.2084184053 | I92: =Summary_Output!T98 -> -0.2145042228 | J92: =Summary_Output!U98 -> -0.2207851552 | K92: =Summary_Output!V98 -> -0.2272320818
B93: C222_PR19PD011 | C93: ODI end of period revenue adjustment ~ Wastewater network at 2017-18 FYA CPIH deflated price base | D93: £m | E93: Price Review 2019 | G93: =Summary_Output!R99 -> 0 | H93: =Summary_Output!S99 -> 0 | I93: =Summary_Output!T99 -> 0 | J93: =Summary_Output!U99 -> 0 | K93: =Summary_Output!V99 -> 0
B94: C223_PR19PD011 | C94: WRFIM total reward / (penalty) at the end of AMP6 ~ Wastewater network at 2017-18 FYA CPIH deflated price base | D94: £m | E94: Price Review 2019 | G94: =Summary_Output!R100 -> -4.143966855 | H94: =Summary_Output!S100 -> -4.264970687 | I94: =Summary_Output!T100 -> -4.389507831 | J94: =Summary_Output!U100 -> -4.518037713 | K94: =Summary_Output!V100 -> -4.649964414
B95: C224_PR19PD011 | C95: Wastewater: Totex menu revenue adjustment at 2017-18 FYA CPIH deflated price base | D95: £m | E95: Price Review 2019 | G95: =Summary_Output!R101 -> 0.3646001374 | H95: =Summary_Output!S101 -> 0.3752464614 | I95: =Summary_Output!T101 -> 0.3862036581 | J95: =Summary_Output!U101 -> 0.3975121492 | K95: =Summary_Output!V101 -> 0.4091195039
B96: C225_PR19PD011 | C96: Further 2010-15 reconciliation total adjustment revenue carry forward to PR19 ~ Wastewater network at 2017-18 FYA CPIH deflated price base | D96: £m | E96: Price Review 2019 | G96: =Summary_Output!R102 -> 0.2913435847 | H96: =Summary_Output!S102 -> 0.2998508174 | I96: =Summary_Output!T102 -> 0.3086064613 | J96: =Summary_Output!U102 -> 0.3176428165 | K96: =Summary_Output!V102 -> 0.3269179867
B97: =Summary_Output!A$103 -> C226_PR19PD011 | C97: =Summary_Output!E$103 -> Other revenue adjustment - wastewater network plus at 2017-18 FYA CPIH deflated price base | D97: £m | E97: Price Review 2019 | G97: =Summary_Output!R$103 -> 0 | H97: =Summary_Output!S$103 -> 0 | I97: =Summary_Output!T$103 -> 0 | J97: =Summary_Output!U$103 -> 0 | K97: =Summary_Output!V$103 -> 0
B98: C231_PR19PD011 | C98: ODI in-period revenue adjustment ~ Bioresources at 2017-18 FYA CPIH deflated price base | D98: £m | E98: Price Review 2019 | G98: =Summary_Output!R104 -> 0 | H98: =Summary_Output!S104 -> 0 | I98: =Summary_Output!T104 -> 0 | J98: =Summary_Output!U104 -> 0 | K98: =Summary_Output!V104 -> 0
B99: C232_PR19PD011 | C99: ODI end of period revenue adjustment ~ Bioresources at 2017-18 FYA CPIH deflated price base | D99: £m | E99: Price Review 2019 | G99: =Summary_Output!R105 -> 0 | H99: =Summary_Output!S105 -> 0 | I99: =Summary_Output!T105 -> 0 | J99: =Summary_Output!U105 -> 0 | K99: =Summary_Output!V105 -> 0
B100: C241_PR19PD011 | C100: Dummy: revenue adjustment from totex menu model at 2017-18 FYA CPIH deflated price base | D100: £m | E100: Price Review 2019 | G100: =Summary_Output!R106 -> 0 | H100: =Summary_Output!S106 -> 0 | I100: =Summary_Output!T106 -> 0 | J100: =Summary_Output!U106 -> 0 | K100: =Summary_Output!V106 -> 0
B101: C242_PR19PD011 | C101: WRFIM total reward / (penalty) at the end of AMP6 ~ Dummy at 2017-18 FYA CPIH deflated price base | D101: £m | E101: Price Review 2019 | G101: =Summary_Output!R107 -> 0 | H101: =Summary_Output!S107 -> 0 | I101: =Summary_Output!T107 -> 0 | J101: =Summary_Output!U107 -> 0 | K101: =Summary_Output!V107 -> 0
B102: PR19QA_D0011_OUT_1 | C102: Date & Time for Model PR19D011 PR14 Revenue adjustments | D102: Text | E102: Price Review 2019 | F102: =CONCATENATE("[…]", TEXT(NOW(),"dd/mm/yyy hh:mm:ss")) -> […]10/12/2019 14:15:55 | G102: […]10/12/2019 14:15:55 | H102: […]10/12/2019 14:15:55 | I102: […]10/12/2019 14:15:55 | J102: […]10/12/2019 14:15:55 | K102: […]10/12/2019 14:15:55
B103: PR19QA_D0011_OUT_2 | C103: Name & Path of Model PR19D011 PR14 Revenenue adjustments | D103: Text | E103: Price Review 2019 | F103: =MID(CELL("filename",F1),SEARCH("[",CELL("filename",F1))+1,SEARCH(".",CELL("filename",F1))-1-SEARCH("[",CELL("filename",F1))) -> PR19PD011_SWT_ModelRun08_FD | G103: =MID(CELL("filename",F1),SEARCH("[",CELL("filename",F1))+1,SEARCH(".",CELL("filename",F1))-1-SEARCH("[",CELL("filename",F1))) -> PR19PD011_SWT_ModelRun08_FD | H103: =MID(CELL("filename",F1),SEARCH("[",CELL("filename",F1))+1,SEARCH(".",CELL("filename",F1))-1-SEARCH("[",CELL("filename",F1))) -> PR19PD011_SWT_ModelRun08_FD | I103: =MID(CELL("filename",F1),SEARCH("[",CELL("filename",F1))+1,SEARCH(".",CELL("filename",F1))-1-SEARCH("[",CELL("filename",F1))) -> PR19PD011_SWT_ModelRun08_FD | J103: =MID(CELL("filename",F1),SEARCH("[",CELL("filename",F1))+1,SEARCH(".",CELL("filename",F1))-1-SEARCH("[",CELL("filename",F1))) -> PR19PD011_SWT_ModelRun08_FD | K103: =MID(CELL("filename",F1),SEARCH("[",CELL("filename",F1))+1,SEARCH(".",CELL("filename",F1))-1-SEARCH("[",CELL("filename",F1))) -> PR19PD011_SWT_ModelRun08_FD

Sheet Cover
A1: =RIGHT(CELL("filename", $A$1), LEN(CELL("filename", $A$1)) - SEARCH("]", CELL("filename", $A$1))) -> Cover
C3: Model name: | D3: PR19 Revenue adjustments feeder model
C4: Version number: | D4: 01o
C5: Filename: | D5: ="PR19 Revenue adjustments feeder model " & D4 & ".xlsm" -> PR19 Revenue adjustments feeder model 01o.xlsm
C6: Date: | D6: 2019-07-29
C7: Author: | D7: Ofwat and F1F9 UK Ltd
C8: Author contact information: | D8: PR19@ofwat.gsi.gov.uk
C11: Summary of model: | D11: The model is designed to take the revenue adjustment outputs from the PR09 and PR14 reconciliations and convert them for use in the PR19 financial model in line
D12: with Delivering Water 2020: PR19 methodology, chapter 12 (accounting for past delivery).
C14: Known limitations: | D14: The model has been subject to internal Ofwat quality assurance.
C16: Feedback: | D16: We would welcome feedback on the PR19 revenue adjustments feeder model. Please send any feedback to the following email address
D17: PR19@ofwat.gsi.gov.uk
D19: =Checks!F$11 -> 0 | E19: =Checks!G$11 -> Checks
A22: End of sheet

Sheet Change Log
A1: Change log
B3: # | C3: Issue | D3: Change | E3: Sheet | F3: Row
A5: 2017-12-01 | B5: 1 | C5: Company noted that the Ofwat feeder model incorrectly deflates prices from 2020 year end prices to 2017-18 financial year average prices by referencing the RPI March index value in the numerator. | D5: Corrected calculation of the deflation factor to reference CPIH March 2020 index value. | E5: Indexation | F5: 109
A6: 2017-12-01 | B6: 2 | C6: Companies noted differences in item labels between the Ofwat feeder model and the business plan tables | D6: Item labels have been aligned with the business plan tables | E6: Calc Profiling Summary_Output
A7: 2018-06-01 | B7: 3 | C7: In response to a query a new business plan table has been created. The Ofwat feeder model has been updated to reflect the additional table Dmmy10. | D7: Include the Dummy10 revenue adjustment. | E7: Inputs Calc Summary_Output
A8: 2018-06-01 | B8: 4 | C8: Change email address | D8: Changed from water2020 mailbox to PR19 mailbox | E8: Cover
A9: 2018-07-01 | B9: 5 | C9: In response to a query a new business plan table has been created. The Ofwat feeder model has been updated to reflect the additional table Dmmy11. | D9: Include the Dmmy11 revenue adjustment. | E9: Inputs Calc Summary_Output
A10: 2019-01-01 | B10: 6 | C10: The reprofiled adjustments were at a different level of granularity to the level needed by the PR19 Financial model (FM). | D10: A new sheet (FM Proportion Calc) has been added to apportion the profiled revenue adjustments to align with the FM. | E10: FM Proportion Calc Summary_Output
A11: 2019-03-01 | B11: 7 | C11: Company noted that the feeder model incorrectly treats the water trading adjustments as if they are received in 2017-18 prices when the water trading model outputs the values in 2012-13 prices. | D11: The water trading adjustments labelled as 2012-13 prices on the Inputs sheet and inflated from 2012-13 prices to 2020 FYE prices in on the Calc sheet. | E11: Inputs Calc | F11: Inputs rows 88,89, 96 and 97 Calc "Water services inputs inflation" block
A12: 2019-06-01 | B12: 8 | C12: The model has preset profiling options. It can not accommodate bespoke profiling. | D12: Added new lines for bespoke adjustments to adjust the profile and included in revenue adjustment active. Note: The modeller must check the bespoke profile is NPV neutral. | E12: Profiling | F12: Rows 241 to 247 Bespoke items rows 251 to 257
A13: 2019-07-29 | B13: 9 | C13: The model does not accommodate non-household SIM adjustments required for companies operating in Wales. | D13: Included new inputs for non-household SIM adjustments. | E13: Inputs Calc Summary_Output | F13: Inputs row 130 Calc row 123 Summary_Output row 61
A14: 2019-07-29 | B14: 10 | C14: To implement the adjustments arising from regulatory interventions other than the PR14 reconciliations the model should allow 'Other revenue adjustments' to be input. | D14: Included new inputs applied to the network plus price controls. The new items are entered in 2012-13 FYA prices. | E14: Inputs Calc FM Proportion Calc Summary_Output | F14: Inputs rows 99 and 113 Calc rows 39 and 72 FM Proportion Calc rows 49, 59, 80 and 89 Summary_Output rows 59-60, 97 and 103
C15: Profiling inputs discount rates | D15: Populated the discount rates for profiling with PR19 WACC values. | E15: Inputs | F15: 139 to 145

Sheet Map & Key
A1: =RIGHT(CELL("filename", $A$1), LEN(CELL("filename", $A$1)) - SEARCH("]", CELL("filename", $A$1))) -> Map & Key
A3: GENERIC MODEL DESIGN
F5: ABOVE BONNET - USER INTERFACE
H8: Inputs | P8: Output Summary
F13: BELOW BONNET - CALCULATION ENGINE
H19: Input Transition | L19: Calculations | P19: Detailed Outputs
F25: Note: FAST strictly applicable below the bonnet
A28: MODEL MAP
F30: MODEL MAP
H32: INPUTS | L32: CALCULATIONS | V32: DOCUMENTATION
H36: =Inputs!$A$1 -> Inputs | L36: =Time!$A$1 -> Time | P36: =Summary_Output!$A$1 -> Summary_Output | V36: =$A$1 -> Map & Key
H37: All the hardcoded inputs used in the model for calculation. | L37: The model timeline and flag calculations are done in this sheet. | P37: A summary of links of major output of this model. | V37: Sheet references and model flow; Sheet tabs colours, colour coding, abbreviations, range names are mentioned in this sheet.
L39: =Indexation!$A$1 -> Indexation
L40: All the indexation related calculations are done in this sheet.
L42: =Calc!$A$1 -> Calc
L43: All the price regulations related calculations are done in this sheet.
L45: =Profiling!$A$1 -> Profiling
L46: All the profiling of revenue inputs related calculations are done in this sheet.
L48: ='FM Proportion Calc'!A1 -> FM Proportion Calc
L49: The profiled revenue adjustments are apportioned to align with the FM.
A54: SHEET TABS
H56: Light Yellow | J56: Input sheets
H58: No colour (default Excel tab colour) | J58: Calculation and documentation sheets
H60: Pale Blue | J60: Key output sheets
H62: Turquoise | J62: Quality control sheets
H64: Yellow | J64: To be completed, temporary, restructured, or deleted
A67: COLOUR
B69: Font colour only
H70: Blue font | J70: Imported from another sheet
H72: Red font | J72: Exported to another sheet (except from Input sheets)
H74: Black font | J74: Within sheet link or calculation
B76: Font + shade combinations
H77: Black font + Light Yellow shade | J77: Inputs
H79: Black font + Light Grey shade on entire row | J79: Within-worksheet counter-flow
H81: Blue font + Light Grey shade on entire row | J81: Between-worksheet counter-flow
H83: Empty Cell with Light Grey shade | J83: Empty cells being deliberately referenced
B85: Other
H86: Black font + Pale Blue shade on entire row | J86: Section separator
H88: Light Turquoise shade | J88: Stored/dead/hard coded outputs
H90: Tan shade | J90: Pre-model time line actuals
H92: Yellow shade | J92: Work in progress / temporary
H94: Lime shade | J94: Values or logic to be reviewed
B96: Error checks & alerts
H97: Green shade | J97: OK
H99: Red shade | J99: Error
H101: Gold shade | J101: Alert
A104: ABBREVIATIONS
H106: BR | I106: Bio resources
H107: CPIH | I107: Consumer price index housing
H108: RCV | I108: Regulatory capital value
H109: RPI | I109: Retail price index
H110: WR | I110: Water resources
H111: WN | I111: Water network
H112: WWN | I112: Wastewater network
A115: NAMES
H117: NO NAME RANGES PRESENT IN THE MODEL
A120: LIST OF FUNCTIONS USED
H122: SUMPRODUCT | J122: Multiplies corresponding components in the given arrays, and returns the sum of those products.
H123: MATCH | J123: The MATCH function searches for a specified item in a range of cells, and then returns the relative position of that item in the range.
H124: INDEX | J124: Returns a value or the reference to a value from within a table or range, selected by the row and column number indexes
A127: End of sheet

Sheet Inputs
A1: =RIGHT(CELL("FILENAME", $A$1), LEN(CELL("FILENAME", $A$1)) - SEARCH("]", CELL("FILENAME", $A$1))) -> Inputs
E2: =Time!E$25 -> Model period ending | F2: =Checks!F$11 -> 0 | G2: =Checks!G$11 -> Checks | J2: =Time!J$25 -> 2013-03-31 | K2: =Time!K$25 -> 2014-03-31 | L2: =Time!L$25 -> 2015-03-31 | M2: =Time!M$25 -> 2016-03-31 | N2: =Time!N$25 -> 2017-03-31 | O2: =Time!O$25 -> 2018-03-31 | P2: =Time!P$25 -> 2019-03-31 | Q2: =Time!Q$25 -> 2020-03-31 | R2: =Time!R$25 -> 2021-03-31 | S2: =Time!S$25 -> 2022-03-31 | T2: =Time!T$25 -> 2023-03-31 | U2: =Time!U$25 -> 2024-03-31 | V2: =Time!V$25 -> 2025-03-31
E3: =Time!E$80 -> Timeline label | J3: =Time!J$80 -> Pre-Fcst | K3: =Time!K$80 -> Pre-Fcst | L3: =Time!L$80 -> Pre-Fcst | M3: =Time!M$80 -> Pre-Fcst | N3: =Time!N$80 -> Pre-Fcst | O3: =Time!O$80 -> Pre-Fcst | P3: =Time!P$80 -> Pre-Fcst | Q3: =Time!Q$80 -> Pre-Fcst | R3: =Time!R$80 -> Forecast | S3: =Time!S$80 -> Forecast | T3: =Time!T$80 -> Forecast | U3: =Time!U$80 -> Forecast | V3: =Time!V$80 -> Forecast
E4: =Time!E$103 -> Financial year ending | J4: =Time!J$103 -> 2013 | K4: =Time!K$103 -> 2014 | L4: =Time!L$103 -> 2015 | M4: =Time!M$103 -> 2016 | N4: =Time!N$103 -> 2017 | O4: =Time!O$103 -> 2018 | P4: =Time!P$103 -> 2019 | Q4: =Time!Q$103 -> 2020 | R4: =Time!R$103 -> 2021 | S4: =Time!S$103 -> 2022 | T4: =Time!T$103 -> 2023 | U4: =Time!U$103 -> 2024 | V4: =Time!V$103 -> 2025
A5: =IF(COUNTIF(A6:A169,"< 0") + COUNTIF(A6:A169,">0") <> 0, 1, 0) -> 0 | D5: Input references | E5: =Time!E$10 -> Model column counter | F5: Constant | G5: Unit | H5: Total | J5: =Time!J$10 -> 1 | K5: =Time!K$10 -> 2 | L5: =Time!L$10 -> 3 | M5: =Time!M$10 -> 4 | N5: =Time!N$10 -> 5 | O5: =Time!O$10 -> 6 | P5: =Time!P$10 -> 7 | Q5: =Time!Q$10 -> 8 | R5: =Time!R$10 -> 9 | S5: =Time!S$10 -> 10 | T5: =Time!T$10 -> 11 | U5: =Time!U$10 -> 12 | V5: =Time!V$10 -> 13
E6: [Used in formula range - Do not delete]
A8: A: TIME
B10: Timeline setup
C12: Timeline start dates
A13: C001 | E13: 1st model column start date | F13: 2012-04-01 | G13: date | H13: Date should be the first date of the financial year
C15: Financial year inputs
A16: C002 | E16: First modelling column financial year# | F16: 2013 | G16: year # | H16: Financial model start year
A17: C003 | E17: Financial year end month number | F17: 3 | G17: month # | H17: Month of financial year end for financial model
C19: Timeline labels
A20: C004 | E20: Pre - forecast period | F20: Pre-Fcst | G20: label
A21: C005 | E21: Forecast period | F21: Forecast | G21: label
A22: C006 | E22: Post - forecast period | F22: Post-Fcst | G22: label
B24: Project dates
A26: C007 | E26: Forecast start date | F26: 2020-04-01 | G26: date
A27: C008 | E27: Forecast duration | F27: 5 | G27: years
A28: C009 | E28: Forecast duration (text) | F28: =YEAR(F26) & "-" & TEXT(DATE(YEAR(F26) + F27, 1, 1), "yy") -> 2020-25 | G28: years # | H28: For info. only
A31: B: INDEXATION
B33: CPIH INDEXATION
A35: BB3905AL | E35: Consumer Price Index for April | G35: index | J35: =InpActive!G7 -> 95.9 | K35: =InpActive!H7 -> 98 | L35: =InpActive!I7 -> 99.6 | M35: =InpActive!J7 -> 99.9 | N35: =InpActive!K7 -> 100.6 | O35: =InpActive!L7 -> 103.2 | P35: =InpActive!M7 -> 105.5 | Q35: =InpActive!N7 -> 107.6
A36: BB3905MY | E36: Consumer Price Index for May | G36: index | J36: =InpActive!G8 -> 95.9 | K36: =InpActive!H8 -> 98.2 | L36: =InpActive!I8 -> 99.6 | M36: =InpActive!J8 -> 100.1 | N36: =InpActive!K8 -> 100.8 | O36: =InpActive!L8 -> 103.5 | P36: =InpActive!M8 -> 105.9 | Q36: =InpActive!N8 -> 108
A37: BB3905JN | E37: Consumer Price Index for June | G37: index | J37: =InpActive!G9 -> 95.6 | K37: =InpActive!H9 -> 98 | L37: =InpActive!I9 -> 99.8 | M37: =InpActive!J9 -> 100.1 | N37: =InpActive!K9 -> 101 | O37: =InpActive!L9 -> 103.5 | P37: =InpActive!M9 -> 105.9 | Q37: =InpActive!N9 -> 108
A38: BB3905JL | E38: Consumer Price Index for July | G38: index | J38: =InpActive!G10 -> 95.7 | K38: =InpActive!H10 -> 98 | L38: =InpActive!I10 -> 99.6 | M38: =InpActive!J10 -> 100 | N38: =InpActive!K10 -> 100.9 | O38: =InpActive!L10 -> 103.5 | P38: =InpActive!M10 -> 105.9 | Q38: =InpActive!N10 -> 108
A39: BB3905AT | E39: Consumer Price Index for August | G39: index | J39: =InpActive!G11 -> 96.1 | K39: =InpActive!H11 -> 98.4 | L39: =InpActive!I11 -> 99.9 | M39: =InpActive!J11 -> 100.3 | N39: =InpActive!K11 -> 101.2 | O39: =InpActive!L11 -> 104 | P39: =InpActive!M11 -> 106.5 | Q39: =InpActive!N11 -> 108.6
A40: BB3905SR | E40: Consumer Price Index for September | G40: index | J40: =InpActive!G12 -> 96.4 | K40: =InpActive!H12 -> 98.7 | L40: =InpActive!I12 -> 100 | M40: =InpActive!J12 -> 100.2 | N40: =InpActive!K12 -> 101.5 | O40: =InpActive!L12 -> 104.3 | P40: =InpActive!M12 -> 106.8 | Q40: =InpActive!N12 -> 108.9
A41: BB3905OR | E41: Consumer Price Index for October | G41: index | J41: =InpActive!G13 -> 96.8 | K41: =InpActive!H13 -> 98.8 | L41: =InpActive!I13 -> 100.1 | M41: =InpActive!J13 -> 100.3 | N41: =InpActive!K13 -> 101.6 | O41: =InpActive!L13 -> 104.4 | P41: =InpActive!M13 -> 106.9 | Q41: =InpActive!N13 -> 109
A42: BB3905NR | E42: Consumer Price Index for November | G42: index | J42: =InpActive!G14 -> 97 | K42: =InpActive!H14 -> 98.8 | L42: =InpActive!I14 -> 99.9 | M42: =InpActive!J14 -> 100.3 | N42: =InpActive!K14 -> 101.8 | O42: =InpActive!L14 -> 104.7 | P42: =InpActive!M14 -> 107.1 | Q42: =InpActive!N14 -> 109.2
A43: BB3905DR | E43: Consumer Price Index for December | G43: index | J43: =InpActive!G15 -> 97.3 | K43: =InpActive!H15 -> 99.2 | L43: =InpActive!I15 -> 99.9 | M43: =InpActive!J15 -> 100.4 | N43: =InpActive!K15 -> 102.2 | O43: =InpActive!L15 -> 105 | P43: =InpActive!M15 -> 107.5 | Q43: =InpActive!N15 -> 109.7
A44: BB3905JY | E44: Consumer Price Index for January | G44: index | J44: =InpActive!G16 -> 97 | K44: =InpActive!H16 -> 98.7 | L44: =InpActive!I16 -> 99.2 | M44: =InpActive!J16 -> 99.9 | N44: =InpActive!K16 -> 101.8 | O44: =InpActive!L16 -> 104.5 | P44: =InpActive!M16 -> 107 | Q44: =InpActive!N16 -> 109.1
A45: BB3905FY | E45: Consumer Price Index for February | G45: index | J45: =InpActive!G17 -> 97.5 | K45: =InpActive!H17 -> 99.1 | L45: =InpActive!I17 -> 99.5 | M45: =InpActive!J17 -> 100.1 | N45: =InpActive!K17 -> 102.4 | O45: =InpActive!L17 -> 104.9 | P45: =InpActive!M17 -> 107.3 | Q45: =InpActive!N17 -> 109.4
A46: BB3905MH | E46: Consumer Price Index for March | G46: index | J46: =InpActive!G18 -> 97.8 | K46: =InpActive!H18 -> 99.3 | L46: =InpActive!I18 -> 99.6 | M46: =InpActive!J18 -> 100.4 | N46: =InpActive!K18 -> 102.7 | O46: =InpActive!L18 -> 105.1 | P46: =InpActive!M18 -> 107.4 | Q46: =InpActive!N18 -> 109.5
E48: CPIH: Assumed percentage increase for unpopulated monthly values | G48: %
B50: RPI INDEXATION
A52: BB3805AL | E52: Retail Price Index for April | G52: index | J52: =InpActive!G19 -> 242.5 | K52: =InpActive!H19 -> 249.5 | L52: =InpActive!I19 -> 255.7 | M52: =InpActive!J19 -> 258 | N52: =InpActive!K19 -> 261.4 | O52: =InpActive!L19 -> 270.6 | P52: =InpActive!M19 -> 279.7 | Q52: =InpActive!N19 -> 288.2
A53: BB3805MY | E53: Retail Price Index for May | G53: index | J53: =InpActive!G20 -> 242.4 | K53: =InpActive!H20 -> 250 | L53: =InpActive!I20 -> 255.9 | M53: =InpActive!J20 -> 258.5 | N53: =InpActive!K20 -> 262.1 | O53: =InpActive!L20 -> 271.7 | P53: =InpActive!M20 -> 280.7 | Q53: =InpActive!N20 -> 289.2
A54: BB3805JN | E54: Retail Price Index for June | G54: index | J54: =InpActive!G21 -> 241.8 | K54: =InpActive!H21 -> 249.7 | L54: =InpActive!I21 -> 256.3 | M54: =InpActive!J21 -> 258.9 | N54: =InpActive!K21 -> 263.1 | O54: =InpActive!L21 -> 272.3 | P54: =InpActive!M21 -> 281.5 | Q54: =InpActive!N21 -> 289.2
A55: BB3805JL | E55: Retail Price Index for July | G55: index | J55: =InpActive!G22 -> 242.1 | K55: =InpActive!H22 -> 249.7 | L55: =InpActive!I22 -> 256 | M55: =InpActive!J22 -> 258.6 | N55: =InpActive!K22 -> 263.4 | O55: =InpActive!L22 -> 272.9 | P55: =InpActive!M22 -> 281.7 | Q55: =InpActive!N22 -> 288.8
A56: BB3805AT | E56: Retail Price Index for August | G56: index | J56: =InpActive!G23 -> 243 | K56: =InpActive!H23 -> 251 | L56: =InpActive!I23 -> 257 | M56: =InpActive!J23 -> 259.8 | N56: =InpActive!K23 -> 264.4 | O56: =InpActive!L23 -> 274.7 | P56: =InpActive!M23 -> 284.2 | Q56: =InpActive!N23 -> 292
A57: BB3805SR | E57: Retail Price Index for September | G57: index | J57: =InpActive!G24 -> 244.2 | K57: =InpActive!H24 -> 251.9 | L57: =InpActive!I24 -> 257.6 | M57: =InpActive!J24 -> 259.6 | N57: =InpActive!K24 -> 264.9 | O57: =InpActive!L24 -> 275.1 | P57: =InpActive!M24 -> 284.1 | Q57: =InpActive!N24 -> 291.9
A58: BB3805OR | E58: Retail Price Index for October | G58: index | J58: =InpActive!G25 -> 245.6 | K58: =InpActive!H25 -> 251.9 | L58: =InpActive!I25 -> 257.7 | M58: =InpActive!J25 -> 259.5 | N58: =InpActive!K25 -> 264.8 | O58: =InpActive!L25 -> 275.3 | P58: =InpActive!M25 -> 284.5 | Q58: =InpActive!N25 -> 292.3
A59: BB3805NR | E59: Retail Price Index for November | G59: index | J59: =InpActive!G26 -> 245.6 | K59: =InpActive!H26 -> 252.1 | L59: =InpActive!I26 -> 257.1 | M59: =InpActive!J26 -> 259.8 | N59: =InpActive!K26 -> 265.5 | O59: =InpActive!L26 -> 275.8 | P59: =InpActive!M26 -> 284.6 | Q59: =InpActive!N26 -> 292
A60: BB3805DR | E60: Retail Price Index for December | G60: index | J60: =InpActive!G27 -> 246.8 | K60: =InpActive!H27 -> 253.4 | L60: =InpActive!I27 -> 257.5 | M60: =InpActive!J27 -> 260.6 | N60: =InpActive!K27 -> 267.1 | O60: =InpActive!L27 -> 278.1 | P60: =InpActive!M27 -> 285.6 | Q60: =InpActive!N27 -> 293.4
A61: BB3805JY | E61: Retail Price Index for January | G61: index | J61: =InpActive!G28 -> 245.8 | K61: =InpActive!H28 -> 252.6 | L61: =InpActive!I28 -> 255.4 | M61: =InpActive!J28 -> 258.8 | N61: =InpActive!K28 -> 265.5 | O61: =InpActive!L28 -> 276 | P61: =InpActive!M28 -> 283 | Q61: =InpActive!N28 -> 290.7
A62: BB3805FY | E62: Retail Price Index for February | G62: index | J62: =InpActive!G29 -> 247.6 | K62: =InpActive!H29 -> 254.2 | L62: =InpActive!I29 -> 256.7 | M62: =InpActive!J29 -> 260 | N62: =InpActive!K29 -> 268.4 | O62: =InpActive!L29 -> 278.1 | P62: =InpActive!M29 -> 285 | Q62: =InpActive!N29 -> 292.8
A63: BB3805MH | E63: Retail Price Index for March | G63: index | J63: =InpActive!G30 -> 248.7 | K63: =InpActive!H30 -> 254.8 | L63: =InpActive!I30 -> 257.1 | M63: =InpActive!J30 -> 261.1 | N63: =InpActive!K30 -> 269.3 | O63: =InpActive!L30 -> 278.3 | P63: =InpActive!M30 -> 285.1 | Q63: =InpActive!N30 -> 292.8
E65: RPI: Assumed percentage increase for unpopulated monthly values | G65: %
B67: Inflation
A69: C010 | E69: Year reference for FYA base price 1 | F69: 2013 | G69: year #
A70: C011 | E70: Year reference for FYA base price 2 | F70: 2018 | G70: year #
A71: C012 | E71: Year reference for FYE base price 1 | F71: 2020 | G71: year #
A72: C013 | E72: Year reference for FYE base price 2 | F72: 2019 | G72: year #
A73: C014 | E73: Year reference for FYE end price | F73: 2020 | G73: year #
B75: Deflation
A77: C015 | E77: Year reference for FYE base price | F77: 2020 | G77: year #
A78: C016 | E78: Year reference for FYA end price | F78: 2018 | G78: year #
A81: C: REVENUE INPUTS
B83: Water services
D85: Water resources
A86: =InpActive!B31 -> C_APP27015_PD002 | E86: Net performance payment / (penalty) applied to revenue for in-period ODI adjustments ~ Water resources | F86: =InpActive!R31 -> 0 | G86: £m | H86: 2012/13 FYA
A87: =InpActive!B32 -> C_APP27022_PD002 | E87: Net performance payment / (penalty) applied to revenue for end of period ODI adjustments ~ Water resources | F87: =InpActive!R32 -> 0.81 | G87: £m | H87: 2012/13 FYA
A88: =InpActive!B33 -> C_WS17013_PR19D007 | E88: Total value of export incentive to be paid to water resources at PR19 | F88: =InpActive!R33 -> 0 | G88: £m | H88: 2012/13 FYA
A89: =InpActive!B34 -> C_WS17025_PR19D007 | E89: Total value of import incentive - water resources | F89: =InpActive!R34 -> 0 | G89: £m | H89: 2012/13 FYA
D91: Water network plus
A92: =InpActive!B35 -> C00578_L021 | E92: Further 2010-15 reconciliation total adjustment carry forward to PR19 ~ Water network plus | F92: =InpActive!P35 -> 0.7524882241 | G92: £m | H92: 2012/13 FYA
A93: =InpActive!B36 -> C_APP27016_PD002 | E93: Net performance payment / (penalty) applied to revenue for in-period ODI adjustments ~ Water network plus | F93: =InpActive!R36 -> 0.283 | G93: £m | H93: 2012/13 FYA
A94: =InpActive!B37 -> C_APP27023_PD002 | E94: Net performance payment / (penalty) applied to revenue for end of period ODI adjustments ~ Water network plus | F94: =InpActive!R37 -> 7.31 | G94: £m | H94: 2012/13 FYA
A95: =InpActive!B38 -> C_WS15024_PR19PD006 | E95: Water: revenue adjustment from totex menu model | F95: =InpActive!R38 -> -2.950329808 | G95: £m | H95: 2012/13 FYA
A96: =InpActive!B39 -> C_WS17014_PR19D007 | E96: Total value of export incentive to be paid to water network plus at PR19 | F96: =InpActive!R39 -> 0 | G96: £m | H96: 2012/13 FYA
A97: =InpActive!B40 -> C_WS17026_PR19D007 | E97: Total value of import incentive - water network plus | F97: =InpActive!R40 -> 0 | G97: £m | H97: 2012/13 FYA
A98: =InpActive!B41 -> C_WS13026_PR19PD005 | E98: WRFIM total reward / (penalty) at end of AMP6 ~ Water | F98: =InpActive!R41 -> -20.25892556 | G98: £m | H98: November 2018/2019
A99: =InpActive!B58 -> C003_PR19PD015 | E99: Other revenue adjustment - water network plus | F99: =InpActive!R58 -> 0 | G99: £m | H99: 2012/13 FYA
B101: Wastewater services
D103: Bioresources
A104: =InpActive!B42 -> C_APP27018_PD002 | E104: Net performance payment / (penalty) applied to revenue for in-period ODI adjustments ~ Bioresources | F104: =InpActive!R42 -> 0 | G104: £m | H104: 2012/13 FYA
A105: =InpActive!B43 -> C_APP27025_PD002 | E105: Net performance payment / (penalty) applied to revenue for end of period ODI adjustments ~ Bioresources | F105: =InpActive!R43 -> 0 | G105: £m | H105: 2012/13 FYA
D107: Wastewater network plus
A108: =InpActive!B44 -> C00585_L021 | E108: Further 2010-15 reconciliation total adjustment carry forward to PR19 ~ Wastewater network plus | F108: =InpActive!P44 -> 1.279001134 | G108: £m | H108: 2012/13 FYA
A109: =InpActive!B45 -> C_APP27017_PD002 | E109: Net performance payment / (penalty) applied to revenue for in-period ODI adjustments ~ Wastewater network plus | F109: =InpActive!R45 -> -0.889 | G109: £m | H109: 2012/13 FYA
A110: =InpActive!B46 -> C_APP27024_PD002 | E110: Net performance payment / (penalty) applied to revenue for end of period ODI adjustments ~ Wastewater network plus | F110: =InpActive!R46 -> 0 | G110: £m | H110: 2012/13 FYA
A111: =InpActive!B47 -> C_WWS15019_PR19PD006 | E111: Wastewater: revenue adjustment from totex menu model | F111: =InpActive!R47 -> 1.600598103 | G111: £m | H111: 2012/13 FYA
A112: =InpActive!B48 -> C_WWS13026_PR19PD005 | E112: WRFIM total reward / (penalty) at the end of AMP6 ~ Wastewater | F112: =InpActive!R48 -> -21.16055439 | G112: £m | H112: November 2018/2019
A113: =InpActive!B59 -> C006_PR19PD015 | E113: Other revenue adjustment - wastewater network plus | F113: =InpActive!R59 -> 0 | G113: £m | H113: 2012/13 FYA
D115: Dummy control
A116: =InpActive!B49 -> C_WWS15019_DMMY_PR19PD006 | E116: Dummy: revenue adjustment from totex menu model | F116: =InpActive!R49 -> 0 | G116: £m | H116: 2012/13 FYA
A117: =InpActive!B50 -> C_WWS13026_DMMY_PR19PD005 | E117: Dummy: WRFIM total reward / (penalty) at the end of AMP6 | F117: =InpActive!R50 -> 0 | G117: £m | H117: November 2018/2019
B119: Residential retail
A121: =InpActive!B51 -> C_APP27019_PD002 | E121: Net performance payment / (penalty) applied to revenue for in-period ODI adjustments ~ Residential retail | F121: =InpActive!R51 -> 0 | G121: £m | H121: 2012/13 FYA
A122: =InpActive!B52 -> C_APP27026_PD002 | E122: Net performance payment / (penalty) applied to revenue for end of period ODI adjustments ~ Residential retail | F122: =InpActive!R52 -> 0 | G122: £m | H122: 2012/13 FYA
A123: =InpActive!B53 -> C_R9045_PR19PD008 | E123: Residential retail revenue adjustment at end of AMP6 | F123: =InpActive!R53 -> -4.761402737 | G123: £m | H123: 2019/20 FYE
A124: =InpActive!B54 -> C_R10009_PR19PD009 | E124: SIM forecast revenue adjustment | F124: =InpActive!R54 -> -3.84009 | G124: £m | H124: 2017/18 FYA
B126: Business retail
A128: =InpActive!B55 -> C_APP27020_PD002 | E128: Net performance payment / (penalty) applied to revenue for in-period ODI adjustments ~ Business retail | F128: =InpActive!R55 -> 0 | G128: £m | H128: 2012/13 FYA
A129: =InpActive!B56 -> C_APP27027_PD002 | E129: Net performance payment / (penalty) applied to revenue for end of period ODI adjustments ~ Business retail | F129: =InpActive!R56 -> 0 | G129: £m | H129: 2012/13 FYA
A130: C_004_PR19PD014 | E130: Non-household SIM adjustment - business retail | F130: =InpActive!R57 -> 0 | G130: £m | H130: 2017/18 FYA
A133: D: PROFILING INPUTS
B135: Discounting
A137: C020 | E137: PV base date | F137: 2021-03-31 | G137: date
A139: C040 | E139: Discount rate - Water resources | F139: 0.0292 | G139: %
A140: C050 | E140: Discount rate - Water network plus | F140: 0.0292 | G140: %
A141: C060 | E141: Discount rate - Bioresources | F141: 0.0292 | G141: %
A142: C070 | E142: Discount rate - Wastewater network plus | F142: 0.0292 | G142: %
A143: C080 | E143: Discount rate - Dummy control | F143: 0.0292 | G143: %
A144: C090 | E144: Discount rate - Residential retail | F144: 0.0292 | G144: %
A145: C100 | E145: Discount rate - Business retail | F145: 0.0292 | G145: %
A147: C030 | E147: Number of years to profile over | F147: 5 | G147: #
B149: Profile selector
A151: C041 | E151: Water resources revenue adjustment selector | F151: 2 | G151: 0 = Apply in first year, 1 = Constant annuity 2020-25, 2 = Even allocation - NPV neutral
A152: C051 | E152: Water network plus revenue adjustment selector | F152: 2 | G152: 0 = Apply in first year, 1 = Constant annuity 2020-25, 2 = Even allocation - NPV neutral
A153: C061 | E153: Bioesources revenue adjustment selector | F153: 2 | G153: 0 = Apply in first year, 1 = Constant annuity 2020-25, 2 = Even allocation - NPV neutral
A154: C071 | E154: Wastewater network plus revenue adjustment selector | F154: 2 | G154: 0 = Apply in first year, 1 = Constant annuity 2020-25, 2 = Even allocation - NPV neutral
A155: C081 | E155: Dummy control revenue adjustment selector | F155: 0 | G155: 0 = Apply in first year, 1 = Constant annuity 2020-25, 2 = Even allocation - NPV neutral
A156: C091 | E156: Residential retail revenue adjustment selector | F156: 2 | G156: 0 = Apply in first year, 1 = Constant annuity 2020-25, 2 = Even allocation - NPV neutral
A157: C101 | E157: Business retail revenue adjustment selector | F157: 0 | G157: 0 = Apply in first year, 1 = Constant annuity 2020-25, 2 = Even allocation - NPV neutral
A160: E: NON CHANGEABLE MODEL TECHNICAL INPUTS
A162: C017 | E162: Months per model period | F162: 12 | G162: months
A164: C018 | E164: Months in a year | F164: 12 | G164: months
A166: C019 | E166: Days in a year | F166: 365 | G166: days
E169: [Used in formula range - Do not delete]

Sheet Time
A1: =RIGHT(CELL("FILENAME", $A$1), LEN(CELL("FILENAME", $A$1)) - SEARCH("]", CELL("FILENAME", $A$1))) -> Time
E2: =Time!E$25 -> Model period ending | F2: =Checks!F$11 -> 0 | G2: =Checks!G$11 -> Checks | J2: =Time!J$25 -> 2013-03-31 | K2: =Time!K$25 -> 2014-03-31 | L2: =Time!L$25 -> 2015-03-31 | M2: =Time!M$25 -> 2016-03-31 | N2: =Time!N$25 -> 2017-03-31 | O2: =Time!O$25 -> 2018-03-31 | P2: =Time!P$25 -> 2019-03-31 | Q2: =Time!Q$25 -> 2020-03-31 | R2: =Time!R$25 -> 2021-03-31 | S2: =Time!S$25 -> 2022-03-31 | T2: =Time!T$25 -> 2023-03-31 | U2: =Time!U$25 -> 2024-03-31 | V2: =Time!V$25 -> 2025-03-31
E3: =Time!E$80 -> Timeline label | J3: =Time!J$80 -> Pre-Fcst | K3: =Time!K$80 -> Pre-Fcst | L3: =Time!L$80 -> Pre-Fcst | M3: =Time!M$80 -> Pre-Fcst | N3: =Time!N$80 -> Pre-Fcst | O3: =Time!O$80 -> Pre-Fcst | P3: =Time!P$80 -> Pre-Fcst | Q3: =Time!Q$80 -> Pre-Fcst | R3: =Time!R$80 -> Forecast | S3: =Time!S$80 -> Forecast | T3: =Time!T$80 -> Forecast | U3: =Time!U$80 -> Forecast | V3: =Time!V$80 -> Forecast
E4: =Time!E$103 -> Financial year ending | J4: =Time!J$103 -> 2013 | K4: =Time!K$103 -> 2014 | L4: =Time!L$103 -> 2015 | M4: =Time!M$103 -> 2016 | N4: =Time!N$103 -> 2017 | O4: =Time!O$103 -> 2018 | P4: =Time!P$103 -> 2019 | Q4: =Time!Q$103 -> 2020 | R4: =Time!R$103 -> 2021 | S4: =Time!S$103 -> 2022 | T4: =Time!T$103 -> 2023 | U4: =Time!U$103 -> 2024 | V4: =Time!V$103 -> 2025
E5: =Time!E$10 -> Model column counter | F5: Constant | G5: Unit | H5: Total | J5: =Time!J$10 -> 1 | K5: =Time!K$10 -> 2 | L5: =Time!L$10 -> 3 | M5: =Time!M$10 -> 4 | N5: =Time!N$10 -> 5 | O5: =Time!O$10 -> 6 | P5: =Time!P$10 -> 7 | Q5: =Time!Q$10 -> 8 | R5: =Time!R$10 -> 9 | S5: =Time!S$10 -> 10 | T5: =Time!T$10 -> 11 | U5: =Time!U$10 -> 12 | V5: =Time!V$10 -> 13
A7: MODEL PERIOD
B9: Model column counter
E10: Model column counter | G10: counter | J10: =I10 + 1 -> 1 | K10: 2 | L10: 3 | M10: 4 | N10: 5 | O10: 6 | P10: 7 | Q10: =P10 + 1 -> 8 | R10: =Q10 + 1 -> 9 | S10: =R10 + 1 -> 10 | T10: =S10 + 1 -> 11 | U10: =T10 + 1 -> 12 | V10: =U10 + 1 -> 13
E11: Model column total | F11: =MAX(J10:V10) -> 13 | G11: columns
E13: =E$10 -> Model column counter | F13: 0 | G13: counter | H13: 0 | I13: 0 | J13: 1 | K13: 2 | L13: 3 | M13: 4 | N13: 5 | O13: 6 | P13: 7 | Q13: 8 | R13: 9 | S13: 10 | T13: 11 | U13: 12 | V13: 13
E14: 1st model column flag | G14: flag | H14: =SUM(J14:V14) -> 1 | J14: =IF(J13 = 1, 1, 0) -> 1 | K14: 0 | L14: 0 | M14: 0 | N14: 0 | O14: 0 | P14: 0 | Q14: =IF(Q13 = 1, 1, 0) -> 0 | R14: 0 | S14: 0 | T14: 0 | U14: 0 | V14: 0
B16: Model period beginning
E17: =Inputs!E$13 -> 1st model column start date | F17: =Inputs!F$13 -> 2012-04-01 | G17: =Inputs!G$13 -> date
E18: =Inputs!E$162 -> Months per model period | F18: =Inputs!F$162 -> 12 | G18: =Inputs!G$162 -> months
E19: =E$14 -> 1st model column flag | F19: 0 | G19: flag | H19: 1 | I19: 0 | J19: 1 | K19: 0 | L19: 0 | M19: 0 | N19: 0 | O19: 0 | P19: 0 | Q19: 0 | R19: 0 | S19: 0 | T19: 0 | U19: 0 | V19: 0
E20: Model period beginning | G20: date | J20: =IF(J19 = 1, $F17, DATE(YEAR(I20), MONTH(I20) + $F18, DAY(1))) -> 2012-04-01 | K20: 2013-04-01 | L20: 2014-04-01 | M20: 2015-04-01 | N20: 2016-04-01 | O20: 2017-04-01 | P20: 2018-04-01 | Q20: =IF(Q19 = 1, $F17, DATE(YEAR(P20), MONTH(P20) + $F18, DAY(1))) -> 2019-04-01 | R20: =IF(R19 = 1, $F17, DATE(YEAR(Q20), MONTH(Q20) + $F18, DAY(1))) -> 2020-04-01 | S20: =IF(S19 = 1, $F17, DATE(YEAR(R20), MONTH(R20) + $F18, DAY(1))) -> 2021-04-01 | T20: =IF(T19 = 1, $F17, DATE(YEAR(S20), MONTH(S20) + $F18, DAY(1))) -> 2022-04-01 | U20: =IF(U19 = 1, $F17, DATE(YEAR(T20), MONTH(T20) + $F18, DAY(1))) -> 2023-04-01 | V20: =IF(V19 = 1, $F17, DATE(YEAR(U20), MONTH(U20) + $F18, DAY(1))) -> 2024-04-01
B22: Model period ending
E23: =Inputs!E$162 -> Months per model period | F23: =Inputs!F$162 -> 12 | G23: =Inputs!G$162 -> months
E24: =E$20 -> Model period beginning | F24: 00:00:00 | G24: date | H24: 00:00:00 | I24: 00:00:00 | J24: 2012-04-01 | K24: 2013-04-01 | L24: 2014-04-01 | M24: 2015-04-01 | N24: 2016-04-01 | O24: 2017-04-01 | P24: 2018-04-01 | Q24: 2019-04-01 | R24: 2020-04-01 | S24: 2021-04-01 | T24: 2022-04-01 | U24: 2023-04-01 | V24: 2024-04-01
E25: Model period ending | G25: date | J25: =DATE(YEAR(J24), MONTH(J24) + $F23, DAY(J24) - 1) -> 2013-03-31 | K25: 2014-03-31 | L25: 2015-03-31 | M25: 2016-03-31 | N25: 2017-03-31 | O25: 2018-03-31 | P25: 2019-03-31 | Q25: =DATE(YEAR(Q24), MONTH(Q24) + $F23, DAY(Q24) - 1) -> 2020-03-31 | R25: 2021-03-31 | S25: 2022-03-31 | T25: 2023-03-31 | U25: 2024-03-31 | V25: 2025-03-31
A28: FORECAST PERIOD
B30: Forecast start period flag
E31: =Inputs!E$26 -> Forecast start date | F31: =Inputs!F$26 -> 2020-04-01 | G31: =Inputs!G$26 -> date
E32: =E$20 -> Model period beginning | F32: 00:00:00 | G32: date | H32: 00:00:00 | I32: 00:00:00 | J32: 2012-04-01 | K32: 2013-04-01 | L32: 2014-04-01 | M32: 2015-04-01 | N32: 2016-04-01 | O32: 2017-04-01 | P32: 2018-04-01 | Q32: 2019-04-01 | R32: 2020-04-01 | S32: 2021-04-01 | T32: 2022-04-01 | U32: 2023-04-01 | V32: 2024-04-01
E33: =E$25 -> Model period ending | F33: 00:00:00 | G33: date | H33: 00:00:00 | I33: 00:00:00 | J33: 2013-03-31 | K33: 2014-03-31 | L33: 2015-03-31 | M33: 2016-03-31 | N33: 2017-03-31 | O33: 2018-03-31 | P33: 2019-03-31 | Q33: 2020-03-31 | R33: 2021-03-31 | S33: 2022-03-31 | T33: 2023-03-31 | U33: 2024-03-31 | V33: 2025-03-31
E34: Forecast start period flag | G34: flag | H34: =SUM(J34:V34) -> 1 | J34: =IF(AND($F31 >= J32, $F31 <= J33), 1, 0) -> 0 | K34: =IF(AND($F31 >= K32, $F31 <= K33), 1, 0) -> 0 | L34: 0 | M34: 0 | N34: 0 | O34: 0 | P34: 0 | Q34: =IF(AND($F31 >= Q32, $F31 <= Q33), 1, 0) -> 0 | R34: 1 | S34: 0 | T34: 0 | U34: 0 | V34: 0
B36: Forecast end period flag
E37: =Inputs!E$26 -> Forecast start date | F37: =Inputs!F$26 -> 2020-04-01 | G37: =Inputs!G$26 -> date
E38: =Inputs!E$27 -> Forecast duration | F38: =Inputs!F$27 -> 5 | G38: =Inputs!G$27 -> years
E39: Forecast end date | F39: =DATE(YEAR(F37) + F38, MONTH(F37), DAY(F37) - 1) -> 2025-03-31 | G39: date
E41: =E$39 -> Forecast end date | F41: =F$39 -> 2025-03-31 | G41: =G$39 -> date
E42: =E$20 -> Model period beginning | F42: 00:00:00 | G42: date | H42: 00:00:00 | I42: 00:00:00 | J42: 2012-04-01 | K42: 2013-04-01 | L42: 2014-04-01 | M42: 2015-04-01 | N42: 2016-04-01 | O42: 2017-04-01 | P42: 2018-04-01 | Q42: 2019-04-01 | R42: 2020-04-01 | S42: 2021-04-01 | T42: 2022-04-01 | U42: 2023-04-01 | V42: 2024-04-01
E43: =E$25 -> Model period ending | F43: 00:00:00 | G43: date | H43: 00:00:00 | I43: 00:00:00 | J43: 2013-03-31 | K43: 2014-03-31 | L43: 2015-03-31 | M43: 2016-03-31 | N43: 2017-03-31 | O43: 2018-03-31 | P43: 2019-03-31 | Q43: 2020-03-31 | R43: 2021-03-31 | S43: 2022-03-31 | T43: 2023-03-31 | U43: 2024-03-31 | V43: 2025-03-31
E44: Forecast end period flag | G44: flag | H44: =SUM(J44:V44) -> 1 | J44: =IF(AND($F41 >= J42, $F41 <= J43), 1, 0) -> 0 | K44: 0 | L44: 0 | M44: 0 | N44: 0 | O44: 0 | P44: 0 | Q44: =IF(AND($F41 >= Q42, $F41 <= Q43), 1, 0) -> 0 | R44: 0 | S44: 0 | T44: 0 | U44: 0 | V44: 1
B46: Forecast period flag
E47: =E$34 -> Forecast start period flag | F47: =F$34 -> 0 | G47: flag | H47: 1 | I47: 0 | J47: 0 | K47: 0 | L47: 0 | M47: 0 | N47: 0 | O47: 0 | P47: 0 | Q47: 0 | R47: 1 | S47: 0 | T47: 0 | U47: 0 | V47: 0
E48: =E$44 -> Forecast end period flag | F48: =F$44 -> 0 | G48: flag | H48: 1 | I48: 0 | J48: 0 | K48: 0 | L48: 0 | M48: 0 | N48: 0 | O48: 0 | P48: 0 | Q48: 0 | R48: 0 | S48: 0 | T48: 0 | U48: 0 | V48: 1
E49: Forecast period flag | G49: flag | H49: =SUM(J49:V49) -> 5 | J49: =J47 + I49 - I48 -> 0 | K49: =K47 + J49 - J48 -> 0 | L49: 0 | M49: 0 | N49: 0 | O49: 0 | P49: 0 | Q49: =Q47 + P49 - P48 -> 0 | R49: =R47 + Q49 - Q48 -> 1 | S49: =S47 + R49 - R48 -> 1 | T49: =T47 + S49 - S48 -> 1 | U49: =U47 + T49 - T48 -> 1 | V49: =V47 + U49 - U48 -> 1
E50: Total number of forecast periods | F50: =SUM(J49:V49) -> 5 | G50: periods
B52: Pre-forecast period flag
E53: =E$14 -> 1st model column flag | F53: =F$14 -> 0 | G53: flag | H53: 1 | I53: 0 | J53: 1 | K53: 0 | L53: 0 | M53: 0 | N53: 0 | O53: 0 | P53: 0 | Q53: 0 | R53: 0 | S53: 0 | T53: 0 | U53: 0 | V53: 0
E54: =E$34 -> Forecast start period flag | F54: =F$34 -> 0 | G54: flag | H54: 1 | I54: 0 | J54: 0 | K54: 0 | L54: 0 | M54: 0 | N54: 0 | O54: 0 | P54: 0 | Q54: 0 | R54: 1 | S54: 0 | T54: 0 | U54: 0 | V54: 0
E55: Pre-forecast period flag | G55: flag | H55: =SUM(J55:V55) -> 8 | J55: =J53 + I55 - J54 -> 1 | K55: =K53 + J55 - K54 -> 1 | L55: 1 | M55: 1 | N55: 1 | O55: 1 | P55: 1 | Q55: =Q53 + P55 - Q54 -> 1 | R55: =R53 + Q55 - R54 -> 0 | S55: =S53 + R55 - S54 -> 0 | T55: =T53 + S55 - T54 -> 0 | U55: =U53 + T55 - U54 -> 0 | V55: =V53 + U55 - V54 -> 0
E56: Pre-forecast period flag - total | F56: =SUM(J55:V55) -> 8 | G56: periods
B58: First post-forecast period flag
E59: =E$44 -> Forecast end period flag | F59: =F$44 -> 0 | G59: flag | H59: 1 | I59: 0 | J59: 0 | K59: 0 | L59: 0 | M59: 0 | N59: 0 | O59: 0 | P59: 0 | Q59: 0 | R59: 0 | S59: 0 | T59: 0 | U59: 0 | V59: 1
E60: First post-forecast period flag | G60: flag | H60: =SUM(J60:V60) -> 0 | J60: =I59 -> 0 | K60: =J59 -> 0 | L60: 0 | M60: 0 | N60: 0 | O60: 0 | P60: 0 | Q60: =P59 -> 0 | R60: =Q59 -> 0 | S60: =R59 -> 0 | T60: =S59 -> 0 | U60: =T59 -> 0 | V60: =U59 -> 0
B62: Post-forecast period flag
E63: =E$60 -> First post-forecast period flag | F63: 0 | G63: flag | H63: 0 | I63: 0 | J63: 0 | K63: 0 | L63: 0 | M63: 0 | N63: 0 | O63: 0 | P63: 0 | Q63: 0 | R63: 0 | S63: 0 | T63: 0 | U63: 0 | V63: 0
E64: Post-forecast period flag | G64: flag | H64: =SUM(J64:V64) -> 0 | J64: =J63 + I64 -> 0 | K64: =K63 + J64 -> 0 | L64: 0 | M64: 0 | N64: 0 | O64: 0 | P64: 0 | Q64: =Q63 + P64 -> 0 | R64: =R63 + Q64 -> 0 | S64: =S63 + R64 -> 0 | T64: =T63 + S64 -> 0 | U64: =U63 + T64 -> 0 | V64: =V63 + U64 -> 0
E65: Post-forecast period - total | F65: =SUM(J64:V64) -> 0 | G65: periods
A68: MODEL TIMELINE
B70: Timeline label
E71: =E$14 -> 1st model column flag | F71: 0 | G71: flag | H71: 1 | I71: 0 | J71: 1 | K71: 0 | L71: 0 | M71: 0 | N71: 0 | O71: 0 | P71: 0 | Q71: 0 | R71: 0 | S71: 0 | T71: 0 | U71: 0 | V71: 0
E72: =E$34 -> Forecast start period flag | F72: =F$34 -> 0 | G72: flag | H72: 1 | I72: 0 | J72: 0 | K72: 0 | L72: 0 | M72: 0 | N72: 0 | O72: 0 | P72: 0 | Q72: 0 | R72: 1 | S72: 0 | T72: 0 | U72: 0 | V72: 0
E73: =E$60 -> First post-forecast period flag | F73: 0 | G73: flag | H73: 0 | I73: 0 | J73: 0 | K73: 0 | L73: 0 | M73: 0 | N73: 0 | O73: 0 | P73: 0 | Q73: 0 | R73: 0 | S73: 0 | T73: 0 | U73: 0 | V73: 0
E74: Timeline label counter | G74: counter | J74: =I74 + SUM(J71:J73) -> 1 | K74: 1 | L74: 1 | M74: 1 | N74: 1 | O74: 1 | P74: 1 | Q74: =P74 + SUM(Q71:Q73) -> 1 | R74: =Q74 + SUM(R71:R73) -> 2 | S74: =R74 + SUM(S71:S73) -> 2 | T74: =S74 + SUM(T71:T73) -> 2 | U74: =T74 + SUM(U71:U73) -> 2 | V74: =U74 + SUM(V71:V73) -> 2
E76: =Inputs!E$20 -> Pre - forecast period | F76: =Inputs!F$20 -> Pre-Fcst | G76: =Inputs!G$20 -> label
E77: =Inputs!E$21 -> Forecast period | F77: =Inputs!F$21 -> Forecast | G77: =Inputs!G$21 -> label
E78: =Inputs!E$22 -> Post - forecast period | F78: =Inputs!F$22 -> Post-Fcst | G78: =Inputs!G$22 -> label
E79: =E$74 -> Timeline label counter | F79: 0 | G79: counter | H79: 0 | I79: 0 | J79: 1 | K79: 1 | L79: 1 | M79: 1 | N79: 1 | O79: 1 | P79: 1 | Q79: 1 | R79: 2 | S79: 2 | T79: 2 | U79: 2 | V79: 2
E80: Timeline label | G80: label | J80: =INDEX($F76:$F78, J79) -> Pre-Fcst | K80: Pre-Fcst | L80: Pre-Fcst | M80: Pre-Fcst | N80: Pre-Fcst | O80: Pre-Fcst | P80: Pre-Fcst | Q80: =INDEX($F76:$F78, Q79) -> Pre-Fcst | R80: Forecast | S80: Forecast | T80: Forecast | U80: Forecast | V80: Forecast
B82: Modelling period check
E83: =E$55 -> Pre-forecast period flag | F83: =F$55 -> 0 | G83: flag | H83: 8 | I83: 0 | J83: 1 | K83: 1 | L83: 1 | M83: 1 | N83: 1 | O83: 1 | P83: 1 | Q83: 1 | R83: 0 | S83: 0 | T83: 0 | U83: 0 | V83: 0
E84: =E$49 -> Forecast period flag | F84: =F$49 -> 0 | G84: flag | H84: 5 | I84: 0 | J84: 0 | K84: 0 | L84: 0 | M84: 0 | N84: 0 | O84: 0 | P84: 0 | Q84: 0 | R84: 1 | S84: 1 | T84: 1 | U84: 1 | V84: 1
E85: =E$64 -> Post-forecast period flag | F85: 0 | G85: flag | H85: 0 | I85: 0 | J85: 0 | K85: 0 | L85: 0 | M85: 0 | N85: 0 | O85: 0 | P85: 0 | Q85: 0 | R85: 0 | S85: 0 | T85: 0 | U85: 0 | V85: 0
E86: No. of overlapping in flags | G86: # | H86: =SUM(J86:V86) -> 0 | J86: =MAX(0, SUM(J83:J85) - 1) -> 0 | K86: 0 | L86: 0 | M86: 0 | N86: 0 | O86: 0 | P86: 0 | Q86: =MAX(0, SUM(Q83:Q85) - 1) -> 0 | R86: 0 | S86: 0 | T86: 0 | U86: 0 | V86: 0
E87: Overlapping in periods - total | F87: =SUM(J86:V86) -> 0 | G87: periods
E89: =E$11 -> Model column total | F89: =F$11 -> 13 | G89: =G$11 -> columns
E90: =E$87 -> Overlapping in periods - total | F90: =F$87 -> 0 | G90: =G$87 -> periods
E91: =E$56 -> Pre-forecast period flag - total | F91: =F$56 -> 8 | G91: =G$56 -> periods
E92: =E$50 -> Total number of forecast periods | F92: =F$50 -> 5 | G92: =G$50 -> periods
E93: =E$65 -> Post-forecast period - total | F93: =F$65 -> 0 | G93: =G$65 -> periods
E94: Modelling period check | F94: =IF(SUM(F89:F90) - SUM(F91:F93) <> 0, 1, 0) -> 0 | G94: check
A97: FINANCIAL YEAR
E99: =Inputs!E$16 -> First modelling column financial year# | F99: =Inputs!F$16 -> 2013 | G99: =Inputs!G$16 -> year #
E100: =Inputs!E$17 -> Financial year end month number | F100: =Inputs!F$17 -> 3 | G100: =Inputs!G$17 -> month #
E101: =E$25 -> Model period ending | F101: 00:00:00 | G101: date | H101: 00:00:00 | I101: 00:00:00 | J101: 2013-03-31 | K101: 2014-03-31 | L101: 2015-03-31 | M101: 2016-03-31 | N101: 2017-03-31 | O101: 2018-03-31 | P101: 2019-03-31 | Q101: 2020-03-31 | R101: 2021-03-31 | S101: 2022-03-31 | T101: 2023-03-31 | U101: 2024-03-31 | V101: 2025-03-31
E102: =E$14 -> 1st model column flag | F102: 0 | G102: flag | H102: 1 | I102: 0 | J102: 1 | K102: 0 | L102: 0 | M102: 0 | N102: 0 | O102: 0 | P102: 0 | Q102: 0 | R102: 0 | S102: 0 | T102: 0 | U102: 0 | V102: 0
E103: Financial year ending | G103: year # | J103: =IF(J102 = 1, $F99, IF(J101 > (DATE(I103, $F100 + 1, 1) - 1), I103 + 1, I103)) -> 2013 | K103: 2014 | L103: 2015 | M103: 2016 | N103: 2017 | O103: 2018 | P103: 2019 | Q103: =IF(Q102 = 1, $F99, IF(Q101 > (DATE(P103, $F100 + 1, 1) - 1), P103 + 1, P103)) -> 2020 | R103: =IF(R102 = 1, $F99, IF(R101 > (DATE(Q103, $F100 + 1, 1) - 1), Q103 + 1, Q103)) -> 2021 | S103: =IF(S102 = 1, $F99, IF(S101 > (DATE(R103, $F100 + 1, 1) - 1), R103 + 1, R103)) -> 2022 | T103: =IF(T102 = 1, $F99, IF(T101 > (DATE(S103, $F100 + 1, 1) - 1), S103 + 1, S103)) -> 2023 | U103: =IF(U102 = 1, $F99, IF(U101 > (DATE(T103, $F100 + 1, 1) - 1), T103 + 1, T103)) -> 2024 | V103: =IF(V102 = 1, $F99, IF(V101 > (DATE(U103, $F100 + 1, 1) - 1), U103 + 1, U103)) -> 2025

Sheet Indexation
A1: =RIGHT(CELL("filename", $A$1), LEN(CELL("filename", $A$1)) - SEARCH("]", CELL("filename", $A$1))) -> Indexation
E2: =Time!E$25 -> Model period ending | F2: =Checks!F$11 -> 0 | G2: =Checks!G$11 -> Checks | J2: =Time!J$25 -> 2013-03-31 | K2: =Time!K$25 -> 2014-03-31 | L2: =Time!L$25 -> 2015-03-31 | M2: =Time!M$25 -> 2016-03-31 | N2: =Time!N$25 -> 2017-03-31 | O2: =Time!O$25 -> 2018-03-31 | P2: =Time!P$25 -> 2019-03-31 | Q2: =Time!Q$25 -> 2020-03-31 | R2: =Time!R$25 -> 2021-03-31 | S2: =Time!S$25 -> 2022-03-31 | T2: =Time!T$25 -> 2023-03-31 | U2: =Time!U$25 -> 2024-03-31 | V2: =Time!V$25 -> 2025-03-31
E3: =Time!E$80 -> Timeline label | J3: =Time!J$80 -> Pre-Fcst | K3: =Time!K$80 -> Pre-Fcst | L3: =Time!L$80 -> Pre-Fcst | M3: =Time!M$80 -> Pre-Fcst | N3: =Time!N$80 -> Pre-Fcst | O3: =Time!O$80 -> Pre-Fcst | P3: =Time!P$80 -> Pre-Fcst | Q3: =Time!Q$80 -> Pre-Fcst | R3: =Time!R$80 -> Forecast | S3: =Time!S$80 -> Forecast | T3: =Time!T$80 -> Forecast | U3: =Time!U$80 -> Forecast | V3: =Time!V$80 -> Forecast
E4: =Time!E$103 -> Financial year ending | J4: =Time!J$103 -> 2013 | K4: =Time!K$103 -> 2014 | L4: =Time!L$103 -> 2015 | M4: =Time!M$103 -> 2016 | N4: =Time!N$103 -> 2017 | O4: =Time!O$103 -> 2018 | P4: =Time!P$103 -> 2019 | Q4: =Time!Q$103 -> 2020 | R4: =Time!R$103 -> 2021 | S4: =Time!S$103 -> 2022 | T4: =Time!T$103 -> 2023 | U4: =Time!U$103 -> 2024 | V4: =Time!V$103 -> 2025
E5: =Time!E$10 -> Model column counter | F5: Constant | G5: Unit | H5: Total | J5: =Time!J$10 -> 1 | K5: =Time!K$10 -> 2 | L5: =Time!L$10 -> 3 | M5: =Time!M$10 -> 4 | N5: =Time!N$10 -> 5 | O5: =Time!O$10 -> 6 | P5: =Time!P$10 -> 7 | Q5: =Time!Q$10 -> 8 | R5: =Time!R$10 -> 9 | S5: =Time!S$10 -> 10 | T5: =Time!T$10 -> 11 | U5: =Time!U$10 -> 12 | V5: =Time!V$10 -> 13
A7: CPIH INDEXATION
B9: CPIH: Index value series
E10: =Inputs!E$35 -> Consumer Price Index for April | F10: =Inputs!F$35 -> 0 | G10: =Inputs!G$35 -> index | H10: =Inputs!H$35 -> 0 | I10: =Inputs!I$35 -> 0 | J10: =Inputs!J$35 -> 95.9 | K10: =Inputs!K$35 -> 98 | L10: =Inputs!L$35 -> 99.6 | M10: =Inputs!M$35 -> 99.9 | N10: =Inputs!N$35 -> 100.6 | O10: =Inputs!O$35 -> 103.2 | P10: =Inputs!P$35 -> 105.5 | Q10: =Inputs!Q$35 -> 107.6 | R10: =Inputs!R$35 -> 0 | S10: =Inputs!S$35 -> 0 | T10: =Inputs!T$35 -> 0 | U10: =Inputs!U$35 -> 0 | V10: =Inputs!V$35 -> 0
E11: =Inputs!E$36 -> Consumer Price Index for May | F11: =Inputs!F$36 -> 0 | G11: =Inputs!G$36 -> index | H11: =Inputs!H$36 -> 0 | I11: =Inputs!I$36 -> 0 | J11: =Inputs!J$36 -> 95.9 | K11: =Inputs!K$36 -> 98.2 | L11: =Inputs!L$36 -> 99.6 | M11: =Inputs!M$36 -> 100.1 | N11: =Inputs!N$36 -> 100.8 | O11: =Inputs!O$36 -> 103.5 | P11: =Inputs!P$36 -> 105.9 | Q11: =Inputs!Q$36 -> 108 | R11: =Inputs!R$36 -> 0 | S11: =Inputs!S$36 -> 0 | T11: =Inputs!T$36 -> 0 | U11: =Inputs!U$36 -> 0 | V11: =Inputs!V$36 -> 0
E12: =Inputs!E$37 -> Consumer Price Index for June | F12: =Inputs!F$37 -> 0 | G12: =Inputs!G$37 -> index | H12: =Inputs!H$37 -> 0 | I12: =Inputs!I$37 -> 0 | J12: =Inputs!J$37 -> 95.6 | K12: =Inputs!K$37 -> 98 | L12: =Inputs!L$37 -> 99.8 | M12: =Inputs!M$37 -> 100.1 | N12: =Inputs!N$37 -> 101 | O12: =Inputs!O$37 -> 103.5 | P12: =Inputs!P$37 -> 105.9 | Q12: =Inputs!Q$37 -> 108 | R12: =Inputs!R$37 -> 0 | S12: =Inputs!S$37 -> 0 | T12: =Inputs!T$37 -> 0 | U12: =Inputs!U$37 -> 0 | V12: =Inputs!V$37 -> 0
E13: =Inputs!E$38 -> Consumer Price Index for July | F13: =Inputs!F$38 -> 0 | G13: =Inputs!G$38 -> index | H13: =Inputs!H$38 -> 0 | I13: =Inputs!I$38 -> 0 | J13: =Inputs!J$38 -> 95.7 | K13: =Inputs!K$38 -> 98 | L13: =Inputs!L$38 -> 99.6 | M13: =Inputs!M$38 -> 100 | N13: =Inputs!N$38 -> 100.9 | O13: =Inputs!O$38 -> 103.5 | P13: =Inputs!P$38 -> 105.9 | Q13: =Inputs!Q$38 -> 108 | R13: =Inputs!R$38 -> 0 | S13: =Inputs!S$38 -> 0 | T13: =Inputs!T$38 -> 0 | U13: =Inputs!U$38 -> 0 | V13: =Inputs!V$38 -> 0
E14: =Inputs!E$39 -> Consumer Price Index for August | F14: =Inputs!F$39 -> 0 | G14: =Inputs!G$39 -> index | H14: =Inputs!H$39 -> 0 | I14: =Inputs!I$39 -> 0 | J14: =Inputs!J$39 -> 96.1 | K14: =Inputs!K$39 -> 98.4 | L14: =Inputs!L$39 -> 99.9 | M14: =Inputs!M$39 -> 100.3 | N14: =Inputs!N$39 -> 101.2 | O14: =Inputs!O$39 -> 104 | P14: =Inputs!P$39 -> 106.5 | Q14: =Inputs!Q$39 -> 108.6 | R14: =Inputs!R$39 -> 0 | S14: =Inputs!S$39 -> 0 | T14: =Inputs!T$39 -> 0 | U14: =Inputs!U$39 -> 0 | V14: =Inputs!V$39 -> 0
E15: =Inputs!E$40 -> Consumer Price Index for September | F15: =Inputs!F$40 -> 0 | G15: =Inputs!G$40 -> index | H15: =Inputs!H$40 -> 0 | I15: =Inputs!I$40 -> 0 | J15: =Inputs!J$40 -> 96.4 | K15: =Inputs!K$40 -> 98.7 | L15: =Inputs!L$40 -> 100 | M15: =Inputs!M$40 -> 100.2 | N15: =Inputs!N$40 -> 101.5 | O15: =Inputs!O$40 -> 104.3 | P15: =Inputs!P$40 -> 106.8 | Q15: =Inputs!Q$40 -> 108.9 | R15: =Inputs!R$40 -> 0 | S15: =Inputs!S$40 -> 0 | T15: =Inputs!T$40 -> 0 | U15: =Inputs!U$40 -> 0 | V15: =Inputs!V$40 -> 0
E16: =Inputs!E$41 -> Consumer Price Index for October | F16: =Inputs!F$41 -> 0 | G16: =Inputs!G$41 -> index | H16: =Inputs!H$41 -> 0 | I16: =Inputs!I$41 -> 0 | J16: =Inputs!J$41 -> 96.8 | K16: =Inputs!K$41 -> 98.8 | L16: =Inputs!L$41 -> 100.1 | M16: =Inputs!M$41 -> 100.3 | N16: =Inputs!N$41 -> 101.6 | O16: =Inputs!O$41 -> 104.4 | P16: =Inputs!P$41 -> 106.9 | Q16: =Inputs!Q$41 -> 109 | R16: =Inputs!R$41 -> 0 | S16: =Inputs!S$41 -> 0 | T16: =Inputs!T$41 -> 0 | U16: =Inputs!U$41 -> 0 | V16: =Inputs!V$41 -> 0
E17: =Inputs!E$42 -> Consumer Price Index for November | F17: =Inputs!F$42 -> 0 | G17: =Inputs!G$42 -> index | H17: =Inputs!H$42 -> 0 | I17: =Inputs!I$42 -> 0 | J17: =Inputs!J$42 -> 97 | K17: =Inputs!K$42 -> 98.8 | L17: =Inputs!L$42 -> 99.9 | M17: =Inputs!M$42 -> 100.3 | N17: =Inputs!N$42 -> 101.8 | O17: =Inputs!O$42 -> 104.7 | P17: =Inputs!P$42 -> 107.1 | Q17: =Inputs!Q$42 -> 109.2 | R17: =Inputs!R$42 -> 0 | S17: =Inputs!S$42 -> 0 | T17: =Inputs!T$42 -> 0 | U17: =Inputs!U$42 -> 0 | V17: =Inputs!V$42 -> 0
E18: =Inputs!E$43 -> Consumer Price Index for December | F18: =Inputs!F$43 -> 0 | G18: =Inputs!G$43 -> index | H18: =Inputs!H$43 -> 0 | I18: =Inputs!I$43 -> 0 | J18: =Inputs!J$43 -> 97.3 | K18: =Inputs!K$43 -> 99.2 | L18: =Inputs!L$43 -> 99.9 | M18: =Inputs!M$43 -> 100.4 | N18: =Inputs!N$43 -> 102.2 | O18: =Inputs!O$43 -> 105 | P18: =Inputs!P$43 -> 107.5 | Q18: =Inputs!Q$43 -> 109.7 | R18: =Inputs!R$43 -> 0 | S18: =Inputs!S$43 -> 0 | T18: =Inputs!T$43 -> 0 | U18: =Inputs!U$43 -> 0 | V18: =Inputs!V$43 -> 0
E19: =Inputs!E$44 -> Consumer Price Index for January | F19: =Inputs!F$44 -> 0 | G19: =Inputs!G$44 -> index | H19: =Inputs!H$44 -> 0 | I19: =Inputs!I$44 -> 0 | J19: =Inputs!J$44 -> 97 | K19: =Inputs!K$44 -> 98.7 | L19: =Inputs!L$44 -> 99.2 | M19: =Inputs!M$44 -> 99.9 | N19: =Inputs!N$44 -> 101.8 | O19: =Inputs!O$44 -> 104.5 | P19: =Inputs!P$44 -> 107 | Q19: =Inputs!Q$44 -> 109.1 | R19: =Inputs!R$44 -> 0 | S19: =Inputs!S$44 -> 0 | T19: =Inputs!T$44 -> 0 | U19: =Inputs!U$44 -> 0 | V19: =Inputs!V$44 -> 0
E20: =Inputs!E$45 -> Consumer Price Index for February | F20: =Inputs!F$45 -> 0 | G20: =Inputs!G$45 -> index | H20: =Inputs!H$45 -> 0 | I20: =Inputs!I$45 -> 0 | J20: =Inputs!J$45 -> 97.5 | K20: =Inputs!K$45 -> 99.1 | L20: =Inputs!L$45 -> 99.5 | M20: =Inputs!M$45 -> 100.1 | N20: =Inputs!N$45 -> 102.4 | O20: =Inputs!O$45 -> 104.9 | P20: =Inputs!P$45 -> 107.3 | Q20: =Inputs!Q$45 -> 109.4 | R20: =Inputs!R$45 -> 0 | S20: =Inputs!S$45 -> 0 | T20: =Inputs!T$45 -> 0 | U20: =Inputs!U$45 -> 0 | V20: =Inputs!V$45 -> 0
E21: =Inputs!E$46 -> Consumer Price Index for March | F21: =Inputs!F$46 -> 0 | G21: =Inputs!G$46 -> index | H21: =Inputs!H$46 -> 0 | I21: =Inputs!I$46 -> 0 | J21: =Inputs!J$46 -> 97.8 | K21: =Inputs!K$46 -> 99.3 | L21: =Inputs!L$46 -> 99.6 | M21: =Inputs!M$46 -> 100.4 | N21: =Inputs!N$46 -> 102.7 | O21: =Inputs!O$46 -> 105.1 | P21: =Inputs!P$46 -> 107.4 | Q21: =Inputs!Q$46 -> 109.5 | R21: =Inputs!R$46 -> 0 | S21: =Inputs!S$46 -> 0 | T21: =Inputs!T$46 -> 0 | U21: =Inputs!U$46 -> 0 | V21: =Inputs!V$46 -> 0
E23: =Inputs!E$48 -> CPIH: Assumed percentage increase for unpopulated monthly values | F23: =Inputs!F$48 -> 0 | G23: =Inputs!G$48 -> % | H23: =Inputs!H$48 -> 0 | I23: =Inputs!I$48 -> 0 | J23: =Inputs!J$48 -> 0 | K23: =Inputs!K$48 -> 0 | L23: =Inputs!L$48 -> 0 | M23: =Inputs!M$48 -> 0 | N23: =Inputs!N$48 -> 0 | O23: =Inputs!O$48 -> 0 | P23: =Inputs!P$48 -> 0 | Q23: =Inputs!Q$48 -> 0 | R23: =Inputs!R$48 -> 0 | S23: =Inputs!S$48 -> 0 | T23: =Inputs!T$48 -> 0 | U23: =Inputs!U$48 -> 0 | V23: =Inputs!V$48 -> 0
E25: CPIH: April - index | G25: index | J25: =IF(J10 > 0, J10, I25 * (1 + J$23)) -> 95.9 | K25: =IF(K10 > 0, K10, J25 * (1 + K$23)) -> 98 | L25: 99.6 | M25: 99.9 | N25: 100.6 | O25: 103.2 | P25: 105.5 | Q25: =IF(Q10 > 0, Q10, P25 * (1 + Q$23)) -> 107.6 | R25: =IF(R10 > 0, R10, Q25 * (1 + R$23)) -> 107.6 | S25: =IF(S10 > 0, S10, R25 * (1 + S$23)) -> 107.6 | T25: =IF(T10 > 0, T10, S25 * (1 + T$23)) -> 107.6 | U25: =IF(U10 > 0, U10, T25 * (1 + U$23)) -> 107.6 | V25: =IF(V10 > 0, V10, U25 * (1 + V$23)) -> 107.6
E26: CPIH: May - index | G26: index | J26: =IF(J11 > 0, J11, I26 * (1 + J$23)) -> 95.9 | K26: 98.2 | L26: 99.6 | M26: 100.1 | N26: 100.8 | O26: 103.5 | P26: 105.9 | Q26: 108 | R26: 108 | S26: 108 | T26: 108 | U26: 108 | V26: 108
E27: CPIH: June - index | G27: index | J27: 95.6 | K27: 98 | L27: 99.8 | M27: 100.1 | N27: 101 | O27: 103.5 | P27: 105.9 | Q27: 108 | R27: 108 | S27: 108 | T27: 108 | U27: 108 | V27: 108
E28: CPIH: July - index | G28: index | J28: 95.7 | K28: 98 | L28: 99.6 | M28: 100 | N28: 100.9 | O28: 103.5 | P28: 105.9 | Q28: 108 | R28: 108 | S28: 108 | T28: 108 | U28: 108 | V28: 108
E29: CPIH: August - index | G29: index | J29: 96.1 | K29: 98.4 | L29: 99.9 | M29: 100.3 | N29: 101.2 | O29: 104 | P29: 106.5 | Q29: 108.6 | R29: 108.6 | S29: 108.6 | T29: 108.6 | U29: 108.6 | V29: 108.6
E30: CPIH: September- index | G30: index | J30: 96.4 | K30: 98.7 | L30: 100 | M30: 100.2 | N30: 101.5 | O30: 104.3 | P30: 106.8 | Q30: 108.9 | R30: 108.9 | S30: 108.9 | T30: 108.9 | U30: 108.9 | V30: 108.9
E31: CPIH: October - index | G31: index | J31: 96.8 | K31: 98.8 | L31: 100.1 | M31: 100.3 | N31: 101.6 | O31: 104.4 | P31: 106.9 | Q31: 109 | R31: 109 | S31: 109 | T31: 109 | U31: 109 | V31: 109
E32: CPIH: November - index | G32: index | J32: 97 | K32: 98.8 | L32: 99.9 | M32: 100.3 | N32: 101.8 | O32: 104.7 | P32: 107.1 | Q32: 109.2 | R32: 109.2 | S32: 109.2 | T32: 109.2 | U32: 109.2 | V32: 109.2
E33: CPIH: December - index | G33: index | J33: 97.3 | K33: 99.2 | L33: 99.9 | M33: 100.4 | N33: 102.2 | O33: 105 | P33: 107.5 | Q33: 109.7 | R33: 109.7 | S33: 109.7 | T33: 109.7 | U33: 109.7 | V33: 109.7
E34: CPIH: January - index | G34: index | J34: 97 | K34: 98.7 | L34: 99.2 | M34: 99.9 | N34: 101.8 | O34: 104.5 | P34: 107 | Q34: 109.1 | R34: 109.1 | S34: 109.1 | T34: 109.1 | U34: 109.1 | V34: 109.1
E35: CPIH: February - index | G35: index | J35: 97.5 | K35: 99.1 | L35: 99.5 | M35: 100.1 | N35: 102.4 | O35: 104.9 | P35: 107.3 | Q35: 109.4 | R35: 109.4 | S35: 109.4 | T35: 109.4 | U35: 109.4 | V35: 109.4
E36: CPIH: March - index | G36: index | J36: 97.8 | K36: 99.3 | L36: 99.6 | M36: 100.4 | N36: 102.7 | O36: 105.1 | P36: 107.4 | Q36: 109.5 | R36: 109.5 | S36: 109.5 | T36: 109.5 | U36: 109.5 | V36: 109.5
E38: CPIH: Financial year average - index | G38: index | J38: =AVERAGE(J25:J36) -> 96.58333333 | K38: 98.6 | L38: 99.725 | M38: 100.1666667 | N38: 101.5416667 | O38: 104.2166667 | P38: 106.6416667 | Q38: =AVERAGE(Q25:Q36) -> 108.75 | R38: 108.75 | S38: 108.75 | T38: 108.75 | U38: 108.75 | V38: 108.75
A41: RPI INDEXATION
B43: RPI: Index value series
E44: =Inputs!E$52 -> Retail Price Index for April | F44: =Inputs!F$52 -> 0 | G44: =Inputs!G$52 -> index | H44: =Inputs!H$52 -> 0 | I44: =Inputs!I$52 -> 0 | J44: =Inputs!J$52 -> 242.5 | K44: =Inputs!K$52 -> 249.5 | L44: =Inputs!L$52 -> 255.7 | M44: =Inputs!M$52 -> 258 | N44: =Inputs!N$52 -> 261.4 | O44: =Inputs!O$52 -> 270.6 | P44: =Inputs!P$52 -> 279.7 | Q44: =Inputs!Q$52 -> 288.2 | R44: =Inputs!R$52 -> 0 | S44: =Inputs!S$52 -> 0 | T44: =Inputs!T$52 -> 0 | U44: =Inputs!U$52 -> 0 | V44: =Inputs!V$52 -> 0
E45: =Inputs!E$53 -> Retail Price Index for May | F45: =Inputs!F$53 -> 0 | G45: =Inputs!G$53 -> index | H45: =Inputs!H$53 -> 0 | I45: =Inputs!I$53 -> 0 | J45: =Inputs!J$53 -> 242.4 | K45: =Inputs!K$53 -> 250 | L45: =Inputs!L$53 -> 255.9 | M45: =Inputs!M$53 -> 258.5 | N45: =Inputs!N$53 -> 262.1 | O45: =Inputs!O$53 -> 271.7 | P45: =Inputs!P$53 -> 280.7 | Q45: =Inputs!Q$53 -> 289.2 | R45: =Inputs!R$53 -> 0 | S45: =Inputs!S$53 -> 0 | T45: =Inputs!T$53 -> 0 | U45: =Inputs!U$53 -> 0 | V45: =Inputs!V$53 -> 0
E46: =Inputs!E$54 -> Retail Price Index for June | F46: =Inputs!F$54 -> 0 | G46: =Inputs!G$54 -> index | H46: =Inputs!H$54 -> 0 | I46: =Inputs!I$54 -> 0 | J46: =Inputs!J$54 -> 241.8 | K46: =Inputs!K$54 -> 249.7 | L46: =Inputs!L$54 -> 256.3 | M46: =Inputs!M$54 -> 258.9 | N46: =Inputs!N$54 -> 263.1 | O46: =Inputs!O$54 -> 272.3 | P46: =Inputs!P$54 -> 281.5 | Q46: =Inputs!Q$54 -> 289.2 | R46: =Inputs!R$54 -> 0 | S46: =Inputs!S$54 -> 0 | T46: =Inputs!T$54 -> 0 | U46: =Inputs!U$54 -> 0 | V46: =Inputs!V$54 -> 0
E47: =Inputs!E$55 -> Retail Price Index for July | F47: =Inputs!F$55 -> 0 | G47: =Inputs!G$55 -> index | H47: =Inputs!H$55 -> 0 | I47: =Inputs!I$55 -> 0 | J47: =Inputs!J$55 -> 242.1 | K47: =Inputs!K$55 -> 249.7 | L47: =Inputs!L$55 -> 256 | M47: =Inputs!M$55 -> 258.6 | N47: =Inputs!N$55 -> 263.4 | O47: =Inputs!O$55 -> 272.9 | P47: =Inputs!P$55 -> 281.7 | Q47: =Inputs!Q$55 -> 288.8 | R47: =Inputs!R$55 -> 0 | S47: =Inputs!S$55 -> 0 | T47: =Inputs!T$55 -> 0 | U47: =Inputs!U$55 -> 0 | V47: =Inputs!V$55 -> 0
E48: =Inputs!E$56 -> Retail Price Index for August | F48: =Inputs!F$56 -> 0 | G48: =Inputs!G$56 -> index | H48: =Inputs!H$56 -> 0 | I48: =Inputs!I$56 -> 0 | J48: =Inputs!J$56 -> 243 | K48: =Inputs!K$56 -> 251 | L48: =Inputs!L$56 -> 257 | M48: =Inputs!M$56 -> 259.8 | N48: =Inputs!N$56 -> 264.4 | O48: =Inputs!O$56 -> 274.7 | P48: =Inputs!P$56 -> 284.2 | Q48: =Inputs!Q$56 -> 292 | R48: =Inputs!R$56 -> 0 | S48: =Inputs!S$56 -> 0 | T48: =Inputs!T$56 -> 0 | U48: =Inputs!U$56 -> 0 | V48: =Inputs!V$56 -> 0
E49: =Inputs!E$57 -> Retail Price Index for September | F49: =Inputs!F$57 -> 0 | G49: =Inputs!G$57 -> index | H49: =Inputs!H$57 -> 0 | I49: =Inputs!I$57 -> 0 | J49: =Inputs!J$57 -> 244.2 | K49: =Inputs!K$57 -> 251.9 | L49: =Inputs!L$57 -> 257.6 | M49: =Inputs!M$57 -> 259.6 | N49: =Inputs!N$57 -> 264.9 | O49: =Inputs!O$57 -> 275.1 | P49: =Inputs!P$57 -> 284.1 | Q49: =Inputs!Q$57 -> 291.9 | R49: =Inputs!R$57 -> 0 | S49: =Inputs!S$57 -> 0 | T49: =Inputs!T$57 -> 0 | U49: =Inputs!U$57 -> 0 | V49: =Inputs!V$57 -> 0
E50: =Inputs!E$58 -> Retail Price Index for October | F50: =Inputs!F$58 -> 0 | G50: =Inputs!G$58 -> index | H50: =Inputs!H$58 -> 0 | I50: =Inputs!I$58 -> 0 | J50: =Inputs!J$58 -> 245.6 | K50: =Inputs!K$58 -> 251.9 | L50: =Inputs!L$58 -> 257.7 | M50: =Inputs!M$58 -> 259.5 | N50: =Inputs!N$58 -> 264.8 | O50: =Inputs!O$58 -> 275.3 | P50: =Inputs!P$58 -> 284.5 | Q50: =Inputs!Q$58 -> 292.3 | R50: =Inputs!R$58 -> 0 | S50: =Inputs!S$58 -> 0 | T50: =Inputs!T$58 -> 0 | U50: =Inputs!U$58 -> 0 | V50: =Inputs!V$58 -> 0
E51: =Inputs!E$59 -> Retail Price Index for November | F51: =Inputs!F$59 -> 0 | G51: =Inputs!G$59 -> index | H51: =Inputs!H$59 -> 0 | I51: =Inputs!I$59 -> 0 | J51: =Inputs!J$59 -> 245.6 | K51: =Inputs!K$59 -> 252.1 | L51: =Inputs!L$59 -> 257.1 | M51: =Inputs!M$59 -> 259.8 | N51: =Inputs!N$59 -> 265.5 | O51: =Inputs!O$59 -> 275.8 | P51: =Inputs!P$59 -> 284.6 | Q51: =Inputs!Q$59 -> 292 | R51: =Inputs!R$59 -> 0 | S51: =Inputs!S$59 -> 0 | T51: =Inputs!T$59 -> 0 | U51: =Inputs!U$59 -> 0 | V51: =Inputs!V$59 -> 0
E52: =Inputs!E$60 -> Retail Price Index for December | F52: =Inputs!F$60 -> 0 | G52: =Inputs!G$60 -> index | H52: =Inputs!H$60 -> 0 | I52: =Inputs!I$60 -> 0 | J52: =Inputs!J$60 -> 246.8 | K52: =Inputs!K$60 -> 253.4 | L52: =Inputs!L$60 -> 257.5 | M52: =Inputs!M$60 -> 260.6 | N52: =Inputs!N$60 -> 267.1 | O52: =Inputs!O$60 -> 278.1 | P52: =Inputs!P$60 -> 285.6 | Q52: =Inputs!Q$60 -> 293.4 | R52: =Inputs!R$60 -> 0 | S52: =Inputs!S$60 -> 0 | T52: =Inputs!T$60 -> 0 | U52: =Inputs!U$60 -> 0 | V52: =Inputs!V$60 -> 0
E53: =Inputs!E$61 -> Retail Price Index for January | F53: =Inputs!F$61 -> 0 | G53: =Inputs!G$61 -> index | H53: =Inputs!H$61 -> 0 | I53: =Inputs!I$61 -> 0 | J53: =Inputs!J$61 -> 245.8 | K53: =Inputs!K$61 -> 252.6 | L53: =Inputs!L$61 -> 255.4 | M53: =Inputs!M$61 -> 258.8 | N53: =Inputs!N$61 -> 265.5 | O53: =Inputs!O$61 -> 276 | P53: =Inputs!P$61 -> 283 | Q53: =Inputs!Q$61 -> 290.7 | R53: =Inputs!R$61 -> 0 | S53: =Inputs!S$61 -> 0 | T53: =Inputs!T$61 -> 0 | U53: =Inputs!U$61 -> 0 | V53: =Inputs!V$61 -> 0
E54: =Inputs!E$62 -> Retail Price Index for February | F54: =Inputs!F$62 -> 0 | G54: =Inputs!G$62 -> index | H54: =Inputs!H$62 -> 0 | I54: =Inputs!I$62 -> 0 | J54: =Inputs!J$62 -> 247.6 | K54: =Inputs!K$62 -> 254.2 | L54: =Inputs!L$62 -> 256.7 | M54: =Inputs!M$62 -> 260 | N54: =Inputs!N$62 -> 268.4 | O54: =Inputs!O$62 -> 278.1 | P54: =Inputs!P$62 -> 285 | Q54: =Inputs!Q$62 -> 292.8 | R54: =Inputs!R$62 -> 0 | S54: =Inputs!S$62 -> 0 | T54: =Inputs!T$62 -> 0 | U54: =Inputs!U$62 -> 0 | V54: =Inputs!V$62 -> 0
E55: =Inputs!E$63 -> Retail Price Index for March | F55: =Inputs!F$63 -> 0 | G55: =Inputs!G$63 -> index | H55: =Inputs!H$63 -> 0 | I55: =Inputs!I$63 -> 0 | J55: =Inputs!J$63 -> 248.7 | K55: =Inputs!K$63 -> 254.8 | L55: =Inputs!L$63 -> 257.1 | M55: =Inputs!M$63 -> 261.1 | N55: =Inputs!N$63 -> 269.3 | O55: =Inputs!O$63 -> 278.3 | P55: =Inputs!P$63 -> 285.1 | Q55: =Inputs!Q$63 -> 292.8 | R55: =Inputs!R$63 -> 0 | S55: =Inputs!S$63 -> 0 | T55: =Inputs!T$63 -> 0 | U55: =Inputs!U$63 -> 0 | V55: =Inputs!V$63 -> 0
E57: =Inputs!E$65 -> RPI: Assumed percentage increase for unpopulated monthly values | F57: =Inputs!F$65 -> 0 | G57: =Inputs!G$65 -> % | H57: =Inputs!H$65 -> 0 | I57: =Inputs!I$65 -> 0 | J57: =Inputs!J$65 -> 0 | K57: =Inputs!K$65 -> 0 | L57: =Inputs!L$65 -> 0 | M57: =Inputs!M$65 -> 0 | N57: =Inputs!N$65 -> 0 | O57: =Inputs!O$65 -> 0 | P57: =Inputs!P$65 -> 0 | Q57: =Inputs!Q$65 -> 0 | R57: =Inputs!R$65 -> 0 | S57: =Inputs!S$65 -> 0 | T57: =Inputs!T$65 -> 0 | U57: =Inputs!U$65 -> 0 | V57: =Inputs!V$65 -> 0
E59: RPI: April - index | G59: index | J59: =IF(J44 > 0, J44, I59 * (1 + J$57)) -> 242.5 | K59: =IF(K44 > 0, K44, J59 * (1 + K$57)) -> 249.5 | L59: 255.7 | M59: 258 | N59: 261.4 | O59: 270.6 | P59: 279.7 | Q59: =IF(Q44 > 0, Q44, P59 * (1 + Q$57)) -> 288.2 | R59: =IF(R44 > 0, R44, Q59 * (1 + R$57)) -> 288.2 | S59: =IF(S44 > 0, S44, R59 * (1 + S$57)) -> 288.2 | T59: =IF(T44 > 0, T44, S59 * (1 + T$57)) -> 288.2 | U59: =IF(U44 > 0, U44, T59 * (1 + U$57)) -> 288.2 | V59: =IF(V44 > 0, V44, U59 * (1 + V$57)) -> 288.2
E60: RPI: May - index | G60: index | J60: =IF(J45 > 0, J45, I60 * (1 + J$57)) -> 242.4 | K60: 250 | L60: 255.9 | M60: 258.5 | N60: 262.1 | O60: 271.7 | P60: 280.7 | Q60: 289.2 | R60: 289.2 | S60: 289.2 | T60: 289.2 | U60: 289.2 | V60: 289.2
E61: RPI: June - index | G61: index | J61: =IF(J46 > 0, J46, I61 * (1 + J$57)) -> 241.8 | K61: 249.7 | L61: 256.3 | M61: 258.9 | N61: 263.1 | O61: 272.3 | P61: 281.5 | Q61: 289.2 | R61: 289.2 | S61: 289.2 | T61: 289.2 | U61: 289.2 | V61: 289.2
E62: RPI: July - index | G62: index | J62: =IF(J47 > 0, J47, I62 * (1 + J$57)) -> 242.1 | K62: 249.7 | L62: 256 | M62: 258.6 | N62: 263.4 | O62: 272.9 | P62: 281.7 | Q62: 288.8 | R62: 288.8 | S62: 288.8 | T62: 288.8 | U62: 288.8 | V62: 288.8
E63: RPI: August - index | G63: index | J63: =IF(J48 > 0, J48, I63 * (1 + J$57)) -> 243 | K63: 251 | L63: 257 | M63: 259.8 | N63: 264.4 | O63: 274.7 | P63: 284.2 | Q63: 292 | R63: 292 | S63: 292 | T63: 292 | U63: 292 | V63: 292
E64: RPI: September- index | G64: index | J64: =IF(J49 > 0, J49, I64 * (1 + J$57)) -> 244.2 | K64: 251.9 | L64: 257.6 | M64: 259.6 | N64: 264.9 | O64: 275.1 | P64: 284.1 | Q64: 291.9 | R64: 291.9 | S64: 291.9 | T64: 291.9 | U64: 291.9 | V64: 291.9
E65: RPI: October - index | G65: index | J65: =IF(J50 > 0, J50, I65 * (1 + J$57)) -> 245.6 | K65: 251.9 | L65: 257.7 | M65: 259.5 | N65: 264.8 | O65: 275.3 | P65: 284.5 | Q65: 292.3 | R65: 292.3 | S65: 292.3 | T65: 292.3 | U65: 292.3 | V65: 292.3
E66: RPI: November - index | G66: index | J66: =IF(J51 > 0, J51, I66 * (1 + J$57)) -> 245.6 | K66: 252.1 | L66: 257.1 | M66: 259.8 | N66: 265.5 | O66: 275.8 | P66: 284.6 | Q66: 292 | R66: 292 | S66: 292 | T66: 292 | U66: 292 | V66: 292
E67: RPI: December - index | G67: index | J67: =IF(J52 > 0, J52, I67 * (1 + J$57)) -> 246.8 | K67: 253.4 | L67: 257.5 | M67: 260.6 | N67: 267.1 | O67: 278.1 | P67: 285.6 | Q67: 293.4 | R67: 293.4 | S67: 293.4 | T67: 293.4 | U67: 293.4 | V67: 293.4
E68: RPI: January - index | G68: index | J68: =IF(J53 > 0, J53, I68 * (1 + J$57)) -> 245.8 | K68: 252.6 | L68: 255.4 | M68: 258.8 | N68: 265.5 | O68: 276 | P68: 283 | Q68: 290.7 | R68: 290.7 | S68: 290.7 | T68: 290.7 | U68: 290.7 | V68: 290.7
E69: RPI: February - index | G69: index | J69: =IF(J54 > 0, J54, I69 * (1 + J$57)) -> 247.6 | K69: 254.2 | L69: 256.7 | M69: 260 | N69: 268.4 | O69: 278.1 | P69: 285 | Q69: 292.8 | R69: 292.8 | S69: 292.8 | T69: 292.8 | U69: 292.8 | V69: 292.8
E70: RPI: March - index | G70: index | J70: =IF(J55 > 0, J55, I70 * (1 + J$57)) -> 248.7 | K70: 254.8 | L70: 257.1 | M70: 261.1 | N70: 269.3 | O70: 278.3 | P70: 285.1 | Q70: 292.8 | R70: 292.8 | S70: 292.8 | T70: 292.8 | U70: 292.8 | V70: 292.8
E72: RPI: Financial year average - index | G72: index | J72: =AVERAGE(J59:J70) -> 244.675 | K72: 251.7333333 | L72: 256.6666667 | M72: 259.4333333 | N72: 264.9916667 | O72: 274.9083333 | P72: 283.3083333 | Q72: =AVERAGE(Q59:Q70) -> 291.1083333 | R72: 291.1083333 | S72: 291.1083333 | T72: 291.1083333 | U72: 291.1083333 | V72: 291.1083333
A75: INFLATION
B77: ="Inflation from " & F78 & " FYA to " & F79 & " FYE - RPI" -> Inflation from 2013 FYA to 2020 FYE - RPI
E78: =Inputs!E$69 -> Year reference for FYA base price 1 | F78: =Inputs!F$69 -> 2013 | G78: =Inputs!G$69 -> year #
E79: =Inputs!E$73 -> Year reference for FYE end price | F79: =Inputs!F$73 -> 2020 | G79: =Inputs!G$73 -> year #
E80: =E$72 -> RPI: Financial year average - index | F80: 0 | G80: index | H80: 0 | I80: 0 | J80: 244.675 | K80: 251.7333333 | L80: 256.6666667 | M80: 259.4333333 | N80: 264.9916667 | O80: 274.9083333 | P80: 283.3083333 | Q80: 291.1083333 | R80: 291.1083333 | S80: 291.1083333 | T80: 291.1083333 | U80: 291.1083333 | V80: 291.1083333
E81: =E$70 -> RPI: March - index | F81: 0 | G81: index | H81: 0 | I81: 0 | J81: 248.7 | K81: 254.8 | L81: 257.1 | M81: 261.1 | N81: 269.3 | O81: 278.3 | P81: 285.1 | Q81: 292.8 | R81: 292.8 | S81: 292.8 | T81: 292.8 | U81: 292.8 | V81: 292.8
E82: ="RPI inflate from " & F78 & " FYA to " & F79 & " FYE" -> RPI inflate from 2013 FYA to 2020 FYE | F82: =INDEX($J81:$V81, 1, MATCH($F79,$J$4:$V$4)) / INDEX($J80:$V80, 1, MATCH($F78,$J$4:$V$4)) -> 1.196689486 | G82: factor
B84: ="Inflation from " & F85 & " FYA to " & F86 & " FYE - RPI" -> Inflation from 2018 FYA to 2020 FYE - RPI
E85: =Inputs!E$70 -> Year reference for FYA base price 2 | F85: =Inputs!F$70 -> 2018 | G85: =Inputs!G$70 -> year #
E86: =Inputs!E$73 -> Year reference for FYE end price | F86: =Inputs!F$73 -> 2020 | G86: =Inputs!G$73 -> year #
E87: =E$72 -> RPI: Financial year average - index | F87: 0 | G87: index | H87: 0 | I87: 0 | J87: 244.675 | K87: 251.7333333 | L87: 256.6666667 | M87: 259.4333333 | N87: 264.9916667 | O87: 274.9083333 | P87: 283.3083333 | Q87: 291.1083333 | R87: 291.1083333 | S87: 291.1083333 | T87: 291.1083333 | U87: 291.1083333 | V87: 291.1083333
E88: =E$70 -> RPI: March - index | F88: 0 | G88: index | H88: 0 | I88: 0 | J88: 248.7 | K88: 254.8 | L88: 257.1 | M88: 261.1 | N88: 269.3 | O88: 278.3 | P88: 285.1 | Q88: 292.8 | R88: 292.8 | S88: 292.8 | T88: 292.8 | U88: 292.8 | V88: 292.8
E89: ="RPI inflate from " & F85 & " FYA to " & F86 & " FYE" -> RPI inflate from 2018 FYA to 2020 FYE | F89: =INDEX($J88:$V88, 1, MATCH($F86,$J$4:$V$4)) / INDEX($J87:$V87, 1, MATCH($F85,$J$4:$V$4)) -> 1.0650823 | G89: factor
B91: ="Inflation from " & F92 & " FYE to " & F93 & " FYE - RPI" -> Inflation from 2020 FYE to 2020 FYE - RPI
E92: =Inputs!E$71 -> Year reference for FYE base price 1 | F92: =Inputs!F$71 -> 2020 | G92: =Inputs!G$71 -> year #
E93: =Inputs!E$73 -> Year reference for FYE end price | F93: =Inputs!F$73 -> 2020 | G93: =Inputs!G$73 -> year #
E94: =E$70 -> RPI: March - index | F94: 0 | G94: index | H94: 0 | I94: 0 | J94: 248.7 | K94: 254.8 | L94: 257.1 | M94: 261.1 | N94: 269.3 | O94: 278.3 | P94: 285.1 | Q94: 292.8 | R94: 292.8 | S94: 292.8 | T94: 292.8 | U94: 292.8 | V94: 292.8
E95: ="RPI inflate from " & F92 & " FYE to " & F93 & " FYE" -> RPI inflate from 2020 FYE to 2020 FYE | F95: =INDEX($J94:$V94, 1, MATCH($F93,$J$4:$V$4)) / INDEX($J94:$V94, 1, MATCH($F92,$J$4:$V$4)) -> 1 | G95: factor
B97: ="Inflation from November " & F98 & " FYE to " & F99 & " FYE - RPI" -> Inflation from November 2019 FYE to 2020 FYE - RPI
E98: =Inputs!E$72 -> Year reference for FYE base price 2 | F98: =Inputs!F$72 -> 2019 | G98: =Inputs!G$72 -> year #
E99: =Inputs!E$73 -> Year reference for FYE end price | F99: =Inputs!F$73 -> 2020 | G99: =Inputs!G$73 -> year #
E100: =E$66 -> RPI: November - index | F100: 0 | G100: index | H100: 0 | I100: 0 | J100: 245.6 | K100: 252.1 | L100: 257.1 | M100: 259.8 | N100: 265.5 | O100: 275.8 | P100: 284.6 | Q100: 292 | R100: 292 | S100: 292 | T100: 292 | U100: 292 | V100: 292
E101: =E$70 -> RPI: March - index | F101: 0 | G101: index | H101: 0 | I101: 0 | J101: 248.7 | K101: 254.8 | L101: 257.1 | M101: 261.1 | N101: 269.3 | O101: 278.3 | P101: 285.1 | Q101: 292.8 | R101: 292.8 | S101: 292.8 | T101: 292.8 | U101: 292.8 | V101: 292.8
E102: ="RPI inflate from November " & F98 & " FYE to " & F99 & " FYE" -> RPI inflate from November 2019 FYE to 2020 FYE | F102: =INDEX($J101:$V101, 1, MATCH($F99,$J$4:$V$4)) / INDEX($J100:$V100, 1, MATCH($F98,$J$4:$V$4)) -> 1.028812368 | G102: factor
A105: DEFLATION
E107: =Inputs!E$77 -> Year reference for FYE base price | F107: =Inputs!F$77 -> 2020 | G107: =Inputs!G$77 -> year #
E108: =Inputs!E$78 -> Year reference for FYA end price | F108: =Inputs!F$78 -> 2018 | G108: =Inputs!G$78 -> year #
E109: =E$36 -> CPIH: March - index | F109: =F$36 -> 0 | G109: index | H109: 0 | I109: 0 | J109: 97.8 | K109: 99.3 | L109: 99.6 | M109: 100.4 | N109: 102.7 | O109: 105.1 | P109: 107.4 | Q109: 109.5 | R109: 109.5 | S109: 109.5 | T109: 109.5 | U109: 109.5 | V109: 109.5
E110: =E$38 -> CPIH: Financial year average - index | F110: 0 | G110: index | H110: 0 | I110: 0 | J110: 96.58333333 | K110: 98.6 | L110: 99.725 | M110: 100.1666667 | N110: 101.5416667 | O110: 104.2166667 | P110: 106.6416667 | Q110: 108.75 | R110: 108.75 | S110: 108.75 | T110: 108.75 | U110: 108.75 | V110: 108.75
E111: ="CPIH deflate from " & F107 & " FYE to " & F108 & " FYA" -> CPIH deflate from 2020 FYE to 2018 FYA | F111: =INDEX($J110:$V110, 1, MATCH($F108,$J$4:$V$4)) / INDEX($J109:$V109, 1, MATCH($F107,$J$4:$V$4)) -> 0.9517503805 | G111: factor

Sheet Calc
A1: =RIGHT(CELL("filename", $A$1), LEN(CELL("filename", $A$1)) - SEARCH("]", CELL("filename", $A$1))) -> Calc
E2: =Time!E$25 -> Model period ending | F2: =Checks!F$11 -> 0 | G2: =Checks!G$11 -> Checks | J2: =Time!J$25 -> 2013-03-31 | K2: =Time!K$25 -> 2014-03-31 | L2: =Time!L$25 -> 2015-03-31 | M2: =Time!M$25 -> 2016-03-31 | N2: =Time!N$25 -> 2017-03-31 | O2: =Time!O$25 -> 2018-03-31 | P2: =Time!P$25 -> 2019-03-31 | Q2: =Time!Q$25 -> 2020-03-31 | R2: =Time!R$25 -> 2021-03-31 | S2: =Time!S$25 -> 2022-03-31 | T2: =Time!T$25 -> 2023-03-31 | U2: =Time!U$25 -> 2024-03-31 | V2: =Time!V$25 -> 2025-03-31
E3: =Time!E$80 -> Timeline label | J3: =Time!J$80 -> Pre-Fcst | K3: =Time!K$80 -> Pre-Fcst | L3: =Time!L$80 -> Pre-Fcst | M3: =Time!M$80 -> Pre-Fcst | N3: =Time!N$80 -> Pre-Fcst | O3: =Time!O$80 -> Pre-Fcst | P3: =Time!P$80 -> Pre-Fcst | Q3: =Time!Q$80 -> Pre-Fcst | R3: =Time!R$80 -> Forecast | S3: =Time!S$80 -> Forecast | T3: =Time!T$80 -> Forecast | U3: =Time!U$80 -> Forecast | V3: =Time!V$80 -> Forecast
E4: =Time!E$103 -> Financial year ending | J4: =Time!J$103 -> 2013 | K4: =Time!K$103 -> 2014 | L4: =Time!L$103 -> 2015 | M4: =Time!M$103 -> 2016 | N4: =Time!N$103 -> 2017 | O4: =Time!O$103 -> 2018 | P4: =Time!P$103 -> 2019 | Q4: =Time!Q$103 -> 2020 | R4: =Time!R$103 -> 2021 | S4: =Time!S$103 -> 2022 | T4: =Time!T$103 -> 2023 | U4: =Time!U$103 -> 2024 | V4: =Time!V$103 -> 2025
E5: =Time!E$10 -> Model column counter | F5: Constant | G5: Unit | H5: Total | J5: =Time!J$10 -> 1 | K5: =Time!K$10 -> 2 | L5: =Time!L$10 -> 3 | M5: =Time!M$10 -> 4 | N5: =Time!N$10 -> 5 | O5: =Time!O$10 -> 6 | P5: =Time!P$10 -> 7 | Q5: =Time!Q$10 -> 8 | R5: =Time!R$10 -> 9 | S5: =Time!S$10 -> 10 | T5: =Time!T$10 -> 11 | U5: =Time!U$10 -> 12 | V5: =Time!V$10 -> 13
A7: WATER SERVICES INPUTS INFLATION
D9: Water resources
A10: =Inputs!A$86 -> C_APP27015_PD002 | E10: =Inputs!E$86 -> Net performance payment / (penalty) applied to revenue for in-period ODI adjustments ~ Water resources | F10: =Inputs!F$86 -> 0 | G10: =Inputs!G$86 -> £m
A11: =Inputs!A$87 -> C_APP27022_PD002 | E11: =Inputs!E$87 -> Net performance payment / (penalty) applied to revenue for end of period ODI adjustments ~ Water resources | F11: =Inputs!F$87 -> 0.81 | G11: =Inputs!G$87 -> £m
A12: =Inputs!A$88 -> C_WS17013_PR19D007 | E12: =Inputs!E$88 -> Total value of export incentive to be paid to water resources at PR19 | F12: =Inputs!F$88 -> 0 | G12: =Inputs!G$88 -> £m
A13: =Inputs!A$89 -> C_WS17025_PR19D007 | E13: =Inputs!E$89 -> Total value of import incentive - water resources | F13: =Inputs!F$89 -> 0 | G13: =Inputs!G$89 -> £m
E15: =Indexation!E$82 -> RPI inflate from 2013 FYA to 2020 FYE | F15: =Indexation!F$82 -> 1.196689486 | G15: =Indexation!G$82 -> factor
A17: C_APP27015 | E17: =E10 & " at 2020 FYE price base" -> Net performance payment / (penalty) applied to revenue for in-period ODI adjustments ~ Water resources at 2020 FYE price base | F17: =F10 * F$15 -> 0 | G17: £m
A18: C_APP27022 | E18: =E11 & " at 2020 FYE price base" -> Net performance payment / (penalty) applied to revenue for end of period ODI adjustments ~ Water resources at 2020 FYE price base | F18: =F11 * F$15 -> 0.9693184837 | G18: £m
A19: C_WS17013 | E19: Water trading total value of export incentive ~ Water resources at 2020 FYE price base | F19: =F12 * F$15 -> 0 | G19: £m
A20: C_WS17025 | E20: Water trading total value of import incentive ~ Water resources at 2020 FYE price base | F20: =F13 * F$15 -> 0 | G20: £m
B22: Water network plus
A23: =Inputs!A$92 -> C00578_L021 | E23: =Inputs!E$92 -> Further 2010-15 reconciliation total adjustment carry forward to PR19 ~ Water network plus | F23: =Inputs!F$92 -> 0.7524882241 | G23: =Inputs!G$92 -> £m
A24: =Inputs!A$93 -> C_APP27016_PD002 | E24: =Inputs!E$93 -> Net performance payment / (penalty) applied to revenue for in-period ODI adjustments ~ Water network plus | F24: =Inputs!F$93 -> 0.283 | G24: =Inputs!G$93 -> £m
A25: =Inputs!A$94 -> C_APP27023_PD002 | E25: =Inputs!E$94 -> Net performance payment / (penalty) applied to revenue for end of period ODI adjustments ~ Water network plus | F25: =Inputs!F$94 -> 7.31 | G25: =Inputs!G$94 -> £m
A26: =Inputs!A$95 -> C_WS15024_PR19PD006 | E26: =Inputs!E$95 -> Water: revenue adjustment from totex menu model | F26: =Inputs!F$95 -> -2.950329808 | G26: =Inputs!G$95 -> £m
A27: =Inputs!A$96 -> C_WS17014_PR19D007 | E27: =Inputs!E$96 -> Total value of export incentive to be paid to water network plus at PR19 | F27: =Inputs!F$96 -> 0 | G27: =Inputs!G$96 -> £m
A28: =Inputs!A$97 -> C_WS17026_PR19D007 | E28: =Inputs!E$97 -> Total value of import incentive - water network plus | F28: =Inputs!F$97 -> 0 | G28: =Inputs!G$97 -> £m
A29: =Inputs!A$99 -> C003_PR19PD015 | B29: =Inputs!B$99 -> 0 | C29: =Inputs!C$99 -> 0 | D29: =Inputs!D$99 -> 0 | E29: =Inputs!E$99 -> Other revenue adjustment - water network plus | F29: =Inputs!F$99 -> 0 | G29: =Inputs!G$99 -> £m
E31: =Indexation!E$82 -> RPI inflate from 2013 FYA to 2020 FYE | F31: =Indexation!F$82 -> 1.196689486 | G31: =Indexation!G$82 -> factor
A33: C00578 | E33: =E23 & " at 2020 FYE price base" -> Further 2010-15 reconciliation total adjustment carry forward to PR19 ~ Water network plus at 2020 FYE price base | F33: =F23 * F$31 -> 0.9004947461 | G33: £m
A34: C_APP27016 | E34: =E24 & " at 2020 FYE price base" -> Net performance payment / (penalty) applied to revenue for in-period ODI adjustments ~ Water network plus at 2020 FYE price base | F34: 0.3386631246 | G34: £m
A35: C_APP27023 | E35: =E25 & " at 2020 FYE price base" -> Net performance payment / (penalty) applied to revenue for end of period ODI adjustments ~ Water network plus at 2020 FYE price base | F35: 8.747800143 | G35: £m
A36: C_WS15024 | E36: ="Totex menu revenue adjustment ~ Water network plus " & " at 2020 FYE price base" -> Totex menu revenue adjustment ~ Water network plus at 2020 FYE price base | F36: -3.530628661 | G36: £m
A37: C_WS17014 | E37: Water trading total value of export incentive - Water network plus at 2020 FYE price base | F37: 0 | G37: £m
A38: C_WS17026 | E38: Water trading total value of import incentive - Water network plus at 2020 FYE price base | F38: 0 | G38: £m
E39: Other revenue adjustment - water network plus at 2020 FYE price base | F39: 0 | G39: £m
A41: =Inputs!A$98 -> C_WS13026_PR19PD005 | E41: =Inputs!E$98 -> WRFIM total reward / (penalty) at end of AMP6 ~ Water | F41: =Inputs!F$98 -> -20.25892556 | G41: =Inputs!G$98 -> £m
E43: =Indexation!E$102 -> RPI inflate from November 2019 FYE to 2020 FYE | F43: =Indexation!F$102 -> 1.028812368 | G43: =Indexation!G$102 -> factor
A45: C_WS13026 | E45: WRFIM total reward / (penalty) at the end of AMP6 ~ Water network plus at 2020 FYE price base | F45: =F41 * F$43 -> -20.84263318 | G45: £m
A48: WASTEWATER SERVICES INPUTS INFLATION
B50: Bioresources
A51: =Inputs!A$104 -> C_APP27018_PD002 | E51: =Inputs!E$104 -> Net performance payment / (penalty) applied to revenue for in-period ODI adjustments ~ Bioresources | F51: =Inputs!F$104 -> 0 | G51: =Inputs!G$104 -> £m
A52: =Inputs!A$105 -> C_APP27025_PD002 | E52: =Inputs!E$105 -> Net performance payment / (penalty) applied to revenue for end of period ODI adjustments ~ Bioresources | F52: =Inputs!F$105 -> 0 | G52: =Inputs!G$105 -> £m
E54: =Indexation!E$82 -> RPI inflate from 2013 FYA to 2020 FYE | F54: =Indexation!F$82 -> 1.196689486 | G54: =Indexation!G$82 -> factor
A56: C_APP27018 | E56: =E51 & " at 2020 FYE price base" -> Net performance payment / (penalty) applied to revenue for in-period ODI adjustments ~ Bioresources at 2020 FYE price base | F56: =F51 * F$54 -> 0 | G56: £m
A57: C_APP27025 | E57: =E52 & " at 2020 FYE price base" -> Net performance payment / (penalty) applied to revenue for end of period ODI adjustments ~ Bioresources at 2020 FYE price base | F57: =F52 * F$54 -> 0 | G57: £m
B59: Wastewater network plus
A60: =Inputs!A$108 -> C00585_L021 | E60: =Inputs!E$108 -> Further 2010-15 reconciliation total adjustment carry forward to PR19 ~ Wastewater network plus | F60: =Inputs!F$108 -> 1.279001134 | G60: =Inputs!G$108 -> £m
A61: =Inputs!A$109 -> C_APP27017_PD002 | E61: =Inputs!E$109 -> Net performance payment / (penalty) applied to revenue for in-period ODI adjustments ~ Wastewater network plus | F61: =Inputs!F$109 -> -0.889 | G61: =Inputs!G$109 -> £m
A62: =Inputs!A$110 -> C_APP27024_PD002 | E62: =Inputs!E$110 -> Net performance payment / (penalty) applied to revenue for end of period ODI adjustments ~ Wastewater network plus | F62: =Inputs!F$110 -> 0 | G62: =Inputs!G$110 -> £m
A63: =Inputs!A$111 -> C_WWS15019_PR19PD006 | E63: =Inputs!E$111 -> Wastewater: revenue adjustment from totex menu model | F63: =Inputs!F$111 -> 1.600598103 | G63: =Inputs!G$111 -> £m
A64: =Inputs!A$113 -> C006_PR19PD015 | B64: =Inputs!B$113 -> 0 | C64: =Inputs!C$113 -> 0 | D64: =Inputs!D$113 -> 0 | E64: =Inputs!E$113 -> Other revenue adjustment - wastewater network plus | F64: =Inputs!F$113 -> 0 | G64: =Inputs!G$113 -> £m
E66: =Indexation!E$82 -> RPI inflate from 2013 FYA to 2020 FYE | F66: =Indexation!F$82 -> 1.196689486 | G66: =Indexation!G$82 -> factor
A68: C00585 | E68: =E60 & " at 2020 FYE price base" -> Further 2010-15 reconciliation total adjustment carry forward to PR19 ~ Wastewater network plus at 2020 FYE price base | F68: =F60 * F$66 -> 1.530567209 | G68: £m
A69: C_APP27017 | E69: =E61 & " at 2020 FYE price base" -> Net performance payment / (penalty) applied to revenue for in-period ODI adjustments ~ Wastewater network plus at 2020 FYE price base | F69: =F61 * F$66 -> -1.063856953 | G69: £m
A70: C_APP27024 | E70: =E62 & " at 2020 FYE price base" -> Net performance payment / (penalty) applied to revenue for end of period ODI adjustments ~ Wastewater network plus at 2020 FYE price base | F70: =F62 * F$66 -> 0 | G70: £m
A71: C_WWS15019 | E71: =E63 & " at 2020 FYE price base" -> Wastewater: revenue adjustment from totex menu model at 2020 FYE price base | F71: =F63 * F$66 -> 1.915418921 | G71: £m
E72: Other revenue adjustment - wastewater network plus at 2020 FYE price base | F72: =F64 *F$66 -> 0 | G72: £m
A74: =Inputs!A$112 -> C_WWS13026_PR19PD005 | E74: =Inputs!E$112 -> WRFIM total reward / (penalty) at the end of AMP6 ~ Wastewater | F74: =Inputs!F$112 -> -21.16055439 | G74: =Inputs!G$112 -> £m
E76: =Indexation!E$102 -> RPI inflate from November 2019 FYE to 2020 FYE | F76: =Indexation!F$102 -> 1.028812368 | G76: =Indexation!G$102 -> factor
A78: C_WWS13026 | E78: WRFIM total reward / (penalty) at the end of AMP6 ~ Wastewater network plus at 2020 FYE price base | F78: =F74 * F76 -> -21.77024008 | G78: £m
B81: Dummy control
A82: =Inputs!A$116 -> C_WWS15019_DMMY_PR19PD006 | E82: =Inputs!E$116 -> Dummy: revenue adjustment from totex menu model | F82: =Inputs!F$116 -> 0 | G82: =Inputs!G$116 -> £m
E84: =Indexation!E$82 -> RPI inflate from 2013 FYA to 2020 FYE | F84: =Indexation!F$82 -> 1.196689486 | G84: =Indexation!G$82 -> factor
A86: C_WWS15019_DMMY | E86: =E82 & " at 2020 FYE price base" -> Dummy: revenue adjustment from totex menu model at 2020 FYE price base | F86: =F82 * F$84 -> 0 | G86: £m
A88: =Inputs!A117 -> C_WWS13026_DMMY_PR19PD005 | E88: =Inputs!E117 -> Dummy: WRFIM total reward / (penalty) at the end of AMP6 | F88: =Inputs!F117 -> 0 | G88: =Inputs!G117 -> £m
E89: =Indexation!E$102 -> RPI inflate from November 2019 FYE to 2020 FYE | F89: =Indexation!F$102 -> 1.028812368 | G89: =Indexation!G$102 -> factor
A91: C_WWS13026_DMMY | E91: Dummy: WRFIM total reward / (penalty) at the end of AMP6 at 2020 FYE price base | F91: =F88 * F89 -> 0 | G91: £m
A95: RESIDENTIAL RETAIL INPUTS INFLATION
A97: =Inputs!A$121 -> C_APP27019_PD002 | E97: =Inputs!E$121 -> Net performance payment / (penalty) applied to revenue for in-period ODI adjustments ~ Residential retail | F97: =Inputs!F$121 -> 0 | G97: =Inputs!G$121 -> £m
A98: =Inputs!A$122 -> C_APP27026_PD002 | E98: =Inputs!E$122 -> Net performance payment / (penalty) applied to revenue for end of period ODI adjustments ~ Residential retail | F98: =Inputs!F$122 -> 0 | G98: =Inputs!G$122 -> £m
A99: =Inputs!A$123 -> C_R9045_PR19PD008 | E99: =Inputs!E$123 -> Residential retail revenue adjustment at end of AMP6 | F99: =Inputs!F$123 -> -4.761402737 | G99: =Inputs!G$123 -> £m
A100: =Inputs!A$124 -> C_R10009_PR19PD009 | E100: =Inputs!E$124 -> SIM forecast revenue adjustment | F100: =Inputs!F$124 -> -3.84009 | G100: =Inputs!G$124 -> £m
E102: =Indexation!E$82 -> RPI inflate from 2013 FYA to 2020 FYE | F102: =Indexation!F$82 -> 1.196689486 | G102: =Indexation!G$82 -> factor
E103: =Indexation!E$95 -> RPI inflate from 2020 FYE to 2020 FYE | F103: =Indexation!F$95 -> 1 | G103: =Indexation!G$95 -> factor
E104: =Indexation!E$89 -> RPI inflate from 2018 FYA to 2020 FYE | F104: =Indexation!F$89 -> 1.0650823 | G104: =Indexation!G$89 -> factor
A106: C_APP27019 | E106: =E97 & " at 2020 FYE price base" -> Net performance payment / (penalty) applied to revenue for in-period ODI adjustments ~ Residential retail at 2020 FYE price base | F106: =F97 * F$102 -> 0 | G106: £m
A107: C_APP27026 | E107: Net performance payment / (penalty) applied to revenue for end of period ODI adjustments ~ Residential retail at 2020 FYE price base | F107: =F98 * F$102 -> 0 | G107: £m
A108: C_R9045 | E108: =E99 & " at 2020 FYE price base" -> Residential retail revenue adjustment at end of AMP6 at 2020 FYE price base | F108: =F99 * F103 -> -4.761402737 | G108: £m
A109: C_R10009 | E109: =E100 & " at 2020 FYE price base" -> SIM forecast revenue adjustment at 2020 FYE price base | F109: =F100 * F104 -> -4.09001189 | G109: £m
A112: BUSINESS RETAIL INPUTS INFLATION
A114: =Inputs!A$128 -> C_APP27020_PD002 | E114: =Inputs!E$128 -> Net performance payment / (penalty) applied to revenue for in-period ODI adjustments ~ Business retail | F114: =Inputs!F$128 -> 0 | G114: =Inputs!G$128 -> £m
A115: =Inputs!A$129 -> C_APP27027_PD002 | E115: =Inputs!E$129 -> Net performance payment / (penalty) applied to revenue for end of period ODI adjustments ~ Business retail | F115: =Inputs!F$129 -> 0 | G115: =Inputs!G$129 -> £m
A116: =Inputs!A$130 -> C_004_PR19PD014 | B116: =Inputs!B$130 -> 0 | C116: =Inputs!C$130 -> 0 | D116: =Inputs!D$130 -> 0 | E116: =Inputs!E$130 -> Non-household SIM adjustment - business retail | F116: =Inputs!F$130 -> 0 | G116: =Inputs!G$130 -> £m
E118: =Indexation!E$82 -> RPI inflate from 2013 FYA to 2020 FYE | F118: =Indexation!F$82 -> 1.196689486 | G118: =Indexation!G$82 -> factor
E119: =Indexation!E$89 -> RPI inflate from 2018 FYA to 2020 FYE | F119: =Indexation!F$89 -> 1.0650823 | G119: =Indexation!G$89 -> factor
A121: C_APP27020 | E121: =E114 & " at 2020 FYE price base" -> Net performance payment / (penalty) applied to revenue for in-period ODI adjustments ~ Business retail at 2020 FYE price base | F121: =F114 * F$118 -> 0 | G121: £m
A122: C_APP27027 | E122: =E115 & " at 2020 FYE price base" -> Net performance payment / (penalty) applied to revenue for end of period ODI adjustments ~ Business retail at 2020 FYE price base | F122: =F115 * F$118 -> 0 | G122: £m
E123: Non-household SIM adjustment - business retail at 2020 FYE price base | F123: =F116 * F119 -> 0 | G123: £m
A126: PR14 REVENUE RECONCILIATION ADJUSTMENTS EXPRESSED IN 2017-18 FYA CPIH DEFLATED PRICE BASE
A128: =A$17 -> C_APP27015 | E128: =E$17 -> Net performance payment / (penalty) applied to revenue for in-period ODI adjustments ~ Water resources at 2020 FYE price base | F128: =F$17 -> 0 | G128: £m
A129: =A$18 -> C_APP27022 | E129: =E$18 -> Net performance payment / (penalty) applied to revenue for end of period ODI adjustments ~ Water resources at 2020 FYE price base | F129: =F$18 -> 0.9693184837 | G129: £m
A130: =A$19 -> C_WS17013 | E130: =E$19 -> Water trading total value of export incentive ~ Water resources at 2020 FYE price base | F130: =F$19 -> 0 | G130: =G$19 -> £m
A131: =A$20 -> C_WS17025 | E131: =E$20 -> Water trading total value of import incentive ~ Water resources at 2020 FYE price base | F131: =F$20 -> 0 | G131: =G$20 -> £m
A132: =A$33 -> C00578 | E132: =E$33 -> Further 2010-15 reconciliation total adjustment carry forward to PR19 ~ Water network plus at 2020 FYE price base | F132: =F$33 -> 0.9004947461 | G132: £m
A133: =A$34 -> C_APP27016 | E133: =E$34 -> Net performance payment / (penalty) applied to revenue for in-period ODI adjustments ~ Water network plus at 2020 FYE price base | F133: =F$34 -> 0.3386631246 | G133: £m
A134: =A$35 -> C_APP27023 | E134: =E$35 -> Net performance payment / (penalty) applied to revenue for end of period ODI adjustments ~ Water network plus at 2020 FYE price base | F134: =F$35 -> 8.747800143 | G134: £m
A135: =A$36 -> C_WS15024 | E135: =E$36 -> Totex menu revenue adjustment ~ Water network plus at 2020 FYE price base | F135: =F$36 -> -3.530628661 | G135: £m
A136: =A$37 -> C_WS17014 | E136: =E$37 -> Water trading total value of export incentive - Water network plus at 2020 FYE price base | F136: =F$37 -> 0 | G136: =G$37 -> £m
A137: =A$38 -> C_WS17026 | E137: =E$38 -> Water trading total value of import incentive - Water network plus at 2020 FYE price base | F137: =F$38 -> 0 | G137: =G$38 -> £m
A138: =A$45 -> C_WS13026 | E138: =E$45 -> WRFIM total reward / (penalty) at the end of AMP6 ~ Water network plus at 2020 FYE price base | F138: =F$45 -> -20.84263318 | G138: £m
A139: =A$39 -> 0 | B139: 0 | C139: 0 | D139: 0 | E139: Other revenue adjustment - water network plus at 2020 FYE price base | F139: 0 | G139: £m
A140: =A$56 -> C_APP27018 | E140: =E$56 -> Net performance payment / (penalty) applied to revenue for in-period ODI adjustments ~ Bioresources at 2020 FYE price base | F140: =F$56 -> 0 | G140: £m
A141: =A$57 -> C_APP27025 | E141: =E$57 -> Net performance payment / (penalty) applied to revenue for end of period ODI adjustments ~ Bioresources at 2020 FYE price base | F141: =F$57 -> 0 | G141: £m
A142: =A$68 -> C00585 | E142: =E$68 -> Further 2010-15 reconciliation total adjustment carry forward to PR19 ~ Wastewater network plus at 2020 FYE price base | F142: =F$68 -> 1.530567209 | G142: £m
A143: =A$69 -> C_APP27017 | E143: =E$69 -> Net performance payment / (penalty) applied to revenue for in-period ODI adjustments ~ Wastewater network plus at 2020 FYE price base | F143: =F$69 -> -1.063856953 | G143: £m
A144: =A$70 -> C_APP27024 | E144: =E$70 -> Net performance payment / (penalty) applied to revenue for end of period ODI adjustments ~ Wastewater network plus at 2020 FYE price base | F144: =F$70 -> 0 | G144: £m
A145: =A$71 -> C_WWS15019 | E145: =E$71 -> Wastewater: revenue adjustment from totex menu model at 2020 FYE price base | F145: =F$71 -> 1.915418921 | G145: £m
A146: =A$78 -> C_WWS13026 | E146: =E$78 -> WRFIM total reward / (penalty) at the end of AMP6 ~ Wastewater network plus at 2020 FYE price base | F146: =F$78 -> -21.77024008 | G146: £m
A147: =A$72 -> 0 | B147: 0 | C147: 0 | D147: 0 | E147: Other revenue adjustment - wastewater network plus at 2020 FYE price base | F147: 0 | G147: £m
A148: =A$86 -> C_WWS15019_DMMY | E148: =E$86 -> Dummy: revenue adjustment from totex menu model at 2020 FYE price base | F148: =F$86 -> 0 | G148: £m
A149: =A$91 -> C_WWS13026_DMMY | E149: =E$91 -> Dummy: WRFIM total reward / (penalty) at the end of AMP6 at 2020 FYE price base | F149: =F$91 -> 0 | G149: £m
A150: =A$106 -> C_APP27019 | E150: =E$106 -> Net performance payment / (penalty) applied to revenue for in-period ODI adjustments ~ Residential retail at 2020 FYE price base | F150: =F$106 -> 0 | G150: £m
A151: =A$107 -> C_APP27026 | E151: =E$107 -> Net performance payment / (penalty) applied to revenue for end of period ODI adjustments ~ Residential retail at 2020 FYE price base | F151: =F$107 -> 0 | G151: £m
A152: =A$108 -> C_R9045 | E152: =E$108 -> Residential retail revenue adjustment at end of AMP6 at 2020 FYE price base | F152: =F$108 -> -4.761402737 | G152: £m
A153: =A$109 -> C_R10009 | E153: =E$109 -> SIM forecast revenue adjustment at 2020 FYE price base | F153: =F$109 -> -4.09001189 | G153: £m
A154: =A$121 -> C_APP27020 | E154: =E$121 -> Net performance payment / (penalty) applied to revenue for in-period ODI adjustments ~ Business retail at 2020 FYE price base | F154: =F$121 -> 0 | G154: £m
A155: =A$122 -> C_APP27027 | E155: =E$122 -> Net performance payment / (penalty) applied to revenue for end of period ODI adjustments ~ Business retail at 2020 FYE price base | F155: =F$122 -> 0 | G155: £m
A156: =A$123 -> 0 | B156: =B$123 -> 0 | C156: 0 | D156: 0 | E156: Non-household SIM adjustment - business retail at 2020 FYE price base | F156: 0 | G156: £m
E158: =Indexation!E$111 -> CPIH deflate from 2020 FYE to 2018 FYA | F158: =Indexation!F$111 -> 0.9517503805 | G158: =Indexation!G$111 -> factor
A160: C_APP27034 | E160: ODI in-period revenue adjustment ~ Water resources at 2017-18 FYA CPIH deflated price base | F160: =F128 * F$158 -> 0 | G160: £m
A161: C_APP27041 | E161: ODI end of period revenue adjustment ~ Water resources at 2017-18 FYA CPIH deflated price base | F161: 0.9225492357 | G161: £m
A162: C_WS17027 | E162: Water trading total value of export incentive ~ Water resources at 2017-18 FYA CPIH deflated price base | F162: 0 | G162: £m
A163: C_WS17030 | E163: Water trading total value of import incentive ~ Water resources at 2017-18 FYA CPIH deflated price base | F163: 0 | G163: £m
A164: C_APP25004 | E164: Further 2010-15 reconciliation total adjustment revenue carry forward to PR19 ~ Water network plus at 2017-18 FYA CPIH deflated price base | F164: 0.8570462173 | G164: £m
A165: C_APP27035 | E165: ODI in-period revenue adjustment ~ Water network plus at 2017-18 FYA CPIH deflated price base | F165: 0.3223227577 | G165: £m
A166: C_APP27042 | E166: ODI end of period revenue adjustment ~ Water network plus at 2017-18 FYA CPIH deflated price base | F166: 8.325722115 | G166: £m
A167: C_WS15026 | E167: Water: Totex menu revenue adjustment at 2017-18 FYA CPIH deflated price base | F167: -3.360277172 | G167: £m
A168: C_WS17028 | E168: Water trading total value of export incentive ~ Water network plus at 2017-18 FYA CPIH deflated price base | F168: 0 | G168: £m
A169: C_WS17031 | E169: Water trading total value of import incentive ~ Water network plus at 2017-18 FYA CPIH deflated price base | F169: 0 | G169: £m
A170: C_WS13027 | E170: WRFIM total reward / (penalty) at the end of AMP6 ~ Water network plus at 2017-18 FYA CPIH deflated price base | F170: -19.83698406 | G170: £m
A171: C052 | E171: Other revenue adjustment - water network plus at 2017-18 FYA CPIH deflated price base | F171: 0 | G171: £m
A172: C_APP27037 | E172: ODI in-period revenue adjustment ~ Bioresources at 2017-18 FYA CPIH deflated price base | F172: 0 | G172: £m
A173: C_APP27044 | E173: ODI end of period revenue adjustment ~ Bioresources at 2017-18 FYA CPIH deflated price base | F173: 0 | G173: £m
A174: C_APP25006 | E174: Further 2010-15 reconciliation total adjustment revenue carry forward to PR19 ~ Wastewater network plus at 2017-18 FYA CPIH deflated price base | F174: 1.456717924 | G174: £m
A175: C_APP27036 | E175: ODI in-period revenue adjustment ~ Wastewater network plus at 2017-18 FYA CPIH deflated price base | F175: -1.01252626 | G175: £m
A176: C_APP27043 | E176: ODI end of period revenue adjustment ~ Wastewater network plus at 2017-18 FYA CPIH deflated price base | F176: 0 | G176: £m
A177: C_WWS15021 | E177: Wastewater: Totex menu revenue adjustment at 2017-18 FYA CPIH deflated price base | F177: 1.823000687 | G177: £m
A178: C_WWS13027 | E178: WRFIM total reward / (penalty) at the end of AMP6 ~ Wastewater network plus at 2017-18 FYA CPIH deflated price base | F178: -20.71983428 | G178: £m
A179: C072 | E179: Other revenue adjustment - wastewater network plus at 2017-18 FYA CPIH deflated price base | F179: 0 | G179: £m
A180: C_WWS15021_DMMY | E180: Dummy: revenue adjustment from totex menu model at 2017-18 FYA CPIH deflated price base | F180: 0 | G180: £m
A181: C_WWS13027_DMMY | E181: WRFIM total reward / (penalty) at the end of AMP6 ~ Dummy at 2017-18 FYA CPIH deflated price base | F181: 0 | G181: £m
A182: C_APP27038 | E182: ODI in-period revenue adjustment ~ Residential retail at 2017-18 FYA CPIH deflated price base | F182: 0 | G182: £m
A183: C_APP27045 | E183: ODI end of period revenue adjustment ~ Residential retail at 2017-18 FYA CPIH deflated price base | F183: 0 | G183: £m
A184: C_R9046 | E184: Residential retail revenue adjustment at 2017-18 FYA CPIH deflated price base | F184: -4.531666866 | G184: £m
A185: C_R10009 | E185: SIM forecast revenue adjustment at 2017-18 FYA CPIH deflated price base | F185: -3.892670373 | G185: £m
A186: C_APP27039 | E186: ODI in-period revenue adjustment ~ Business retail at 2017-18 FYA CPIH deflated price base | F186: 0 | G186: £m
A187: C_APP27046 | E187: ODI end of period revenue adjustment ~ Business retail at 2017-18 FYA CPIH deflated price base | F187: 0 | G187: £m
A188: C102 | E188: Non-household SIM adjustment - business retail at 2017-18 FYA CPIH deflated price base | F188: 0 | G188: £m
A191: SUBTOTALS AS PER PRICE CONTROL FOR REVENUE ADJUSTMENTS 2017-18 FYA CPIH DEFLATED PRICE BASE
B193: Water resources revenue adjustment
A194: =A$160 -> C_APP27034 | E194: =E$160 -> ODI in-period revenue adjustment ~ Water resources at 2017-18 FYA CPIH deflated price base | F194: =F$160 -> 0 | G194: £m
A195: =A$161 -> C_APP27041 | E195: =E$161 -> ODI end of period revenue adjustment ~ Water resources at 2017-18 FYA CPIH deflated price base | F195: =F$161 -> 0.9225492357 | G195: £m
A196: =A$162 -> C_WS17027 | E196: =E$162 -> Water trading total value of export incentive ~ Water resources at 2017-18 FYA CPIH deflated price base | F196: =F$162 -> 0 | G196: £m
A197: =A$163 -> C_WS17030 | E197: =E$163 -> Water trading total value of import incentive ~ Water resources at 2017-18 FYA CPIH deflated price base | F197: =F$163 -> 0 | G197: £m
A198: C048 | E198: Water resources revenue adjustment | F198: =SUM(F194:F197) -> 0.9225492357 | G198: £m
B200: Water network plus revenue adjustment
A201: =A$164 -> C_APP25004 | E201: =E$164 -> Further 2010-15 reconciliation total adjustment revenue carry forward to PR19 ~ Water network plus at 2017-18 FYA CPIH deflated price base | F201: =F$164 -> 0.8570462173 | G201: £m
A202: =A$165 -> C_APP27035 | E202: =E$165 -> ODI in-period revenue adjustment ~ Water network plus at 2017-18 FYA CPIH deflated price base | F202: =F$165 -> 0.3223227577 | G202: £m
A203: =A$166 -> C_APP27042 | E203: =E$166 -> ODI end of period revenue adjustment ~ Water network plus at 2017-18 FYA CPIH deflated price base | F203: =F$166 -> 8.325722115 | G203: £m
A204: =A$167 -> C_WS15026 | E204: =E$167 -> Water: Totex menu revenue adjustment at 2017-18 FYA CPIH deflated price base | F204: =F$167 -> -3.360277172 | G204: £m
A205: =A$168 -> C_WS17028 | E205: =E$168 -> Water trading total value of export incentive ~ Water network plus at 2017-18 FYA CPIH deflated price base | F205: =F$168 -> 0 | G205: £m
A206: =A$169 -> C_WS17031 | E206: =E$169 -> Water trading total value of import incentive ~ Water network plus at 2017-18 FYA CPIH deflated price base | F206: =F$169 -> 0 | G206: £m
A207: =A$170 -> C_WS13027 | E207: =E$170 -> WRFIM total reward / (penalty) at the end of AMP6 ~ Water network plus at 2017-18 FYA CPIH deflated price base | F207: =F$170 -> -19.83698406 | G207: £m
A208: =A$171 -> C052 | B208: 0 | C208: 0 | D208: 0 | E208: Other revenue adjustment - water network plus at 2017-18 FYA CPIH deflated price base | F208: 0 | G208: £m
A209: C058 | E209: Water network plus revenue adjustment | F209: =SUM(F201:F208) -> -13.69217015 | G209: £m
B211: Bioresources revenue adjustment
A212: =A$172 -> C_APP27037 | E212: =E$172 -> ODI in-period revenue adjustment ~ Bioresources at 2017-18 FYA CPIH deflated price base | F212: =F$172 -> 0 | G212: £m
A213: =A$173 -> C_APP27044 | E213: =E$173 -> ODI end of period revenue adjustment ~ Bioresources at 2017-18 FYA CPIH deflated price base | F213: =F$173 -> 0 | G213: £m
A214: C068 | E214: Bioresources revenue adjustment | F214: =SUM(F212:F213) -> 0 | G214: £m
B216: Wastewater network plus revenue adjustment
A217: =A$174 -> C_APP25006 | E217: =E$174 -> Further 2010-15 reconciliation total adjustment revenue carry forward to PR19 ~ Wastewater network plus at 2017-18 FYA CPIH deflated price base | F217: =F$174 -> 1.456717924 | G217: £m
A218: =A$177 -> C_WWS15021 | E218: =E$177 -> Wastewater: Totex menu revenue adjustment at 2017-18 FYA CPIH deflated price base | F218: =F$177 -> 1.823000687 | G218: £m
A219: =A$175 -> C_APP27036 | E219: =E$175 -> ODI in-period revenue adjustment ~ Wastewater network plus at 2017-18 FYA CPIH deflated price base | F219: =F$175 -> -1.01252626 | G219: £m
A220: =A$176 -> C_APP27043 | E220: =E$176 -> ODI end of period revenue adjustment ~ Wastewater network plus at 2017-18 FYA CPIH deflated price base | F220: =F$176 -> 0 | G220: £m
A221: =A$178 -> C_WWS13027 | E221: =E$178 -> WRFIM total reward / (penalty) at the end of AMP6 ~ Wastewater network plus at 2017-18 FYA CPIH deflated price base | F221: =F$178 -> -20.71983428 | G221: £m
A222: =A$179 -> C072 | B222: 0 | C222: 0 | D222: 0 | E222: Other revenue adjustment - wastewater network plus at 2017-18 FYA CPIH deflated price base | F222: 0 | G222: £m
A223: C078 | E223: Wastewater network plus revenue adjustment | F223: =SUM(F217:F222) -> -18.45264193 | G223: £m
B225: Dummy revenue adjustment
A226: =A$180 -> C_WWS15021_DMMY | E226: =E$180 -> Dummy: revenue adjustment from totex menu model at 2017-18 FYA CPIH deflated price base | F226: =F$180 -> 0 | G226: =G$180 -> £m
A227: =A$181 -> C_WWS13027_DMMY | E227: =E$181 -> WRFIM total reward / (penalty) at the end of AMP6 ~ Dummy at 2017-18 FYA CPIH deflated price base | F227: =F$181 -> 0 | G227: £m
A228: C088 | E228: Dummy control revenue adjustment | F228: =SUM(F226:F227) -> 0 | G228: £m
B230: Residential retail revenue adjustment
A231: =A$182 -> C_APP27038 | E231: =E$182 -> ODI in-period revenue adjustment ~ Residential retail at 2017-18 FYA CPIH deflated price base | F231: =F$182 -> 0 | G231: £m
A232: =A$183 -> C_APP27045 | E232: =E$183 -> ODI end of period revenue adjustment ~ Residential retail at 2017-18 FYA CPIH deflated price base | F232: =F$183 -> 0 | G232: £m
A233: =A$184 -> C_R9046 | E233: =E$184 -> Residential retail revenue adjustment at 2017-18 FYA CPIH deflated price base | F233: =F$184 -> -4.531666866 | G233: £m
A234: =A$185 -> C_R10009 | E234: =E$185 -> SIM forecast revenue adjustment at 2017-18 FYA CPIH deflated price base | F234: =F$185 -> -3.892670373 | G234: £m
A235: C098 | E235: Residential retail revenue adjustment | F235: =SUM(F231:F234) -> -8.424337239 | G235: £m
B237: Business retail revenue adjustment
A238: =A$186 -> C_APP27039 | E238: =E$186 -> ODI in-period revenue adjustment ~ Business retail at 2017-18 FYA CPIH deflated price base | F238: =F$186 -> 0 | G238: =G$186 -> £m
A239: =A$187 -> C_APP27046 | E239: =E$187 -> ODI end of period revenue adjustment ~ Business retail at 2017-18 FYA CPIH deflated price base | F239: =F$187 -> 0 | G239: =G$187 -> £m
A240: =A$188 -> C102 | B240: 0 | C240: 0 | D240: 0 | E240: Non-household SIM adjustment - business retail at 2017-18 FYA CPIH deflated price base | F240: 0 | G240: £m
A241: C108 | E241: Business retail revenue adjustment | F241: =SUM(F238:F240) -> 0 | G241: £m

Sheet Profiling
A1: =RIGHT(CELL("filename", $A$1), LEN(CELL("filename", $A$1)) - SEARCH("]", CELL("filename", $A$1))) -> Profiling
E2: =Time!E$25 -> Model period ending | F2: =Checks!F$11 -> 0 | G2: =Checks!G$11 -> Checks | J2: =Time!J$25 -> 2013-03-31 | K2: =Time!K$25 -> 2014-03-31 | L2: =Time!L$25 -> 2015-03-31 | M2: =Time!M$25 -> 2016-03-31 | N2: =Time!N$25 -> 2017-03-31 | O2: =Time!O$25 -> 2018-03-31 | P2: =Time!P$25 -> 2019-03-31 | Q2: =Time!Q$25 -> 2020-03-31 | R2: =Time!R$25 -> 2021-03-31 | S2: =Time!S$25 -> 2022-03-31 | T2: =Time!T$25 -> 2023-03-31 | U2: =Time!U$25 -> 2024-03-31 | V2: =Time!V$25 -> 2025-03-31
E3: =Time!E$80 -> Timeline label | J3: =Time!J$80 -> Pre-Fcst | K3: =Time!K$80 -> Pre-Fcst | L3: =Time!L$80 -> Pre-Fcst | M3: =Time!M$80 -> Pre-Fcst | N3: =Time!N$80 -> Pre-Fcst | O3: =Time!O$80 -> Pre-Fcst | P3: =Time!P$80 -> Pre-Fcst | Q3: =Time!Q$80 -> Pre-Fcst | R3: =Time!R$80 -> Forecast | S3: =Time!S$80 -> Forecast | T3: =Time!T$80 -> Forecast | U3: =Time!U$80 -> Forecast | V3: =Time!V$80 -> Forecast
E4: =Time!E$103 -> Financial year ending | J4: =Time!J$103 -> 2013 | K4: =Time!K$103 -> 2014 | L4: =Time!L$103 -> 2015 | M4: =Time!M$103 -> 2016 | N4: =Time!N$103 -> 2017 | O4: =Time!O$103 -> 2018 | P4: =Time!P$103 -> 2019 | Q4: =Time!Q$103 -> 2020 | R4: =Time!R$103 -> 2021 | S4: =Time!S$103 -> 2022 | T4: =Time!T$103 -> 2023 | U4: =Time!U$103 -> 2024 | V4: =Time!V$103 -> 2025
E5: =Time!E$10 -> Model column counter | F5: Constant | G5: Unit | H5: Total | J5: =Time!J$10 -> 1 | K5: =Time!K$10 -> 2 | L5: =Time!L$10 -> 3 | M5: =Time!M$10 -> 4 | N5: =Time!N$10 -> 5 | O5: =Time!O$10 -> 6 | P5: =Time!P$10 -> 7 | Q5: =Time!Q$10 -> 8 | R5: =Time!R$10 -> 9 | S5: =Time!S$10 -> 10 | T5: =Time!T$10 -> 11 | U5: =Time!U$10 -> 12 | V5: =Time!V$10 -> 13
A7: DISCOUNT RATE FOR 2021-25
A9: =Inputs!A$137 -> C020 | E9: =Inputs!E$137 -> PV base date | F9: =Inputs!F$137 -> 2021-03-31 | G9: =Inputs!G$137 -> date
A10: =Inputs!A$166 -> C019 | E10: =Inputs!E$166 -> Days in a year | F10: =Inputs!F$166 -> 365 | G10: =Inputs!G$166 -> days
A11: =Time!A$25 -> 00:00:00 | E11: =Time!E$25 -> Model period ending | F11: =Time!F$25 -> 00:00:00 | G11: =Time!G$25 -> date | H11: =Time!H$25 -> 00:00:00 | I11: =Time!I$25 -> 00:00:00 | J11: =Time!J$25 -> 2013-03-31 | K11: =Time!K$25 -> 2014-03-31 | L11: =Time!L$25 -> 2015-03-31 | M11: =Time!M$25 -> 2016-03-31 | N11: =Time!N$25 -> 2017-03-31 | O11: =Time!O$25 -> 2018-03-31 | P11: =Time!P$25 -> 2019-03-31 | Q11: =Time!Q$25 -> 2020-03-31 | R11: =Time!R$25 -> 2021-03-31 | S11: =Time!S$25 -> 2022-03-31 | T11: =Time!T$25 -> 2023-03-31 | U11: =Time!U$25 -> 2024-03-31 | V11: =Time!V$25 -> 2025-03-31
A12: =Time!A$49 -> 0 | E12: =Time!E$49 -> Forecast period flag | F12: =Time!F$49 -> 0 | G12: =Time!G$49 -> flag | H12: =Time!H$49 -> 5 | I12: =Time!I$49 -> 0 | J12: =Time!J$49 -> 0 | K12: =Time!K$49 -> 0 | L12: =Time!L$49 -> 0 | M12: =Time!M$49 -> 0 | N12: =Time!N$49 -> 0 | O12: =Time!O$49 -> 0 | P12: =Time!P$49 -> 0 | Q12: =Time!Q$49 -> 0 | R12: =Time!R$49 -> 1 | S12: =Time!S$49 -> 1 | T12: =Time!T$49 -> 1 | U12: =Time!U$49 -> 1 | V12: =Time!V$49 -> 1
E13: Years from valuation date | G13: years | J13: =IF(J11 < $F9, 0, (J11 - $F9) / $F10) * J12 -> 0 | K13: 0 | L13: 0 | M13: 0 | N13: 0 | O13: 0 | P13: 0 | Q13: =IF(Q11 < $F9, 0, (Q11 - $F9) / $F10) * Q12 -> 0 | R13: =IF(R11 < $F9, 0, (R11 - $F9) / $F10) * R12 -> 0 | S13: =IF(S11 < $F9, 0, (S11 - $F9) / $F10) * S12 -> 1 | T13: 2 | U13: 3.002739726 | V13: 4.002739726
A15: =Inputs!A$139 -> C040 | E15: =Inputs!E$139 -> Discount rate - Water resources | F15: =Inputs!F$139 -> 0.0292 | G15: =Inputs!G$139 -> %
A16: =Inputs!A$140 -> C050 | E16: =Inputs!E$140 -> Discount rate - Water network plus | F16: =Inputs!F$140 -> 0.0292 | G16: =Inputs!G$140 -> %
A17: =Inputs!A$141 -> C060 | E17: =Inputs!E$141 -> Discount rate - Bioresources | F17: =Inputs!F$141 -> 0.0292 | G17: =Inputs!G$141 -> %
A18: =Inputs!A$142 -> C070 | E18: =Inputs!E$142 -> Discount rate - Wastewater network plus | F18: =Inputs!F$142 -> 0.0292 | G18: =Inputs!G$142 -> %
A19: =Inputs!A$143 -> C080 | E19: =Inputs!E$143 -> Discount rate - Dummy control | F19: =Inputs!F$143 -> 0.0292 | G19: =Inputs!G$143 -> %
A20: =Inputs!A$144 -> C090 | E20: =Inputs!E$144 -> Discount rate - Residential retail | F20: =Inputs!F$144 -> 0.0292 | G20: =Inputs!G$144 -> %
A21: =Inputs!A$145 -> C100 | E21: =Inputs!E$145 -> Discount rate - Business retail | F21: =Inputs!F$145 -> 0.0292 | G21: =Inputs!G$145 -> %
A23: =Inputs!A$137 -> C020 | E23: =Inputs!E$137 -> PV base date | F23: =Inputs!F$137 -> 2021-03-31 | G23: =Inputs!G$137 -> date
E25: =Time!E$25 -> Model period ending | F25: =Time!F$25 -> 00:00:00 | G25: =Time!G$25 -> date | H25: =Time!H$25 -> 00:00:00 | I25: =Time!I$25 -> 00:00:00 | J25: =Time!J$25 -> 2013-03-31 | K25: =Time!K$25 -> 2014-03-31 | L25: =Time!L$25 -> 2015-03-31 | M25: =Time!M$25 -> 2016-03-31 | N25: =Time!N$25 -> 2017-03-31 | O25: =Time!O$25 -> 2018-03-31 | P25: =Time!P$25 -> 2019-03-31 | Q25: =Time!Q$25 -> 2020-03-31 | R25: =Time!R$25 -> 2021-03-31 | S25: =Time!S$25 -> 2022-03-31 | T25: =Time!T$25 -> 2023-03-31 | U25: =Time!U$25 -> 2024-03-31 | V25: =Time!V$25 -> 2025-03-31
E26: =E$13 -> Years from valuation date | F26: 0 | G26: years | H26: 0 | I26: 0 | J26: 0 | K26: 0 | L26: 0 | M26: 0 | N26: 0 | O26: 0 | P26: 0 | Q26: 0 | R26: 0 | S26: 1 | T26: 2 | U26: 3.002739726 | V26: 4.002739726
E28: PV discount factor - Water resources | G28: factor | H28: =SUM(J28:V28) -> 4.724077797 | J28: =IF(J$25 < $F$23, 0, 1 / ( 1 + $F15) ^ J$26) -> 0 | K28: =IF(K$25 < $F$23, 0, 1 / ( 1 + $F15) ^ K$26) -> 0 | L28: 0 | M28: 0 | N28: 0 | O28: 0 | P28: 0 | Q28: 0 | R28: =IF(R$25 < $F$23, 0, 1 / ( 1 + $F15) ^ R$26) -> 1 | S28: 0.9716284493 | T28: 0.9440618435 | U28: 0.9172050166 | V28: 0.891182488
E29: PV discount factor - Water network | G29: factor | H29: =SUM(J29:V29) -> 4.724077797 | J29: =IF(J$25 < $F$23, 0, 1 / ( 1 + $F16) ^ J$26) -> 0 | K29: =IF(K$25 < $F$23, 0, 1 / ( 1 + $F16) ^ K$26) -> 0 | L29: 0 | M29: 0 | N29: 0 | O29: 0 | P29: 0 | Q29: 0 | R29: 1 | S29: 0.9716284493 | T29: 0.9440618435 | U29: 0.9172050166 | V29: 0.891182488
E30: PV discount factor - Bioresources | G30: factor | H30: 4.724077797 | J30: =IF(J$25 < $F$23, 0, 1 / ( 1 + $F17) ^ J$26) -> 0 | K30: =IF(K$25 < $F$23, 0, 1 / ( 1 + $F17) ^ K$26) -> 0 | L30: 0 | M30: 0 | N30: 0 | O30: 0 | P30: 0 | Q30: 0 | R30: 1 | S30: 0.9716284493 | T30: 0.9440618435 | U30: 0.9172050166 | V30: 0.891182488
E31: PV discount factor - Wastewater network | G31: factor | H31: 4.724077797 | J31: =IF(J$25 < $F$23, 0, 1 / ( 1 + $F18) ^ J$26) -> 0 | K31: 0 | L31: 0 | M31: 0 | N31: 0 | O31: 0 | P31: 0 | Q31: 0 | R31: 1 | S31: 0.9716284493 | T31: 0.9440618435 | U31: 0.9172050166 | V31: 0.891182488
E32: PV discount factor - Dummy control | G32: factor | H32: =SUM(J32:V32) -> 4.724077797 | J32: 0 | K32: 0 | L32: 0 | M32: 0 | N32: 0 | O32: 0 | P32: 0 | Q32: 0 | R32: 1 | S32: 0.9716284493 | T32: 0.9440618435 | U32: 0.9172050166 | V32: 0.891182488
E33: PV discount factor - Residential retail | G33: factor | H33: 4.724077797 | J33: =IF(J$25 < $F$23, 0, 1 / ( 1 + $F20) ^ J$26) -> 0 | K33: 0 | L33: 0 | M33: 0 | N33: 0 | O33: 0 | P33: 0 | Q33: 0 | R33: 1 | S33: 0.9716284493 | T33: 0.9440618435 | U33: 0.9172050166 | V33: 0.891182488
E34: PV discount factor - Business retail | G34: factor | H34: 4.724077797 | J34: =IF(J$25 < $F$23, 0, 1 / ( 1 + $F21) ^ J$26) -> 0 | K34: 0 | L34: 0 | M34: 0 | N34: 0 | O34: 0 | P34: 0 | Q34: 0 | R34: 1 | S34: 0.9716284493 | T34: 0.9440618435 | U34: 0.9172050166 | V34: 0.891182488
E36: =E$28 -> PV discount factor - Water resources | F36: 0 | G36: factor | H36: 4.724077797 | I36: 0 | J36: 0 | K36: 0 | L36: 0 | M36: 0 | N36: 0 | O36: 0 | P36: 0 | Q36: 0 | R36: 1 | S36: 0.9716284493 | T36: 0.9440618435 | U36: 0.9172050166 | V36: 0.891182488
E37: =E$29 -> PV discount factor - Water network | F37: 0 | G37: factor | H37: 4.724077797 | I37: 0 | J37: 0 | K37: 0 | L37: 0 | M37: 0 | N37: 0 | O37: 0 | P37: 0 | Q37: 0 | R37: 1 | S37: 0.9716284493 | T37: 0.9440618435 | U37: 0.9172050166 | V37: 0.891182488
E38: =E$30 -> PV discount factor - Bioresources | F38: =F$30 -> 0 | G38: factor | H38: 4.724077797 | I38: 0 | J38: 0 | K38: 0 | L38: 0 | M38: 0 | N38: 0 | O38: 0 | P38: 0 | Q38: 0 | R38: 1 | S38: 0.9716284493 | T38: 0.9440618435 | U38: 0.9172050166 | V38: 0.891182488
E39: =E$31 -> PV discount factor - Wastewater network | F39: 0 | G39: factor | H39: 4.724077797 | I39: 0 | J39: 0 | K39: 0 | L39: 0 | M39: 0 | N39: 0 | O39: 0 | P39: 0 | Q39: 0 | R39: 1 | S39: 0.9716284493 | T39: 0.9440618435 | U39: 0.9172050166 | V39: 0.891182488
E40: =E$32 -> PV discount factor - Dummy control | F40: 0 | G40: factor | H40: 4.724077797 | I40: 0 | J40: 0 | K40: 0 | L40: 0 | M40: 0 | N40: 0 | O40: 0 | P40: 0 | Q40: 0 | R40: 1 | S40: 0.9716284493 | T40: 0.9440618435 | U40: 0.9172050166 | V40: 0.891182488
E41: =E$33 -> PV discount factor - Residential retail | F41: 0 | G41: factor | H41: 4.724077797 | I41: 0 | J41: 0 | K41: 0 | L41: 0 | M41: 0 | N41: 0 | O41: 0 | P41: 0 | Q41: 0 | R41: 1 | S41: 0.9716284493 | T41: 0.9440618435 | U41: 0.9172050166 | V41: 0.891182488
E42: =E$34 -> PV discount factor - Business retail | F42: =F$34 -> 0 | G42: factor | H42: 4.724077797 | I42: 0 | J42: 0 | K42: 0 | L42: 0 | M42: 0 | N42: 0 | O42: 0 | P42: 0 | Q42: 0 | R42: 1 | S42: 0.9716284493 | T42: 0.9440618435 | U42: 0.9172050166 | V42: 0.891182488
E45: Equivalent Annual Cost (EAC) factor - Water resources | F45: =SUM(J36:V36) -> 4.724077797 | G45: factor
E46: Equivalent Annual Cost (EAC) factor - Water network | F46: 4.724077797 | G46: factor
E47: Equivalent Annual Cost (EAC) factor - Bioresources | F47: 4.724077797 | G47: factor
E48: Equivalent Annual Cost (EAC) factor - Wastewater network | F48: 4.724077797 | G48: factor
E49: Equivalent Annual Cost (EAC) factor - Dummy control | F49: 4.724077797 | G49: factor
E50: Equivalent Annual Cost (EAC) factor - Residential retail | F50: 4.724077797 | G50: factor
E51: Equivalent Annual Cost (EAC) factor - Business retail | F51: 4.724077797 | G51: factor
A54: PROFILES
B56: Profile 0 - Apply in first year
A57: =Inputs!A$137 -> C020 | E57: =Inputs!E$137 -> PV base date | F57: =Inputs!F$137 -> 2021-03-31 | G57: =Inputs!G$137 -> date
E59: =Time!E$25 -> Model period ending | F59: =Time!F$25 -> 00:00:00 | G59: =Time!G$25 -> date | H59: =Time!H$25 -> 00:00:00 | I59: =Time!I$25 -> 00:00:00 | J59: =Time!J$25 -> 2013-03-31 | K59: =Time!K$25 -> 2014-03-31 | L59: =Time!L$25 -> 2015-03-31 | M59: =Time!M$25 -> 2016-03-31 | N59: =Time!N$25 -> 2017-03-31 | O59: =Time!O$25 -> 2018-03-31 | P59: =Time!P$25 -> 2019-03-31 | Q59: =Time!Q$25 -> 2020-03-31 | R59: =Time!R$25 -> 2021-03-31 | S59: =Time!S$25 -> 2022-03-31 | T59: =Time!T$25 -> 2023-03-31 | U59: =Time!U$25 -> 2024-03-31 | V59: =Time!V$25 -> 2025-03-31
E61: =E$28 -> PV discount factor - Water resources | F61: 0 | G61: factor | H61: 4.724077797 | I61: 0 | J61: 0 | K61: 0 | L61: 0 | M61: 0 | N61: 0 | O61: 0 | P61: 0 | Q61: 0 | R61: 1 | S61: 0.9716284493 | T61: 0.9440618435 | U61: 0.9172050166 | V61: 0.891182488
E62: =E$29 -> PV discount factor - Water network | F62: 0 | G62: factor | H62: 4.724077797 | I62: 0 | J62: 0 | K62: 0 | L62: 0 | M62: 0 | N62: 0 | O62: 0 | P62: 0 | Q62: 0 | R62: 1 | S62: 0.9716284493 | T62: 0.9440618435 | U62: 0.9172050166 | V62: 0.891182488
E63: =E$30 -> PV discount factor - Bioresources | F63: =F$30 -> 0 | G63: factor | H63: 4.724077797 | I63: 0 | J63: 0 | K63: 0 | L63: 0 | M63: 0 | N63: 0 | O63: 0 | P63: 0 | Q63: 0 | R63: 1 | S63: 0.9716284493 | T63: 0.9440618435 | U63: 0.9172050166 | V63: 0.891182488
E64: =E$31 -> PV discount factor - Wastewater network | F64: 0 | G64: factor | H64: 4.724077797 | I64: 0 | J64: 0 | K64: 0 | L64: 0 | M64: 0 | N64: 0 | O64: 0 | P64: 0 | Q64: 0 | R64: 1 | S64: 0.9716284493 | T64: 0.9440618435 | U64: 0.9172050166 | V64: 0.891182488
E65: =E$32 -> PV discount factor - Dummy control | F65: 0 | G65: factor | H65: 4.724077797 | I65: 0 | J65: 0 | K65: 0 | L65: 0 | M65: 0 | N65: 0 | O65: 0 | P65: 0 | Q65: 0 | R65: 1 | S65: 0.9716284493 | T65: 0.9440618435 | U65: 0.9172050166 | V65: 0.891182488
E66: =E$33 -> PV discount factor - Residential retail | F66: 0 | G66: factor | H66: 4.724077797 | I66: 0 | J66: 0 | K66: 0 | L66: 0 | M66: 0 | N66: 0 | O66: 0 | P66: 0 | Q66: 0 | R66: 1 | S66: 0.9716284493 | T66: 0.9440618435 | U66: 0.9172050166 | V66: 0.891182488
E67: =E$34 -> PV discount factor - Business retail | F67: =F$34 -> 0 | G67: factor | H67: 4.724077797 | I67: 0 | J67: 0 | K67: 0 | L67: 0 | M67: 0 | N67: 0 | O67: 0 | P67: 0 | Q67: 0 | R67: 1 | S67: 0.9716284493 | T67: 0.9440618435 | U67: 0.9172050166 | V67: 0.891182488
E69: PV discount factor at base date - Water resources | G69: factor | J69: =IF($F$57 = J$59, J61, 0) -> 0 | K69: 0 | L69: 0 | M69: 0 | N69: 0 | O69: 0 | P69: 0 | Q69: 0 | R69: 1 | S69: 0 | T69: 0 | U69: 0 | V69: 0
E70: PV discount factor at base date - Water network | G70: factor | J70: =IF($F$57 = J$59, J62, 0) -> 0 | K70: 0 | L70: 0 | M70: 0 | N70: 0 | O70: 0 | P70: 0 | Q70: 0 | R70: 1 | S70: 0 | T70: 0 | U70: 0 | V70: 0
E71: PV discount factor at base date - Bioresources | G71: factor | J71: =IF($F$57 = J$59, J63, 0) -> 0 | K71: 0 | L71: 0 | M71: 0 | N71: 0 | O71: 0 | P71: 0 | Q71: 0 | R71: 1 | S71: 0 | T71: 0 | U71: 0 | V71: 0
E72: PV discount factor at base date - Wastewater network | G72: factor | J72: =IF($F$57 = J$59, J64, 0) -> 0 | K72: 0 | L72: 0 | M72: 0 | N72: 0 | O72: 0 | P72: 0 | Q72: 0 | R72: 1 | S72: 0 | T72: 0 | U72: 0 | V72: 0
E73: PV discount factor at base date - Dummy control | G73: factor | J73: 0 | K73: 0 | L73: 0 | M73: 0 | N73: 0 | O73: 0 | P73: 0 | Q73: 0 | R73: 1 | S73: 0 | T73: 0 | U73: 0 | V73: 0
E74: PV discount factor at base date - Residential retail | G74: factor | J74: =IF($F$57 = J$59, J66, 0) -> 0 | K74: 0 | L74: 0 | M74: 0 | N74: 0 | O74: 0 | P74: 0 | Q74: 0 | R74: 1 | S74: 0 | T74: 0 | U74: 0 | V74: 0
E75: PV discount factor at base date - Business retail | G75: factor | J75: =IF($F$57 = J$59, J67, 0) -> 0 | K75: 0 | L75: 0 | M75: 0 | N75: 0 | O75: 0 | P75: 0 | Q75: 0 | R75: 1 | S75: 0 | T75: 0 | U75: 0 | V75: 0
A77: =Calc!A$198 -> C048 | E77: =Calc!E$198 -> Water resources revenue adjustment | F77: =Calc!F$198 -> 0.9225492357 | G77: =Calc!G$198 -> £m
A78: =Calc!A$209 -> C058 | E78: =Calc!E$209 -> Water network plus revenue adjustment | F78: =Calc!F$209 -> -13.69217015 | G78: =Calc!G$209 -> £m
A79: =Calc!A$214 -> C068 | E79: =Calc!E$214 -> Bioresources revenue adjustment | F79: =Calc!F$214 -> 0 | G79: =Calc!G$214 -> £m
A80: =Calc!A$223 -> C078 | E80: =Calc!E$223 -> Wastewater network plus revenue adjustment | F80: =Calc!F$223 -> -18.45264193 | G80: =Calc!G$223 -> £m
A81: =Calc!A$228 -> C088 | E81: =Calc!E$228 -> Dummy control revenue adjustment | F81: =Calc!F$228 -> 0 | G81: =Calc!G$228 -> £m
A82: =Calc!A$235 -> C098 | E82: =Calc!E$235 -> Residential retail revenue adjustment | F82: =Calc!F$235 -> -8.424337239 | G82: =Calc!G$235 -> £m
A83: =Calc!A$241 -> C108 | E83: =Calc!E$241 -> Business retail revenue adjustment | F83: =Calc!F$241 -> 0 | G83: =Calc!G$241 -> £m
E85: =E$69 -> PV discount factor at base date - Water resources | F85: 0 | G85: =G$69 -> factor | H85: 0 | I85: 0 | J85: 0 | K85: 0 | L85: 0 | M85: 0 | N85: 0 | O85: 0 | P85: 0 | Q85: 0 | R85: 1 | S85: 0 | T85: 0 | U85: 0 | V85: 0
E86: =E$70 -> PV discount factor at base date - Water network | F86: 0 | G86: factor | H86: 0 | I86: 0 | J86: 0 | K86: 0 | L86: 0 | M86: 0 | N86: 0 | O86: 0 | P86: 0 | Q86: 0 | R86: 1 | S86: 0 | T86: 0 | U86: 0 | V86: 0
E87: =E$71 -> PV discount factor at base date - Bioresources | F87: =F$71 -> 0 | G87: factor | H87: 0 | I87: 0 | J87: 0 | K87: 0 | L87: 0 | M87: 0 | N87: 0 | O87: 0 | P87: 0 | Q87: 0 | R87: 1 | S87: 0 | T87: 0 | U87: 0 | V87: 0
E88: =E$72 -> PV discount factor at base date - Wastewater network | F88: 0 | G88: factor | H88: 0 | I88: 0 | J88: 0 | K88: 0 | L88: 0 | M88: 0 | N88: 0 | O88: 0 | P88: 0 | Q88: 0 | R88: 1 | S88: 0 | T88: 0 | U88: 0 | V88: 0
E89: =E$73 -> PV discount factor at base date - Dummy control | F89: 0 | G89: factor | H89: 0 | I89: 0 | J89: 0 | K89: 0 | L89: 0 | M89: 0 | N89: 0 | O89: 0 | P89: 0 | Q89: 0 | R89: 1 | S89: 0 | T89: 0 | U89: 0 | V89: 0
E90: =E$74 -> PV discount factor at base date - Residential retail | F90: 0 | G90: factor | H90: 0 | I90: 0 | J90: 0 | K90: 0 | L90: 0 | M90: 0 | N90: 0 | O90: 0 | P90: 0 | Q90: 0 | R90: 1 | S90: 0 | T90: 0 | U90: 0 | V90: 0
E91: =E$75 -> PV discount factor at base date - Business retail | F91: =F$75 -> 0 | G91: factor | H91: 0 | I91: 0 | J91: 0 | K91: 0 | L91: 0 | M91: 0 | N91: 0 | O91: 0 | P91: 0 | Q91: 0 | R91: 1 | S91: 0 | T91: 0 | U91: 0 | V91: 0
E93: Water resources revenue adjustment applied in first year | G93: £m | H93: =SUM(J93:V93) -> 0.9225492357 | J93: =$F77 * J85 -> 0 | K93: =$F77 * K85 -> 0 | L93: 0 | M93: 0 | N93: 0 | O93: 0 | P93: 0 | Q93: 0 | R93: 0.9225492357 | S93: 0 | T93: 0 | U93: 0 | V93: 0
E94: Water network revenue adjustment applied in first year | G94: £m | H94: -13.69217015 | J94: =$F78 * J86 -> 0 | K94: =$F78 * K86 -> 0 | L94: 0 | M94: 0 | N94: 0 | O94: 0 | P94: 0 | Q94: 0 | R94: -13.69217015 | S94: 0 | T94: 0 | U94: 0 | V94: 0
E95: Bioresources revenue adjustment applied in first year | G95: £m | H95: 0 | J95: =$F79 * J87 -> 0 | K95: =$F79 * K87 -> 0 | L95: 0 | M95: 0 | N95: 0 | O95: 0 | P95: 0 | Q95: 0 | R95: 0 | S95: 0 | T95: 0 | U95: 0 | V95: 0
E96: Wastewater network revenue adjustment applied in first year | G96: £m | H96: -18.45264193 | J96: =$F80 * J88 -> 0 | K96: 0 | L96: 0 | M96: 0 | N96: 0 | O96: 0 | P96: 0 | Q96: 0 | R96: -18.45264193 | S96: 0 | T96: 0 | U96: 0 | V96: 0
E97: Dummy control revenue adjustment applied in first year | G97: £m | H97: =SUM(J97:V97) -> 0 | J97: 0 | K97: 0 | L97: 0 | M97: 0 | N97: 0 | O97: 0 | P97: 0 | Q97: 0 | R97: 0 | S97: 0 | T97: 0 | U97: 0 | V97: 0
E98: Residential retail revenue adjustment applied in first year | G98: £m | H98: -8.424337239 | J98: =$F82 * J90 -> 0 | K98: 0 | L98: 0 | M98: 0 | N98: 0 | O98: 0 | P98: 0 | Q98: 0 | R98: -8.424337239 | S98: 0 | T98: 0 | U98: 0 | V98: 0
E99: Business retail revenue adjustment applied in first year | G99: £m | H99: 0 | J99: =$F83 * J91 -> 0 | K99: =$F83 * K91 -> 0 | L99: 0 | M99: 0 | N99: 0 | O99: 0 | P99: 0 | Q99: 0 | R99: 0 | S99: 0 | T99: 0 | U99: 0 | V99: 0
B101: Profile 1 - Constant annuity 2020-25
A102: =Calc!A$198 -> C048 | E102: =Calc!E$198 -> Water resources revenue adjustment | F102: =Calc!F$198 -> 0.9225492357 | G102: =Calc!G$198 -> £m
A103: =Calc!A$209 -> C058 | E103: =Calc!E$209 -> Water network plus revenue adjustment | F103: =Calc!F$209 -> -13.69217015 | G103: =Calc!G$209 -> £m
A104: =Calc!A$214 -> C068 | E104: =Calc!E$214 -> Bioresources revenue adjustment | F104: =Calc!F$214 -> 0 | G104: =Calc!G$214 -> £m
A105: =Calc!A$223 -> C078 | E105: =Calc!E$223 -> Wastewater network plus revenue adjustment | F105: =Calc!F$223 -> -18.45264193 | G105: =Calc!G$223 -> £m
A106: =Calc!A$228 -> C088 | E106: =Calc!E$228 -> Dummy control revenue adjustment | F106: =Calc!F$228 -> 0 | G106: =Calc!G$228 -> £m
A107: =Calc!A$235 -> C098 | E107: =Calc!E$235 -> Residential retail revenue adjustment | F107: =Calc!F$235 -> -8.424337239 | G107: =Calc!G$235 -> £m
A108: =Calc!A$241 -> C108 | E108: =Calc!E$241 -> Business retail revenue adjustment | F108: =Calc!F$241 -> 0 | G108: =Calc!G$241 -> £m
E110: =E$45 -> Equivalent Annual Cost (EAC) factor - Water resources | F110: 4.724077797 | G110: factor
E111: =E$46 -> Equivalent Annual Cost (EAC) factor - Water network | F111: 4.724077797 | G111: factor
E112: =E$47 -> Equivalent Annual Cost (EAC) factor - Bioresources | F112: =F$47 -> 4.724077797 | G112: factor
E113: =E$48 -> Equivalent Annual Cost (EAC) factor - Wastewater network | F113: =F$48 -> 4.724077797 | G113: =G$48 -> factor
E114: =E$49 -> Equivalent Annual Cost (EAC) factor - Dummy control | F114: =F$49 -> 4.724077797 | G114: factor
E115: =E$50 -> Equivalent Annual Cost (EAC) factor - Residential retail | F115: 4.724077797 | G115: factor
E116: =E$51 -> Equivalent Annual Cost (EAC) factor - Business retail | F116: =F$51 -> 4.724077797 | G116: factor
E118: =Time!E$49 -> Forecast period flag | F118: =Time!F$49 -> 0 | G118: =Time!G$49 -> flag | H118: =Time!H$49 -> 5 | I118: =Time!I$49 -> 0 | J118: =Time!J$49 -> 0 | K118: =Time!K$49 -> 0 | L118: =Time!L$49 -> 0 | M118: =Time!M$49 -> 0 | N118: =Time!N$49 -> 0 | O118: =Time!O$49 -> 0 | P118: =Time!P$49 -> 0 | Q118: =Time!Q$49 -> 0 | R118: =Time!R$49 -> 1 | S118: =Time!S$49 -> 1 | T118: =Time!T$49 -> 1 | U118: =Time!U$49 -> 1 | V118: =Time!V$49 -> 1
E120: Water resources revenue adjustment - EAC factor adjusted | G120: £m | H120: =SUM(J120:V120) -> 0.976433153 | J120: =($F102 / $F110) * J$118 -> 0 | K120: =($F102 / $F110) * K$118 -> 0 | L120: 0 | M120: 0 | N120: 0 | O120: 0 | P120: 0 | Q120: 0 | R120: 0.1952866306 | S120: 0.1952866306 | T120: 0.1952866306 | U120: 0.1952866306 | V120: 0.1952866306
E121: Water network revenue adjustment - EAC factor adjusted | G121: £m | H121: -14.4918974 | J121: =($F103 / $F111) * J$118 -> 0 | K121: =($F103 / $F111) * K$118 -> 0 | L121: 0 | M121: 0 | N121: 0 | O121: 0 | P121: 0 | Q121: 0 | R121: -2.898379479 | S121: -2.898379479 | T121: -2.898379479 | U121: -2.898379479 | V121: -2.898379479
E122: Bioresources revenue adjustment - EAC factor adjusted | G122: £m | H122: 0 | J122: =($F104 / $F112) * J$118 -> 0 | K122: =($F104 / $F112) * K$118 -> 0 | L122: 0 | M122: 0 | N122: 0 | O122: 0 | P122: 0 | Q122: 0 | R122: 0 | S122: 0 | T122: 0 | U122: 0 | V122: 0
E123: Wastewater network revenue adjustment - EAC factor adjusted | G123: £m | H123: -19.53041706 | J123: =($F105 / $F113) * J$118 -> 0 | K123: 0 | L123: 0 | M123: 0 | N123: 0 | O123: 0 | P123: 0 | Q123: 0 | R123: -3.906083413 | S123: -3.906083413 | T123: -3.906083413 | U123: -3.906083413 | V123: -3.906083413
E124: Dummy control revenue adjustment - EAC factor adjusted | G124: £m | H124: =SUM(J124:V124) -> 0 | J124: 0 | K124: 0 | L124: 0 | M124: 0 | N124: 0 | O124: 0 | P124: 0 | Q124: 0 | R124: 0 | S124: 0 | T124: 0 | U124: 0 | V124: 0
E125: Residential retail revenue adjustment - EAC factor adjusted | G125: £m | H125: -8.916382837 | J125: =($F107 / $F115) * J$118 -> 0 | K125: 0 | L125: 0 | M125: 0 | N125: 0 | O125: 0 | P125: 0 | Q125: 0 | R125: -1.783276567 | S125: -1.783276567 | T125: -1.783276567 | U125: -1.783276567 | V125: -1.783276567
E126: Business retail revenue adjustment - EAC factor adjusted | G126: £m | H126: 0 | J126: =($F108 / $F116) * J$118 -> 0 | K126: 0 | L126: 0 | M126: 0 | N126: 0 | O126: 0 | P126: 0 | Q126: 0 | R126: 0 | S126: 0 | T126: 0 | U126: 0 | V126: 0
E128: =E$120 -> Water resources revenue adjustment - EAC factor adjusted | F128: 0 | G128: =G$120 -> £m | H128: =H$120 -> 0.976433153 | I128: =I$120 -> 0 | J128: =J$120 -> 0 | K128: =K$120 -> 0 | L128: =L$120 -> 0 | M128: =M$120 -> 0 | N128: =N$120 -> 0 | O128: =O$120 -> 0 | P128: =P$120 -> 0 | Q128: =Q$120 -> 0 | R128: =R$120 -> 0.1952866306 | S128: =S$120 -> 0.1952866306 | T128: =T$120 -> 0.1952866306 | U128: =U$120 -> 0.1952866306 | V128: =V$120 -> 0.1952866306
E129: =E$121 -> Water network revenue adjustment - EAC factor adjusted | F129: 0 | G129: =G$121 -> £m | H129: =H$121 -> -14.4918974 | I129: =I$121 -> 0 | J129: =J$121 -> 0 | K129: =K$121 -> 0 | L129: =L$121 -> 0 | M129: =M$121 -> 0 | N129: =N$121 -> 0 | O129: =O$121 -> 0 | P129: =P$121 -> 0 | Q129: =Q$121 -> 0 | R129: =R$121 -> -2.898379479 | S129: =S$121 -> -2.898379479 | T129: =T$121 -> -2.898379479 | U129: =U$121 -> -2.898379479 | V129: =V$121 -> -2.898379479
E130: =E$122 -> Bioresources revenue adjustment - EAC factor adjusted | F130: =F$122 -> 0 | G130: £m | H130: 0 | I130: 0 | J130: 0 | K130: 0 | L130: 0 | M130: 0 | N130: 0 | O130: 0 | P130: 0 | Q130: 0 | R130: 0 | S130: 0 | T130: 0 | U130: 0 | V130: 0
E131: =E$123 -> Wastewater network revenue adjustment - EAC factor adjusted | F131: =F$123 -> 0 | G131: =G$123 -> £m | H131: =H$123 -> -19.53041706 | I131: =I$123 -> 0 | J131: =J$123 -> 0 | K131: =K$123 -> 0 | L131: =L$123 -> 0 | M131: =M$123 -> 0 | N131: =N$123 -> 0 | O131: =O$123 -> 0 | P131: =P$123 -> 0 | Q131: =Q$123 -> 0 | R131: =R$123 -> -3.906083413 | S131: =S$123 -> -3.906083413 | T131: =T$123 -> -3.906083413 | U131: =U$123 -> -3.906083413 | V131: =V$123 -> -3.906083413
E132: =E$124 -> Dummy control revenue adjustment - EAC factor adjusted | F132: =F$124 -> 0 | G132: =G$124 -> £m | H132: =H$124 -> 0 | I132: =I$124 -> 0 | J132: =J$124 -> 0 | K132: =K$124 -> 0 | L132: =L$124 -> 0 | M132: =M$124 -> 0 | N132: =N$124 -> 0 | O132: =O$124 -> 0 | P132: =P$124 -> 0 | Q132: =Q$124 -> 0 | R132: =R$124 -> 0 | S132: =S$124 -> 0 | T132: =T$124 -> 0 | U132: =U$124 -> 0 | V132: =V$124 -> 0
E133: =E$125 -> Residential retail revenue adjustment - EAC factor adjusted | F133: 0 | G133: =G$125 -> £m | H133: =H$125 -> -8.916382837 | I133: =I$125 -> 0 | J133: =J$125 -> 0 | K133: =K$125 -> 0 | L133: =L$125 -> 0 | M133: =M$125 -> 0 | N133: =N$125 -> 0 | O133: =O$125 -> 0 | P133: =P$125 -> 0 | Q133: =Q$125 -> 0 | R133: =R$125 -> -1.783276567 | S133: =S$125 -> -1.783276567 | T133: =T$125 -> -1.783276567 | U133: =U$125 -> -1.783276567 | V133: =V$125 -> -1.783276567
E134: =E$126 -> Business retail revenue adjustment - EAC factor adjusted | F134: =F$126 -> 0 | G134: £m | H134: 0 | I134: 0 | J134: 0 | K134: 0 | L134: 0 | M134: 0 | N134: 0 | O134: 0 | P134: 0 | Q134: 0 | R134: 0 | S134: 0 | T134: 0 | U134: 0 | V134: 0
E136: =E$28 -> PV discount factor - Water resources | F136: 0 | G136: factor | H136: 4.724077797 | I136: 0 | J136: 0 | K136: 0 | L136: 0 | M136: 0 | N136: 0 | O136: 0 | P136: 0 | Q136: 0 | R136: 1 | S136: 0.9716284493 | T136: 0.9440618435 | U136: 0.9172050166 | V136: 0.891182488
E137: =E$29 -> PV discount factor - Water network | F137: 0 | G137: factor | H137: 4.724077797 | I137: 0 | J137: 0 | K137: 0 | L137: 0 | M137: 0 | N137: 0 | O137: 0 | P137: 0 | Q137: 0 | R137: 1 | S137: 0.9716284493 | T137: 0.9440618435 | U137: 0.9172050166 | V137: 0.891182488
E138: =E$30 -> PV discount factor - Bioresources | F138: =F$30 -> 0 | G138: factor | H138: 4.724077797 | I138: 0 | J138: 0 | K138: 0 | L138: 0 | M138: 0 | N138: 0 | O138: 0 | P138: 0 | Q138: 0 | R138: 1 | S138: 0.9716284493 | T138: 0.9440618435 | U138: 0.9172050166 | V138: 0.891182488
E139: =E$31 -> PV discount factor - Wastewater network | F139: 0 | G139: factor | H139: 4.724077797 | I139: 0 | J139: 0 | K139: 0 | L139: 0 | M139: 0 | N139: 0 | O139: 0 | P139: 0 | Q139: 0 | R139: 1 | S139: 0.9716284493 | T139: 0.9440618435 | U139: 0.9172050166 | V139: 0.891182488
E140: =E$32 -> PV discount factor - Dummy control | F140: 0 | G140: factor | H140: 4.724077797 | I140: 0 | J140: 0 | K140: 0 | L140: 0 | M140: 0 | N140: 0 | O140: 0 | P140: 0 | Q140: 0 | R140: 1 | S140: 0.9716284493 | T140: 0.9440618435 | U140: 0.9172050166 | V140: 0.891182488
E141: =E$33 -> PV discount factor - Residential retail | F141: 0 | G141: factor | H141: 4.724077797 | I141: 0 | J141: 0 | K141: 0 | L141: 0 | M141: 0 | N141: 0 | O141: 0 | P141: 0 | Q141: 0 | R141: 1 | S141: 0.9716284493 | T141: 0.9440618435 | U141: 0.9172050166 | V141: 0.891182488
E142: =E$34 -> PV discount factor - Business retail | F142: =F$34 -> 0 | G142: factor | H142: 4.724077797 | I142: 0 | J142: 0 | K142: 0 | L142: 0 | M142: 0 | N142: 0 | O142: 0 | P142: 0 | Q142: 0 | R142: 1 | S142: 0.9716284493 | T142: 0.9440618435 | U142: 0.9172050166 | V142: 0.891182488
E144: Water resources revenue adjustment - Constant annuity 2015-20 | G144: £m | H144: =SUM(J144:V144) -> 0.9225492357 | J144: =J128 * J136 -> 0 | K144: 0 | L144: 0 | M144: 0 | N144: 0 | O144: 0 | P144: 0 | Q144: 0 | R144: 0.1952866306 | S144: 0.1897460461 | T144: 0.1843626565 | U144: 0.1791178773 | V144: 0.1740360253
E145: Water network revenue adjustment - Constant annuity 2015-20 | G145: £m | H145: -13.69217015 | J145: =J129 * J137 -> 0 | K145: 0 | L145: 0 | M145: 0 | N145: 0 | O145: 0 | P145: 0 | Q145: 0 | R145: -2.898379479 | S145: -2.816147959 | T145: -2.736249474 | U145: -2.658408199 | V145: -2.582985036
E146: Bioresources revenue adjustment - Constant annuity 2015-20 | G146: £m | H146: 0 | J146: =J130 * J138 -> 0 | K146: 0 | L146: 0 | M146: 0 | N146: 0 | O146: 0 | P146: 0 | Q146: 0 | R146: 0 | S146: 0 | T146: 0 | U146: 0 | V146: 0
E147: Wastewater network revenue adjustment - Constant annuity 2015-20 | G147: £m | H147: -18.45264193 | J147: =J131 * J139 -> 0 | K147: 0 | L147: 0 | M147: 0 | N147: 0 | O147: 0 | P147: 0 | Q147: 0 | R147: -3.906083413 | S147: -3.795261769 | T147: -3.687584307 | U147: -3.582679302 | V147: -3.481033134
E148: Dummy control revenue adjustment - Constant annuity 2015-20 | G148: £m | H148: =SUM(J148:V148) -> 0 | J148: 0 | K148: 0 | L148: 0 | M148: 0 | N148: 0 | O148: 0 | P148: 0 | Q148: 0 | R148: 0 | S148: 0 | T148: 0 | U148: 0 | V148: 0
E149: Residential retail revenue adjustment - Constant annuity 2015-20 | G149: £m | H149: -8.424337239 | J149: =J133 * J141 -> 0 | K149: 0 | L149: 0 | M149: 0 | N149: 0 | O149: 0 | P149: 0 | Q149: 0 | R149: -1.783276567 | S149: -1.732682246 | T149: -1.683523364 | U149: -1.635630214 | V149: -1.589224848
E150: Business retail revenue adjustment - Constant annuity 2015-20 | G150: £m | H150: 0 | J150: =J134 * J142 -> 0 | K150: 0 | L150: 0 | M150: 0 | N150: 0 | O150: 0 | P150: 0 | Q150: 0 | R150: 0 | S150: 0 | T150: 0 | U150: 0 | V150: 0
B152: Profile 2 - Even allocation - NPV neutral
A153: =Calc!A$198 -> C048 | E153: =Calc!E$198 -> Water resources revenue adjustment | F153: =Calc!F$198 -> 0.9225492357 | G153: =Calc!G$198 -> £m
A154: =Calc!A$209 -> C058 | E154: =Calc!E$209 -> Water network plus revenue adjustment | F154: =Calc!F$209 -> -13.69217015 | G154: =Calc!G$209 -> £m
A155: =Calc!A$214 -> C068 | E155: =Calc!E$214 -> Bioresources revenue adjustment | F155: =Calc!F$214 -> 0 | G155: =Calc!G$214 -> £m
A156: =Calc!A$223 -> C078 | E156: =Calc!E$223 -> Wastewater network plus revenue adjustment | F156: =Calc!F$223 -> -18.45264193 | G156: =Calc!G$223 -> £m
A157: =Calc!A$228 -> C088 | E157: =Calc!E$228 -> Dummy control revenue adjustment | F157: =Calc!F$228 -> 0 | G157: =Calc!G$228 -> £m
A158: =Calc!A$235 -> C098 | E158: =Calc!E$235 -> Residential retail revenue adjustment | F158: =Calc!F$235 -> -8.424337239 | G158: =Calc!G$235 -> £m
A159: =Calc!A$241 -> C108 | E159: =Calc!E$241 -> Business retail revenue adjustment | F159: =Calc!F$241 -> 0 | G159: =Calc!G$241 -> £m
A161: =Inputs!A$139 -> C040 | E161: =Inputs!E$139 -> Discount rate - Water resources | F161: =Inputs!F$139 -> 0.0292 | G161: =Inputs!G$139 -> %
A162: =Inputs!A$140 -> C050 | E162: =Inputs!E$140 -> Discount rate - Water network plus | F162: =Inputs!F$140 -> 0.0292 | G162: =Inputs!G$140 -> %
A163: =Inputs!A$141 -> C060 | E163: =Inputs!E$141 -> Discount rate - Bioresources | F163: =Inputs!F$141 -> 0.0292 | G163: =Inputs!G$141 -> %
A164: =Inputs!A$142 -> C070 | E164: =Inputs!E$142 -> Discount rate - Wastewater network plus | F164: =Inputs!F$142 -> 0.0292 | G164: =Inputs!G$142 -> %
A165: =Inputs!A$143 -> C080 | E165: =Inputs!E$143 -> Discount rate - Dummy control | F165: =Inputs!F$143 -> 0.0292 | G165: =Inputs!G$143 -> %
A166: =Inputs!A$144 -> C090 | E166: =Inputs!E$144 -> Discount rate - Residential retail | F166: =Inputs!F$144 -> 0.0292 | G166: =Inputs!G$144 -> %
A167: =Inputs!A$145 -> C100 | E167: =Inputs!E$145 -> Discount rate - Business retail | F167: =Inputs!F$145 -> 0.0292 | G167: =Inputs!G$145 -> %
A169: =Inputs!A$147 -> C030 | E169: =Inputs!E$147 -> Number of years to profile over | F169: =Inputs!F$147 -> 5 | G169: =Inputs!G$147 -> #
E171: =E$13 -> Years from valuation date | F171: 0 | G171: =G$13 -> years | H171: 0 | I171: 0 | J171: 0 | K171: 0 | L171: 0 | M171: 0 | N171: 0 | O171: 0 | P171: 0 | Q171: 0 | R171: 0 | S171: 1 | T171: 2 | U171: 3.002739726 | V171: 4.002739726
E172: =Time!E$49 -> Forecast period flag | F172: =Time!F$49 -> 0 | G172: =Time!G$49 -> flag | H172: =Time!H$49 -> 5 | I172: =Time!I$49 -> 0 | J172: =Time!J$49 -> 0 | K172: =Time!K$49 -> 0 | L172: =Time!L$49 -> 0 | M172: =Time!M$49 -> 0 | N172: =Time!N$49 -> 0 | O172: =Time!O$49 -> 0 | P172: =Time!P$49 -> 0 | Q172: =Time!Q$49 -> 0 | R172: =Time!R$49 -> 1 | S172: =Time!S$49 -> 1 | T172: =Time!T$49 -> 1 | U172: =Time!U$49 -> 1 | V172: =Time!V$49 -> 1
E174: Water resources revenue adjustment - NPV adjusted | G174: £m | H174: =SUM(J174:V174) -> 0.9780546062 | J174: =IF(J$171 + 1 <= $F$169 + 0.005, $F153 / $F$169, 0) * J$172 * (1 + $F161) ^ J$171 -> 0 | K174: =IF(K$171 + 1 <= $F$169 + 0.005, $F153 / $F$169, 0) * K$172 * (1 + $F161) ^ K$171 -> 0 | L174: 0 | M174: 0 | N174: 0 | O174: 0 | P174: 0 | Q174: 0 | R174: 0.1845098471 | S174: 0.1898975347 | T174: 0.1954425427 | U174: 0.2011653271 | V174: 0.2070393546
E175: Water network revenue adjustment - NPV adjusted | G175: £m | H175: -14.51596247 | J175: 0 | K175: =IF(K$171 + 1 <= $F$169 + 0.005, $F154 / $F$169, 0) * K$172 * (1 + $F162) ^ K$171 -> 0 | L175: 0 | M175: 0 | N175: 0 | O175: 0 | P175: 0 | Q175: 0 | R175: -2.738434029 | S175: -2.818396303 | T175: -2.900693475 | U175: -2.985629145 | V175: -3.072809516
E176: Bioresources revenue adjustment - NPV adjusted | G176: £m | H176: 0 | J176: 0 | K176: =IF(K$171 + 1 <= $F$169 + 0.005, $F155 / $F$169, 0) * K$172 * (1 + $F163) ^ K$171 -> 0 | L176: 0 | M176: 0 | N176: 0 | O176: 0 | P176: 0 | Q176: 0 | R176: 0 | S176: 0 | T176: 0 | U176: 0 | V176: 0
E177: Wastewater network revenue adjustment - NPV adjusted | G177: £m | H177: -19.56284904 | J177: 0 | K177: =IF(K$171 + 1 <= $F$169 + 0.005, $F156 / $F$169, 0) * K$172 * (1 + $F164) ^ K$171 -> 0 | L177: 0 | M177: 0 | N177: 0 | O177: 0 | P177: 0 | Q177: 0 | R177: -3.690528385 | S177: -3.798291814 | T177: -3.909201935 | U177: -4.023667902 | V177: -4.141159005
E178: Dummy control revenue adjustment - NPV adjusted | G178: £m | H178: =SUM(J178:V178) -> 0 | J178: 0 | K178: =IF(K$171 + 1 <= $F$169 + 0.005, $F157 / $F$169, 0) * K$172 * (1 + $F165) ^ K$171 -> 0 | L178: 0 | M178: 0 | N178: 0 | O178: 0 | P178: 0 | Q178: 0 | R178: 0 | S178: 0 | T178: 0 | U178: 0 | V178: 0
E179: Residential retail revenue adjustment - NPV adjusted | G179: £m | H179: -8.931189276 | J179: 0 | K179: =IF(K$171 + 1 <= $F$169 + 0.005, $F158 / $F$169, 0) * K$172 * (1 + $F166) ^ K$171 -> 0 | L179: 0 | M179: 0 | N179: 0 | O179: 0 | P179: 0 | Q179: 0 | R179: -1.684867448 | S179: -1.734065577 | T179: -1.784700292 | U179: -1.836958387 | V179: -1.890597572
E180: Business retail revenue adjustment - NPV adjusted | G180: £m | H180: 0 | J180: 0 | K180: =IF(K$171 + 1 <= $F$169 + 0.005, $F159 / $F$169, 0) * K$172 * (1 + $F167) ^ K$171 -> 0 | L180: 0 | M180: 0 | N180: 0 | O180: 0 | P180: 0 | Q180: 0 | R180: 0 | S180: 0 | T180: 0 | U180: 0 | V180: 0
E182: =E$174 -> Water resources revenue adjustment - NPV adjusted | F182: 0 | G182: =G$174 -> £m | H182: 0.9780546062 | I182: 0 | J182: 0 | K182: 0 | L182: 0 | M182: 0 | N182: 0 | O182: 0 | P182: 0 | Q182: 0 | R182: 0.1845098471 | S182: 0.1898975347 | T182: 0.1954425427 | U182: 0.2011653271 | V182: 0.2070393546
E183: =E$175 -> Water network revenue adjustment - NPV adjusted | F183: 0 | G183: =G$175 -> £m | H183: -14.51596247 | I183: 0 | J183: 0 | K183: 0 | L183: 0 | M183: 0 | N183: 0 | O183: 0 | P183: 0 | Q183: 0 | R183: -2.738434029 | S183: -2.818396303 | T183: -2.900693475 | U183: -2.985629145 | V183: -3.072809516
E184: =E$176 -> Bioresources revenue adjustment - NPV adjusted | F184: =F$176 -> 0 | G184: £m | H184: 0 | I184: 0 | J184: 0 | K184: 0 | L184: 0 | M184: 0 | N184: 0 | O184: 0 | P184: 0 | Q184: 0 | R184: 0 | S184: 0 | T184: 0 | U184: 0 | V184: 0
E185: =E$177 -> Wastewater network revenue adjustment - NPV adjusted | F185: =F$177 -> 0 | G185: =G$177 -> £m | H185: -19.56284904 | I185: 0 | J185: 0 | K185: 0 | L185: 0 | M185: 0 | N185: 0 | O185: 0 | P185: 0 | Q185: 0 | R185: -3.690528385 | S185: -3.798291814 | T185: -3.909201935 | U185: -4.023667902 | V185: -4.141159005
E186: =E$178 -> Dummy control revenue adjustment - NPV adjusted | F186: 0 | G186: £m | H186: 0 | I186: 0 | J186: 0 | K186: 0 | L186: 0 | M186: 0 | N186: 0 | O186: 0 | P186: 0 | Q186: 0 | R186: 0 | S186: 0 | T186: 0 | U186: 0 | V186: 0
E187: =E$179 -> Residential retail revenue adjustment - NPV adjusted | F187: 0 | G187: =G$179 -> £m | H187: -8.931189276 | I187: 0 | J187: 0 | K187: 0 | L187: 0 | M187: 0 | N187: 0 | O187: 0 | P187: 0 | Q187: 0 | R187: -1.684867448 | S187: -1.734065577 | T187: -1.784700292 | U187: -1.836958387 | V187: -1.890597572
E188: =E$180 -> Business retail revenue adjustment - NPV adjusted | F188: =F$180 -> 0 | G188: £m | H188: 0 | I188: 0 | J188: 0 | K188: 0 | L188: 0 | M188: 0 | N188: 0 | O188: 0 | P188: 0 | Q188: 0 | R188: 0 | S188: 0 | T188: 0 | U188: 0 | V188: 0
E190: =E$28 -> PV discount factor - Water resources | F190: 0 | G190: factor | H190: 4.724077797 | I190: 0 | J190: 0 | K190: 0 | L190: 0 | M190: 0 | N190: 0 | O190: 0 | P190: 0 | Q190: 0 | R190: 1 | S190: 0.9716284493 | T190: 0.9440618435 | U190: 0.9172050166 | V190: 0.891182488
E191: =E$29 -> PV discount factor - Water network | F191: 0 | G191: factor | H191: 4.724077797 | I191: 0 | J191: 0 | K191: 0 | L191: 0 | M191: 0 | N191: 0 | O191: 0 | P191: 0 | Q191: 0 | R191: 1 | S191: 0.9716284493 | T191: 0.9440618435 | U191: 0.9172050166 | V191: 0.891182488
E192: =E$30 -> PV discount factor - Bioresources | F192: =F$30 -> 0 | G192: factor | H192: 4.724077797 | I192: 0 | J192: 0 | K192: 0 | L192: 0 | M192: 0 | N192: 0 | O192: 0 | P192: 0 | Q192: 0 | R192: 1 | S192: 0.9716284493 | T192: 0.9440618435 | U192: 0.9172050166 | V192: 0.891182488
E193: =E$31 -> PV discount factor - Wastewater network | F193: 0 | G193: factor | H193: 4.724077797 | I193: 0 | J193: 0 | K193: 0 | L193: 0 | M193: 0 | N193: 0 | O193: 0 | P193: 0 | Q193: 0 | R193: 1 | S193: 0.9716284493 | T193: 0.9440618435 | U193: 0.9172050166 | V193: 0.891182488
E194: =E$32 -> PV discount factor - Dummy control | F194: 0 | G194: factor | H194: 4.724077797 | I194: 0 | J194: 0 | K194: 0 | L194: 0 | M194: 0 | N194: 0 | O194: 0 | P194: 0 | Q194: 0 | R194: 1 | S194: 0.9716284493 | T194: 0.9440618435 | U194: 0.9172050166 | V194: 0.891182488
E195: =E$33 -> PV discount factor - Residential retail | F195: 0 | G195: factor | H195: 4.724077797 | I195: 0 | J195: 0 | K195: 0 | L195: 0 | M195: 0 | N195: 0 | O195: 0 | P195: 0 | Q195: 0 | R195: 1 | S195: 0.9716284493 | T195: 0.9440618435 | U195: 0.9172050166 | V195: 0.891182488
E196: =E$34 -> PV discount factor - Business retail | F196: =F$34 -> 0 | G196: factor | H196: 4.724077797 | I196: 0 | J196: 0 | K196: 0 | L196: 0 | M196: 0 | N196: 0 | O196: 0 | P196: 0 | Q196: 0 | R196: 1 | S196: 0.9716284493 | T196: 0.9440618435 | U196: 0.9172050166 | V196: 0.891182488
E198: Water resources revenue adjustment - Even allocation - NPV neutral | G198: £m | H198: =SUM(J198:V198) -> 0.9225492357 | J198: =J182 * J190 -> 0 | K198: 0 | L198: 0 | M198: 0 | N198: 0 | O198: 0 | P198: 0 | Q198: 0 | R198: 0.1845098471 | S198: 0.1845098471 | T198: 0.1845098471 | U198: 0.1845098471 | V198: 0.1845098471
E199: Water network revenue adjustment - Even allocation - NPV neutral | G199: £m | H199: -13.69217015 | J199: =J183 * J191 -> 0 | K199: 0 | L199: 0 | M199: 0 | N199: 0 | O199: 0 | P199: 0 | Q199: 0 | R199: -2.738434029 | S199: -2.738434029 | T199: -2.738434029 | U199: -2.738434029 | V199: -2.738434029
E200: Bioresources revenue adjustment - Even allocation - NPV neutral | G200: £m | H200: 0 | J200: =J184 * J192 -> 0 | K200: 0 | L200: 0 | M200: 0 | N200: 0 | O200: 0 | P200: 0 | Q200: 0 | R200: 0 | S200: 0 | T200: 0 | U200: 0 | V200: 0
E201: Wastewater network revenue adjustment - Even allocation - NPV neutral | G201: £m | H201: -18.45264193 | J201: =J185 * J193 -> 0 | K201: 0 | L201: 0 | M201: 0 | N201: 0 | O201: 0 | P201: 0 | Q201: 0 | R201: -3.690528385 | S201: -3.690528385 | T201: -3.690528385 | U201: -3.690528385 | V201: -3.690528385
E202: Dummy control revenue adjustment - Even allocation - NPV neutral | G202: £m | H202: =SUM(J202:V202) -> 0 | J202: 0 | K202: 0 | L202: 0 | M202: 0 | N202: 0 | O202: 0 | P202: 0 | Q202: 0 | R202: 0 | S202: 0 | T202: 0 | U202: 0 | V202: 0
E203: Residential retail revenue adjustment - Even allocation - NPV neutral | G203: £m | H203: -8.424337239 | J203: =J187 * J195 -> 0 | K203: 0 | L203: 0 | M203: 0 | N203: 0 | O203: 0 | P203: 0 | Q203: 0 | R203: -1.684867448 | S203: -1.684867448 | T203: -1.684867448 | U203: -1.684867448 | V203: -1.684867448
E204: Business retail revenue adjustment - Even allocation - NPV neutral | G204: £m | H204: 0 | J204: =J188 * J196 -> 0 | K204: 0 | L204: 0 | M204: 0 | N204: 0 | O204: 0 | P204: 0 | Q204: 0 | R204: 0 | S204: 0 | T204: 0 | U204: 0 | V204: 0
A207: PROFILES SELECTION
A209: =Inputs!A$151 -> C041 | E209: =Inputs!E$151 -> Water resources revenue adjustment selector | F209: =Inputs!F$151 -> 2 | G209: =Inputs!G$151 -> 0 = Apply in first year, 1 = Constant annuity 2020-25, 2 = Even allocation - NPV neutral
A210: =Inputs!A$152 -> C051 | E210: =Inputs!E$152 -> Water network plus revenue adjustment selector | F210: =Inputs!F$152 -> 2 | G210: =Inputs!G$152 -> 0 = Apply in first year, 1 = Constant annuity 2020-25, 2 = Even allocation - NPV neutral
A211: =Inputs!A$153 -> C061 | E211: =Inputs!E$153 -> Bioesources revenue adjustment selector | F211: =Inputs!F$153 -> 2 | G211: =Inputs!G$153 -> 0 = Apply in first year, 1 = Constant annuity 2020-25, 2 = Even allocation - NPV neutral
A212: =Inputs!A$154 -> C071 | E212: =Inputs!E$154 -> Wastewater network plus revenue adjustment selector | F212: =Inputs!F$154 -> 2 | G212: =Inputs!G$154 -> 0 = Apply in first year, 1 = Constant annuity 2020-25, 2 = Even allocation - NPV neutral
A213: =Inputs!A$155 -> C081 | E213: =Inputs!E$155 -> Dummy control revenue adjustment selector | F213: =Inputs!F$155 -> 0 | G213: =Inputs!G$155 -> 0 = Apply in first year, 1 = Constant annuity 2020-25, 2 = Even allocation - NPV neutral
A214: =Inputs!A$156 -> C091 | E214: =Inputs!E$156 -> Residential retail revenue adjustment selector | F214: =Inputs!F$156 -> 2 | G214: =Inputs!G$156 -> 0 = Apply in first year, 1 = Constant annuity 2020-25, 2 = Even allocation - NPV neutral
A215: =Inputs!A$157 -> C101 | E215: =Inputs!E$157 -> Business retail revenue adjustment selector | F215: =Inputs!F$157 -> 0 | G215: =Inputs!G$157 -> 0 = Apply in first year, 1 = Constant annuity 2020-25, 2 = Even allocation - NPV neutral
E217: =E$93 -> Water resources revenue adjustment applied in first year | F217: 0 | G217: =G$93 -> £m | H217: 0.9225492357 | I217: 0 | J217: 0 | K217: 0 | L217: 0 | M217: 0 | N217: 0 | O217: 0 | P217: 0 | Q217: 0 | R217: 0.9225492357 | S217: 0 | T217: 0 | U217: 0 | V217: 0
E218: =E$94 -> Water network revenue adjustment applied in first year | F218: 0 | G218: =G$94 -> £m | H218: -13.69217015 | I218: 0 | J218: 0 | K218: 0 | L218: 0 | M218: 0 | N218: 0 | O218: 0 | P218: 0 | Q218: 0 | R218: -13.69217015 | S218: 0 | T218: 0 | U218: 0 | V218: 0
E219: =E$95 -> Bioresources revenue adjustment applied in first year | F219: =F$95 -> 0 | G219: £m | H219: 0 | I219: 0 | J219: 0 | K219: 0 | L219: 0 | M219: 0 | N219: 0 | O219: 0 | P219: 0 | Q219: 0 | R219: 0 | S219: 0 | T219: 0 | U219: 0 | V219: 0
E220: =E$96 -> Wastewater network revenue adjustment applied in first year | F220: 0 | G220: =G$96 -> £m | H220: -18.45264193 | I220: 0 | J220: 0 | K220: 0 | L220: 0 | M220: 0 | N220: 0 | O220: 0 | P220: 0 | Q220: 0 | R220: -18.45264193 | S220: 0 | T220: 0 | U220: 0 | V220: 0
E221: =E$97 -> Dummy control revenue adjustment applied in first year | F221: 0 | G221: £m | H221: 0 | I221: 0 | J221: 0 | K221: 0 | L221: 0 | M221: 0 | N221: 0 | O221: 0 | P221: 0 | Q221: 0 | R221: 0 | S221: 0 | T221: 0 | U221: 0 | V221: 0
E222: =E$98 -> Residential retail revenue adjustment applied in first year | F222: 0 | G222: =G$98 -> £m | H222: -8.424337239 | I222: 0 | J222: 0 | K222: 0 | L222: 0 | M222: 0 | N222: 0 | O222: 0 | P222: 0 | Q222: 0 | R222: -8.424337239 | S222: 0 | T222: 0 | U222: 0 | V222: 0
E223: =E$99 -> Business retail revenue adjustment applied in first year | F223: =F$99 -> 0 | G223: £m | H223: 0 | I223: 0 | J223: 0 | K223: 0 | L223: 0 | M223: 0 | N223: 0 | O223: 0 | P223: 0 | Q223: 0 | R223: 0 | S223: 0 | T223: 0 | U223: 0 | V223: 0
E225: =E$128 -> Water resources revenue adjustment - EAC factor adjusted | F225: =F$128 -> 0 | G225: £m | H225: 0.976433153 | I225: 0 | J225: 0 | K225: 0 | L225: 0 | M225: 0 | N225: 0 | O225: 0 | P225: 0 | Q225: 0 | R225: 0.1952866306 | S225: 0.1952866306 | T225: 0.1952866306 | U225: 0.1952866306 | V225: 0.1952866306
E226: =E$129 -> Water network revenue adjustment - EAC factor adjusted | F226: =F$129 -> 0 | G226: £m | H226: -14.4918974 | I226: 0 | J226: 0 | K226: 0 | L226: 0 | M226: 0 | N226: 0 | O226: 0 | P226: 0 | Q226: 0 | R226: -2.898379479 | S226: -2.898379479 | T226: -2.898379479 | U226: -2.898379479 | V226: -2.898379479
E227: =E$130 -> Bioresources revenue adjustment - EAC factor adjusted | F227: =F$130 -> 0 | G227: £m | H227: 0 | I227: 0 | J227: 0 | K227: 0 | L227: 0 | M227: 0 | N227: 0 | O227: 0 | P227: 0 | Q227: 0 | R227: 0 | S227: 0 | T227: 0 | U227: 0 | V227: 0
E228: =E$131 -> Wastewater network revenue adjustment - EAC factor adjusted | F228: =F$131 -> 0 | G228: £m | H228: -19.53041706 | I228: 0 | J228: 0 | K228: 0 | L228: 0 | M228: 0 | N228: 0 | O228: 0 | P228: 0 | Q228: 0 | R228: -3.906083413 | S228: -3.906083413 | T228: -3.906083413 | U228: -3.906083413 | V228: -3.906083413
E229: =E$132 -> Dummy control revenue adjustment - EAC factor adjusted | F229: 0 | G229: £m | H229: 0 | I229: 0 | J229: 0 | K229: 0 | L229: 0 | M229: 0 | N229: 0 | O229: 0 | P229: 0 | Q229: 0 | R229: 0 | S229: 0 | T229: 0 | U229: 0 | V229: 0
E230: =E$133 -> Residential retail revenue adjustment - EAC factor adjusted | F230: =F$133 -> 0 | G230: £m | H230: -8.916382837 | I230: 0 | J230: 0 | K230: 0 | L230: 0 | M230: 0 | N230: 0 | O230: 0 | P230: 0 | Q230: 0 | R230: -1.783276567 | S230: -1.783276567 | T230: -1.783276567 | U230: -1.783276567 | V230: -1.783276567
E231: =E$134 -> Business retail revenue adjustment - EAC factor adjusted | F231: =F$134 -> 0 | G231: £m | H231: 0 | I231: 0 | J231: 0 | K231: 0 | L231: 0 | M231: 0 | N231: 0 | O231: 0 | P231: 0 | Q231: 0 | R231: 0 | S231: 0 | T231: 0 | U231: 0 | V231: 0
E233: =E$182 -> Water resources revenue adjustment - NPV adjusted | F233: =F$182 -> 0 | G233: £m | H233: 0.9780546062 | I233: 0 | J233: 0 | K233: 0 | L233: 0 | M233: 0 | N233: 0 | O233: 0 | P233: 0 | Q233: 0 | R233: 0.1845098471 | S233: 0.1898975347 | T233: 0.1954425427 | U233: 0.2011653271 | V233: 0.2070393546
E234: =E$183 -> Water network revenue adjustment - NPV adjusted | F234: =F$183 -> 0 | G234: £m | H234: -14.51596247 | I234: 0 | J234: 0 | K234: 0 | L234: 0 | M234: 0 | N234: 0 | O234: 0 | P234: 0 | Q234: 0 | R234: -2.738434029 | S234: -2.818396303 | T234: -2.900693475 | U234: -2.985629145 | V234: -3.072809516
E235: =E$184 -> Bioresources revenue adjustment - NPV adjusted | F235: =F$184 -> 0 | G235: £m | H235: 0 | I235: 0 | J235: 0 | K235: 0 | L235: 0 | M235: 0 | N235: 0 | O235: 0 | P235: 0 | Q235: 0 | R235: 0 | S235: 0 | T235: 0 | U235: 0 | V235: 0
E236: =E$185 -> Wastewater network revenue adjustment - NPV adjusted | F236: =F$185 -> 0 | G236: £m | H236: -19.56284904 | I236: 0 | J236: 0 | K236: 0 | L236: 0 | M236: 0 | N236: 0 | O236: 0 | P236: 0 | Q236: 0 | R236: -3.690528385 | S236: -3.798291814 | T236: -3.909201935 | U236: -4.023667902 | V236: -4.141159005
E237: =E$186 -> Dummy control revenue adjustment - NPV adjusted | F237: 0 | G237: £m | H237: 0 | I237: 0 | J237: 0 | K237: 0 | L237: 0 | M237: 0 | N237: 0 | O237: 0 | P237: 0 | Q237: 0 | R237: 0 | S237: 0 | T237: 0 | U237: 0 | V237: 0
E238: =E$187 -> Residential retail revenue adjustment - NPV adjusted | F238: =F$187 -> 0 | G238: £m | H238: -8.931189276 | I238: 0 | J238: 0 | K238: 0 | L238: 0 | M238: 0 | N238: 0 | O238: 0 | P238: 0 | Q238: 0 | R238: -1.684867448 | S238: -1.734065577 | T238: -1.784700292 | U238: -1.836958387 | V238: -1.890597572
E239: =E$188 -> Business retail revenue adjustment - NPV adjusted | F239: =F$188 -> 0 | G239: £m | H239: 0 | I239: 0 | J239: 0 | K239: 0 | L239: 0 | M239: 0 | N239: 0 | O239: 0 | P239: 0 | Q239: 0 | R239: 0 | S239: 0 | T239: 0 | U239: 0 | V239: 0
... 15 more rows

Sheet FM Proportion Calc
A1: =RIGHT(CELL("filename", $A$1), LEN(CELL("filename", $A$1)) - SEARCH("]", CELL("filename", $A$1))) -> FM Proportion Calc
E2: =Time!E$25 -> Model period ending | F2: =Checks!F$11 -> 0 | G2: =Checks!G$11 -> Checks | J2: =Time!J$25 -> 2013-03-31 | K2: =Time!K$25 -> 2014-03-31 | L2: =Time!L$25 -> 2015-03-31 | M2: =Time!M$25 -> 2016-03-31 | N2: =Time!N$25 -> 2017-03-31 | O2: =Time!O$25 -> 2018-03-31 | P2: =Time!P$25 -> 2019-03-31 | Q2: =Time!Q$25 -> 2020-03-31 | R2: =Time!R$25 -> 2021-03-31 | S2: =Time!S$25 -> 2022-03-31 | T2: =Time!T$25 -> 2023-03-31 | U2: =Time!U$25 -> 2024-03-31 | V2: =Time!V$25 -> 2025-03-31
E3: =Time!E$80 -> Timeline label | J3: =Time!J$80 -> Pre-Fcst | K3: =Time!K$80 -> Pre-Fcst | L3: =Time!L$80 -> Pre-Fcst | M3: =Time!M$80 -> Pre-Fcst | N3: =Time!N$80 -> Pre-Fcst | O3: =Time!O$80 -> Pre-Fcst | P3: =Time!P$80 -> Pre-Fcst | Q3: =Time!Q$80 -> Pre-Fcst | R3: =Time!R$80 -> Forecast | S3: =Time!S$80 -> Forecast | T3: =Time!T$80 -> Forecast | U3: =Time!U$80 -> Forecast | V3: =Time!V$80 -> Forecast
E4: =Time!E$103 -> Financial year ending | J4: =Time!J$103 -> 2013 | K4: =Time!K$103 -> 2014 | L4: =Time!L$103 -> 2015 | M4: =Time!M$103 -> 2016 | N4: =Time!N$103 -> 2017 | O4: =Time!O$103 -> 2018 | P4: =Time!P$103 -> 2019 | Q4: =Time!Q$103 -> 2020 | R4: =Time!R$103 -> 2021 | S4: =Time!S$103 -> 2022 | T4: =Time!T$103 -> 2023 | U4: =Time!U$103 -> 2024 | V4: =Time!V$103 -> 2025
E5: =Time!E$10 -> Model column counter | F5: Constant | G5: Unit | J5: =Time!J$10 -> 1 | K5: =Time!K$10 -> 2 | L5: =Time!L$10 -> 3 | M5: =Time!M$10 -> 4 | N5: =Time!N$10 -> 5 | O5: =Time!O$10 -> 6 | P5: =Time!P$10 -> 7 | Q5: =Time!Q$10 -> 8 | R5: =Time!R$10 -> 9 | S5: =Time!S$10 -> 10 | T5: =Time!T$10 -> 11 | U5: =Time!U$10 -> 12 | V5: =Time!V$10 -> 13
A7: Water Resources
E9: =Calc!E$198 -> Water resources revenue adjustment | F9: =Calc!F$198 -> 0.9225492357 | G9: =Calc!G$198 -> £m | H9: =Calc!H$198 -> 0 | I9: =Calc!I$198 -> 0 | J9: =Calc!J$198 -> 0 | K9: =Calc!K$198 -> 0 | L9: =Calc!L$198 -> 0 | M9: =Calc!M$198 -> 0 | N9: =Calc!N$198 -> 0 | O9: =Calc!O$198 -> 0 | P9: =Calc!P$198 -> 0 | Q9: =Calc!Q$198 -> 0 | R9: =Calc!R$198 -> 0 | S9: =Calc!S$198 -> 0 | T9: =Calc!T$198 -> 0 | U9: =Calc!U$198 -> 0 | V9: =Calc!V$198 -> 0
E10: =Profiling!E$241 -> Water resources revenue adjustment active | F10: =Profiling!F$241 -> 0 | G10: =Profiling!G$241 -> £m | H10: =Profiling!H$241 -> 0.9780546062 | I10: =Profiling!I$241 -> 0 | J10: =Profiling!J$241 -> 0 | K10: =Profiling!K$241 -> 0 | L10: =Profiling!L$241 -> 0 | M10: =Profiling!M$241 -> 0 | N10: =Profiling!N$241 -> 0 | O10: =Profiling!O$241 -> 0 | P10: =Profiling!P$241 -> 0 | Q10: =Profiling!Q$241 -> 0 | R10: =Profiling!R$241 -> 0.1845098471 | S10: =Profiling!S$241 -> 0.1898975347 | T10: =Profiling!T$241 -> 0.1954425427 | U10: =Profiling!U$241 -> 0.2011653271 | V10: =Profiling!V$241 -> 0.2070393546
E11: Water resources profiling proportions | G11: % | J11: =IF(J10 = 0, 0, J10/$F9) -> 0 | K11: 0 | L11: 0 | M11: 0 | N11: 0 | O11: 0 | P11: 0 | Q11: 0 | R11: 0.2 | S11: 0.20584 | T11: 0.211850528 | U11: 0.2180537572 | V11: 0.2244209269
E13: =Calc!E$162 -> Water trading total value of export incentive ~ Water resources at 2017-18 FYA CPIH deflated price base | F13: =Calc!F$162 -> 0 | G13: =Calc!G$162 -> £m | H13: =Calc!H$162 -> 0 | I13: =Calc!I$162 -> 0 | J13: =Calc!J$162 -> 0 | K13: =Calc!K$162 -> 0 | L13: =Calc!L$162 -> 0 | M13: =Calc!M$162 -> 0 | N13: =Calc!N$162 -> 0 | O13: =Calc!O$162 -> 0 | P13: =Calc!P$162 -> 0 | Q13: =Calc!Q$162 -> 0 | R13: =Calc!R$162 -> 0 | S13: =Calc!S$162 -> 0 | T13: =Calc!T$162 -> 0 | U13: =Calc!U$162 -> 0 | V13: =Calc!V$162 -> 0
E14: =Calc!E$163 -> Water trading total value of import incentive ~ Water resources at 2017-18 FYA CPIH deflated price base | F14: =Calc!F$163 -> 0 | G14: =Calc!G$163 -> £m | H14: =Calc!H$163 -> 0 | I14: =Calc!I$163 -> 0 | J14: =Calc!J$163 -> 0 | K14: =Calc!K$163 -> 0 | L14: =Calc!L$163 -> 0 | M14: =Calc!M$163 -> 0 | N14: =Calc!N$163 -> 0 | O14: =Calc!O$163 -> 0 | P14: =Calc!P$163 -> 0 | Q14: =Calc!Q$163 -> 0 | R14: =Calc!R$163 -> 0 | S14: =Calc!S$163 -> 0 | T14: =Calc!T$163 -> 0 | U14: =Calc!U$163 -> 0 | V14: =Calc!V$163 -> 0
E15: Water trading total value of incentive ~ Water resources at 2017-18 FYA CPIH deflated price base | F15: =SUM(F13:F14) -> 0 | G15: £m | H15: =SUM(J15:V15) -> 0 | J15: =SUM(J13:J14) -> 0 | K15: =SUM(K13:K14) -> 0 | L15: =SUM(L13:L14) -> 0 | M15: 0 | N15: 0 | O15: 0 | P15: 0 | Q15: 0 | R15: 0 | S15: 0 | T15: 0 | U15: 0 | V15: 0
E17: =Calc!E$160 -> ODI in-period revenue adjustment ~ Water resources at 2017-18 FYA CPIH deflated price base | F17: =Calc!F$160 -> 0 | G17: =Calc!G$160 -> £m | H17: =Calc!H$160 -> 0 | I17: =Calc!I$160 -> 0 | J17: =Calc!J$160 -> 0 | K17: =Calc!K$160 -> 0 | L17: =Calc!L$160 -> 0 | M17: =Calc!M$160 -> 0 | N17: =Calc!N$160 -> 0 | O17: =Calc!O$160 -> 0 | P17: =Calc!P$160 -> 0 | Q17: =Calc!Q$160 -> 0 | R17: =Calc!R$160 -> 0 | S17: =Calc!S$160 -> 0 | T17: =Calc!T$160 -> 0 | U17: =Calc!U$160 -> 0 | V17: =Calc!V$160 -> 0
E18: =Calc!E$161 -> ODI end of period revenue adjustment ~ Water resources at 2017-18 FYA CPIH deflated price base | F18: =Calc!F$161 -> 0.9225492357 | G18: =Calc!G$161 -> £m | H18: =Calc!H$161 -> 0 | I18: =Calc!I$161 -> 0 | J18: =Calc!J$161 -> 0 | K18: =Calc!K$161 -> 0 | L18: =Calc!L$161 -> 0 | M18: =Calc!M$161 -> 0 | N18: =Calc!N$161 -> 0 | O18: =Calc!O$161 -> 0 | P18: =Calc!P$161 -> 0 | Q18: =Calc!Q$161 -> 0 | R18: =Calc!R$161 -> 0 | S18: =Calc!S$161 -> 0 | T18: =Calc!T$161 -> 0 | U18: =Calc!U$161 -> 0 | V18: =Calc!V$161 -> 0
E19: =E$15 -> Water trading total value of incentive ~ Water resources at 2017-18 FYA CPIH deflated price base | F19: =F$15 -> 0 | G19: £m | H19: 0 | I19: 0 | J19: 0 | K19: 0 | L19: 0 | M19: 0 | N19: 0 | O19: 0 | P19: 0 | Q19: 0 | R19: 0 | S19: 0 | T19: 0 | U19: 0 | V19: 0
E21: =E$11 -> Water resources profiling proportions | F21: 0 | G21: % | H21: 0 | I21: 0 | J21: 0 | K21: 0 | L21: 0 | M21: 0 | N21: 0 | O21: 0 | P21: 0 | Q21: 0 | R21: 0.2 | S21: 0.20584 | T21: 0.211850528 | U21: 0.2180537572 | V21: 0.2244209269
E23: ODI in-period revenue adjustment ~ Water resources at 2017-18 FYA CPIH deflated price base | G23: £m | H23: =SUM(J23:V23) -> 0 | J23: =$F17 * J$21 -> 0 | K23: 0 | L23: 0 | M23: 0 | N23: 0 | O23: 0 | P23: 0 | Q23: 0 | R23: 0 | S23: 0 | T23: 0 | U23: 0 | V23: 0
E24: ODI end of period revenue adjustment ~ Water resources at 2017-18 FYA CPIH deflated price base | G24: £m | H24: =SUM(J24:V24) -> 0.9780546062 | J24: =$F18 * J$21 -> 0 | K24: 0 | L24: 0 | M24: 0 | N24: 0 | O24: 0 | P24: 0 | Q24: 0 | R24: 0.1845098471 | S24: 0.1898975347 | T24: 0.1954425427 | U24: 0.2011653271 | V24: 0.2070393546
E25: Water trading total value of incentive ~ Water resources at 2017-18 FYA CPIH deflated price base | G25: £m | H25: =SUM(J25:V25) -> 0 | J25: =$F19 * J$21 -> 0 | K25: =$F19 * K$21 -> 0 | L25: =$F19 * L$21 -> 0 | M25: 0 | N25: 0 | O25: 0 | P25: 0 | Q25: 0 | R25: 0 | S25: 0 | T25: 0 | U25: 0 | V25: 0
E26: Total water resources revenue adjustments | G26: £m | H26: =SUM(J26:V26) -> 0.9780546062 | J26: =SUM(J23:J25) -> 0 | K26: 0 | L26: 0 | M26: 0 | N26: 0 | O26: 0 | P26: 0 | Q26: 0 | R26: 0.1845098471 | S26: 0.1898975347 | T26: 0.1954425427 | U26: 0.2011653271 | V26: 0.2070393546
E28: =E$10 -> Water resources revenue adjustment active | F28: =F$10 -> 0 | G28: £m | H28: 0.9780546062 | I28: 0 | J28: 0 | K28: 0 | L28: 0 | M28: 0 | N28: 0 | O28: 0 | P28: 0 | Q28: 0 | R28: 0.1845098471 | S28: 0.1898975347 | T28: 0.1954425427 | U28: 0.2011653271 | V28: 0.2070393546
E29: =E$26 -> Total water resources revenue adjustments | F29: =F$26 -> 0 | G29: £m | H29: 0.9780546062 | I29: 0 | J29: 0 | K29: 0 | L29: 0 | M29: 0 | N29: 0 | O29: 0 | P29: 0 | Q29: 0 | R29: 0.1845098471 | S29: 0.1898975347 | T29: 0.1954425427 | U29: 0.2011653271 | V29: 0.2070393546
E30: Water resources total profiling adjustment check | F30: =IF(SUM(J30:V30)<>0, 1, 0) -> 0 | G30: Check | J30: =IF(J28 = J29, 0, 1) -> 0 | K30: 0 | L30: 0 | M30: 0 | N30: 0 | O30: 0 | P30: 0 | Q30: 0 | R30: 0 | S30: 0 | T30: 0 | U30: 0 | V30: 0
A34: Water Network
E36: =Calc!E$209 -> Water network plus revenue adjustment | F36: =Calc!F$209 -> -13.69217015 | G36: =Calc!G$209 -> £m | H36: =Calc!H$209 -> 0 | I36: =Calc!I$209 -> 0 | J36: =Calc!J$209 -> 0 | K36: =Calc!K$209 -> 0 | L36: =Calc!L$209 -> 0 | M36: =Calc!M$209 -> 0 | N36: =Calc!N$209 -> 0 | O36: =Calc!O$209 -> 0 | P36: =Calc!P$209 -> 0 | Q36: =Calc!Q$209 -> 0 | R36: =Calc!R$209 -> 0 | S36: =Calc!S$209 -> 0 | T36: =Calc!T$209 -> 0 | U36: =Calc!U$209 -> 0 | V36: =Calc!V$209 -> 0
E37: =Profiling!E$242 -> Water network revenue adjustment active | F37: =Profiling!F$242 -> 0 | G37: =Profiling!G$242 -> £m | H37: =Profiling!H$242 -> -14.51596247 | I37: =Profiling!I$242 -> 0 | J37: =Profiling!J$242 -> 0 | K37: =Profiling!K$242 -> 0 | L37: =Profiling!L$242 -> 0 | M37: =Profiling!M$242 -> 0 | N37: =Profiling!N$242 -> 0 | O37: =Profiling!O$242 -> 0 | P37: =Profiling!P$242 -> 0 | Q37: =Profiling!Q$242 -> 0 | R37: =Profiling!R$242 -> -2.738434029 | S37: =Profiling!S$242 -> -2.818396303 | T37: =Profiling!T$242 -> -2.900693475 | U37: =Profiling!U$242 -> -2.985629145 | V37: =Profiling!V$242 -> -3.072809516
E38: Water network profiling proportions | G38: % | J38: =IF(J37 = 0, 0, J37/$F36) -> 0 | K38: 0 | L38: 0 | M38: 0 | N38: 0 | O38: 0 | P38: 0 | Q38: 0 | R38: 0.2 | S38: 0.20584 | T38: 0.211850528 | U38: 0.2180537572 | V38: 0.2244209269
E40: =Calc!E$168 -> Water trading total value of export incentive ~ Water network plus at 2017-18 FYA CPIH deflated price base | F40: =Calc!F$168 -> 0 | G40: =Calc!G$168 -> £m | H40: =Calc!H$168 -> 0 | I40: =Calc!I$168 -> 0 | J40: =Calc!J$168 -> 0 | K40: =Calc!K$168 -> 0 | L40: =Calc!L$168 -> 0 | M40: =Calc!M$168 -> 0 | N40: =Calc!N$168 -> 0 | O40: =Calc!O$168 -> 0 | P40: =Calc!P$168 -> 0 | Q40: =Calc!Q$168 -> 0 | R40: =Calc!R$168 -> 0 | S40: =Calc!S$168 -> 0 | T40: =Calc!T$168 -> 0 | U40: =Calc!U$168 -> 0 | V40: =Calc!V$168 -> 0
E41: =Calc!E$169 -> Water trading total value of import incentive ~ Water network plus at 2017-18 FYA CPIH deflated price base | F41: =Calc!F$169 -> 0 | G41: =Calc!G$169 -> £m | H41: =Calc!H$169 -> 0 | I41: =Calc!I$169 -> 0 | J41: =Calc!J$169 -> 0 | K41: =Calc!K$169 -> 0 | L41: =Calc!L$169 -> 0 | M41: =Calc!M$169 -> 0 | N41: =Calc!N$169 -> 0 | O41: =Calc!O$169 -> 0 | P41: =Calc!P$169 -> 0 | Q41: =Calc!Q$169 -> 0 | R41: =Calc!R$169 -> 0 | S41: =Calc!S$169 -> 0 | T41: =Calc!T$169 -> 0 | U41: =Calc!U$169 -> 0 | V41: =Calc!V$169 -> 0
E42: Water trading total value of incentive ~ Water network at 2017-18 FYA CPIH deflated price base | F42: =SUM(F40:F41) -> 0 | G42: £m | H42: =SUM(J42:V42) -> 0 | J42: =SUM(J40:J41) -> 0 | K42: =SUM(K40:K41) -> 0 | L42: =SUM(L40:L41) -> 0 | M42: =SUM(M40:M41) -> 0 | N42: =SUM(N40:N41) -> 0 | O42: =SUM(O40:O41) -> 0 | P42: =SUM(P40:P41) -> 0 | Q42: =SUM(Q40:Q41) -> 0 | R42: =SUM(R40:R41) -> 0 | S42: =SUM(S40:S41) -> 0 | T42: =SUM(T40:T41) -> 0 | U42: =SUM(U40:U41) -> 0 | V42: =SUM(V40:V41) -> 0
E44: =Calc!E$165 -> ODI in-period revenue adjustment ~ Water network plus at 2017-18 FYA CPIH deflated price base | F44: =Calc!F$165 -> 0.3223227577 | G44: =Calc!G$165 -> £m | H44: =Calc!H$165 -> 0 | I44: =Calc!I$165 -> 0 | J44: =Calc!J$165 -> 0 | K44: =Calc!K$165 -> 0 | L44: =Calc!L$165 -> 0 | M44: =Calc!M$165 -> 0 | N44: =Calc!N$165 -> 0 | O44: =Calc!O$165 -> 0 | P44: =Calc!P$165 -> 0 | Q44: =Calc!Q$165 -> 0 | R44: =Calc!R$165 -> 0 | S44: =Calc!S$165 -> 0 | T44: =Calc!T$165 -> 0 | U44: =Calc!U$165 -> 0 | V44: =Calc!V$165 -> 0
E45: =Calc!E$166 -> ODI end of period revenue adjustment ~ Water network plus at 2017-18 FYA CPIH deflated price base | F45: =Calc!F$166 -> 8.325722115 | G45: =Calc!G$166 -> £m | H45: =Calc!H$166 -> 0 | I45: =Calc!I$166 -> 0 | J45: =Calc!J$166 -> 0 | K45: =Calc!K$166 -> 0 | L45: =Calc!L$166 -> 0 | M45: =Calc!M$166 -> 0 | N45: =Calc!N$166 -> 0 | O45: =Calc!O$166 -> 0 | P45: =Calc!P$166 -> 0 | Q45: =Calc!Q$166 -> 0 | R45: =Calc!R$166 -> 0 | S45: =Calc!S$166 -> 0 | T45: =Calc!T$166 -> 0 | U45: =Calc!U$166 -> 0 | V45: =Calc!V$166 -> 0
E46: =Calc!E$170 -> WRFIM total reward / (penalty) at the end of AMP6 ~ Water network plus at 2017-18 FYA CPIH deflated price base | F46: =Calc!F$170 -> -19.83698406 | G46: =Calc!G$170 -> £m | H46: =Calc!H$170 -> 0 | I46: =Calc!I$170 -> 0 | J46: =Calc!J$170 -> 0 | K46: =Calc!K$170 -> 0 | L46: =Calc!L$170 -> 0 | M46: =Calc!M$170 -> 0 | N46: =Calc!N$170 -> 0 | O46: =Calc!O$170 -> 0 | P46: =Calc!P$170 -> 0 | Q46: =Calc!Q$170 -> 0 | R46: =Calc!R$170 -> 0 | S46: =Calc!S$170 -> 0 | T46: =Calc!T$170 -> 0 | U46: =Calc!U$170 -> 0 | V46: =Calc!V$170 -> 0
E47: =Calc!E$167 -> Water: Totex menu revenue adjustment at 2017-18 FYA CPIH deflated price base | F47: =Calc!F$167 -> -3.360277172 | G47: =Calc!G$167 -> £m | H47: =Calc!H$167 -> 0 | I47: =Calc!I$167 -> 0 | J47: =Calc!J$167 -> 0 | K47: =Calc!K$167 -> 0 | L47: =Calc!L$167 -> 0 | M47: =Calc!M$167 -> 0 | N47: =Calc!N$167 -> 0 | O47: =Calc!O$167 -> 0 | P47: =Calc!P$167 -> 0 | Q47: =Calc!Q$167 -> 0 | R47: =Calc!R$167 -> 0 | S47: =Calc!S$167 -> 0 | T47: =Calc!T$167 -> 0 | U47: =Calc!U$167 -> 0 | V47: =Calc!V$167 -> 0
E48: =Calc!E$164 -> Further 2010-15 reconciliation total adjustment revenue carry forward to PR19 ~ Water network plus at 2017-18 FYA CPIH deflated price base | F48: =Calc!F$164 -> 0.8570462173 | G48: =Calc!G$164 -> £m | H48: =Calc!H$164 -> 0 | I48: =Calc!I$164 -> 0 | J48: =Calc!J$164 -> 0 | K48: =Calc!K$164 -> 0 | L48: =Calc!L$164 -> 0 | M48: =Calc!M$164 -> 0 | N48: =Calc!N$164 -> 0 | O48: =Calc!O$164 -> 0 | P48: =Calc!P$164 -> 0 | Q48: =Calc!Q$164 -> 0 | R48: =Calc!R$164 -> 0 | S48: =Calc!S$164 -> 0 | T48: =Calc!T$164 -> 0 | U48: =Calc!U$164 -> 0 | V48: =Calc!V$164 -> 0
E49: =Calc!E$171 -> Other revenue adjustment - water network plus at 2017-18 FYA CPIH deflated price base | F49: =Calc!F$171 -> 0 | G49: =Calc!G$171 -> £m | H49: =Calc!H$171 -> 0 | I49: =Calc!I$171 -> 0 | J49: =Calc!J$171 -> 0 | K49: =Calc!K$171 -> 0 | L49: =Calc!L$171 -> 0 | M49: =Calc!M$171 -> 0 | N49: =Calc!N$171 -> 0 | O49: =Calc!O$171 -> 0 | P49: =Calc!P$171 -> 0 | Q49: =Calc!Q$171 -> 0 | R49: =Calc!R$171 -> 0 | S49: =Calc!S$171 -> 0 | T49: =Calc!T$171 -> 0 | U49: =Calc!U$171 -> 0 | V49: =Calc!V$171 -> 0
E50: =E$42 -> Water trading total value of incentive ~ Water network at 2017-18 FYA CPIH deflated price base | F50: =F$42 -> 0 | G50: £m | H50: 0 | I50: 0 | J50: 0 | K50: =K$42 -> 0 | L50: 0 | M50: 0 | N50: 0 | O50: 0 | P50: 0 | Q50: 0 | R50: 0 | S50: 0 | T50: 0 | U50: 0 | V50: 0
E52: =E$38 -> Water network profiling proportions | F52: 0 | G52: % | H52: 0 | I52: 0 | J52: 0 | K52: 0 | L52: 0 | M52: 0 | N52: 0 | O52: 0 | P52: 0 | Q52: 0 | R52: 0.2 | S52: 0.20584 | T52: 0.211850528 | U52: 0.2180537572 | V52: 0.2244209269
E54: ODI in-period revenue adjustment ~ Water network plus at 2017-18 FYA CPIH deflated price base | G54: £m | H54: =SUM(J54:V54) -> 0.3417153747 | J54: =$F44 * J$52 -> 0 | K54: 0 | L54: 0 | M54: 0 | N54: 0 | O54: 0 | P54: 0 | Q54: 0 | R54: 0.06446455153 | S54: 0.06634691644 | T54: 0.0682842464 | U54: 0.07028368834 | V54: 0.07233597204
E55: ODI end of period revenue adjustment ~ Water network plus at 2017-18 FYA CPIH deflated price base | G55: £m | H55: 8.826640952 | J55: =$F45 * J$52 -> 0 | K55: 0 | L55: 0 | M55: 0 | N55: 0 | O55: 0 | P55: 0 | Q55: 0 | R55: 1.665144423 | S55: 1.71376664 | T55: 1.763808626 | U55: 1.815454989 | V55: 1.868466274
E56: WRFIM total reward / (penalty) at the end of AMP6 ~ Water network plus at 2017-18 FYA CPIH deflated price base | G56: £m | H56: -21.03048042 | J56: =$F46 * J$52 -> 0 | K56: 0 | L56: 0 | M56: 0 | N56: 0 | O56: 0 | P56: 0 | Q56: 0 | R56: -3.967396813 | S56: -4.0832448 | T56: -4.202475548 | U56: -4.325528907 | V56: -4.451834351
E57: Water: Totex menu revenue adjustment at 2017-18 FYA CPIH deflated price base | G57: £m | H57: -3.562448961 | J57: =$F47 * J$52 -> 0 | K57: =$F47 * K$52 -> 0 | L57: 0 | M57: 0 | N57: 0 | O57: 0 | P57: 0 | Q57: 0 | R57: =$F47 * R$52 -> -0.6720554344 | S57: -0.6916794531 | T57: -0.7118764931 | U57: -0.7327210626 | V57: -0.7541165176
E58: Further 2010-15 reconciliation total adjustment revenue carry forward to PR19 ~ Water network plus at 2017-18 FYA CPIH deflated price base | G58: £m | H58: 0.9086105847 | J58: =$F48 * J$52 -> 0 | K58: =$F48 * K$52 -> 0 | L58: 0 | M58: 0 | N58: 0 | O58: 0 | P58: 0 | Q58: 0 | R58: =$F48 * R$52 -> 0.1714092435 | S58: 0.1764143934 | T58: 0.1815656936 | U58: 0.1868821478 | V58: 0.1923391065
E59: Other revenue adjustment - water network plus at 2017-18 FYA CPIH deflated price base | G59: £m | H59: =SUM(J59:V59) -> 0 | J59: =$F49 * J$52 -> 0 | K59: =$F49 * K$52 -> 0 | L59: 0 | M59: 0 | N59: 0 | O59: 0 | P59: 0 | Q59: 0 | R59: 0 | S59: 0 | T59: 0 | U59: 0 | V59: 0
E60: Water trading total value of incentive ~ Water network plus at 2017-18 FYA CPIH deflated price base | G60: £m | H60: 0 | J60: =$F50 * J$52 -> 0 | K60: =$F50 * K$52 -> 0 | L60: 0 | M60: 0 | N60: 0 | O60: 0 | P60: 0 | Q60: 0 | R60: =$F50 * R$52 -> 0 | S60: 0 | T60: 0 | U60: 0 | V60: 0
E61: Total water network revenue adjustments | G61: £m | H61: -14.51596247 | J61: =SUM(J54:J60) -> 0 | K61: =SUM(K54:K60) -> 0 | L61: 0 | M61: 0 | N61: 0 | O61: 0 | P61: 0 | Q61: 0 | R61: =SUM(R54:R60) -> -2.738434029 | S61: =SUM(S54:S60) -> -2.818396303 | T61: -2.900693475 | U61: -2.985629145 | V61: -3.072809516
E63: =E$37 -> Water network revenue adjustment active | F63: =F$37 -> 0 | G63: =G$37 -> £m | H63: -14.51596247 | I63: 0 | J63: =J$37 -> 0 | K63: 0 | L63: 0 | M63: 0 | N63: 0 | O63: 0 | P63: 0 | Q63: 0 | R63: =R$37 -> -2.738434029 | S63: -2.818396303 | T63: -2.900693475 | U63: -2.985629145 | V63: -3.072809516
E64: =E$61 -> Total water network revenue adjustments | F64: =F$61 -> 0 | G64: =G$61 -> £m | H64: -14.51596247 | I64: 0 | J64: =J$61 -> 0 | K64: 0 | L64: 0 | M64: 0 | N64: 0 | O64: 0 | P64: 0 | Q64: 0 | R64: =R$61 -> -2.738434029 | S64: -2.818396303 | T64: -2.900693475 | U64: -2.985629145 | V64: -3.072809516
E65: Water network total profiling adjustment check | F65: =IF(SUM(J65:V65)<>0, 1, 0) -> 0 | G65: Check | J65: =IF(J63 = J64, 0, 1) -> 0 | K65: 0 | L65: 0 | M65: 0 | N65: 0 | O65: 0 | P65: 0 | Q65: 0 | R65: 0 | S65: 0 | T65: 0 | U65: 0 | V65: 0
A69: Wastewater Network
E71: =Calc!E$223 -> Wastewater network plus revenue adjustment | F71: =Calc!F$223 -> -18.45264193 | G71: =Calc!G$223 -> £m | H71: =Calc!H$223 -> 0 | I71: =Calc!I$223 -> 0 | J71: =Calc!J$223 -> 0 | K71: =Calc!K$223 -> 0 | L71: =Calc!L$223 -> 0 | M71: =Calc!M$223 -> 0 | N71: =Calc!N$223 -> 0 | O71: =Calc!O$223 -> 0 | P71: =Calc!P$223 -> 0 | Q71: =Calc!Q$223 -> 0 | R71: =Calc!R$223 -> 0 | S71: =Calc!S$223 -> 0 | T71: =Calc!T$223 -> 0 | U71: =Calc!U$223 -> 0 | V71: =Calc!V$223 -> 0
E72: =Profiling!E$244 -> Wastewater network revenue adjustment active | F72: =Profiling!F$244 -> 0 | G72: =Profiling!G$244 -> £m | H72: =Profiling!H$244 -> -19.56284904 | I72: =Profiling!I$244 -> 0 | J72: =Profiling!J$244 -> 0 | K72: =Profiling!K$244 -> 0 | L72: =Profiling!L$244 -> 0 | M72: =Profiling!M$244 -> 0 | N72: =Profiling!N$244 -> 0 | O72: =Profiling!O$244 -> 0 | P72: =Profiling!P$244 -> 0 | Q72: =Profiling!Q$244 -> 0 | R72: =Profiling!R$244 -> -3.690528385 | S72: =Profiling!S$244 -> -3.798291814 | T72: =Profiling!T$244 -> -3.909201935 | U72: =Profiling!U$244 -> -4.023667902 | V72: =Profiling!V$244 -> -4.141159005
E73: Wastewater network profiling proportions | G73: % | J73: =IF(J72 = 0, 0, J72/$F71) -> 0 | K73: 0 | L73: 0 | M73: 0 | N73: 0 | O73: 0 | P73: 0 | Q73: 0 | R73: 0.2 | S73: 0.20584 | T73: 0.211850528 | U73: 0.2180537572 | V73: 0.2244209269
E75: =Calc!E$175 -> ODI in-period revenue adjustment ~ Wastewater network plus at 2017-18 FYA CPIH deflated price base | F75: =Calc!F$175 -> -1.01252626 | G75: =Calc!G$175 -> £m | H75: =Calc!H$175 -> 0 | I75: =Calc!I$175 -> 0 | J75: =Calc!J$175 -> 0 | K75: =Calc!K$175 -> 0 | L75: =Calc!L$175 -> 0 | M75: =Calc!M$175 -> 0 | N75: =Calc!N$175 -> 0 | O75: =Calc!O$175 -> 0 | P75: =Calc!P$175 -> 0 | Q75: =Calc!Q$175 -> 0 | R75: =Calc!R$175 -> 0 | S75: =Calc!S$175 -> 0 | T75: =Calc!T$175 -> 0 | U75: =Calc!U$175 -> 0 | V75: =Calc!V$175 -> 0
E76: =Calc!E$176 -> ODI end of period revenue adjustment ~ Wastewater network plus at 2017-18 FYA CPIH deflated price base | F76: =Calc!F$176 -> 0 | G76: =Calc!G$176 -> £m | H76: =Calc!H$176 -> 0 | I76: =Calc!I$176 -> 0 | J76: =Calc!J$176 -> 0 | K76: =Calc!K$176 -> 0 | L76: =Calc!L$176 -> 0 | M76: =Calc!M$176 -> 0 | N76: =Calc!N$176 -> 0 | O76: =Calc!O$176 -> 0 | P76: =Calc!P$176 -> 0 | Q76: =Calc!Q$176 -> 0 | R76: =Calc!R$176 -> 0 | S76: =Calc!S$176 -> 0 | T76: =Calc!T$176 -> 0 | U76: =Calc!U$176 -> 0 | V76: =Calc!V$176 -> 0
E77: =Calc!E$178 -> WRFIM total reward / (penalty) at the end of AMP6 ~ Wastewater network plus at 2017-18 FYA CPIH deflated price base | F77: =Calc!F$178 -> -20.71983428 | G77: =Calc!G$178 -> £m | H77: =Calc!H$178 -> 0 | I77: =Calc!I$178 -> 0 | J77: =Calc!J$178 -> 0 | K77: =Calc!K$178 -> 0 | L77: =Calc!L$178 -> 0 | M77: =Calc!M$178 -> 0 | N77: =Calc!N$178 -> 0 | O77: =Calc!O$178 -> 0 | P77: =Calc!P$178 -> 0 | Q77: =Calc!Q$178 -> 0 | R77: =Calc!R$178 -> 0 | S77: =Calc!S$178 -> 0 | T77: =Calc!T$178 -> 0 | U77: =Calc!U$178 -> 0 | V77: =Calc!V$178 -> 0
E78: =Calc!E$177 -> Wastewater: Totex menu revenue adjustment at 2017-18 FYA CPIH deflated price base | F78: =Calc!F$177 -> 1.823000687 | G78: =Calc!G$177 -> £m | H78: =Calc!H$177 -> 0 | I78: =Calc!I$177 -> 0 | J78: =Calc!J$177 -> 0 | K78: =Calc!K$177 -> 0 | L78: =Calc!L$177 -> 0 | M78: =Calc!M$177 -> 0 | N78: =Calc!N$177 -> 0 | O78: =Calc!O$177 -> 0 | P78: =Calc!P$177 -> 0 | Q78: =Calc!Q$177 -> 0 | R78: =Calc!R$177 -> 0 | S78: =Calc!S$177 -> 0 | T78: =Calc!T$177 -> 0 | U78: =Calc!U$177 -> 0 | V78: =Calc!V$177 -> 0
E79: =Calc!E$174 -> Further 2010-15 reconciliation total adjustment revenue carry forward to PR19 ~ Wastewater network plus at 2017-18 FYA CPIH deflated price base | F79: =Calc!F$174 -> 1.456717924 | G79: =Calc!G$174 -> £m | H79: =Calc!H$174 -> 0 | I79: =Calc!I$174 -> 0 | J79: =Calc!J$174 -> 0 | K79: =Calc!K$174 -> 0 | L79: =Calc!L$174 -> 0 | M79: =Calc!M$174 -> 0 | N79: =Calc!N$174 -> 0 | O79: =Calc!O$174 -> 0 | P79: =Calc!P$174 -> 0 | Q79: =Calc!Q$174 -> 0 | R79: =Calc!R$174 -> 0 | S79: =Calc!S$174 -> 0 | T79: =Calc!T$174 -> 0 | U79: =Calc!U$174 -> 0 | V79: =Calc!V$174 -> 0
E80: =Calc!E$179 -> Other revenue adjustment - wastewater network plus at 2017-18 FYA CPIH deflated price base | F80: =Calc!F$179 -> 0 | G80: =Calc!G$179 -> £m | H80: =Calc!H$179 -> 0 | I80: =Calc!I$179 -> 0 | J80: =Calc!J$179 -> 0 | K80: =Calc!K$179 -> 0 | L80: =Calc!L$179 -> 0 | M80: =Calc!M$179 -> 0 | N80: =Calc!N$179 -> 0 | O80: =Calc!O$179 -> 0 | P80: =Calc!P$179 -> 0 | Q80: =Calc!Q$179 -> 0 | R80: =Calc!R$179 -> 0 | S80: =Calc!S$179 -> 0 | T80: =Calc!T$179 -> 0 | U80: =Calc!U$179 -> 0 | V80: =Calc!V$179 -> 0
E82: =E$73 -> Wastewater network profiling proportions | F82: 0 | G82: % | H82: 0 | I82: 0 | J82: 0 | K82: 0 | L82: 0 | M82: 0 | N82: 0 | O82: 0 | P82: 0 | Q82: 0 | R82: 0.2 | S82: 0.20584 | T82: 0.211850528 | U82: 0.2180537572 | V82: 0.2244209269
E84: ODI in-period revenue adjustment ~ Wastewater network at 2017-18 FYA CPIH deflated price base | G84: £m | H84: =SUM(J84:V84) -> -1.073445117 | J84: =$F75 * J$82 -> 0 | K84: 0 | L84: 0 | M84: 0 | N84: 0 | O84: 0 | P84: 0 | Q84: 0 | R84: -0.202505252 | S84: -0.2084184053 | T84: -0.2145042228 | U84: -0.2207851552 | V84: -0.2272320818
E85: ODI end of period revenue adjustment ~ Wastewater network at 2017-18 FYA CPIH deflated price base | G85: £m | H85: 0 | J85: =$F76 * J$82 -> 0 | K85: 0 | L85: 0 | M85: 0 | N85: 0 | O85: 0 | P85: 0 | Q85: 0 | R85: 0 | S85: 0 | T85: 0 | U85: 0 | V85: 0
E86: WRFIM total reward / (penalty) at the end of AMP6 ~ Wastewater network at 2017-18 FYA CPIH deflated price base | G86: £m | H86: -21.9664475 | J86: =$F77 * J$82 -> 0 | K86: 0 | L86: 0 | M86: 0 | N86: 0 | O86: 0 | P86: 0 | Q86: 0 | R86: -4.143966855 | S86: -4.264970687 | T86: -4.389507831 | U86: -4.518037713 | V86: -4.649964414
E87: Wastewater: Totex menu revenue adjustment at 2017-18 FYA CPIH deflated price base | G87: £m | H87: 1.93268191 | J87: =$F78 * J$82 -> 0 | K87: 0 | L87: 0 | M87: 0 | N87: 0 | O87: 0 | P87: 0 | Q87: 0 | R87: 0.3646001374 | S87: 0.3752464614 | T87: 0.3862036581 | U87: 0.3975121492 | V87: 0.4091195039
E88: Further 2010-15 reconciliation total adjustment revenue carry forward to PR19 ~ Wastewater network at 2017-18 FYA CPIH deflated price base | G88: £m | H88: 1.544361667 | J88: =$F79 * J$82 -> 0 | K88: 0 | L88: 0 | M88: 0 | N88: 0 | O88: 0 | P88: 0 | Q88: 0 | R88: 0.2913435847 | S88: 0.2998508174 | T88: 0.3086064613 | U88: 0.3176428165 | V88: 0.3269179867
E89: Other revenue adjustment - wastewater network plus at 2017-18 FYA CPIH deflated price base | G89: £m | H89: =SUM(J89:V89) -> 0 | J89: =$F80 * J$82 -> 0 | K89: =$F80 * K$82 -> 0 | L89: =$F80 * L$82 -> 0 | M89: 0 | N89: 0 | O89: 0 | P89: 0 | Q89: 0 | R89: 0 | S89: 0 | T89: 0 | U89: 0 | V89: 0
E90: Total wastewater network revenue adjustments | G90: £m | H90: -19.56284904 | J90: =SUM(J84:J89) -> 0 | K90: =SUM(K84:K89) -> 0 | L90: 0 | M90: 0 | N90: 0 | O90: 0 | P90: 0 | Q90: 0 | R90: -3.690528385 | S90: =SUM(S84:S89) -> -3.798291814 | T90: -3.909201935 | U90: -4.023667902 | V90: -4.141159005
E92: =E$72 -> Wastewater network revenue adjustment active | F92: =F$72 -> 0 | G92: £m | H92: -19.56284904 | I92: 0 | J92: 0 | K92: 0 | L92: 0 | M92: 0 | N92: 0 | O92: 0 | P92: 0 | Q92: 0 | R92: -3.690528385 | S92: -3.798291814 | T92: -3.909201935 | U92: -4.023667902 | V92: -4.141159005
E93: =E$90 -> Total wastewater network revenue adjustments | F93: =F$90 -> 0 | G93: £m | H93: -19.56284904 | I93: 0 | J93: 0 | K93: 0 | L93: 0 | M93: 0 | N93: 0 | O93: 0 | P93: 0 | Q93: 0 | R93: -3.690528385 | S93: -3.798291814 | T93: -3.909201935 | U93: -4.023667902 | V93: -4.141159005
E94: Wastewater network total profiling adjustment check | F94: =IF(SUM(J94:V94)<>0, 1, 0) -> 0 | G94: Check | J94: =IF(J92 = J93, 0, 1) -> 0 | K94: 0 | L94: 0 | M94: 0 | N94: 0 | O94: 0 | P94: 0 | Q94: 0 | R94: =IF(R92 = R93, 0, 1) -> 0 | S94: 0 | T94: 0 | U94: 0 | V94: 0
A97: Bioresources
E99: =Calc!E214 -> Bioresources revenue adjustment | F99: =Calc!F214 -> 0 | G99: =Calc!G214 -> £m | H99: =Calc!H214 -> 0 | I99: =Calc!I214 -> 0 | J99: =Calc!J214 -> 0 | K99: =Calc!K214 -> 0 | L99: =Calc!L214 -> 0 | M99: =Calc!M214 -> 0 | N99: =Calc!N214 -> 0 | O99: =Calc!O214 -> 0 | P99: =Calc!P214 -> 0 | Q99: =Calc!Q214 -> 0 | R99: =Calc!R214 -> 0 | S99: =Calc!S214 -> 0 | T99: =Calc!T214 -> 0 | U99: =Calc!U214 -> 0 | V99: =Calc!V214 -> 0
E100: =Profiling!E$243 -> Bioresources revenue adjustment active | F100: =Profiling!F$243 -> 0 | G100: =Profiling!G$243 -> £m | H100: =Profiling!H$243 -> 0 | I100: =Profiling!I$243 -> 0 | J100: =Profiling!J$243 -> 0 | K100: =Profiling!K$243 -> 0 | L100: =Profiling!L$243 -> 0 | M100: =Profiling!M$243 -> 0 | N100: =Profiling!N$243 -> 0 | O100: =Profiling!O$243 -> 0 | P100: =Profiling!P$243 -> 0 | Q100: =Profiling!Q$243 -> 0 | R100: =Profiling!R$243 -> 0 | S100: =Profiling!S$243 -> 0 | T100: =Profiling!T$243 -> 0 | U100: =Profiling!U$243 -> 0 | V100: =Profiling!V$243 -> 0
E101: Bioresources profiling proportions | G101: % | J101: =IF(J100 = 0, 0, J100/$F99) -> 0 | K101: 0 | L101: 0 | M101: 0 | N101: 0 | O101: 0 | P101: 0 | Q101: 0 | R101: 0 | S101: 0 | T101: 0 | U101: 0 | V101: 0
E103: =Calc!E$172 -> ODI in-period revenue adjustment ~ Bioresources at 2017-18 FYA CPIH deflated price base | F103: =Calc!F$172 -> 0 | G103: =Calc!G$172 -> £m | H103: =Calc!H$172 -> 0 | I103: =Calc!I$172 -> 0 | J103: =Calc!J$172 -> 0 | K103: =Calc!K$172 -> 0 | L103: =Calc!L$172 -> 0 | M103: =Calc!M$172 -> 0 | N103: =Calc!N$172 -> 0 | O103: =Calc!O$172 -> 0 | P103: =Calc!P$172 -> 0 | Q103: =Calc!Q$172 -> 0 | R103: =Calc!R$172 -> 0 | S103: =Calc!S$172 -> 0 | T103: =Calc!T$172 -> 0 | U103: =Calc!U$172 -> 0 | V103: =Calc!V$172 -> 0
E104: =Calc!E$173 -> ODI end of period revenue adjustment ~ Bioresources at 2017-18 FYA CPIH deflated price base | F104: =Calc!F$173 -> 0 | G104: =Calc!G$173 -> £m | H104: =Calc!H$173 -> 0 | I104: =Calc!I$173 -> 0 | J104: =Calc!J$173 -> 0 | K104: =Calc!K$173 -> 0 | L104: =Calc!L$173 -> 0 | M104: =Calc!M$173 -> 0 | N104: =Calc!N$173 -> 0 | O104: =Calc!O$173 -> 0 | P104: =Calc!P$173 -> 0 | Q104: =Calc!Q$173 -> 0 | R104: =Calc!R$173 -> 0 | S104: =Calc!S$173 -> 0 | T104: =Calc!T$173 -> 0 | U104: =Calc!U$173 -> 0 | V104: =Calc!V$173 -> 0
E106: =E$101 -> Bioresources profiling proportions | F106: 0 | G106: % | H106: 0 | I106: 0 | J106: 0 | K106: 0 | L106: 0 | M106: 0 | N106: 0 | O106: 0 | P106: 0 | Q106: 0 | R106: 0 | S106: 0 | T106: 0 | U106: 0 | V106: 0
E108: ODI in-period revenue adjustment ~ Bioresources at 2017-18 FYA CPIH deflated price base | G108: £m | H108: =SUM(J108:V108) -> 0 | J108: =$F103 * J$106 -> 0 | K108: 0 | L108: 0 | M108: 0 | N108: 0 | O108: 0 | P108: 0 | Q108: 0 | R108: 0 | S108: 0 | T108: 0 | U108: 0 | V108: 0
E109: ODI end of period revenue adjustment ~ Bioresources at 2017-18 FYA CPIH deflated price base | G109: £m | H109: =SUM(J109:V109) -> 0 | J109: =$F104 * J$106 -> 0 | K109: 0 | L109: 0 | M109: 0 | N109: 0 | O109: 0 | P109: 0 | Q109: 0 | R109: 0 | S109: 0 | T109: 0 | U109: 0 | V109: 0
E110: Total bioresources revenue adjustments | G110: £m | H110: =SUM(J110:V110) -> 0 | J110: =SUM(J108:J109) -> 0 | K110: 0 | L110: 0 | M110: 0 | N110: 0 | O110: 0 | P110: 0 | Q110: 0 | R110: 0 | S110: 0 | T110: 0 | U110: 0 | V110: 0
E112: =E$100 -> Bioresources revenue adjustment active | F112: =F$100 -> 0 | G112: £m | H112: 0 | I112: 0 | J112: 0 | K112: 0 | L112: 0 | M112: 0 | N112: 0 | O112: 0 | P112: 0 | Q112: 0 | R112: 0 | S112: 0 | T112: 0 | U112: 0 | V112: 0
E113: =E$110 -> Total bioresources revenue adjustments | F113: =F$110 -> 0 | G113: £m | H113: 0 | I113: 0 | J113: 0 | K113: 0 | L113: 0 | M113: 0 | N113: 0 | O113: 0 | P113: 0 | Q113: 0 | R113: 0 | S113: 0 | T113: 0 | U113: 0 | V113: 0
E114: Bioresources total profiling adjustment check | F114: =IF(SUM(J114:V114)<>0, 1, 0) -> 0 | G114: Check | J114: =IF(J112 = J113, 0, 1) -> 0 | K114: 0 | L114: 0 | M114: 0 | N114: 0 | O114: 0 | P114: 0 | Q114: 0 | R114: 0 | S114: 0 | T114: 0 | U114: 0 | V114: 0
A117: Dummy Control
E119: =Calc!E$228 -> Dummy control revenue adjustment | F119: =Calc!F$228 -> 0 | G119: =Calc!G$228 -> £m | H119: =Calc!H$228 -> 0 | I119: =Calc!I$228 -> 0 | J119: =Calc!J$228 -> 0 | K119: =Calc!K$228 -> 0 | L119: =Calc!L$228 -> 0 | M119: =Calc!M$228 -> 0 | N119: =Calc!N$228 -> 0 | O119: =Calc!O$228 -> 0 | P119: =Calc!P$228 -> 0 | Q119: =Calc!Q$228 -> 0 | R119: =Calc!R$228 -> 0 | S119: =Calc!S$228 -> 0 | T119: =Calc!T$228 -> 0 | U119: =Calc!U$228 -> 0 | V119: =Calc!V$228 -> 0
E120: =Profiling!E$245 -> Dummy control revenue adjustment active | F120: =Profiling!F$245 -> 0 | G120: =Profiling!G$245 -> £m | H120: =Profiling!H$245 -> 0 | I120: =Profiling!I$245 -> 0 | J120: =Profiling!J$245 -> 0 | K120: =Profiling!K$245 -> 0 | L120: =Profiling!L$245 -> 0 | M120: =Profiling!M$245 -> 0 | N120: =Profiling!N$245 -> 0 | O120: =Profiling!O$245 -> 0 | P120: =Profiling!P$245 -> 0 | Q120: =Profiling!Q$245 -> 0 | R120: =Profiling!R$245 -> 0 | S120: =Profiling!S$245 -> 0 | T120: =Profiling!T$245 -> 0 | U120: =Profiling!U$245 -> 0 | V120: =Profiling!V$245 -> 0
E121: Dummy profiling proportions | G121: % | J121: =IF(J120 = 0, 0, J120/$F119) -> 0 | K121: 0 | L121: 0 | M121: 0 | N121: 0 | O121: 0 | P121: 0 | Q121: 0 | R121: 0 | S121: 0 | T121: 0 | U121: 0 | V121: 0
E123: =Calc!E$180 -> Dummy: revenue adjustment from totex menu model at 2017-18 FYA CPIH deflated price base | F123: =Calc!F$180 -> 0 | G123: =Calc!G$180 -> £m | H123: =Calc!H$180 -> 0 | I123: =Calc!I$180 -> 0 | J123: =Calc!J$180 -> 0 | K123: =Calc!K$180 -> 0 | L123: =Calc!L$180 -> 0 | M123: =Calc!M$180 -> 0 | N123: =Calc!N$180 -> 0 | O123: =Calc!O$180 -> 0 | P123: =Calc!P$180 -> 0 | Q123: =Calc!Q$180 -> 0 | R123: =Calc!R$180 -> 0 | S123: =Calc!S$180 -> 0 | T123: =Calc!T$180 -> 0 | U123: =Calc!U$180 -> 0 | V123: =Calc!V$180 -> 0
E124: =Calc!E$181 -> WRFIM total reward / (penalty) at the end of AMP6 ~ Dummy at 2017-18 FYA CPIH deflated price base | F124: =Calc!F$181 -> 0 | G124: =Calc!G$181 -> £m | H124: =Calc!H$181 -> 0 | I124: =Calc!I$181 -> 0 | J124: =Calc!J$181 -> 0 | K124: =Calc!K$181 -> 0 | L124: =Calc!L$181 -> 0 | M124: =Calc!M$181 -> 0 | N124: =Calc!N$181 -> 0 | O124: =Calc!O$181 -> 0 | P124: =Calc!P$181 -> 0 | Q124: =Calc!Q$181 -> 0 | R124: =Calc!R$181 -> 0 | S124: =Calc!S$181 -> 0 | T124: =Calc!T$181 -> 0 | U124: =Calc!U$181 -> 0 | V124: =Calc!V$181 -> 0
E126: =E$121 -> Dummy profiling proportions | F126: 0 | G126: % | H126: 0 | I126: 0 | J126: 0 | K126: 0 | L126: 0 | M126: 0 | N126: 0 | O126: 0 | P126: 0 | Q126: 0 | R126: 0 | S126: 0 | T126: 0 | U126: 0 | V126: 0
E128: Dummy: revenue adjustment from totex menu model at 2017-18 FYA CPIH deflated price base | G128: £m | H128: =SUM(J128:V128) -> 0 | J128: =$F123 * J$126 -> 0 | K128: 0 | L128: 0 | M128: 0 | N128: 0 | O128: 0 | P128: 0 | Q128: 0 | R128: 0 | S128: 0 | T128: 0 | U128: 0 | V128: 0
E129: WRFIM total reward / (penalty) at the end of AMP6 ~ Dummy at 2017-18 FYA CPIH deflated price base | G129: £m | H129: =SUM(J129:V129) -> 0 | J129: =$F124 * J$126 -> 0 | K129: 0 | L129: 0 | M129: 0 | N129: 0 | O129: 0 | P129: 0 | Q129: 0 | R129: 0 | S129: 0 | T129: 0 | U129: 0 | V129: 0
E130: Total dummy revenue adjustments | G130: £m | H130: =SUM(J130:V130) -> 0 | J130: =SUM(J128:J129) -> 0 | K130: 0 | L130: 0 | M130: 0 | N130: 0 | O130: 0 | P130: 0 | Q130: 0 | R130: 0 | S130: 0 | T130: 0 | U130: 0 | V130: 0
E132: =E$120 -> Dummy control revenue adjustment active | F132: =F$120 -> 0 | G132: £m | H132: 0 | I132: 0 | J132: 0 | K132: 0 | L132: 0 | M132: 0 | N132: 0 | O132: 0 | P132: 0 | Q132: 0 | R132: 0 | S132: 0 | T132: 0 | U132: 0 | V132: 0
E133: =E$130 -> Total dummy revenue adjustments | F133: =F$130 -> 0 | G133: £m | H133: 0 | I133: 0 | J133: 0 | K133: 0 | L133: 0 | M133: 0 | N133: 0 | O133: 0 | P133: 0 | Q133: 0 | R133: 0 | S133: 0 | T133: 0 | U133: 0 | V133: 0
E134: Dummy control total profiling adjustment check | F134: =IF(SUM(J134:V134)<>0, 1, 0) -> 0 | G134: Check | J134: =IF(J132 = J133, 0, 1) -> 0 | K134: 0 | L134: 0 | M134: 0 | N134: 0 | O134: 0 | P134: 0 | Q134: 0 | R134: 0 | S134: 0 | T134: 0 | U134: 0 | V134: 0
A136: Retail
E138: =Profiling!E$246 -> Residential retail revenue adjustment active | F138: =Profiling!F$246 -> 0 | G138: =Profiling!G$246 -> £m | H138: =Profiling!H$246 -> -8.931189276 | I138: =Profiling!I$246 -> 0 | J138: =Profiling!J$246 -> 0 | K138: =Profiling!K$246 -> 0 | L138: =Profiling!L$246 -> 0 | M138: =Profiling!M$246 -> 0 | N138: =Profiling!N$246 -> 0 | O138: =Profiling!O$246 -> 0 | P138: =Profiling!P$246 -> 0 | Q138: =Profiling!Q$246 -> 0 | R138: =Profiling!R$246 -> -1.684867448 | S138: =Profiling!S$246 -> -1.734065577 | T138: =Profiling!T$246 -> -1.784700292 | U138: =Profiling!U$246 -> -1.836958387 | V138: =Profiling!V$246 -> -1.890597572
E139: =Profiling!E$247 -> Business retail revenue adjustment active | F139: =Profiling!F$247 -> 0 | G139: =Profiling!G$247 -> £m | H139: =Profiling!H$247 -> 0 | I139: =Profiling!I$247 -> 0 | J139: =Profiling!J$247 -> 0 | K139: =Profiling!K$247 -> 0 | L139: =Profiling!L$247 -> 0 | M139: =Profiling!M$247 -> 0 | N139: =Profiling!N$247 -> 0 | O139: =Profiling!O$247 -> 0 | P139: =Profiling!P$247 -> 0 | Q139: =Profiling!Q$247 -> 0 | R139: =Profiling!R$247 -> 0 | S139: =Profiling!S$247 -> 0 | T139: =Profiling!T$247 -> 0 | U139: =Profiling!U$247 -> 0 | V139: =Profiling!V$247 -> 0
A142: END OF SHEET

Sheet Summary_Output
A1: =RIGHT(CELL("filename", $A$1), LEN(CELL("filename", $A$1)) - SEARCH("]", CELL("filename", $A$1))) -> Summary_Output
E2: =Time!E$25 -> Model period ending | F2: =Checks!F$11 -> 0 | G2: =Checks!G$11 -> Checks | J2: =Time!J$25 -> 2013-03-31 | K2: =Time!K$25 -> 2014-03-31 | L2: =Time!L$25 -> 2015-03-31 | M2: =Time!M$25 -> 2016-03-31 | N2: =Time!N$25 -> 2017-03-31 | O2: =Time!O$25 -> 2018-03-31 | P2: =Time!P$25 -> 2019-03-31 | Q2: =Time!Q$25 -> 2020-03-31 | R2: =Time!R$25 -> 2021-03-31 | S2: =Time!S$25 -> 2022-03-31 | T2: =Time!T$25 -> 2023-03-31 | U2: =Time!U$25 -> 2024-03-31 | V2: =Time!V$25 -> 2025-03-31
E3: =Time!E$80 -> Timeline label | J3: =Time!J$80 -> Pre-Fcst | K3: =Time!K$80 -> Pre-Fcst | L3: =Time!L$80 -> Pre-Fcst | M3: =Time!M$80 -> Pre-Fcst | N3: =Time!N$80 -> Pre-Fcst | O3: =Time!O$80 -> Pre-Fcst | P3: =Time!P$80 -> Pre-Fcst | Q3: =Time!Q$80 -> Pre-Fcst | R3: =Time!R$80 -> Forecast | S3: =Time!S$80 -> Forecast | T3: =Time!T$80 -> Forecast | U3: =Time!U$80 -> Forecast | V3: =Time!V$80 -> Forecast
E4: =Time!E$103 -> Financial year ending | J4: =Time!J$103 -> 2013 | K4: =Time!K$103 -> 2014 | L4: =Time!L$103 -> 2015 | M4: =Time!M$103 -> 2016 | N4: =Time!N$103 -> 2017 | O4: =Time!O$103 -> 2018 | P4: =Time!P$103 -> 2019 | Q4: =Time!Q$103 -> 2020 | R4: =Time!R$103 -> 2021 | S4: =Time!S$103 -> 2022 | T4: =Time!T$103 -> 2023 | U4: =Time!U$103 -> 2024 | V4: =Time!V$103 -> 2025
E5: =Time!E$10 -> Model column counter | F5: Constant | G5: Unit | J5: =Time!J$10 -> 1 | K5: =Time!K$10 -> 2 | L5: =Time!L$10 -> 3 | M5: =Time!M$10 -> 4 | N5: =Time!N$10 -> 5 | O5: =Time!O$10 -> 6 | P5: =Time!P$10 -> 7 | Q5: =Time!Q$10 -> 8 | R5: =Time!R$10 -> 9 | S5: =Time!S$10 -> 10 | T5: =Time!T$10 -> 11 | U5: =Time!U$10 -> 12 | V5: =Time!V$10 -> 13
A7: PR14 REVENUE RECONCILIATION ADJUSTMENTS EXPRESSED IN 2017/18 FYA CPIH DEFLATED PRICE BASE BY TABLE
B9: Table App25
A10: =Calc!A$164 & "_PR19PD011" -> C_APP25004_PR19PD011 | E10: =Calc!E$164 -> Further 2010-15 reconciliation total adjustment revenue carry forward to PR19 ~ Water network plus at 2017-18 FYA CPIH deflated price base | F10: =Calc!F$164 -> 0.8570462173 | G10: =Calc!G$164 -> £m
A11: =Calc!A$174 & "_PR19PD011" -> C_APP25006_PR19PD011 | E11: =Calc!E$174 -> Further 2010-15 reconciliation total adjustment revenue carry forward to PR19 ~ Wastewater network plus at 2017-18 FYA CPIH deflated price base | F11: =Calc!F$174 -> 1.456717924 | G11: =Calc!G$174 -> £m
B13: Table App27
A14: =Calc!A$160 & "_PR19PD011" -> C_APP27034_PR19PD011 | E14: =Calc!E$160 -> ODI in-period revenue adjustment ~ Water resources at 2017-18 FYA CPIH deflated price base | F14: =Calc!F$160 -> 0 | G14: =Calc!G$160 -> £m
A15: =Calc!A$165 & "_PR19PD011" -> C_APP27035_PR19PD011 | E15: =Calc!E$165 -> ODI in-period revenue adjustment ~ Water network plus at 2017-18 FYA CPIH deflated price base | F15: =Calc!F$165 -> 0.3223227577 | G15: =Calc!G$165 -> £m
A16: =Calc!A$172 & "_PR19PD011" -> C_APP27037_PR19PD011 | E16: =Calc!E$172 -> ODI in-period revenue adjustment ~ Bioresources at 2017-18 FYA CPIH deflated price base | F16: =Calc!F$172 -> 0 | G16: =Calc!G$172 -> £m
A17: =Calc!A$175 & "_PR19PD011" -> C_APP27036_PR19PD011 | E17: =Calc!E$175 -> ODI in-period revenue adjustment ~ Wastewater network plus at 2017-18 FYA CPIH deflated price base | F17: =Calc!F$175 -> -1.01252626 | G17: =Calc!G$175 -> £m
A18: =Calc!A$182 & "_PR19PD011" -> C_APP27038_PR19PD011 | E18: =Calc!E$182 -> ODI in-period revenue adjustment ~ Residential retail at 2017-18 FYA CPIH deflated price base | F18: =Calc!F$182 -> 0 | G18: =Calc!G$182 -> £m
A19: =Calc!A$186 & "_PR19PD011" -> C_APP27039_PR19PD011 | E19: =Calc!E$186 -> ODI in-period revenue adjustment ~ Business retail at 2017-18 FYA CPIH deflated price base | F19: =Calc!F$186 -> 0 | G19: =Calc!G$186 -> £m
A21: =Calc!A$161 & "_PR19PD011" -> C_APP27041_PR19PD011 | E21: =Calc!E$161 -> ODI end of period revenue adjustment ~ Water resources at 2017-18 FYA CPIH deflated price base | F21: =Calc!F$161 -> 0.9225492357 | G21: =Calc!G$161 -> £m
A22: =Calc!A$166 & "_PR19PD011" -> C_APP27042_PR19PD011 | E22: =Calc!E$166 -> ODI end of period revenue adjustment ~ Water network plus at 2017-18 FYA CPIH deflated price base | F22: =Calc!F$166 -> 8.325722115 | G22: =Calc!G$166 -> £m
A23: =Calc!A$173 & "_PR19PD011" -> C_APP27044_PR19PD011 | E23: =Calc!E$173 -> ODI end of period revenue adjustment ~ Bioresources at 2017-18 FYA CPIH deflated price base | F23: =Calc!F$173 -> 0 | G23: =Calc!G$173 -> £m
A24: =Calc!A$176 & "_PR19PD011" -> C_APP27043_PR19PD011 | E24: =Calc!E$176 -> ODI end of period revenue adjustment ~ Wastewater network plus at 2017-18 FYA CPIH deflated price base | F24: =Calc!F$176 -> 0 | G24: =Calc!G$176 -> £m
A25: =Calc!A$183 & "_PR19PD011" -> C_APP27045_PR19PD011 | E25: =Calc!E$183 -> ODI end of period revenue adjustment ~ Residential retail at 2017-18 FYA CPIH deflated price base | F25: =Calc!F$183 -> 0 | G25: =Calc!G$183 -> £m
A26: =Calc!A$187 & "_PR19PD011" -> C_APP27046_PR19PD011 | E26: =Calc!E$187 -> ODI end of period revenue adjustment ~ Business retail at 2017-18 FYA CPIH deflated price base | F26: =Calc!F$187 -> 0 | G26: =Calc!G$187 -> £m
B28: Table WS13
A29: =Calc!A$170 & "_PR19PD011" -> C_WS13027_PR19PD011 | E29: =Calc!E$170 -> WRFIM total reward / (penalty) at the end of AMP6 ~ Water network plus at 2017-18 FYA CPIH deflated price base | F29: =Calc!F$170 -> -19.83698406 | G29: =Calc!G$170 -> £m
B31: Table WS15
A32: =Calc!A$167 & "_PR19PD011" -> C_WS15026_PR19PD011 | E32: =Calc!E$167 -> Water: Totex menu revenue adjustment at 2017-18 FYA CPIH deflated price base | F32: =Calc!F$167 -> -3.360277172 | G32: =Calc!G$167 -> £m
B34: Table WS17
A35: =Calc!A$162 & "_PR19PD011" -> C_WS17027_PR19PD011 | E35: =Calc!E$162 -> Water trading total value of export incentive ~ Water resources at 2017-18 FYA CPIH deflated price base | F35: =Calc!F$162 -> 0 | G35: =Calc!G$162 -> £m
A36: =Calc!A$168 & "_PR19PD011" -> C_WS17028_PR19PD011 | E36: =Calc!E$168 -> Water trading total value of export incentive ~ Water network plus at 2017-18 FYA CPIH deflated price base | F36: =Calc!F$168 -> 0 | G36: =Calc!G$168 -> £m
A37: =Calc!A$163 & "_PR19PD011" -> C_WS17030_PR19PD011 | E37: =Calc!E$163 -> Water trading total value of import incentive ~ Water resources at 2017-18 FYA CPIH deflated price base | F37: =Calc!F$163 -> 0 | G37: =Calc!G$163 -> £m
A38: =Calc!A$169 & "_PR19PD011" -> C_WS17031_PR19PD011 | E38: =Calc!E$169 -> Water trading total value of import incentive ~ Water network plus at 2017-18 FYA CPIH deflated price base | F38: =Calc!F$169 -> 0 | G38: =Calc!G$169 -> £m
B40: Table WWS13
A41: =Calc!A$178 & "_PR19PD011" -> C_WWS13027_PR19PD011 | E41: =Calc!E$178 -> WRFIM total reward / (penalty) at the end of AMP6 ~ Wastewater network plus at 2017-18 FYA CPIH deflated price base | F41: =Calc!F$178 -> -20.71983428 | G41: =Calc!G$178 -> £m
B43: Table WWS15
A44: =Calc!A$177 & "_PR19PD011" -> C_WWS15021_PR19PD011 | E44: =Calc!E$177 -> Wastewater: Totex menu revenue adjustment at 2017-18 FYA CPIH deflated price base | F44: =Calc!F$177 -> 1.823000687 | G44: =Calc!G$177 -> £m
B46: Table Dmmy10
A47: =Calc!A$180 & "_PR19PD011" -> C_WWS15021_DMMY_PR19PD011 | E47: =Calc!E$180 -> Dummy: revenue adjustment from totex menu model at 2017-18 FYA CPIH deflated price base | F47: =Calc!F$180 -> 0 | G47: =Calc!G$180 -> £m
B49: Table Dmmy11
A50: =Calc!A$181 & "_PR19PD011" -> C_WWS13027_DMMY_PR19PD011 | E50: =Calc!E$181 -> WRFIM total reward / (penalty) at the end of AMP6 ~ Dummy at 2017-18 FYA CPIH deflated price base | F50: =Calc!F$181 -> 0 | G50: =Calc!G$181 -> £m
B52: Table R9
A53: =Calc!A$184 & "_PR19PD011" -> C_R9046_PR19PD011 | E53: =Calc!E$184 -> Residential retail revenue adjustment at 2017-18 FYA CPIH deflated price base | F53: =Calc!F$184 -> -4.531666866 | G53: =Calc!G$184 -> £m
B55: Table R10
A56: =Calc!A$185 & "_PR19PD011" -> C_R10009_PR19PD011 | E56: =Calc!E$185 -> SIM forecast revenue adjustment at 2017-18 FYA CPIH deflated price base | F56: =Calc!F$185 -> -3.892670373 | G56: =Calc!G$185 -> £m
B58: No table
A59: =Calc!A$171 -> C052 | B59: =Calc!B$171 -> 0 | C59: =Calc!C$171 -> 0 | D59: =Calc!D$171 -> 0 | E59: =Calc!E$171 -> Other revenue adjustment - water network plus at 2017-18 FYA CPIH deflated price base | F59: =Calc!F$171 -> 0 | G59: =Calc!G$171 -> £m
A60: =Calc!A$179 -> C072 | B60: =Calc!B$179 -> 0 | C60: =Calc!C$179 -> 0 | D60: =Calc!D$179 -> 0 | E60: =Calc!E$179 -> Other revenue adjustment - wastewater network plus at 2017-18 FYA CPIH deflated price base | F60: =Calc!F$179 -> 0 | G60: =Calc!G$179 -> £m
A61: =Calc!A$188 -> C102 | B61: =Calc!B$188 -> 0 | C61: =Calc!C$188 -> 0 | D61: =Calc!D$188 -> 0 | E61: =Calc!E$188 -> Non-household SIM adjustment - business retail at 2017-18 FYA CPIH deflated price base | F61: =Calc!F$188 -> 0 | G61: =Calc!G$188 -> £m
A64: SUBTOTALS AS PER PRICE CONTROL FOR REVENUE ADJUSTMENTS
A66: =Calc!A$198 & "_PR19PD011" -> C048_PR19PD011 | E66: =Calc!E$198 -> Water resources revenue adjustment | F66: =Calc!F$198 -> 0.9225492357 | G66: =Calc!G$198 -> £m
A67: =Calc!A$209 & "_PR19PD011" -> C058_PR19PD011 | E67: =Calc!E$209 -> Water network plus revenue adjustment | F67: =Calc!F$209 -> -13.69217015 | G67: =Calc!G$209 -> £m
A68: =Calc!A$214 & "_PR19PD011" -> C068_PR19PD011 | E68: =Calc!E214 -> Bioresources revenue adjustment | F68: =Calc!F214 -> 0 | G68: =Calc!G214 -> £m
A69: =Calc!A$223 & "_PR19PD011" -> C078_PR19PD011 | E69: =Calc!E$223 -> Wastewater network plus revenue adjustment | F69: =Calc!F$223 -> -18.45264193 | G69: =Calc!G$223 -> £m
A70: =Calc!A$228 & "_PR19PD011" -> C088_PR19PD011 | E70: =Calc!E$228 -> Dummy control revenue adjustment | F70: =Calc!F$228 -> 0 | G70: =Calc!G$228 -> £m
A71: =Calc!A$235 & "_PR19PD011" -> C098_PR19PD011 | E71: =Calc!E$235 -> Residential retail revenue adjustment | F71: =Calc!F$235 -> -8.424337239 | G71: =Calc!G$235 -> £m
A72: =Calc!A$241 & "_PR19PD011" -> C108_PR19PD011 | E72: =Calc!E$241 -> Business retail revenue adjustment | F72: =Calc!F$241 -> 0 | G72: =Calc!G$241 -> £m
A75: PROFILES SELECTED
A77: =Profiling!A$241 & "_PR19PD011" -> C049_PR19PD011 | E77: =Profiling!E$241 -> Water resources revenue adjustment active | F77: =Profiling!F$241 -> 0 | G77: =Profiling!G$241 -> £m | H77: =Profiling!H$241 -> 0.9780546062 | I77: =Profiling!I$241 -> 0 | J77: =Profiling!J$241 -> 0 | K77: =Profiling!K$241 -> 0 | L77: =Profiling!L$241 -> 0 | M77: =Profiling!M$241 -> 0 | N77: =Profiling!N$241 -> 0 | O77: =Profiling!O$241 -> 0 | P77: =Profiling!P$241 -> 0 | Q77: =Profiling!Q$241 -> 0 | R77: =Profiling!R$241 -> 0.1845098471 | S77: =Profiling!S$241 -> 0.1898975347 | T77: =Profiling!T$241 -> 0.1954425427 | U77: =Profiling!U$241 -> 0.2011653271 | V77: =Profiling!V$241 -> 0.2070393546
A78: =Profiling!A$242 & "_PR19PD011" -> C059_PR19PD011 | E78: =Profiling!E$242 -> Water network revenue adjustment active | F78: =Profiling!F$242 -> 0 | G78: =Profiling!G$242 -> £m | H78: =Profiling!H$242 -> -14.51596247 | I78: =Profiling!I$242 -> 0 | J78: =Profiling!J$242 -> 0 | K78: =Profiling!K$242 -> 0 | L78: =Profiling!L$242 -> 0 | M78: =Profiling!M$242 -> 0 | N78: =Profiling!N$242 -> 0 | O78: =Profiling!O$242 -> 0 | P78: =Profiling!P$242 -> 0 | Q78: =Profiling!Q$242 -> 0 | R78: =Profiling!R$242 -> -2.738434029 | S78: =Profiling!S$242 -> -2.818396303 | T78: =Profiling!T$242 -> -2.900693475 | U78: =Profiling!U$242 -> -2.985629145 | V78: =Profiling!V$242 -> -3.072809516
A79: =Profiling!A$243 & "_PR19PD011" -> C069_PR19PD011 | E79: =Profiling!E$243 -> Bioresources revenue adjustment active | F79: =Profiling!F$243 -> 0 | G79: =Profiling!G$243 -> £m | H79: =Profiling!H$243 -> 0 | I79: =Profiling!I$243 -> 0 | J79: =Profiling!J$243 -> 0 | K79: =Profiling!K$243 -> 0 | L79: =Profiling!L$243 -> 0 | M79: =Profiling!M$243 -> 0 | N79: =Profiling!N$243 -> 0 | O79: =Profiling!O$243 -> 0 | P79: =Profiling!P$243 -> 0 | Q79: =Profiling!Q$243 -> 0 | R79: =Profiling!R$243 -> 0 | S79: =Profiling!S$243 -> 0 | T79: =Profiling!T$243 -> 0 | U79: =Profiling!U$243 -> 0 | V79: =Profiling!V$243 -> 0
A80: =Profiling!A$244 & "_PR19PD011" -> C079_PR19PD011 | E80: =Profiling!E$244 -> Wastewater network revenue adjustment active | F80: =Profiling!F$244 -> 0 | G80: =Profiling!G$244 -> £m | H80: =Profiling!H$244 -> -19.56284904 | I80: =Profiling!I$244 -> 0 | J80: =Profiling!J$244 -> 0 | K80: =Profiling!K$244 -> 0 | L80: =Profiling!L$244 -> 0 | M80: =Profiling!M$244 -> 0 | N80: =Profiling!N$244 -> 0 | O80: =Profiling!O$244 -> 0 | P80: =Profiling!P$244 -> 0 | Q80: =Profiling!Q$244 -> 0 | R80: =Profiling!R$244 -> -3.690528385 | S80: =Profiling!S$244 -> -3.798291814 | T80: =Profiling!T$244 -> -3.909201935 | U80: =Profiling!U$244 -> -4.023667902 | V80: =Profiling!V$244 -> -4.141159005
A81: =Profiling!A$245 & "_PR19PD011" -> C089_PR19PD011 | E81: =Profiling!E$245 -> Dummy control revenue adjustment active | F81: =Profiling!F$245 -> 0 | G81: =Profiling!G$245 -> £m | H81: =Profiling!H$245 -> 0 | I81: =Profiling!I$245 -> 0 | J81: =Profiling!J$245 -> 0 | K81: =Profiling!K$245 -> 0 | L81: =Profiling!L$245 -> 0 | M81: =Profiling!M$245 -> 0 | N81: =Profiling!N$245 -> 0 | O81: =Profiling!O$245 -> 0 | P81: =Profiling!P$245 -> 0 | Q81: =Profiling!Q$245 -> 0 | R81: =Profiling!R$245 -> 0 | S81: =Profiling!S$245 -> 0 | T81: =Profiling!T$245 -> 0 | U81: =Profiling!U$245 -> 0 | V81: =Profiling!V$245 -> 0
A82: =Profiling!A$246 & "_PR19PD011" -> C099_PR19PD011 | E82: =Profiling!E$246 -> Residential retail revenue adjustment active | F82: =Profiling!F$246 -> 0 | G82: =Profiling!G$246 -> £m | H82: =Profiling!H$246 -> -8.931189276 | I82: =Profiling!I$246 -> 0 | J82: =Profiling!J$246 -> 0 | K82: =Profiling!K$246 -> 0 | L82: =Profiling!L$246 -> 0 | M82: =Profiling!M$246 -> 0 | N82: =Profiling!N$246 -> 0 | O82: =Profiling!O$246 -> 0 | P82: =Profiling!P$246 -> 0 | Q82: =Profiling!Q$246 -> 0 | R82: =Profiling!R$246 -> -1.684867448 | S82: =Profiling!S$246 -> -1.734065577 | T82: =Profiling!T$246 -> -1.784700292 | U82: =Profiling!U$246 -> -1.836958387 | V82: =Profiling!V$246 -> -1.890597572
A83: =Profiling!A$247 & "_PR19PD011" -> C109_PR19PD011 | E83: =Profiling!E$247 -> Business retail revenue adjustment active | F83: =Profiling!F$247 -> 0 | G83: =Profiling!G$247 -> £m | H83: =Profiling!H$247 -> 0 | I83: =Profiling!I$247 -> 0 | J83: =Profiling!J$247 -> 0 | K83: =Profiling!K$247 -> 0 | L83: =Profiling!L$247 -> 0 | M83: =Profiling!M$247 -> 0 | N83: =Profiling!N$247 -> 0 | O83: =Profiling!O$247 -> 0 | P83: =Profiling!P$247 -> 0 | Q83: =Profiling!Q$247 -> 0 | R83: =Profiling!R$247 -> 0 | S83: =Profiling!S$247 -> 0 | T83: =Profiling!T$247 -> 0 | U83: =Profiling!U$247 -> 0 | V83: =Profiling!V$247 -> 0
A86: PROFILED WHOLESALE ADJUSTMENTS FOR FINANCIAL MODEL
A88: C201_PR19PD011 | E88: ='FM Proportion Calc'!E$23 -> ODI in-period revenue adjustment ~ Water resources at 2017-18 FYA CPIH deflated price base | F88: ='FM Proportion Calc'!F$23 -> 0 | G88: ='FM Proportion Calc'!G$23 -> £m | H88: ='FM Proportion Calc'!H$23 -> 0 | I88: ='FM Proportion Calc'!I$23 -> 0 | J88: ='FM Proportion Calc'!J$23 -> 0 | K88: ='FM Proportion Calc'!K$23 -> 0 | L88: ='FM Proportion Calc'!L$23 -> 0 | M88: ='FM Proportion Calc'!M$23 -> 0 | N88: ='FM Proportion Calc'!N$23 -> 0 | O88: ='FM Proportion Calc'!O$23 -> 0 | P88: ='FM Proportion Calc'!P$23 -> 0 | Q88: ='FM Proportion Calc'!Q$23 -> 0 | R88: ='FM Proportion Calc'!R$23 -> 0 | S88: ='FM Proportion Calc'!S$23 -> 0 | T88: ='FM Proportion Calc'!T$23 -> 0 | U88: ='FM Proportion Calc'!U$23 -> 0 | V88: ='FM Proportion Calc'!V$23 -> 0
A89: C202_PR19PD011 | E89: ='FM Proportion Calc'!E$24 -> ODI end of period revenue adjustment ~ Water resources at 2017-18 FYA CPIH deflated price base | F89: ='FM Proportion Calc'!F$24 -> 0 | G89: ='FM Proportion Calc'!G$24 -> £m | H89: ='FM Proportion Calc'!H$24 -> 0.9780546062 | I89: ='FM Proportion Calc'!I$24 -> 0 | J89: ='FM Proportion Calc'!J$24 -> 0 | K89: ='FM Proportion Calc'!K$24 -> 0 | L89: ='FM Proportion Calc'!L$24 -> 0 | M89: ='FM Proportion Calc'!M$24 -> 0 | N89: ='FM Proportion Calc'!N$24 -> 0 | O89: ='FM Proportion Calc'!O$24 -> 0 | P89: ='FM Proportion Calc'!P$24 -> 0 | Q89: ='FM Proportion Calc'!Q$24 -> 0 | R89: ='FM Proportion Calc'!R$24 -> 0.1845098471 | S89: ='FM Proportion Calc'!S$24 -> 0.1898975347 | T89: ='FM Proportion Calc'!T$24 -> 0.1954425427 | U89: ='FM Proportion Calc'!U$24 -> 0.2011653271 | V89: ='FM Proportion Calc'!V$24 -> 0.2070393546
A90: C203_PR19PD011 | E90: ='FM Proportion Calc'!E$25 -> Water trading total value of incentive ~ Water resources at 2017-18 FYA CPIH deflated price base | F90: ='FM Proportion Calc'!F$25 -> 0 | G90: ='FM Proportion Calc'!G$25 -> £m | H90: ='FM Proportion Calc'!H$25 -> 0 | I90: ='FM Proportion Calc'!I$25 -> 0 | J90: ='FM Proportion Calc'!J$25 -> 0 | K90: ='FM Proportion Calc'!K$25 -> 0 | L90: ='FM Proportion Calc'!L$25 -> 0 | M90: ='FM Proportion Calc'!M$25 -> 0 | N90: ='FM Proportion Calc'!N$25 -> 0 | O90: ='FM Proportion Calc'!O$25 -> 0 | P90: ='FM Proportion Calc'!P$25 -> 0 | Q90: ='FM Proportion Calc'!Q$25 -> 0 | R90: ='FM Proportion Calc'!R$25 -> 0 | S90: ='FM Proportion Calc'!S$25 -> 0 | T90: ='FM Proportion Calc'!T$25 -> 0 | U90: ='FM Proportion Calc'!U$25 -> 0 | V90: ='FM Proportion Calc'!V$25 -> 0
A91: C211_PR19PD011 | E91: ='FM Proportion Calc'!E$54 -> ODI in-period revenue adjustment ~ Water network plus at 2017-18 FYA CPIH deflated price base | F91: ='FM Proportion Calc'!F$54 -> 0 | G91: ='FM Proportion Calc'!G$54 -> £m | H91: ='FM Proportion Calc'!H$54 -> 0.3417153747 | I91: ='FM Proportion Calc'!I$54 -> 0 | J91: ='FM Proportion Calc'!J$54 -> 0 | K91: ='FM Proportion Calc'!K$54 -> 0 | L91: ='FM Proportion Calc'!L$54 -> 0 | M91: ='FM Proportion Calc'!M$54 -> 0 | N91: ='FM Proportion Calc'!N$54 -> 0 | O91: ='FM Proportion Calc'!O$54 -> 0 | P91: ='FM Proportion Calc'!P$54 -> 0 | Q91: ='FM Proportion Calc'!Q$54 -> 0 | R91: ='FM Proportion Calc'!R$54 -> 0.06446455153 | S91: ='FM Proportion Calc'!S$54 -> 0.06634691644 | T91: ='FM Proportion Calc'!T$54 -> 0.0682842464 | U91: ='FM Proportion Calc'!U$54 -> 0.07028368834 | V91: ='FM Proportion Calc'!V$54 -> 0.07233597204
A92: C212_PR19PD011 | E92: ='FM Proportion Calc'!E$55 -> ODI end of period revenue adjustment ~ Water network plus at 2017-18 FYA CPIH deflated price base | F92: ='FM Proportion Calc'!F$55 -> 0 | G92: ='FM Proportion Calc'!G$55 -> £m | H92: ='FM Proportion Calc'!H$55 -> 8.826640952 | I92: ='FM Proportion Calc'!I$55 -> 0 | J92: ='FM Proportion Calc'!J$55 -> 0 | K92: ='FM Proportion Calc'!K$55 -> 0 | L92: ='FM Proportion Calc'!L$55 -> 0 | M92: ='FM Proportion Calc'!M$55 -> 0 | N92: ='FM Proportion Calc'!N$55 -> 0 | O92: ='FM Proportion Calc'!O$55 -> 0 | P92: ='FM Proportion Calc'!P$55 -> 0 | Q92: ='FM Proportion Calc'!Q$55 -> 0 | R92: ='FM Proportion Calc'!R$55 -> 1.665144423 | S92: ='FM Proportion Calc'!S$55 -> 1.71376664 | T92: ='FM Proportion Calc'!T$55 -> 1.763808626 | U92: ='FM Proportion Calc'!U$55 -> 1.815454989 | V92: ='FM Proportion Calc'!V$55 -> 1.868466274
A93: C213_PR19PD011 | E93: ='FM Proportion Calc'!E$56 -> WRFIM total reward / (penalty) at the end of AMP6 ~ Water network plus at 2017-18 FYA CPIH deflated price base | F93: ='FM Proportion Calc'!F$56 -> 0 | G93: ='FM Proportion Calc'!G$56 -> £m | H93: ='FM Proportion Calc'!H$56 -> -21.03048042 | I93: ='FM Proportion Calc'!I$56 -> 0 | J93: ='FM Proportion Calc'!J$56 -> 0 | K93: ='FM Proportion Calc'!K$56 -> 0 | L93: ='FM Proportion Calc'!L$56 -> 0 | M93: ='FM Proportion Calc'!M$56 -> 0 | N93: ='FM Proportion Calc'!N$56 -> 0 | O93: ='FM Proportion Calc'!O$56 -> 0 | P93: ='FM Proportion Calc'!P$56 -> 0 | Q93: ='FM Proportion Calc'!Q$56 -> 0 | R93: ='FM Proportion Calc'!R$56 -> -3.967396813 | S93: ='FM Proportion Calc'!S$56 -> -4.0832448 | T93: ='FM Proportion Calc'!T$56 -> -4.202475548 | U93: ='FM Proportion Calc'!U$56 -> -4.325528907 | V93: ='FM Proportion Calc'!V$56 -> -4.451834351
A94: C214_PR19PD011 | E94: ='FM Proportion Calc'!E$57 -> Water: Totex menu revenue adjustment at 2017-18 FYA CPIH deflated price base | F94: ='FM Proportion Calc'!F$57 -> 0 | G94: ='FM Proportion Calc'!G$57 -> £m | H94: ='FM Proportion Calc'!H$57 -> -3.562448961 | I94: ='FM Proportion Calc'!I$57 -> 0 | J94: ='FM Proportion Calc'!J$57 -> 0 | K94: ='FM Proportion Calc'!K$57 -> 0 | L94: ='FM Proportion Calc'!L$57 -> 0 | M94: ='FM Proportion Calc'!M$57 -> 0 | N94: ='FM Proportion Calc'!N$57 -> 0 | O94: ='FM Proportion Calc'!O$57 -> 0 | P94: ='FM Proportion Calc'!P$57 -> 0 | Q94: ='FM Proportion Calc'!Q$57 -> 0 | R94: ='FM Proportion Calc'!R$57 -> -0.6720554344 | S94: ='FM Proportion Calc'!S$57 -> -0.6916794531 | T94: ='FM Proportion Calc'!T$57 -> -0.7118764931 | U94: ='FM Proportion Calc'!U$57 -> -0.7327210626 | V94: ='FM Proportion Calc'!V$57 -> -0.7541165176
A95: C215_PR19PD011 | E95: ='FM Proportion Calc'!E$58 -> Further 2010-15 reconciliation total adjustment revenue carry forward to PR19 ~ Water network plus at 2017-18 FYA CPIH deflated price base | F95: ='FM Proportion Calc'!F$58 -> 0 | G95: ='FM Proportion Calc'!G$58 -> £m | H95: ='FM Proportion Calc'!H$58 -> 0.9086105847 | I95: ='FM Proportion Calc'!I$58 -> 0 | J95: ='FM Proportion Calc'!J$58 -> 0 | K95: ='FM Proportion Calc'!K$58 -> 0 | L95: ='FM Proportion Calc'!L$58 -> 0 | M95: ='FM Proportion Calc'!M$58 -> 0 | N95: ='FM Proportion Calc'!N$58 -> 0 | O95: ='FM Proportion Calc'!O$58 -> 0 | P95: ='FM Proportion Calc'!P$58 -> 0 | Q95: ='FM Proportion Calc'!Q$58 -> 0 | R95: ='FM Proportion Calc'!R$58 -> 0.1714092435 | S95: ='FM Proportion Calc'!S$58 -> 0.1764143934 | T95: ='FM Proportion Calc'!T$58 -> 0.1815656936 | U95: ='FM Proportion Calc'!U$58 -> 0.1868821478 | V95: ='FM Proportion Calc'!V$58 -> 0.1923391065
A96: C216_PR19PD011 | E96: ='FM Proportion Calc'!E$60 -> Water trading total value of incentive ~ Water network plus at 2017-18 FYA CPIH deflated price base | F96: ='FM Proportion Calc'!F$60 -> 0 | G96: ='FM Proportion Calc'!G$60 -> £m | H96: ='FM Proportion Calc'!H$60 -> 0 | I96: ='FM Proportion Calc'!I$60 -> 0 | J96: ='FM Proportion Calc'!J$60 -> 0 | K96: ='FM Proportion Calc'!K$60 -> 0 | L96: ='FM Proportion Calc'!L$60 -> 0 | M96: ='FM Proportion Calc'!M$60 -> 0 | N96: ='FM Proportion Calc'!N$60 -> 0 | O96: ='FM Proportion Calc'!O$60 -> 0 | P96: ='FM Proportion Calc'!P$60 -> 0 | Q96: ='FM Proportion Calc'!Q$60 -> 0 | R96: ='FM Proportion Calc'!R$60 -> 0 | S96: ='FM Proportion Calc'!S$60 -> 0 | T96: ='FM Proportion Calc'!T$60 -> 0 | U96: ='FM Proportion Calc'!U$60 -> 0 | V96: ='FM Proportion Calc'!V$60 -> 0
A97: C217_PR19PD011 | E97: ='FM Proportion Calc'!E$59 -> Other revenue adjustment - water network plus at 2017-18 FYA CPIH deflated price base | F97: ='FM Proportion Calc'!F$59 -> 0 | G97: ='FM Proportion Calc'!G$59 -> £m | H97: ='FM Proportion Calc'!H$59 -> 0 | I97: ='FM Proportion Calc'!I$59 -> 0 | J97: ='FM Proportion Calc'!J$59 -> 0 | K97: ='FM Proportion Calc'!K$59 -> 0 | L97: ='FM Proportion Calc'!L$59 -> 0 | M97: ='FM Proportion Calc'!M$59 -> 0 | N97: ='FM Proportion Calc'!N$59 -> 0 | O97: ='FM Proportion Calc'!O$59 -> 0 | P97: ='FM Proportion Calc'!P$59 -> 0 | Q97: ='FM Proportion Calc'!Q$59 -> 0 | R97: ='FM Proportion Calc'!R$59 -> 0 | S97: ='FM Proportion Calc'!S$59 -> 0 | T97: ='FM Proportion Calc'!T$59 -> 0 | U97: ='FM Proportion Calc'!U$59 -> 0 | V97: ='FM Proportion Calc'!V$59 -> 0
A98: C221_PR19PD011 | E98: ='FM Proportion Calc'!E$84 -> ODI in-period revenue adjustment ~ Wastewater network at 2017-18 FYA CPIH deflated price base | F98: ='FM Proportion Calc'!F$84 -> 0 | G98: ='FM Proportion Calc'!G$84 -> £m | H98: ='FM Proportion Calc'!H$84 -> -1.073445117 | I98: ='FM Proportion Calc'!I$84 -> 0 | J98: ='FM Proportion Calc'!J$84 -> 0 | K98: ='FM Proportion Calc'!K$84 -> 0 | L98: ='FM Proportion Calc'!L$84 -> 0 | M98: ='FM Proportion Calc'!M$84 -> 0 | N98: ='FM Proportion Calc'!N$84 -> 0 | O98: ='FM Proportion Calc'!O$84 -> 0 | P98: ='FM Proportion Calc'!P$84 -> 0 | Q98: ='FM Proportion Calc'!Q$84 -> 0 | R98: ='FM Proportion Calc'!R$84 -> -0.202505252 | S98: ='FM Proportion Calc'!S$84 -> -0.2084184053 | T98: ='FM Proportion Calc'!T$84 -> -0.2145042228 | U98: ='FM Proportion Calc'!U$84 -> -0.2207851552 | V98: ='FM Proportion Calc'!V$84 -> -0.2272320818
A99: C222_PR19PD011 | E99: ='FM Proportion Calc'!E$85 -> ODI end of period revenue adjustment ~ Wastewater network at 2017-18 FYA CPIH deflated price base | F99: ='FM Proportion Calc'!F$85 -> 0 | G99: ='FM Proportion Calc'!G$85 -> £m | H99: ='FM Proportion Calc'!H$85 -> 0 | I99: ='FM Proportion Calc'!I$85 -> 0 | J99: ='FM Proportion Calc'!J$85 -> 0 | K99: ='FM Proportion Calc'!K$85 -> 0 | L99: ='FM Proportion Calc'!L$85 -> 0 | M99: ='FM Proportion Calc'!M$85 -> 0 | N99: ='FM Proportion Calc'!N$85 -> 0 | O99: ='FM Proportion Calc'!O$85 -> 0 | P99: ='FM Proportion Calc'!P$85 -> 0 | Q99: ='FM Proportion Calc'!Q$85 -> 0 | R99: ='FM Proportion Calc'!R$85 -> 0 | S99: ='FM Proportion Calc'!S$85 -> 0 | T99: ='FM Proportion Calc'!T$85 -> 0 | U99: ='FM Proportion Calc'!U$85 -> 0 | V99: ='FM Proportion Calc'!V$85 -> 0
A100: C223_PR19PD011 | E100: ='FM Proportion Calc'!E$86 -> WRFIM total reward / (penalty) at the end of AMP6 ~ Wastewater network at 2017-18 FYA CPIH deflated price base | F100: ='FM Proportion Calc'!F$86 -> 0 | G100: ='FM Proportion Calc'!G$86 -> £m | H100: ='FM Proportion Calc'!H$86 -> -21.9664475 | I100: ='FM Proportion Calc'!I$86 -> 0 | J100: ='FM Proportion Calc'!J$86 -> 0 | K100: ='FM Proportion Calc'!K$86 -> 0 | L100: ='FM Proportion Calc'!L$86 -> 0 | M100: ='FM Proportion Calc'!M$86 -> 0 | N100: ='FM Proportion Calc'!N$86 -> 0 | O100: ='FM Proportion Calc'!O$86 -> 0 | P100: ='FM Proportion Calc'!P$86 -> 0 | Q100: ='FM Proportion Calc'!Q$86 -> 0 | R100: ='FM Proportion Calc'!R$86 -> -4.143966855 | S100: ='FM Proportion Calc'!S$86 -> -4.264970687 | T100: ='FM Proportion Calc'!T$86 -> -4.389507831 | U100: ='FM Proportion Calc'!U$86 -> -4.518037713 | V100: ='FM Proportion Calc'!V$86 -> -4.649964414
A101: C224_PR19PD011 | E101: ='FM Proportion Calc'!E$87 -> Wastewater: Totex menu revenue adjustment at 2017-18 FYA CPIH deflated price base | F101: ='FM Proportion Calc'!F$87 -> 0 | G101: ='FM Proportion Calc'!G$87 -> £m | H101: ='FM Proportion Calc'!H$87 -> 1.93268191 | I101: ='FM Proportion Calc'!I$87 -> 0 | J101: ='FM Proportion Calc'!J$87 -> 0 | K101: ='FM Proportion Calc'!K$87 -> 0 | L101: ='FM Proportion Calc'!L$87 -> 0 | M101: ='FM Proportion Calc'!M$87 -> 0 | N101: ='FM Proportion Calc'!N$87 -> 0 | O101: ='FM Proportion Calc'!O$87 -> 0 | P101: ='FM Proportion Calc'!P$87 -> 0 | Q101: ='FM Proportion Calc'!Q$87 -> 0 | R101: ='FM Proportion Calc'!R$87 -> 0.3646001374 | S101: ='FM Proportion Calc'!S$87 -> 0.3752464614 | T101: ='FM Proportion Calc'!T$87 -> 0.3862036581 | U101: ='FM Proportion Calc'!U$87 -> 0.3975121492 | V101: ='FM Proportion Calc'!V$87 -> 0.4091195039
A102: C225_PR19PD011 | E102: ='FM Proportion Calc'!E$88 -> Further 2010-15 reconciliation total adjustment revenue carry forward to PR19 ~ Wastewater network at 2017-18 FYA CPIH deflated price base | F102: ='FM Proportion Calc'!F$88 -> 0 | G102: ='FM Proportion Calc'!G$88 -> £m | H102: ='FM Proportion Calc'!H$88 -> 1.544361667 | I102: ='FM Proportion Calc'!I$88 -> 0 | J102: ='FM Proportion Calc'!J$88 -> 0 | K102: ='FM Proportion Calc'!K$88 -> 0 | L102: ='FM Proportion Calc'!L$88 -> 0 | M102: ='FM Proportion Calc'!M$88 -> 0 | N102: ='FM Proportion Calc'!N$88 -> 0 | O102: ='FM Proportion Calc'!O$88 -> 0 | P102: ='FM Proportion Calc'!P$88 -> 0 | Q102: ='FM Proportion Calc'!Q$88 -> 0 | R102: ='FM Proportion Calc'!R$88 -> 0.2913435847 | S102: ='FM Proportion Calc'!S$88 -> 0.2998508174 | T102: ='FM Proportion Calc'!T$88 -> 0.3086064613 | U102: ='FM Proportion Calc'!U$88 -> 0.3176428165 | V102: ='FM Proportion Calc'!V$88 -> 0.3269179867
A103: C226_PR19PD011 | E103: ='FM Proportion Calc'!E$89 -> Other revenue adjustment - wastewater network plus at 2017-18 FYA CPIH deflated price base | F103: ='FM Proportion Calc'!F$89 -> 0 | G103: ='FM Proportion Calc'!G$89 -> £m | H103: ='FM Proportion Calc'!H$89 -> 0 | I103: ='FM Proportion Calc'!I$89 -> 0 | J103: ='FM Proportion Calc'!J$89 -> 0 | K103: ='FM Proportion Calc'!K$89 -> 0 | L103: ='FM Proportion Calc'!L$89 -> 0 | M103: ='FM Proportion Calc'!M$89 -> 0 | N103: ='FM Proportion Calc'!N$89 -> 0 | O103: ='FM Proportion Calc'!O$89 -> 0 | P103: ='FM Proportion Calc'!P$89 -> 0 | Q103: ='FM Proportion Calc'!Q$89 -> 0 | R103: ='FM Proportion Calc'!R$89 -> 0 | S103: ='FM Proportion Calc'!S$89 -> 0 | T103: ='FM Proportion Calc'!T$89 -> 0 | U103: ='FM Proportion Calc'!U$89 -> 0 | V103: ='FM Proportion Calc'!V$89 -> 0
A104: C231_PR19PD011 | E104: ='FM Proportion Calc'!E$108 -> ODI in-period revenue adjustment ~ Bioresources at 2017-18 FYA CPIH deflated price base | F104: ='FM Proportion Calc'!F$108 -> 0 | G104: ='FM Proportion Calc'!G$108 -> £m | H104: ='FM Proportion Calc'!H$108 -> 0 | I104: ='FM Proportion Calc'!I$108 -> 0 | J104: ='FM Proportion Calc'!J$108 -> 0 | K104: ='FM Proportion Calc'!K$108 -> 0 | L104: ='FM Proportion Calc'!L$108 -> 0 | M104: ='FM Proportion Calc'!M$108 -> 0 | N104: ='FM Proportion Calc'!N$108 -> 0 | O104: ='FM Proportion Calc'!O$108 -> 0 | P104: ='FM Proportion Calc'!P$108 -> 0 | Q104: ='FM Proportion Calc'!Q$108 -> 0 | R104: ='FM Proportion Calc'!R$108 -> 0 | S104: ='FM Proportion Calc'!S$108 -> 0 | T104: ='FM Proportion Calc'!T$108 -> 0 | U104: ='FM Proportion Calc'!U$108 -> 0 | V104: ='FM Proportion Calc'!V$108 -> 0
A105: C232_PR19PD011 | E105: ='FM Proportion Calc'!E$109 -> ODI end of period revenue adjustment ~ Bioresources at 2017-18 FYA CPIH deflated price base | F105: ='FM Proportion Calc'!F$109 -> 0 | G105: ='FM Proportion Calc'!G$109 -> £m | H105: ='FM Proportion Calc'!H$109 -> 0 | I105: ='FM Proportion Calc'!I$109 -> 0 | J105: ='FM Proportion Calc'!J$109 -> 0 | K105: ='FM Proportion Calc'!K$109 -> 0 | L105: ='FM Proportion Calc'!L$109 -> 0 | M105: ='FM Proportion Calc'!M$109 -> 0 | N105: ='FM Proportion Calc'!N$109 -> 0 | O105: ='FM Proportion Calc'!O$109 -> 0 | P105: ='FM Proportion Calc'!P$109 -> 0 | Q105: ='FM Proportion Calc'!Q$109 -> 0 | R105: ='FM Proportion Calc'!R$109 -> 0 | S105: ='FM Proportion Calc'!S$109 -> 0 | T105: ='FM Proportion Calc'!T$109 -> 0 | U105: ='FM Proportion Calc'!U$109 -> 0 | V105: ='FM Proportion Calc'!V$109 -> 0
A106: C241_PR19PD011 | E106: ='FM Proportion Calc'!E$128 -> Dummy: revenue adjustment from totex menu model at 2017-18 FYA CPIH deflated price base | F106: ='FM Proportion Calc'!F$128 -> 0 | G106: ='FM Proportion Calc'!G$128 -> £m | H106: ='FM Proportion Calc'!H$128 -> 0 | I106: ='FM Proportion Calc'!I$128 -> 0 | J106: ='FM Proportion Calc'!J$128 -> 0 | K106: ='FM Proportion Calc'!K$128 -> 0 | L106: ='FM Proportion Calc'!L$128 -> 0 | M106: ='FM Proportion Calc'!M$128 -> 0 | N106: ='FM Proportion Calc'!N$128 -> 0 | O106: ='FM Proportion Calc'!O$128 -> 0 | P106: ='FM Proportion Calc'!P$128 -> 0 | Q106: ='FM Proportion Calc'!Q$128 -> 0 | R106: ='FM Proportion Calc'!R$128 -> 0 | S106: ='FM Proportion Calc'!S$128 -> 0 | T106: ='FM Proportion Calc'!T$128 -> 0 | U106: ='FM Proportion Calc'!U$128 -> 0 | V106: ='FM Proportion Calc'!V$128 -> 0
A107: C242_PR19PD011 | E107: ='FM Proportion Calc'!E$129 -> WRFIM total reward / (penalty) at the end of AMP6 ~ Dummy at 2017-18 FYA CPIH deflated price base | F107: ='FM Proportion Calc'!F$129 -> 0 | G107: ='FM Proportion Calc'!G$129 -> £m | H107: ='FM Proportion Calc'!H$129 -> 0 | I107: ='FM Proportion Calc'!I$129 -> 0 | J107: ='FM Proportion Calc'!J$129 -> 0 | K107: ='FM Proportion Calc'!K$129 -> 0 | L107: ='FM Proportion Calc'!L$129 -> 0 | M107: ='FM Proportion Calc'!M$129 -> 0 | N107: ='FM Proportion Calc'!N$129 -> 0 | O107: ='FM Proportion Calc'!O$129 -> 0 | P107: ='FM Proportion Calc'!P$129 -> 0 | Q107: ='FM Proportion Calc'!Q$129 -> 0 | R107: ='FM Proportion Calc'!R$129 -> 0 | S107: ='FM Proportion Calc'!S$129 -> 0 | T107: ='FM Proportion Calc'!T$129 -> 0 | U107: ='FM Proportion Calc'!U$129 -> 0 | V107: ='FM Proportion Calc'!V$129 -> 0

Sheet Checks
A1: =RIGHT(CELL("filename", $A$1), LEN(CELL("filename", $A$1)) - SEARCH("]", CELL("filename", $A$1))) -> Checks
E2: =Time!E$25 -> Model period ending | F2: =Checks!F$11 -> 0 | G2: =Checks!G$11 -> Checks
E3: =Time!E$80 -> Timeline label
E4: =Time!E$103 -> Financial year ending
E5: =Time!E$10 -> Model column counter | F5: Constant | G5: Unit
A7: CHECK SUMMARY
A9: MODEL INTEGRITY CHECKS
E11: Total 5 year model integrity checks | F11: =SUM(F13:F22) -> 0 | G11: Checks
E13: [do not delete row]
E15: Input reference check | F15: =Inputs!A$5 -> 0 | G15: Checks
E16: ='FM Proportion Calc'!E30 -> Water resources total profiling adjustment check | F16: ='FM Proportion Calc'!F30 -> 0 | G16: ='FM Proportion Calc'!G30 -> Check
E17: ='FM Proportion Calc'!E65 -> Water network total profiling adjustment check | F17: ='FM Proportion Calc'!F65 -> 0 | G17: ='FM Proportion Calc'!G65 -> Check
E18: ='FM Proportion Calc'!E94 -> Wastewater network total profiling adjustment check | F18: ='FM Proportion Calc'!F94 -> 0 | G18: ='FM Proportion Calc'!G94 -> Check
E19: ='FM Proportion Calc'!E114 -> Bioresources total profiling adjustment check | F19: ='FM Proportion Calc'!F114 -> 0 | G19: ='FM Proportion Calc'!G114 -> Check
E20: ='FM Proportion Calc'!E134 -> Dummy control total profiling adjustment check | F20: ='FM Proportion Calc'!F134 -> 0 | G20: ='FM Proportion Calc'!G134 -> Check
E22: [do not delete row]
A24: END OF SHEET
